Workbook

Sheet INTRO
B2: Formulaire de demande commune de médicaments pour CP v.4.1
B4: Dans le cadre des efforts mondiaux entrepris pour accélérer l'expansion de la chimioprévention (CP) pour l'élimination de la filariose lymphatique et la lutte contre la schistosomiase et les géohelminthiases, l'Organisation mondiale de la Santé (OMS) facilite l'approvisionnement en albendazole, comprimés de 400 mg (GSK), pour les programmes nationaux d'élimination de la filariose lymphatique et programmes nationaux de lutte contre les géohelminthiases; en diethylcarbamazine, comprimés de 100 mg (Eisai), pour les programmes nationaux d'élimination de la filariose lymphatique; en mebendazole, comprimés de 500 mg (J&J) pour les programmes nationaux de lutte contre les géohelminthiases et en praziquantel, comprimés de 600 mg (Merck KGaA), destinés aux enfants d'âge scolaire, pour les programmes nationaux de lutte contre la schistosomiase. L'OMS contribue également à l'approvisionnement en ivermectine, comprimés de 3 mg (Merck), pour les programmes de donation pour l'onchocercose et la filariose lymphatique. Cet outil Excel est concu pour aider les pays à quantifier le nombre de comprimés nécessaires, selon le traitement de chimioprévention requis, pour atteindre les objectifs de couverture de traitement de populations et districts pour l'année de la demande de médicaments. Le résultat de cet outil est une demande commune de médicaments pour la chimioprévention des maladies tropicales négligées, qui peut être imprimée, signée et soumise à l'OMS pour la demande de ces médicaments.
B6: Structure de l'application (feuilles de travail) :
B8: INTRO | C8: Cette feuille contient des instructions pour compléter le formulaire de demande de médicaments pour la chimioprévention et des informations sur le statut de la chimioprévention pour les maladies d'endémie du pays.
B9: COUNTRY_INFO | C9: Cette feuille contient des informations sur la structure administrative du pays, la population par groupe d'âge, le statut d'endémicité pour chaque maladie, la population devant être traitée par chimioprévention et les interventions prévues.
B10: DEC, ALB_MBD, PZQ et IVM | C10: Ces feuilles contiennent des informations sur l'endémicité des districts ciblés pour le traitement aux médicaments spécifiques à la chimioprévention, les plans de traitement, et le nombre de comprimés requis et demandés.
B11: SUMMARY | C11: Cette feuille inclut un résumé du nombre de comprimés demandés, des informations concernant le stock et les dates de soumission de la demande de médicaments. Avant de générer le rapport (run macros), veuillez sélectionner le médicament pour lequel le rapport est nécessaire. Veuillez suivre la même règle pour voir le nombre de personnes à traiter pour les maladies spécifiques. Cette feuille doit être imprimée et soumise en tant que "Formulaire de demande commune de médicaments pour chimioprévention" (voir les instructions pour la soumission du formulaire sous la feuille SUMMARY).
B13: Instructions pour la saisie des données
B15: La plupart des cellules des feuilles de travail mentionnées ci-dessus contiennent des formules calculées automatiquement en fonction du protocole de traitement recommandé par l'OMS pour chaque maladie. Voir : https://www.who.int/publications/i/item/9789241599993.
B17: Veuillez entrer vos données dans les cellules en fonction de leur code de couleur :
C19: Blanc - la cellule n'est pas protégée. Veuillez entrer la valeur de l'indicateur demandé.
C21: Jaune - la cellule est protégée et inclut le nom de l'indicateur. Aucune entrée de données requise.
C23: Orange - la cellule n'est pas protégée et contient un menu déroulant. Veuillez sélectionner la valeur dans le menu déroulant.
C26: Vert - la cellule n'est pas protégée et contient des formules. Veuillez changer la valeur indiquée uniquement si vos données sont différentes de celles calculées automatiquement.
C29: Bleu - la cellule est protégée et contient des formules. Aucune entrée de données requise.
B31: Données pays
B33: PAYS | E33: Côte d'Ivoire
E34: 5
B35: Année de la demande de médicaments | E35: 2023
B37: Le pays est-il endémique à la filariose lymphatique (FL) ? | E37: Endémique
B39: Le pays est-il endémique à l'onchocercose (ONCHO) ? | E39: Endémique
B41: Le pays est-il endémique aux géohelminthiases (STH) ? | E41: Endémique
B43: Le pays est-il endémique à la schistosomiase (SCH) ? | E43: Endémique
B45: Combien d'unités administratives compte le pays ? | E45: 113
B47: Si les données démographiques par groupe d'âge ne sont pas disponibles au second niveau administratif, veuillez entrer la proportion (%) de population, par groupe d'âge, du pays. Si les données sont disponibles, veuillez laisser les cellules vierges.
B48: 1-4 ans | C48: Enfants d'âge pré-scolaire (EAPréS) | E48: 0.1269
B49: 5-14 ans | C49: Enfants d'âge scolaire (EAS) | E49: 0.2544
B50: 15 ans et plus | C50: Adultes | E50: 0.5836
B51: 15-49 ans | C51: Femmes en âge de procréer (FAP) | E51: 0.2413

Sheet COUNTRY_INFO
A1: INFORMATIONS PAYS
A2: Struture administrative, population par groupe d'âge, statut d'endémicité et interventions planifiées
A4: TOTAL | D4: =SUBTOTAL(9,D$10:D$1010) -> 28486818 | E4: =SUBTOTAL(9,E$10:E$1010) -> 3614973 | F4: 7247042 | G4: 16624902 | L4: =SUBTOTAL(9,L$10:L$1010) -> 15174858 | M4: 20569103 | N4: 868173 | O4: 1740451 | P4: 1650830 | Q4: 4259454 | R4: 1833985 | S4: 2777681 | T4: 11245714 | U4: 14642610
A6: Structure administrative du pays | D6: Population | H6: Endémicité | L6: Population nécessitant la CP | V6: Nombre de tournées de traitement prévues pour l'année | Z6: Criteria to apply for IVM+DEC+ALB therapy | AA6: Enquêtes épidémiologiques planifiées pour l’année
A7: Pays | B7: Région/Département | C7: District | D7: Total | E7: EAPréS | F7: EAS | G7: Adultes | H7: FL | I7: Oncho | J7: STH | K7: SCH | L7: FL | M7: ONCHO | N7: STH | R7: SCH | V7: FL | W7: Oncho | X7: STH | Y7: SCH | Z7: FL | AA7: FL | AB7: Oncho | AC7: STH | AD7: SCH
N8: EAPréS | O8: EAS | P8: FAP | Q8: TOTAL | R8: EAPréS | S8: EAS | T8: Adultes | U8: TOTAL | AH8: IU_ID | AI8: IU_NAME
AE9: x | AF9: x | AG9: x | AH9: x | AI9: x | AJ9: x | AK9: x | AL9: X | AM9: X | AN9: X | AO9: X | AP9: X | AQ9: X | AR9: X | AS9: X | AT9: x | AU9: x | AV9: x | AW9: x | AX9: x | AY9: x | AZ9: x | BA9: x | BB9: x | BC9: x | BD9: x | BE9: x | BF9: x | BG9: x | BH9: x | BI9: x | BJ9: x | BK9: x | BL9: x | BM9: x | BN9: x | BO9: x | BP9: x | BQ9: x | BR9: x | BS9: x | BT9: x | BU9: x | BV9: x
A10: =IF(INTRO!$E$33<>0,INTRO!$E$33, " ") -> Côte d'Ivoire | B10: ABIDJAN 1 | C10: ABOBO EST | D10: 672399 | E10: =IF(INTRO!$E$48="","",ROUND($D10*INTRO!$E$48,0)) -> 85327 | F10: =IF(INTRO!$E$49="","",ROUND($D10*INTRO!$E$49,0)) -> 171058 | G10: =IF(INTRO!$E$50="","",ROUND($D10*INTRO!$E$50,0)) -> 392412 | H10: 0 | I10: 0 | J10: 1 | K10: 1 | L10: =IF(INTRO!$E$37="Endémique",IF($H10>0,IF($H10=4,"Inconnu",IF($H10=99,"Interrompu",$D10)),0),"Non requis") -> 0 | M10: =IF(INTRO!$E$39="Endémique", IF($I10>0, IF($I10=4,"Inconnu",IF($I10=99,"Interrompu",$D10)), 0),"Non requis") -> 0 | N10: =IF(INTRO!$E$41="Endémique", IF($J10>1, IF($J10=4, "Inconnu", IF($J10=99, "Surveillance", E10)), 0),"Non requis") -> 0 | O10: =IF(INTRO!$E$41="Endémique", IF($J10>1, IF($J10=4, "Inconnu", IF($J10=99, "Surveillance", F10)), 0),"Non requis") -> 0 | P10: =IF(INTRO!$E$41="Endémique", IF($J10>1, IF($J10=4, "Inconnu", IF($J10=99, "Surveillance", ROUND(D10*INTRO!$E$51,0))), 0),"Non requis") -> 0 | Q10: =IF(INTRO!$E$41="Endémique", IF($J10>1, IF($J10=4, "Inconnu", IF($J10=99, "Surveillance", SUM($N10:$P10))), 0),"Non requis") -> 0 | R10: =IF(INTRO!$E$43="Endémique", IF($K10>1, IF($K10=4, "Inconnu", IF($K10=99, "Surveillance", ROUND(E10*0.75,0))), 0),"Non requis") -> 0 | S10: 233652 | T10: =IF(INTRO!$E$43="Endémique", IF($K10>1, IF($K10=4, "Inconnu", IF($K10=99, "Surveillance", G10)), 0),"Non requis") -> 0 | U10: =IF(INTRO!$E$43="Endémique", IF($K10>1, IF($K10=4, "Inconnu", IF($K10=99, "Surveillance", SUM($R10:$T10))), 0),"Non requis") -> 0 | V10: 0 | W10: 0 | X10: 0 | Y10: 1 | AH10: 15335 | AI10: ABOBO EST
A11: =IF(INTRO!$E$33<>0,INTRO!$E$33, " ") -> Côte d'Ivoire | B11: ABIDJAN 1 | C11: ABOBO OUEST | D11: 699844 | E11: =IF(INTRO!$E$48="","",ROUND($D11*INTRO!$E$48,0)) -> 88810 | F11: =IF(INTRO!$E$49="","",ROUND($D11*INTRO!$E$49,0)) -> 178040 | G11: =IF(INTRO!$E$50="","",ROUND($D11*INTRO!$E$50,0)) -> 408429 | H11: 0 | I11: 0 | J11: 1 | K11: 1 | L11: =IF(INTRO!$E$37="Endémique",IF($H11>0,IF($H11=4,"Inconnu",IF($H11=99,"Interrompu",$D11)),0),"Non requis") -> 0 | M11: =IF(INTRO!$E$39="Endémique", IF($I11>0, IF($I11=4,"Inconnu",IF($I11=99,"Interrompu",$D11)), 0),"Non requis") -> 0 | N11: =IF(INTRO!$E$41="Endémique", IF($J11>1, IF($J11=4, "Inconnu", IF($J11=99, "Surveillance", E11)), 0),"Non requis") -> 0 | O11: =IF(INTRO!$E$41="Endémique", IF($J11>1, IF($J11=4, "Inconnu", IF($J11=99, "Surveillance", F11)), 0),"Non requis") -> 0 | P11: =IF(INTRO!$E$41="Endémique", IF($J11>1, IF($J11=4, "Inconnu", IF($J11=99, "Surveillance", ROUND(D11*INTRO!$E$51,0))), 0),"Non requis") -> 0 | Q11: =IF(INTRO!$E$41="Endémique", IF($J11>1, IF($J11=4, "Inconnu", IF($J11=99, "Surveillance", SUM($N11:$P11))), 0),"Non requis") -> 0 | R11: =IF(INTRO!$E$43="Endémique", IF($K11>1, IF($K11=4, "Inconnu", IF($K11=99, "Surveillance", ROUND(E11*0.75,0))), 0),"Non requis") -> 0 | S11: 77041 | T11: =IF(INTRO!$E$43="Endémique", IF($K11>1, IF($K11=4, "Inconnu", IF($K11=99, "Surveillance", G11)), 0),"Non requis") -> 0 | U11: =IF(INTRO!$E$43="Endémique", IF($K11>1, IF($K11=4, "Inconnu", IF($K11=99, "Surveillance", SUM($R11:$T11))), 0),"Non requis") -> 0 | V11: 0 | W11: 0 | X11: 0 | Y11: 1 | AH11: 15336 | AI11: ABOBO OUEST
A12: =IF(INTRO!$E$33<>0,INTRO!$E$33, " ") -> Côte d'Ivoire | B12: ABIDJAN 1 | C12: ANYAMA | D12: 210328 | E12: =IF(INTRO!$E$48="","",ROUND($D12*INTRO!$E$48,0)) -> 26691 | F12: =IF(INTRO!$E$49="","",ROUND($D12*INTRO!$E$49,0)) -> 53507 | G12: =IF(INTRO!$E$50="","",ROUND($D12*INTRO!$E$50,0)) -> 122747 | H12: 0 | I12: 0 | J12: 1 | K12: 2 | L12: =IF(INTRO!$E$37="Endémique",IF($H12>0,IF($H12=4,"Inconnu",IF($H12=99,"Interrompu",$D12)),0),"Non requis") -> 0 | M12: =IF(INTRO!$E$39="Endémique", IF($I12>0, IF($I12=4,"Inconnu",IF($I12=99,"Interrompu",$D12)), 0),"Non requis") -> 0 | N12: =IF(INTRO!$E$41="Endémique", IF($J12>1, IF($J12=4, "Inconnu", IF($J12=99, "Surveillance", E12)), 0),"Non requis") -> 0 | O12: =IF(INTRO!$E$41="Endémique", IF($J12>1, IF($J12=4, "Inconnu", IF($J12=99, "Surveillance", F12)), 0),"Non requis") -> 0 | P12: =IF(INTRO!$E$41="Endémique", IF($J12>1, IF($J12=4, "Inconnu", IF($J12=99, "Surveillance", ROUND(D12*INTRO!$E$51,0))), 0),"Non requis") -> 0 | Q12: =IF(INTRO!$E$41="Endémique", IF($J12>1, IF($J12=4, "Inconnu", IF($J12=99, "Surveillance", SUM($N12:$P12))), 0),"Non requis") -> 0 | R12: =IF(INTRO!$E$43="Endémique", IF($K12>1, IF($K12=4, "Inconnu", IF($K12=99, "Surveillance", ROUND(E12*0.75,0))), 0),"Non requis") -> 20018 | S12: 0 | T12: =IF(INTRO!$E$43="Endémique", IF($K12>1, IF($K12=4, "Inconnu", IF($K12=99, "Surveillance", G12)), 0),"Non requis") -> 122747 | U12: =IF(INTRO!$E$43="Endémique", IF($K12>1, IF($K12=4, "Inconnu", IF($K12=99, "Surveillance", SUM($R12:$T12))), 0),"Non requis") -> 142765 | V12: 0 | W12: 0 | X12: 0 | Y12: 0 | AH12: 15337 | AI12: ANYAMA
A13: =IF(INTRO!$E$33<>0,INTRO!$E$33, " ") -> Côte d'Ivoire | B13: ABIDJAN 1 | C13: YOPOUGON EST | D13: 955875 | E13: =IF(INTRO!$E$48="","",ROUND($D13*INTRO!$E$48,0)) -> 121301 | F13: =IF(INTRO!$E$49="","",ROUND($D13*INTRO!$E$49,0)) -> 243175 | G13: =IF(INTRO!$E$50="","",ROUND($D13*INTRO!$E$50,0)) -> 557849 | H13: 19 | I13: 0 | J13: 1 | K13: 2 | L13: =IF(INTRO!$E$37="Endémique",IF($H13>0,IF($H13=4,"Inconnu",IF($H13=99,"Interrompu",$D13)),0),"Non requis") -> 955875 | M13: =IF(INTRO!$E$39="Endémique", IF($I13>0, IF($I13=4,"Inconnu",IF($I13=99,"Interrompu",$D13)), 0),"Non requis") -> 0 | N13: =IF(INTRO!$E$41="Endémique", IF($J13>1, IF($J13=4, "Inconnu", IF($J13=99, "Surveillance", E13)), 0),"Non requis") -> 0 | O13: =IF(INTRO!$E$41="Endémique", IF($J13>1, IF($J13=4, "Inconnu", IF($J13=99, "Surveillance", F13)), 0),"Non requis") -> 0 | P13: =IF(INTRO!$E$41="Endémique", IF($J13>1, IF($J13=4, "Inconnu", IF($J13=99, "Surveillance", ROUND(D13*INTRO!$E$51,0))), 0),"Non requis") -> 0 | Q13: =IF(INTRO!$E$41="Endémique", IF($J13>1, IF($J13=4, "Inconnu", IF($J13=99, "Surveillance", SUM($N13:$P13))), 0),"Non requis") -> 0 | R13: =IF(INTRO!$E$43="Endémique", IF($K13>1, IF($K13=4, "Inconnu", IF($K13=99, "Surveillance", ROUND(E13*0.75,0))), 0),"Non requis") -> 90976 | S13: 195983 | T13: =IF(INTRO!$E$43="Endémique", IF($K13>1, IF($K13=4, "Inconnu", IF($K13=99, "Surveillance", G13)), 0),"Non requis") -> 557849 | U13: =IF(INTRO!$E$43="Endémique", IF($K13>1, IF($K13=4, "Inconnu", IF($K13=99, "Surveillance", SUM($R13:$T13))), 0),"Non requis") -> 844808 | V13: 0 | W13: 0 | X13: 0 | Y13: 1 | AH13: 15333 | AI13: YOPOUGON EST
A14: =IF(INTRO!$E$33<>0,INTRO!$E$33, " ") -> Côte d'Ivoire | B14: ABIDJAN 1 | C14: YOPOUGON OUEST | D14: 542320 | E14: =IF(INTRO!$E$48="","",ROUND($D14*INTRO!$E$48,0)) -> 68820 | F14: =IF(INTRO!$E$49="","",ROUND($D14*INTRO!$E$49,0)) -> 137966 | G14: =IF(INTRO!$E$50="","",ROUND($D14*INTRO!$E$50,0)) -> 316498 | H14: 19 | I14: 0 | J14: 1 | K14: 1 | L14: =IF(INTRO!$E$37="Endémique",IF($H14>0,IF($H14=4,"Inconnu",IF($H14=99,"Interrompu",$D14)),0),"Non requis") -> 542320 | M14: =IF(INTRO!$E$39="Endémique", IF($I14>0, IF($I14=4,"Inconnu",IF($I14=99,"Interrompu",$D14)), 0),"Non requis") -> 0 | N14: =IF(INTRO!$E$41="Endémique", IF($J14>1, IF($J14=4, "Inconnu", IF($J14=99, "Surveillance", E14)), 0),"Non requis") -> 0 | O14: =IF(INTRO!$E$41="Endémique", IF($J14>1, IF($J14=4, "Inconnu", IF($J14=99, "Surveillance", F14)), 0),"Non requis") -> 0 | P14: =IF(INTRO!$E$41="Endémique", IF($J14>1, IF($J14=4, "Inconnu", IF($J14=99, "Surveillance", ROUND(D14*INTRO!$E$51,0))), 0),"Non requis") -> 0 | Q14: =IF(INTRO!$E$41="Endémique", IF($J14>1, IF($J14=4, "Inconnu", IF($J14=99, "Surveillance", SUM($N14:$P14))), 0),"Non requis") -> 0 | R14: =IF(INTRO!$E$43="Endémique", IF($K14>1, IF($K14=4, "Inconnu", IF($K14=99, "Surveillance", ROUND(E14*0.75,0))), 0),"Non requis") -> 0 | S14: 118331 | T14: =IF(INTRO!$E$43="Endémique", IF($K14>1, IF($K14=4, "Inconnu", IF($K14=99, "Surveillance", G14)), 0),"Non requis") -> 0 | U14: =IF(INTRO!$E$43="Endémique", IF($K14>1, IF($K14=4, "Inconnu", IF($K14=99, "Surveillance", SUM($R14:$T14))), 0),"Non requis") -> 0 | V14: 0 | W14: 0 | X14: 0 | Y14: 1 | AH14: 15334 | AI14: YOPOUGON OUEST
A15: =IF(INTRO!$E$33<>0,INTRO!$E$33, " ") -> Côte d'Ivoire | B15: ABIDJAN 2 | C15: ADJAME-PLATEAU-ATTECOUBE | D15: 853944 | E15: =IF(INTRO!$E$48="","",ROUND($D15*INTRO!$E$48,0)) -> 108365 | F15: =IF(INTRO!$E$49="","",ROUND($D15*INTRO!$E$49,0)) -> 217243 | G15: =IF(INTRO!$E$50="","",ROUND($D15*INTRO!$E$50,0)) -> 498362 | H15: 0 | I15: 0 | J15: 1 | K15: 2 | L15: =IF(INTRO!$E$37="Endémique",IF($H15>0,IF($H15=4,"Inconnu",IF($H15=99,"Interrompu",$D15)),0),"Non requis") -> 0 | M15: =IF(INTRO!$E$39="Endémique", IF($I15>0, IF($I15=4,"Inconnu",IF($I15=99,"Interrompu",$D15)), 0),"Non requis") -> 0 | N15: =IF(INTRO!$E$41="Endémique", IF($J15>1, IF($J15=4, "Inconnu", IF($J15=99, "Surveillance", E15)), 0),"Non requis") -> 0 | O15: =IF(INTRO!$E$41="Endémique", IF($J15>1, IF($J15=4, "Inconnu", IF($J15=99, "Surveillance", F15)), 0),"Non requis") -> 0 | P15: =IF(INTRO!$E$41="Endémique", IF($J15>1, IF($J15=4, "Inconnu", IF($J15=99, "Surveillance", ROUND(D15*INTRO!$E$51,0))), 0),"Non requis") -> 0 | Q15: =IF(INTRO!$E$41="Endémique", IF($J15>1, IF($J15=4, "Inconnu", IF($J15=99, "Surveillance", SUM($N15:$P15))), 0),"Non requis") -> 0 | R15: =IF(INTRO!$E$43="Endémique", IF($K15>1, IF($K15=4, "Inconnu", IF($K15=99, "Surveillance", ROUND(E15*0.75,0))), 0),"Non requis") -> 81274 | S15: 0 | T15: =IF(INTRO!$E$43="Endémique", IF($K15>1, IF($K15=4, "Inconnu", IF($K15=99, "Surveillance", G15)), 0),"Non requis") -> 498362 | U15: =IF(INTRO!$E$43="Endémique", IF($K15>1, IF($K15=4, "Inconnu", IF($K15=99, "Surveillance", SUM($R15:$T15))), 0),"Non requis") -> 579636 | V15: 0 | W15: 0 | X15: 0 | Y15: 0 | AH15: 15329 | AI15: ADJAME-PLATEAU-ATTECOUBE
A16: =IF(INTRO!$E$33<>0,INTRO!$E$33, " ") -> Côte d'Ivoire | B16: ABIDJAN 2 | C16: COCODY-BINGERVILLE | D16: 711764 | E16: =IF(INTRO!$E$48="","",ROUND($D16*INTRO!$E$48,0)) -> 90323 | F16: =IF(INTRO!$E$49="","",ROUND($D16*INTRO!$E$49,0)) -> 181073 | G16: =IF(INTRO!$E$50="","",ROUND($D16*INTRO!$E$50,0)) -> 415385 | H16: 19 | I16: 0 | J16: 1 | K16: 1 | L16: =IF(INTRO!$E$37="Endémique",IF($H16>0,IF($H16=4,"Inconnu",IF($H16=99,"Interrompu",$D16)),0),"Non requis") -> 711764 | M16: =IF(INTRO!$E$39="Endémique", IF($I16>0, IF($I16=4,"Inconnu",IF($I16=99,"Interrompu",$D16)), 0),"Non requis") -> 0 | N16: =IF(INTRO!$E$41="Endémique", IF($J16>1, IF($J16=4, "Inconnu", IF($J16=99, "Surveillance", E16)), 0),"Non requis") -> 0 | O16: =IF(INTRO!$E$41="Endémique", IF($J16>1, IF($J16=4, "Inconnu", IF($J16=99, "Surveillance", F16)), 0),"Non requis") -> 0 | P16: =IF(INTRO!$E$41="Endémique", IF($J16>1, IF($J16=4, "Inconnu", IF($J16=99, "Surveillance", ROUND(D16*INTRO!$E$51,0))), 0),"Non requis") -> 0 | Q16: =IF(INTRO!$E$41="Endémique", IF($J16>1, IF($J16=4, "Inconnu", IF($J16=99, "Surveillance", SUM($N16:$P16))), 0),"Non requis") -> 0 | R16: =IF(INTRO!$E$43="Endémique", IF($K16>1, IF($K16=4, "Inconnu", IF($K16=99, "Surveillance", ROUND(E16*0.75,0))), 0),"Non requis") -> 0 | S16: 0 | T16: =IF(INTRO!$E$43="Endémique", IF($K16>1, IF($K16=4, "Inconnu", IF($K16=99, "Surveillance", G16)), 0),"Non requis") -> 0 | U16: =IF(INTRO!$E$43="Endémique", IF($K16>1, IF($K16=4, "Inconnu", IF($K16=99, "Surveillance", SUM($R16:$T16))), 0),"Non requis") -> 0 | V16: 0 | W16: 0 | X16: 0 | Y16: 0 | AH16: 15338 | AI16: COCODY-BINGERVILLE
A17: =IF(INTRO!$E$33<>0,INTRO!$E$33, " ") -> Côte d'Ivoire | B17: ABIDJAN 2 | C17: KOUMASSI | D17: 576691 | E17: =IF(INTRO!$E$48="","",ROUND($D17*INTRO!$E$48,0)) -> 73182 | F17: =IF(INTRO!$E$49="","",ROUND($D17*INTRO!$E$49,0)) -> 146710 | G17: =IF(INTRO!$E$50="","",ROUND($D17*INTRO!$E$50,0)) -> 336557 | H17: 0 | I17: 0 | J17: 1 | K17: 1 | L17: =IF(INTRO!$E$37="Endémique",IF($H17>0,IF($H17=4,"Inconnu",IF($H17=99,"Interrompu",$D17)),0),"Non requis") -> 0 | M17: =IF(INTRO!$E$39="Endémique", IF($I17>0, IF($I17=4,"Inconnu",IF($I17=99,"Interrompu",$D17)), 0),"Non requis") -> 0 | N17: =IF(INTRO!$E$41="Endémique", IF($J17>1, IF($J17=4, "Inconnu", IF($J17=99, "Surveillance", E17)), 0),"Non requis") -> 0 | O17: =IF(INTRO!$E$41="Endémique", IF($J17>1, IF($J17=4, "Inconnu", IF($J17=99, "Surveillance", F17)), 0),"Non requis") -> 0 | P17: =IF(INTRO!$E$41="Endémique", IF($J17>1, IF($J17=4, "Inconnu", IF($J17=99, "Surveillance", ROUND(D17*INTRO!$E$51,0))), 0),"Non requis") -> 0 | Q17: =IF(INTRO!$E$41="Endémique", IF($J17>1, IF($J17=4, "Inconnu", IF($J17=99, "Surveillance", SUM($N17:$P17))), 0),"Non requis") -> 0 | R17: =IF(INTRO!$E$43="Endémique", IF($K17>1, IF($K17=4, "Inconnu", IF($K17=99, "Surveillance", ROUND(E17*0.75,0))), 0),"Non requis") -> 0 | S17: 0 | T17: =IF(INTRO!$E$43="Endémique", IF($K17>1, IF($K17=4, "Inconnu", IF($K17=99, "Surveillance", G17)), 0),"Non requis") -> 0 | U17: =IF(INTRO!$E$43="Endémique", IF($K17>1, IF($K17=4, "Inconnu", IF($K17=99, "Surveillance", SUM($R17:$T17))), 0),"Non requis") -> 0 | V17: 0 | W17: 0 | X17: 0 | Y17: 0 | AH17: 15417 | AI17: KOUMASSI
A18: =IF(INTRO!$E$33<>0,INTRO!$E$33, " ") -> Côte d'Ivoire | B18: ABIDJAN 2 | C18: PORT BOUET-VRIDI | D18: 557910 | E18: =IF(INTRO!$E$48="","",ROUND($D18*INTRO!$E$48,0)) -> 70799 | F18: =IF(INTRO!$E$49="","",ROUND($D18*INTRO!$E$49,0)) -> 141932 | G18: =IF(INTRO!$E$50="","",ROUND($D18*INTRO!$E$50,0)) -> 325596 | H18: 0 | I18: 0 | J18: 1 | K18: 2 | L18: =IF(INTRO!$E$37="Endémique",IF($H18>0,IF($H18=4,"Inconnu",IF($H18=99,"Interrompu",$D18)),0),"Non requis") -> 0 | M18: =IF(INTRO!$E$39="Endémique", IF($I18>0, IF($I18=4,"Inconnu",IF($I18=99,"Interrompu",$D18)), 0),"Non requis") -> 0 | N18: =IF(INTRO!$E$41="Endémique", IF($J18>1, IF($J18=4, "Inconnu", IF($J18=99, "Surveillance", E18)), 0),"Non requis") -> 0 | O18: =IF(INTRO!$E$41="Endémique", IF($J18>1, IF($J18=4, "Inconnu", IF($J18=99, "Surveillance", F18)), 0),"Non requis") -> 0 | P18: =IF(INTRO!$E$41="Endémique", IF($J18>1, IF($J18=4, "Inconnu", IF($J18=99, "Surveillance", ROUND(D18*INTRO!$E$51,0))), 0),"Non requis") -> 0 | Q18: =IF(INTRO!$E$41="Endémique", IF($J18>1, IF($J18=4, "Inconnu", IF($J18=99, "Surveillance", SUM($N18:$P18))), 0),"Non requis") -> 0 | R18: =IF(INTRO!$E$43="Endémique", IF($K18>1, IF($K18=4, "Inconnu", IF($K18=99, "Surveillance", ROUND(E18*0.75,0))), 0),"Non requis") -> 53099 | S18: 0 | T18: =IF(INTRO!$E$43="Endémique", IF($K18>1, IF($K18=4, "Inconnu", IF($K18=99, "Surveillance", G18)), 0),"Non requis") -> 325596 | U18: =IF(INTRO!$E$43="Endémique", IF($K18>1, IF($K18=4, "Inconnu", IF($K18=99, "Surveillance", SUM($R18:$T18))), 0),"Non requis") -> 378695 | V18: 0 | W18: 0 | X18: 0 | Y18: 0 | AH18: 15418 | AI18: PORT BOUET VRIDI
A19: =IF(INTRO!$E$33<>0,INTRO!$E$33, " ") -> Côte d'Ivoire | B19: ABIDJAN 2 | C19: TREICHVILLE-MARCORY | D19: 469244 | E19: =IF(INTRO!$E$48="","",ROUND($D19*INTRO!$E$48,0)) -> 59547 | F19: =IF(INTRO!$E$49="","",ROUND($D19*INTRO!$E$49,0)) -> 119376 | G19: =IF(INTRO!$E$50="","",ROUND($D19*INTRO!$E$50,0)) -> 273851 | H19: 0 | I19: 0 | J19: 1 | K19: 1 | L19: =IF(INTRO!$E$37="Endémique",IF($H19>0,IF($H19=4,"Inconnu",IF($H19=99,"Interrompu",$D19)),0),"Non requis") -> 0 | M19: =IF(INTRO!$E$39="Endémique", IF($I19>0, IF($I19=4,"Inconnu",IF($I19=99,"Interrompu",$D19)), 0),"Non requis") -> 0 | N19: =IF(INTRO!$E$41="Endémique", IF($J19>1, IF($J19=4, "Inconnu", IF($J19=99, "Surveillance", E19)), 0),"Non requis") -> 0 | O19: =IF(INTRO!$E$41="Endémique", IF($J19>1, IF($J19=4, "Inconnu", IF($J19=99, "Surveillance", F19)), 0),"Non requis") -> 0 | P19: =IF(INTRO!$E$41="Endémique", IF($J19>1, IF($J19=4, "Inconnu", IF($J19=99, "Surveillance", ROUND(D19*INTRO!$E$51,0))), 0),"Non requis") -> 0 | Q19: =IF(INTRO!$E$41="Endémique", IF($J19>1, IF($J19=4, "Inconnu", IF($J19=99, "Surveillance", SUM($N19:$P19))), 0),"Non requis") -> 0 | R19: =IF(INTRO!$E$43="Endémique", IF($K19>1, IF($K19=4, "Inconnu", IF($K19=99, "Surveillance", ROUND(E19*0.75,0))), 0),"Non requis") -> 0 | S19: 0 | T19: =IF(INTRO!$E$43="Endémique", IF($K19>1, IF($K19=4, "Inconnu", IF($K19=99, "Surveillance", G19)), 0),"Non requis") -> 0 | U19: =IF(INTRO!$E$43="Endémique", IF($K19>1, IF($K19=4, "Inconnu", IF($K19=99, "Surveillance", SUM($R19:$T19))), 0),"Non requis") -> 0 | V19: 0 | W19: 0 | X19: 0 | Y19: 0 | AH19: 15340 | AI19: MARCORY-TREICHVILLE
A20: =IF(INTRO!$E$33<>0,INTRO!$E$33, " ") -> Côte d'Ivoire | B20: AGNEBY-TIASSA | C20: AGBOVILLE | D20: 365233 | E20: =IF(INTRO!$E$48="","",ROUND($D20*INTRO!$E$48,0)) -> 46348 | F20: =IF(INTRO!$E$49="","",ROUND($D20*INTRO!$E$49,0)) -> 92915 | G20: =IF(INTRO!$E$50="","",ROUND($D20*INTRO!$E$50,0)) -> 213150 | H20: 19 | I20: 1 | J20: 1 | K20: 2 | L20: =IF(INTRO!$E$37="Endémique",IF($H20>0,IF($H20=4,"Inconnu",IF($H20=99,"Interrompu",$D20)),0),"Non requis") -> 365233 | M20: =IF(INTRO!$E$39="Endémique", IF($I20>0, IF($I20=4,"Inconnu",IF($I20=99,"Interrompu",$D20)), 0),"Non requis") -> 365233 | N20: =IF(INTRO!$E$41="Endémique", IF($J20>1, IF($J20=4, "Inconnu", IF($J20=99, "Surveillance", E20)), 0),"Non requis") -> 0 | O20: =IF(INTRO!$E$41="Endémique", IF($J20>1, IF($J20=4, "Inconnu", IF($J20=99, "Surveillance", F20)), 0),"Non requis") -> 0 | P20: =IF(INTRO!$E$41="Endémique", IF($J20>1, IF($J20=4, "Inconnu", IF($J20=99, "Surveillance", ROUND(D20*INTRO!$E$51,0))), 0),"Non requis") -> 0 | Q20: =IF(INTRO!$E$41="Endémique", IF($J20>1, IF($J20=4, "Inconnu", IF($J20=99, "Surveillance", SUM($N20:$P20))), 0),"Non requis") -> 0 | R20: =IF(INTRO!$E$43="Endémique", IF($K20>1, IF($K20=4, "Inconnu", IF($K20=99, "Surveillance", ROUND(E20*0.75,0))), 0),"Non requis") -> 34761 | S20: 0 | T20: =IF(INTRO!$E$43="Endémique", IF($K20>1, IF($K20=4, "Inconnu", IF($K20=99, "Surveillance", G20)), 0),"Non requis") -> 213150 | U20: =IF(INTRO!$E$43="Endémique", IF($K20>1, IF($K20=4, "Inconnu", IF($K20=99, "Surveillance", SUM($R20:$T20))), 0),"Non requis") -> 247911 | V20: 0 | W20: 1 | X20: 0 | Y20: 0 | AH20: 15342 | AI20: AGBOVILLE
A21: =IF(INTRO!$E$33<>0,INTRO!$E$33, " ") -> Côte d'Ivoire | B21: AGNEBY-TIASSA | C21: SIKENSI | D21: 98076 | E21: =IF(INTRO!$E$48="","",ROUND($D21*INTRO!$E$48,0)) -> 12446 | F21: =IF(INTRO!$E$49="","",ROUND($D21*INTRO!$E$49,0)) -> 24951 | G21: =IF(INTRO!$E$50="","",ROUND($D21*INTRO!$E$50,0)) -> 57237 | H21: 19 | I21: 1 | J21: 2 | K21: 3 | L21: =IF(INTRO!$E$37="Endémique",IF($H21>0,IF($H21=4,"Inconnu",IF($H21=99,"Interrompu",$D21)),0),"Non requis") -> 98076 | M21: =IF(INTRO!$E$39="Endémique", IF($I21>0, IF($I21=4,"Inconnu",IF($I21=99,"Interrompu",$D21)), 0),"Non requis") -> 98076 | N21: =IF(INTRO!$E$41="Endémique", IF($J21>1, IF($J21=4, "Inconnu", IF($J21=99, "Surveillance", E21)), 0),"Non requis") -> 12446 | O21: =IF(INTRO!$E$41="Endémique", IF($J21>1, IF($J21=4, "Inconnu", IF($J21=99, "Surveillance", F21)), 0),"Non requis") -> 24951 | P21: =IF(INTRO!$E$41="Endémique", IF($J21>1, IF($J21=4, "Inconnu", IF($J21=99, "Surveillance", ROUND(D21*INTRO!$E$51,0))), 0),"Non requis") -> 23666 | Q21: =IF(INTRO!$E$41="Endémique", IF($J21>1, IF($J21=4, "Inconnu", IF($J21=99, "Surveillance", SUM($N21:$P21))), 0),"Non requis") -> 61063 | R21: =IF(INTRO!$E$43="Endémique", IF($K21>1, IF($K21=4, "Inconnu", IF($K21=99, "Surveillance", ROUND(E21*0.75,0))), 0),"Non requis") -> 9335 | S21: 2423 | T21: =IF(INTRO!$E$43="Endémique", IF($K21>1, IF($K21=4, "Inconnu", IF($K21=99, "Surveillance", G21)), 0),"Non requis") -> 57237 | U21: =IF(INTRO!$E$43="Endémique", IF($K21>1, IF($K21=4, "Inconnu", IF($K21=99, "Surveillance", SUM($R21:$T21))), 0),"Non requis") -> 68995 | V21: 0 | W21: 1 | X21: 1 | Y21: 1 | AH21: 15345 | AI21: SIKENSI
A22: =IF(INTRO!$E$33<>0,INTRO!$E$33, " ") -> Côte d'Ivoire | B22: AGNEBY-TIASSA | C22: TIASSALE | D22: 295461 | E22: =IF(INTRO!$E$48="","",ROUND($D22*INTRO!$E$48,0)) -> 37494 | F22: =IF(INTRO!$E$49="","",ROUND($D22*INTRO!$E$49,0)) -> 75165 | G22: =IF(INTRO!$E$50="","",ROUND($D22*INTRO!$E$50,0)) -> 172431 | H22: 99 | I22: 1 | J22: 2 | K22: 2 | L22: =IF(INTRO!$E$37="Endémique",IF($H22>0,IF($H22=4,"Inconnu",IF($H22=99,"Interrompu",$D22)),0),"Non requis") -> Interrompu | M22: =IF(INTRO!$E$39="Endémique", IF($I22>0, IF($I22=4,"Inconnu",IF($I22=99,"Interrompu",$D22)), 0),"Non requis") -> 295461 | N22: =IF(INTRO!$E$41="Endémique", IF($J22>1, IF($J22=4, "Inconnu", IF($J22=99, "Surveillance", E22)), 0),"Non requis") -> 37494 | O22: =IF(INTRO!$E$41="Endémique", IF($J22>1, IF($J22=4, "Inconnu", IF($J22=99, "Surveillance", F22)), 0),"Non requis") -> 75165 | P22: =IF(INTRO!$E$41="Endémique", IF($J22>1, IF($J22=4, "Inconnu", IF($J22=99, "Surveillance", ROUND(D22*INTRO!$E$51,0))), 0),"Non requis") -> 71295 | Q22: =IF(INTRO!$E$41="Endémique", IF($J22>1, IF($J22=4, "Inconnu", IF($J22=99, "Surveillance", SUM($N22:$P22))), 0),"Non requis") -> 183954 | R22: =IF(INTRO!$E$43="Endémique", IF($K22>1, IF($K22=4, "Inconnu", IF($K22=99, "Surveillance", ROUND(E22*0.75,0))), 0),"Non requis") -> 28121 | S22: 75592 | T22: =IF(INTRO!$E$43="Endémique", IF($K22>1, IF($K22=4, "Inconnu", IF($K22=99, "Surveillance", G22)), 0),"Non requis") -> 172431 | U22: =IF(INTRO!$E$43="Endémique", IF($K22>1, IF($K22=4, "Inconnu", IF($K22=99, "Surveillance", SUM($R22:$T22))), 0),"Non requis") -> 276144 | V22: 0 | W22: 1 | X22: 1 | Y22: 1 | AH22: 15346 | AI22: TIASSALE
A23: =IF(INTRO!$E$33<>0,INTRO!$E$33, " ") -> Côte d'Ivoire | B23: BAFING | C23: KORO | D23: 76976 | E23: =IF(INTRO!$E$48="","",ROUND($D23*INTRO!$E$48,0)) -> 9768 | F23: =IF(INTRO!$E$49="","",ROUND($D23*INTRO!$E$49,0)) -> 19583 | G23: =IF(INTRO!$E$50="","",ROUND($D23*INTRO!$E$50,0)) -> 44923 | H23: 19 | I23: 1 | J23: 2 | K23: 2 | L23: =IF(INTRO!$E$37="Endémique",IF($H23>0,IF($H23=4,"Inconnu",IF($H23=99,"Interrompu",$D23)),0),"Non requis") -> 76976 | M23: =IF(INTRO!$E$39="Endémique", IF($I23>0, IF($I23=4,"Inconnu",IF($I23=99,"Interrompu",$D23)), 0),"Non requis") -> 76976 | N23: =IF(INTRO!$E$41="Endémique", IF($J23>1, IF($J23=4, "Inconnu", IF($J23=99, "Surveillance", E23)), 0),"Non requis") -> 9768 | O23: =IF(INTRO!$E$41="Endémique", IF($J23>1, IF($J23=4, "Inconnu", IF($J23=99, "Surveillance", F23)), 0),"Non requis") -> 19583 | P23: =IF(INTRO!$E$41="Endémique", IF($J23>1, IF($J23=4, "Inconnu", IF($J23=99, "Surveillance", ROUND(D23*INTRO!$E$51,0))), 0),"Non requis") -> 18574 | Q23: =IF(INTRO!$E$41="Endémique", IF($J23>1, IF($J23=4, "Inconnu", IF($J23=99, "Surveillance", SUM($N23:$P23))), 0),"Non requis") -> 47925 | R23: =IF(INTRO!$E$43="Endémique", IF($K23>1, IF($K23=4, "Inconnu", IF($K23=99, "Surveillance", ROUND(E23*0.75,0))), 0),"Non requis") -> 7326 | S23: 19694 | T23: =IF(INTRO!$E$43="Endémique", IF($K23>1, IF($K23=4, "Inconnu", IF($K23=99, "Surveillance", G23)), 0),"Non requis") -> 44923 | U23: =IF(INTRO!$E$43="Endémique", IF($K23>1, IF($K23=4, "Inconnu", IF($K23=99, "Surveillance", SUM($R23:$T23))), 0),"Non requis") -> 71943 | V23: 0 | W23: 1 | X23: 1 | Y23: 1 | AA23: TAS | AH23: 15442 | AI23: KORO
A24: =IF(INTRO!$E$33<>0,INTRO!$E$33, " ") -> Côte d'Ivoire | B24: BAFING | C24: OUANINOU | D24: 63449 | E24: =IF(INTRO!$E$48="","",ROUND($D24*INTRO!$E$48,0)) -> 8052 | F24: =IF(INTRO!$E$49="","",ROUND($D24*INTRO!$E$49,0)) -> 16141 | G24: =IF(INTRO!$E$50="","",ROUND($D24*INTRO!$E$50,0)) -> 37029 | H24: 19 | I24: 1 | J24: 2 | K24: 3 | L24: =IF(INTRO!$E$37="Endémique",IF($H24>0,IF($H24=4,"Inconnu",IF($H24=99,"Interrompu",$D24)),0),"Non requis") -> 63449 | M24: =IF(INTRO!$E$39="Endémique", IF($I24>0, IF($I24=4,"Inconnu",IF($I24=99,"Interrompu",$D24)), 0),"Non requis") -> 63449 | N24: =IF(INTRO!$E$41="Endémique", IF($J24>1, IF($J24=4, "Inconnu", IF($J24=99, "Surveillance", E24)), 0),"Non requis") -> 8052 | O24: =IF(INTRO!$E$41="Endémique", IF($J24>1, IF($J24=4, "Inconnu", IF($J24=99, "Surveillance", F24)), 0),"Non requis") -> 16141 | P24: =IF(INTRO!$E$41="Endémique", IF($J24>1, IF($J24=4, "Inconnu", IF($J24=99, "Surveillance", ROUND(D24*INTRO!$E$51,0))), 0),"Non requis") -> 15310 | Q24: =IF(INTRO!$E$41="Endémique", IF($J24>1, IF($J24=4, "Inconnu", IF($J24=99, "Surveillance", SUM($N24:$P24))), 0),"Non requis") -> 39503 | R24: =IF(INTRO!$E$43="Endémique", IF($K24>1, IF($K24=4, "Inconnu", IF($K24=99, "Surveillance", ROUND(E24*0.75,0))), 0),"Non requis") -> 6039 | S24: 15101 | T24: =IF(INTRO!$E$43="Endémique", IF($K24>1, IF($K24=4, "Inconnu", IF($K24=99, "Surveillance", G24)), 0),"Non requis") -> 37029 | U24: =IF(INTRO!$E$43="Endémique", IF($K24>1, IF($K24=4, "Inconnu", IF($K24=99, "Surveillance", SUM($R24:$T24))), 0),"Non requis") -> 58169 | V24: 0 | W24: 1 | X24: 1 | Y24: 1 | AA24: TAS | AH24: 15443 | AI24: OUANINOU
A25: =IF(INTRO!$E$33<>0,INTRO!$E$33, " ") -> Côte d'Ivoire | B25: BAFING | C25: TOUBA | D25: 97547 | E25: =IF(INTRO!$E$48="","",ROUND($D25*INTRO!$E$48,0)) -> 12379 | F25: =IF(INTRO!$E$49="","",ROUND($D25*INTRO!$E$49,0)) -> 24816 | G25: =IF(INTRO!$E$50="","",ROUND($D25*INTRO!$E$50,0)) -> 56928 | H25: 19 | I25: 1 | J25: 2 | K25: 3 | L25: =IF(INTRO!$E$37="Endémique",IF($H25>0,IF($H25=4,"Inconnu",IF($H25=99,"Interrompu",$D25)),0),"Non requis") -> 97547 | M25: =IF(INTRO!$E$39="Endémique", IF($I25>0, IF($I25=4,"Inconnu",IF($I25=99,"Interrompu",$D25)), 0),"Non requis") -> 97547 | N25: =IF(INTRO!$E$41="Endémique", IF($J25>1, IF($J25=4, "Inconnu", IF($J25=99, "Surveillance", E25)), 0),"Non requis") -> 12379 | O25: =IF(INTRO!$E$41="Endémique", IF($J25>1, IF($J25=4, "Inconnu", IF($J25=99, "Surveillance", F25)), 0),"Non requis") -> 24816 | P25: =IF(INTRO!$E$41="Endémique", IF($J25>1, IF($J25=4, "Inconnu", IF($J25=99, "Surveillance", ROUND(D25*INTRO!$E$51,0))), 0),"Non requis") -> 23538 | Q25: =IF(INTRO!$E$41="Endémique", IF($J25>1, IF($J25=4, "Inconnu", IF($J25=99, "Surveillance", SUM($N25:$P25))), 0),"Non requis") -> 60733 | R25: =IF(INTRO!$E$43="Endémique", IF($K25>1, IF($K25=4, "Inconnu", IF($K25=99, "Surveillance", ROUND(E25*0.75,0))), 0),"Non requis") -> 9284 | S25: 26086 | T25: =IF(INTRO!$E$43="Endémique", IF($K25>1, IF($K25=4, "Inconnu", IF($K25=99, "Surveillance", G25)), 0),"Non requis") -> 56928 | U25: =IF(INTRO!$E$43="Endémique", IF($K25>1, IF($K25=4, "Inconnu", IF($K25=99, "Surveillance", SUM($R25:$T25))), 0),"Non requis") -> 92298 | V25: 0 | W25: 1 | X25: 1 | Y25: 1 | AA25: TAS | AH25: 15441 | AI25: TOUBA
A26: =IF(INTRO!$E$33<>0,INTRO!$E$33, " ") -> Côte d'Ivoire | B26: BAGOUE | C26: BOUNDIALI | D26: 172427 | E26: =IF(INTRO!$E$48="","",ROUND($D26*INTRO!$E$48,0)) -> 21881 | F26: =IF(INTRO!$E$49="","",ROUND($D26*INTRO!$E$49,0)) -> 43865 | G26: =IF(INTRO!$E$50="","",ROUND($D26*INTRO!$E$50,0)) -> 100628 | H26: 19 | I26: 1 | J26: 1 | K26: 1 | L26: =IF(INTRO!$E$37="Endémique",IF($H26>0,IF($H26=4,"Inconnu",IF($H26=99,"Interrompu",$D26)),0),"Non requis") -> 172427 | M26: =IF(INTRO!$E$39="Endémique", IF($I26>0, IF($I26=4,"Inconnu",IF($I26=99,"Interrompu",$D26)), 0),"Non requis") -> 172427 | N26: =IF(INTRO!$E$41="Endémique", IF($J26>1, IF($J26=4, "Inconnu", IF($J26=99, "Surveillance", E26)), 0),"Non requis") -> 0 | O26: =IF(INTRO!$E$41="Endémique", IF($J26>1, IF($J26=4, "Inconnu", IF($J26=99, "Surveillance", F26)), 0),"Non requis") -> 0 | P26: =IF(INTRO!$E$41="Endémique", IF($J26>1, IF($J26=4, "Inconnu", IF($J26=99, "Surveillance", ROUND(D26*INTRO!$E$51,0))), 0),"Non requis") -> 0 | Q26: =IF(INTRO!$E$41="Endémique", IF($J26>1, IF($J26=4, "Inconnu", IF($J26=99, "Surveillance", SUM($N26:$P26))), 0),"Non requis") -> 0 | R26: =IF(INTRO!$E$43="Endémique", IF($K26>1, IF($K26=4, "Inconnu", IF($K26=99, "Surveillance", ROUND(E26*0.75,0))), 0),"Non requis") -> 0 | S26: 34409 | T26: =IF(INTRO!$E$43="Endémique", IF($K26>1, IF($K26=4, "Inconnu", IF($K26=99, "Surveillance", G26)), 0),"Non requis") -> 0 | U26: =IF(INTRO!$E$43="Endémique", IF($K26>1, IF($K26=4, "Inconnu", IF($K26=99, "Surveillance", SUM($R26:$T26))), 0),"Non requis") -> 0 | V26: 0 | W26: 1 | X26: 0 | Y26: 1 | AA26: TAS | AH26: 15449 | AI26: BOUNDIALI
A27: =IF(INTRO!$E$33<>0,INTRO!$E$33, " ") -> Côte d'Ivoire | B27: BAGOUE | C27: KOUTO | D27: 175012 | E27: =IF(INTRO!$E$48="","",ROUND($D27*INTRO!$E$48,0)) -> 22209 | F27: =IF(INTRO!$E$49="","",ROUND($D27*INTRO!$E$49,0)) -> 44523 | G27: =IF(INTRO!$E$50="","",ROUND($D27*INTRO!$E$50,0)) -> 102137 | H27: 19 | I27: 1 | J27: 1 | K27: 1 | L27: =IF(INTRO!$E$37="Endémique",IF($H27>0,IF($H27=4,"Inconnu",IF($H27=99,"Interrompu",$D27)),0),"Non requis") -> 175012 | M27: =IF(INTRO!$E$39="Endémique", IF($I27>0, IF($I27=4,"Inconnu",IF($I27=99,"Interrompu",$D27)), 0),"Non requis") -> 175012 | N27: =IF(INTRO!$E$41="Endémique", IF($J27>1, IF($J27=4, "Inconnu", IF($J27=99, "Surveillance", E27)), 0),"Non requis") -> 0 | O27: =IF(INTRO!$E$41="Endémique", IF($J27>1, IF($J27=4, "Inconnu", IF($J27=99, "Surveillance", F27)), 0),"Non requis") -> 0 | P27: =IF(INTRO!$E$41="Endémique", IF($J27>1, IF($J27=4, "Inconnu", IF($J27=99, "Surveillance", ROUND(D27*INTRO!$E$51,0))), 0),"Non requis") -> 0 | Q27: =IF(INTRO!$E$41="Endémique", IF($J27>1, IF($J27=4, "Inconnu", IF($J27=99, "Surveillance", SUM($N27:$P27))), 0),"Non requis") -> 0 | R27: =IF(INTRO!$E$43="Endémique", IF($K27>1, IF($K27=4, "Inconnu", IF($K27=99, "Surveillance", ROUND(E27*0.75,0))), 0),"Non requis") -> 0 | S27: 35289 | T27: =IF(INTRO!$E$43="Endémique", IF($K27>1, IF($K27=4, "Inconnu", IF($K27=99, "Surveillance", G27)), 0),"Non requis") -> 0 | U27: =IF(INTRO!$E$43="Endémique", IF($K27>1, IF($K27=4, "Inconnu", IF($K27=99, "Surveillance", SUM($R27:$T27))), 0),"Non requis") -> 0 | V27: 0 | W27: 1 | X27: 0 | Y27: 1 | AA27: TAS | AH27: 15450 | AI27: KOUTO
A28: =IF(INTRO!$E$33<>0,INTRO!$E$33, " ") -> Côte d'Ivoire | B28: BAGOUE | C28: TENGRELA | D28: 159896 | E28: =IF(INTRO!$E$48="","",ROUND($D28*INTRO!$E$48,0)) -> 20291 | F28: =IF(INTRO!$E$49="","",ROUND($D28*INTRO!$E$49,0)) -> 40678 | G28: =IF(INTRO!$E$50="","",ROUND($D28*INTRO!$E$50,0)) -> 93315 | H28: 19 | I28: 0 | J28: 1 | K28: 1 | L28: =IF(INTRO!$E$37="Endémique",IF($H28>0,IF($H28=4,"Inconnu",IF($H28=99,"Interrompu",$D28)),0),"Non requis") -> 159896 | M28: =IF(INTRO!$E$39="Endémique", IF($I28>0, IF($I28=4,"Inconnu",IF($I28=99,"Interrompu",$D28)), 0),"Non requis") -> 0 | N28: =IF(INTRO!$E$41="Endémique", IF($J28>1, IF($J28=4, "Inconnu", IF($J28=99, "Surveillance", E28)), 0),"Non requis") -> 0 | O28: =IF(INTRO!$E$41="Endémique", IF($J28>1, IF($J28=4, "Inconnu", IF($J28=99, "Surveillance", F28)), 0),"Non requis") -> 0 | P28: =IF(INTRO!$E$41="Endémique", IF($J28>1, IF($J28=4, "Inconnu", IF($J28=99, "Surveillance", ROUND(D28*INTRO!$E$51,0))), 0),"Non requis") -> 0 | Q28: =IF(INTRO!$E$41="Endémique", IF($J28>1, IF($J28=4, "Inconnu", IF($J28=99, "Surveillance", SUM($N28:$P28))), 0),"Non requis") -> 0 | R28: =IF(INTRO!$E$43="Endémique", IF($K28>1, IF($K28=4, "Inconnu", IF($K28=99, "Surveillance", ROUND(E28*0.75,0))), 0),"Non requis") -> 0 | S28: 31205 | T28: =IF(INTRO!$E$43="Endémique", IF($K28>1, IF($K28=4, "Inconnu", IF($K28=99, "Surveillance", G28)), 0),"Non requis") -> 0 | U28: =IF(INTRO!$E$43="Endémique", IF($K28>1, IF($K28=4, "Inconnu", IF($K28=99, "Surveillance", SUM($R28:$T28))), 0),"Non requis") -> 0 | V28: 0 | W28: 0 | X28: 0 | Y28: 1 | AA28: TAS | AH28: 15401 | AI28: TENGRELA
A29: =IF(INTRO!$E$33<>0,INTRO!$E$33, " ") -> Côte d'Ivoire | B29: BELIER | C29: DIDIEVI | D29: 118393 | E29: =IF(INTRO!$E$48="","",ROUND($D29*INTRO!$E$48,0)) -> 15024 | F29: =IF(INTRO!$E$49="","",ROUND($D29*INTRO!$E$49,0)) -> 30119 | G29: =IF(INTRO!$E$50="","",ROUND($D29*INTRO!$E$50,0)) -> 69094 | H29: 99 | I29: 1 | J29: 2 | K29: 2 | L29: =IF(INTRO!$E$37="Endémique",IF($H29>0,IF($H29=4,"Inconnu",IF($H29=99,"Interrompu",$D29)),0),"Non requis") -> Interrompu | M29: =IF(INTRO!$E$39="Endémique", IF($I29>0, IF($I29=4,"Inconnu",IF($I29=99,"Interrompu",$D29)), 0),"Non requis") -> 118393 | N29: =IF(INTRO!$E$41="Endémique", IF($J29>1, IF($J29=4, "Inconnu", IF($J29=99, "Surveillance", E29)), 0),"Non requis") -> 15024 | O29: =IF(INTRO!$E$41="Endémique", IF($J29>1, IF($J29=4, "Inconnu", IF($J29=99, "Surveillance", F29)), 0),"Non requis") -> 30119 | P29: =IF(INTRO!$E$41="Endémique", IF($J29>1, IF($J29=4, "Inconnu", IF($J29=99, "Surveillance", ROUND(D29*INTRO!$E$51,0))), 0),"Non requis") -> 28568 | Q29: =IF(INTRO!$E$41="Endémique", IF($J29>1, IF($J29=4, "Inconnu", IF($J29=99, "Surveillance", SUM($N29:$P29))), 0),"Non requis") -> 73711 | R29: =IF(INTRO!$E$43="Endémique", IF($K29>1, IF($K29=4, "Inconnu", IF($K29=99, "Surveillance", ROUND(E29*0.75,0))), 0),"Non requis") -> 11268 | S29: 0 | T29: =IF(INTRO!$E$43="Endémique", IF($K29>1, IF($K29=4, "Inconnu", IF($K29=99, "Surveillance", G29)), 0),"Non requis") -> 69094 | U29: =IF(INTRO!$E$43="Endémique", IF($K29>1, IF($K29=4, "Inconnu", IF($K29=99, "Surveillance", SUM($R29:$T29))), 0),"Non requis") -> 80362 | V29: 0 | W29: 1 | X29: 1 | Y29: 0 | AH29: 15347 | AI29: DIDIEVI
A30: =IF(INTRO!$E$33<>0,INTRO!$E$33, " ") -> Côte d'Ivoire | B30: BELIER | C30: TIEBISSOU | D30: 124754 | E30: =IF(INTRO!$E$48="","",ROUND($D30*INTRO!$E$48,0)) -> 15831 | F30: =IF(INTRO!$E$49="","",ROUND($D30*INTRO!$E$49,0)) -> 31737 | G30: =IF(INTRO!$E$50="","",ROUND($D30*INTRO!$E$50,0)) -> 72806 | H30: 99 | I30: 1 | J30: 2 | K30: 3 | L30: =IF(INTRO!$E$37="Endémique",IF($H30>0,IF($H30=4,"Inconnu",IF($H30=99,"Interrompu",$D30)),0),"Non requis") -> Interrompu | M30: =IF(INTRO!$E$39="Endémique", IF($I30>0, IF($I30=4,"Inconnu",IF($I30=99,"Interrompu",$D30)), 0),"Non requis") -> 124754 | N30: =IF(INTRO!$E$41="Endémique", IF($J30>1, IF($J30=4, "Inconnu", IF($J30=99, "Surveillance", E30)), 0),"Non requis") -> 15831 | O30: =IF(INTRO!$E$41="Endémique", IF($J30>1, IF($J30=4, "Inconnu", IF($J30=99, "Surveillance", F30)), 0),"Non requis") -> 31737 | P30: =IF(INTRO!$E$41="Endémique", IF($J30>1, IF($J30=4, "Inconnu", IF($J30=99, "Surveillance", ROUND(D30*INTRO!$E$51,0))), 0),"Non requis") -> 30103 | Q30: =IF(INTRO!$E$41="Endémique", IF($J30>1, IF($J30=4, "Inconnu", IF($J30=99, "Surveillance", SUM($N30:$P30))), 0),"Non requis") -> 77671 | R30: =IF(INTRO!$E$43="Endémique", IF($K30>1, IF($K30=4, "Inconnu", IF($K30=99, "Surveillance", ROUND(E30*0.75,0))), 0),"Non requis") -> 11873 | S30: 31149 | T30: =IF(INTRO!$E$43="Endémique", IF($K30>1, IF($K30=4, "Inconnu", IF($K30=99, "Surveillance", G30)), 0),"Non requis") -> 72806 | U30: =IF(INTRO!$E$43="Endémique", IF($K30>1, IF($K30=4, "Inconnu", IF($K30=99, "Surveillance", SUM($R30:$T30))), 0),"Non requis") -> 115828 | V30: 0 | W30: 1 | X30: 1 | Y30: 1 | AH30: 15348 | AI30: TIEBISSOU
A31: =IF(INTRO!$E$33<>0,INTRO!$E$33, " ") -> Côte d'Ivoire | B31: BELIER | C31: TOUMODI | D31: 195007 | E31: =IF(INTRO!$E$48="","",ROUND($D31*INTRO!$E$48,0)) -> 24746 | F31: =IF(INTRO!$E$49="","",ROUND($D31*INTRO!$E$49,0)) -> 49610 | G31: =IF(INTRO!$E$50="","",ROUND($D31*INTRO!$E$50,0)) -> 113806 | H31: 99 | I31: 1 | J31: 2 | K31: 3 | L31: =IF(INTRO!$E$37="Endémique",IF($H31>0,IF($H31=4,"Inconnu",IF($H31=99,"Interrompu",$D31)),0),"Non requis") -> Interrompu | M31: =IF(INTRO!$E$39="Endémique", IF($I31>0, IF($I31=4,"Inconnu",IF($I31=99,"Interrompu",$D31)), 0),"Non requis") -> 195007 | N31: =IF(INTRO!$E$41="Endémique", IF($J31>1, IF($J31=4, "Inconnu", IF($J31=99, "Surveillance", E31)), 0),"Non requis") -> 24746 | O31: =IF(INTRO!$E$41="Endémique", IF($J31>1, IF($J31=4, "Inconnu", IF($J31=99, "Surveillance", F31)), 0),"Non requis") -> 49610 | P31: =IF(INTRO!$E$41="Endémique", IF($J31>1, IF($J31=4, "Inconnu", IF($J31=99, "Surveillance", ROUND(D31*INTRO!$E$51,0))), 0),"Non requis") -> 47055 | Q31: =IF(INTRO!$E$41="Endémique", IF($J31>1, IF($J31=4, "Inconnu", IF($J31=99, "Surveillance", SUM($N31:$P31))), 0),"Non requis") -> 121411 | R31: =IF(INTRO!$E$43="Endémique", IF($K31>1, IF($K31=4, "Inconnu", IF($K31=99, "Surveillance", ROUND(E31*0.75,0))), 0),"Non requis") -> 18560 | S31: 2830 | T31: =IF(INTRO!$E$43="Endémique", IF($K31>1, IF($K31=4, "Inconnu", IF($K31=99, "Surveillance", G31)), 0),"Non requis") -> 113806 | U31: =IF(INTRO!$E$43="Endémique", IF($K31>1, IF($K31=4, "Inconnu", IF($K31=99, "Surveillance", SUM($R31:$T31))), 0),"Non requis") -> 135196 | V31: 0 | W31: 1 | X31: 1 | Y31: 1 | AH31: 15349 | AI31: TOUMODI
A32: =IF(INTRO!$E$33<>0,INTRO!$E$33, " ") -> Côte d'Ivoire | B32: BELIER | C32: YAMOUSSOUKRO | D32: 446145 | E32: =IF(INTRO!$E$48="","",ROUND($D32*INTRO!$E$48,0)) -> 56616 | F32: =IF(INTRO!$E$49="","",ROUND($D32*INTRO!$E$49,0)) -> 113499 | G32: =IF(INTRO!$E$50="","",ROUND($D32*INTRO!$E$50,0)) -> 260370 | H32: 99 | I32: 1 | J32: 2 | K32: 3 | L32: =IF(INTRO!$E$37="Endémique",IF($H32>0,IF($H32=4,"Inconnu",IF($H32=99,"Interrompu",$D32)),0),"Non requis") -> Interrompu | M32: =IF(INTRO!$E$39="Endémique", IF($I32>0, IF($I32=4,"Inconnu",IF($I32=99,"Interrompu",$D32)), 0),"Non requis") -> 446145 | N32: =IF(INTRO!$E$41="Endémique", IF($J32>1, IF($J32=4, "Inconnu", IF($J32=99, "Surveillance", E32)), 0),"Non requis") -> 56616 | O32: =IF(INTRO!$E$41="Endémique", IF($J32>1, IF($J32=4, "Inconnu", IF($J32=99, "Surveillance", F32)), 0),"Non requis") -> 113499 | P32: =IF(INTRO!$E$41="Endémique", IF($J32>1, IF($J32=4, "Inconnu", IF($J32=99, "Surveillance", ROUND(D32*INTRO!$E$51,0))), 0),"Non requis") -> 107655 | Q32: =IF(INTRO!$E$41="Endémique", IF($J32>1, IF($J32=4, "Inconnu", IF($J32=99, "Surveillance", SUM($N32:$P32))), 0),"Non requis") -> 277770 | R32: =IF(INTRO!$E$43="Endémique", IF($K32>1, IF($K32=4, "Inconnu", IF($K32=99, "Surveillance", ROUND(E32*0.75,0))), 0),"Non requis") -> 42462 | S32: 95461 | T32: =IF(INTRO!$E$43="Endémique", IF($K32>1, IF($K32=4, "Inconnu", IF($K32=99, "Surveillance", G32)), 0),"Non requis") -> 260370 | U32: =IF(INTRO!$E$43="Endémique", IF($K32>1, IF($K32=4, "Inconnu", IF($K32=99, "Surveillance", SUM($R32:$T32))), 0),"Non requis") -> 398293 | V32: 0 | W32: 1 | X32: 1 | Y32: 1 | AH32: 15350 | AI32: YAMOUSSOUKRO
A33: =IF(INTRO!$E$33<>0,INTRO!$E$33, " ") -> Côte d'Ivoire | B33: BERE | C33: DIANRA | D33: 122826 | E33: =IF(INTRO!$E$48="","",ROUND($D33*INTRO!$E$48,0)) -> 15587 | F33: =IF(INTRO!$E$49="","",ROUND($D33*INTRO!$E$49,0)) -> 31247 | G33: =IF(INTRO!$E$50="","",ROUND($D33*INTRO!$E$50,0)) -> 71681 | H33: 0 | I33: 1 | J33: 2 | K33: 1 | L33: =IF(INTRO!$E$37="Endémique",IF($H33>0,IF($H33=4,"Inconnu",IF($H33=99,"Interrompu",$D33)),0),"Non requis") -> 0 | M33: =IF(INTRO!$E$39="Endémique", IF($I33>0, IF($I33=4,"Inconnu",IF($I33=99,"Interrompu",$D33)), 0),"Non requis") -> 122826 | N33: =IF(INTRO!$E$41="Endémique", IF($J33>1, IF($J33=4, "Inconnu", IF($J33=99, "Surveillance", E33)), 0),"Non requis") -> 15587 | O33: =IF(INTRO!$E$41="Endémique", IF($J33>1, IF($J33=4, "Inconnu", IF($J33=99, "Surveillance", F33)), 0),"Non requis") -> 31247 | P33: =IF(INTRO!$E$41="Endémique", IF($J33>1, IF($J33=4, "Inconnu", IF($J33=99, "Surveillance", ROUND(D33*INTRO!$E$51,0))), 0),"Non requis") -> 29638 | Q33: =IF(INTRO!$E$41="Endémique", IF($J33>1, IF($J33=4, "Inconnu", IF($J33=99, "Surveillance", SUM($N33:$P33))), 0),"Non requis") -> 76472 | R33: =IF(INTRO!$E$43="Endémique", IF($K33>1, IF($K33=4, "Inconnu", IF($K33=99, "Surveillance", ROUND(E33*0.75,0))), 0),"Non requis") -> 0 | S33: 25655 | T33: =IF(INTRO!$E$43="Endémique", IF($K33>1, IF($K33=4, "Inconnu", IF($K33=99, "Surveillance", G33)), 0),"Non requis") -> 0 | U33: =IF(INTRO!$E$43="Endémique", IF($K33>1, IF($K33=4, "Inconnu", IF($K33=99, "Surveillance", SUM($R33:$T33))), 0),"Non requis") -> 0 | V33: 0 | W33: 1 | X33: 1 | Y33: 1 | AH33: 15459 | AI33: DIANRA
A34: =IF(INTRO!$E$33<>0,INTRO!$E$33, " ") -> Côte d'Ivoire | B34: BERE | C34: KOUNAHIRI | D34: 98791 | E34: =IF(INTRO!$E$48="","",ROUND($D34*INTRO!$E$48,0)) -> 12537 | F34: =IF(INTRO!$E$49="","",ROUND($D34*INTRO!$E$49,0)) -> 25132 | G34: =IF(INTRO!$E$50="","",ROUND($D34*INTRO!$E$50,0)) -> 57654 | H34: 0 | I34: 1 | J34: 2 | K34: 2 | L34: =IF(INTRO!$E$37="Endémique",IF($H34>0,IF($H34=4,"Inconnu",IF($H34=99,"Interrompu",$D34)),0),"Non requis") -> 0 | M34: =IF(INTRO!$E$39="Endémique", IF($I34>0, IF($I34=4,"Inconnu",IF($I34=99,"Interrompu",$D34)), 0),"Non requis") -> 98791 | N34: =IF(INTRO!$E$41="Endémique", IF($J34>1, IF($J34=4, "Inconnu", IF($J34=99, "Surveillance", E34)), 0),"Non requis") -> 12537 | O34: =IF(INTRO!$E$41="Endémique", IF($J34>1, IF($J34=4, "Inconnu", IF($J34=99, "Surveillance", F34)), 0),"Non requis") -> 25132 | P34: =IF(INTRO!$E$41="Endémique", IF($J34>1, IF($J34=4, "Inconnu", IF($J34=99, "Surveillance", ROUND(D34*INTRO!$E$51,0))), 0),"Non requis") -> 23838 | Q34: =IF(INTRO!$E$41="Endémique", IF($J34>1, IF($J34=4, "Inconnu", IF($J34=99, "Surveillance", SUM($N34:$P34))), 0),"Non requis") -> 61507 | R34: =IF(INTRO!$E$43="Endémique", IF($K34>1, IF($K34=4, "Inconnu", IF($K34=99, "Surveillance", ROUND(E34*0.75,0))), 0),"Non requis") -> 9403 | S34: 20985 | T34: =IF(INTRO!$E$43="Endémique", IF($K34>1, IF($K34=4, "Inconnu", IF($K34=99, "Surveillance", G34)), 0),"Non requis") -> 57654 | U34: =IF(INTRO!$E$43="Endémique", IF($K34>1, IF($K34=4, "Inconnu", IF($K34=99, "Surveillance", SUM($R34:$T34))), 0),"Non requis") -> 88042 | V34: 0 | W34: 1 | X34: 1 | Y34: 1 | AH34: 15460 | AI34: KOUNAHIRI
A35: =IF(INTRO!$E$33<>0,INTRO!$E$33, " ") -> Côte d'Ivoire | B35: BERE | C35: MANKONO | D35: 274069 | E35: =IF(INTRO!$E$48="","",ROUND($D35*INTRO!$E$48,0)) -> 34779 | F35: =IF(INTRO!$E$49="","",ROUND($D35*INTRO!$E$49,0)) -> 69723 | G35: =IF(INTRO!$E$50="","",ROUND($D35*INTRO!$E$50,0)) -> 159947 | H35: 0 | I35: 1 | J35: 2 | K35: 1 | L35: =IF(INTRO!$E$37="Endémique",IF($H35>0,IF($H35=4,"Inconnu",IF($H35=99,"Interrompu",$D35)),0),"Non requis") -> 0 | M35: =IF(INTRO!$E$39="Endémique", IF($I35>0, IF($I35=4,"Inconnu",IF($I35=99,"Interrompu",$D35)), 0),"Non requis") -> 274069 | N35: =IF(INTRO!$E$41="Endémique", IF($J35>1, IF($J35=4, "Inconnu", IF($J35=99, "Surveillance", E35)), 0),"Non requis") -> 34779 | O35: =IF(INTRO!$E$41="Endémique", IF($J35>1, IF($J35=4, "Inconnu", IF($J35=99, "Surveillance", F35)), 0),"Non requis") -> 69723 | P35: =IF(INTRO!$E$41="Endémique", IF($J35>1, IF($J35=4, "Inconnu", IF($J35=99, "Surveillance", ROUND(D35*INTRO!$E$51,0))), 0),"Non requis") -> 66133 | Q35: =IF(INTRO!$E$41="Endémique", IF($J35>1, IF($J35=4, "Inconnu", IF($J35=99, "Surveillance", SUM($N35:$P35))), 0),"Non requis") -> 170635 | R35: =IF(INTRO!$E$43="Endémique", IF($K35>1, IF($K35=4, "Inconnu", IF($K35=99, "Surveillance", ROUND(E35*0.75,0))), 0),"Non requis") -> 0 | S35: 59856 | T35: =IF(INTRO!$E$43="Endémique", IF($K35>1, IF($K35=4, "Inconnu", IF($K35=99, "Surveillance", G35)), 0),"Non requis") -> 0 | U35: =IF(INTRO!$E$43="Endémique", IF($K35>1, IF($K35=4, "Inconnu", IF($K35=99, "Surveillance", SUM($R35:$T35))), 0),"Non requis") -> 0 | V35: 0 | W35: 1 | X35: 1 | Y35: 1 | AH35: 15458 | AI35: MANKONO
A36: =IF(INTRO!$E$33<>0,INTRO!$E$33, " ") -> Côte d'Ivoire | B36: BOUKANI | C36: BOUNA | D36: 144615 | E36: =IF(INTRO!$E$48="","",ROUND($D36*INTRO!$E$48,0)) -> 18352 | F36: =IF(INTRO!$E$49="","",ROUND($D36*INTRO!$E$49,0)) -> 36790 | G36: =IF(INTRO!$E$50="","",ROUND($D36*INTRO!$E$50,0)) -> 84397 | H36: 99 | I36: 1 | J36: 1 | K36: 2 | L36: =IF(INTRO!$E$37="Endémique",IF($H36>0,IF($H36=4,"Inconnu",IF($H36=99,"Interrompu",$D36)),0),"Non requis") -> Interrompu | M36: =IF(INTRO!$E$39="Endémique", IF($I36>0, IF($I36=4,"Inconnu",IF($I36=99,"Interrompu",$D36)), 0),"Non requis") -> 144615 | N36: =IF(INTRO!$E$41="Endémique", IF($J36>1, IF($J36=4, "Inconnu", IF($J36=99, "Surveillance", E36)), 0),"Non requis") -> 0 | O36: =IF(INTRO!$E$41="Endémique", IF($J36>1, IF($J36=4, "Inconnu", IF($J36=99, "Surveillance", F36)), 0),"Non requis") -> 0 | P36: =IF(INTRO!$E$41="Endémique", IF($J36>1, IF($J36=4, "Inconnu", IF($J36=99, "Surveillance", ROUND(D36*INTRO!$E$51,0))), 0),"Non requis") -> 0 | Q36: =IF(INTRO!$E$41="Endémique", IF($J36>1, IF($J36=4, "Inconnu", IF($J36=99, "Surveillance", SUM($N36:$P36))), 0),"Non requis") -> 0 | R36: =IF(INTRO!$E$43="Endémique", IF($K36>1, IF($K36=4, "Inconnu", IF($K36=99, "Surveillance", ROUND(E36*0.75,0))), 0),"Non requis") -> 13764 | S36: 34760 | T36: =IF(INTRO!$E$43="Endémique", IF($K36>1, IF($K36=4, "Inconnu", IF($K36=99, "Surveillance", G36)), 0),"Non requis") -> 84397 | U36: =IF(INTRO!$E$43="Endémique", IF($K36>1, IF($K36=4, "Inconnu", IF($K36=99, "Surveillance", SUM($R36:$T36))), 0),"Non requis") -> 132921 | V36: 0 | W36: 1 | X36: 0 | Y36: 1 | AH36: 15423 | AI36: BOUNA
A37: =IF(INTRO!$E$33<>0,INTRO!$E$33, " ") -> Côte d'Ivoire | B37: BOUKANI | C37: DOROPO | D37: 84106 | E37: =IF(INTRO!$E$48="","",ROUND($D37*INTRO!$E$48,0)) -> 10673 | F37: =IF(INTRO!$E$49="","",ROUND($D37*INTRO!$E$49,0)) -> 21397 | G37: =IF(INTRO!$E$50="","",ROUND($D37*INTRO!$E$50,0)) -> 49084 | H37: 1 | I37: 1 | J37: 1 | K37: 2 | L37: =IF(INTRO!$E$37="Endémique",IF($H37>0,IF($H37=4,"Inconnu",IF($H37=99,"Interrompu",$D37)),0),"Non requis") -> 84106 | M37: =IF(INTRO!$E$39="Endémique", IF($I37>0, IF($I37=4,"Inconnu",IF($I37=99,"Interrompu",$D37)), 0),"Non requis") -> 84106 | N37: =IF(INTRO!$E$41="Endémique", IF($J37>1, IF($J37=4, "Inconnu", IF($J37=99, "Surveillance", E37)), 0),"Non requis") -> 0 | O37: =IF(INTRO!$E$41="Endémique", IF($J37>1, IF($J37=4, "Inconnu", IF($J37=99, "Surveillance", F37)), 0),"Non requis") -> 0 | P37: =IF(INTRO!$E$41="Endémique", IF($J37>1, IF($J37=4, "Inconnu", IF($J37=99, "Surveillance", ROUND(D37*INTRO!$E$51,0))), 0),"Non requis") -> 0 | Q37: =IF(INTRO!$E$41="Endémique", IF($J37>1, IF($J37=4, "Inconnu", IF($J37=99, "Surveillance", SUM($N37:$P37))), 0),"Non requis") -> 0 | R37: =IF(INTRO!$E$43="Endémique", IF($K37>1, IF($K37=4, "Inconnu", IF($K37=99, "Surveillance", ROUND(E37*0.75,0))), 0),"Non requis") -> 8005 | S37: 20904 | T37: =IF(INTRO!$E$43="Endémique", IF($K37>1, IF($K37=4, "Inconnu", IF($K37=99, "Surveillance", G37)), 0),"Non requis") -> 49084 | U37: =IF(INTRO!$E$43="Endémique", IF($K37>1, IF($K37=4, "Inconnu", IF($K37=99, "Surveillance", SUM($R37:$T37))), 0),"Non requis") -> 77993 | V37: 1 | W37: 1 | X37: 0 | Y37: 1 | AH37: 15424 | AI37: DOROPO
A38: =IF(INTRO!$E$33<>0,INTRO!$E$33, " ") -> Côte d'Ivoire | B38: BOUKANI | C38: NASSIAN | D38: 56178 | E38: =IF(INTRO!$E$48="","",ROUND($D38*INTRO!$E$48,0)) -> 7129 | F38: =IF(INTRO!$E$49="","",ROUND($D38*INTRO!$E$49,0)) -> 14292 | G38: =IF(INTRO!$E$50="","",ROUND($D38*INTRO!$E$50,0)) -> 32785 | H38: 19 | I38: 1 | J38: 2 | K38: 0 | L38: =IF(INTRO!$E$37="Endémique",IF($H38>0,IF($H38=4,"Inconnu",IF($H38=99,"Interrompu",$D38)),0),"Non requis") -> 56178 | M38: =IF(INTRO!$E$39="Endémique", IF($I38>0, IF($I38=4,"Inconnu",IF($I38=99,"Interrompu",$D38)), 0),"Non requis") -> 56178 | N38: =IF(INTRO!$E$41="Endémique", IF($J38>1, IF($J38=4, "Inconnu", IF($J38=99, "Surveillance", E38)), 0),"Non requis") -> 7129 | O38: =IF(INTRO!$E$41="Endémique", IF($J38>1, IF($J38=4, "Inconnu", IF($J38=99, "Surveillance", F38)), 0),"Non requis") -> 14292 | P38: =IF(INTRO!$E$41="Endémique", IF($J38>1, IF($J38=4, "Inconnu", IF($J38=99, "Surveillance", ROUND(D38*INTRO!$E$51,0))), 0),"Non requis") -> 13556 | Q38: =IF(INTRO!$E$41="Endémique", IF($J38>1, IF($J38=4, "Inconnu", IF($J38=99, "Surveillance", SUM($N38:$P38))), 0),"Non requis") -> 34977 | R38: =IF(INTRO!$E$43="Endémique", IF($K38>1, IF($K38=4, "Inconnu", IF($K38=99, "Surveillance", ROUND(E38*0.75,0))), 0),"Non requis") -> 0 | S38: 0 | T38: =IF(INTRO!$E$43="Endémique", IF($K38>1, IF($K38=4, "Inconnu", IF($K38=99, "Surveillance", G38)), 0),"Non requis") -> 0 | U38: =IF(INTRO!$E$43="Endémique", IF($K38>1, IF($K38=4, "Inconnu", IF($K38=99, "Surveillance", SUM($R38:$T38))), 0),"Non requis") -> 0 | V38: 0 | W38: 1 | X38: 1 | Y38: 0 | AH38: 15353 | AI38: NASSIAN
A39: =IF(INTRO!$E$33<>0,INTRO!$E$33, " ") -> Côte d'Ivoire | B39: BOUKANI | C39: TEHINI | D39: 52169 | E39: =IF(INTRO!$E$48="","",ROUND($D39*INTRO!$E$48,0)) -> 6620 | F39: =IF(INTRO!$E$49="","",ROUND($D39*INTRO!$E$49,0)) -> 13272 | G39: =IF(INTRO!$E$50="","",ROUND($D39*INTRO!$E$50,0)) -> 30446 | H39: 1 | I39: 1 | J39: 1 | K39: 2 | L39: =IF(INTRO!$E$37="Endémique",IF($H39>0,IF($H39=4,"Inconnu",IF($H39=99,"Interrompu",$D39)),0),"Non requis") -> 52169 | M39: =IF(INTRO!$E$39="Endémique", IF($I39>0, IF($I39=4,"Inconnu",IF($I39=99,"Interrompu",$D39)), 0),"Non requis") -> 52169 | N39: =IF(INTRO!$E$41="Endémique", IF($J39>1, IF($J39=4, "Inconnu", IF($J39=99, "Surveillance", E39)), 0),"Non requis") -> 0 | O39: =IF(INTRO!$E$41="Endémique", IF($J39>1, IF($J39=4, "Inconnu", IF($J39=99, "Surveillance", F39)), 0),"Non requis") -> 0 | P39: =IF(INTRO!$E$41="Endémique", IF($J39>1, IF($J39=4, "Inconnu", IF($J39=99, "Surveillance", ROUND(D39*INTRO!$E$51,0))), 0),"Non requis") -> 0 | Q39: =IF(INTRO!$E$41="Endémique", IF($J39>1, IF($J39=4, "Inconnu", IF($J39=99, "Surveillance", SUM($N39:$P39))), 0),"Non requis") -> 0 | R39: =IF(INTRO!$E$43="Endémique", IF($K39>1, IF($K39=4, "Inconnu", IF($K39=99, "Surveillance", ROUND(E39*0.75,0))), 0),"Non requis") -> 4965 | S39: 13733 | T39: =IF(INTRO!$E$43="Endémique", IF($K39>1, IF($K39=4, "Inconnu", IF($K39=99, "Surveillance", G39)), 0),"Non requis") -> 30446 | U39: =IF(INTRO!$E$43="Endémique", IF($K39>1, IF($K39=4, "Inconnu", IF($K39=99, "Surveillance", SUM($R39:$T39))), 0),"Non requis") -> 49144 | V39: 1 | W39: 1 | X39: 0 | Y39: 1 | AH39: 15425 | AI39: TEHINI
A40: =IF(INTRO!$E$33<>0,INTRO!$E$33, " ") -> Côte d'Ivoire | B40: CAVALLY | C40: BLOLEQUIN | D40: 142711 | E40: =IF(INTRO!$E$48="","",ROUND($D40*INTRO!$E$48,0)) -> 18110 | F40: =IF(INTRO!$E$49="","",ROUND($D40*INTRO!$E$49,0)) -> 36306 | G40: =IF(INTRO!$E$50="","",ROUND($D40*INTRO!$E$50,0)) -> 83286 | H40: 99 | I40: 1 | J40: 1 | K40: 3 | L40: =IF(INTRO!$E$37="Endémique",IF($H40>0,IF($H40=4,"Inconnu",IF($H40=99,"Interrompu",$D40)),0),"Non requis") -> Interrompu | M40: =IF(INTRO!$E$39="Endémique", IF($I40>0, IF($I40=4,"Inconnu",IF($I40=99,"Interrompu",$D40)), 0),"Non requis") -> 142711 | N40: =IF(INTRO!$E$41="Endémique", IF($J40>1, IF($J40=4, "Inconnu", IF($J40=99, "Surveillance", E40)), 0),"Non requis") -> 0 | O40: =IF(INTRO!$E$41="Endémique", IF($J40>1, IF($J40=4, "Inconnu", IF($J40=99, "Surveillance", F40)), 0),"Non requis") -> 0 | P40: =IF(INTRO!$E$41="Endémique", IF($J40>1, IF($J40=4, "Inconnu", IF($J40=99, "Surveillance", ROUND(D40*INTRO!$E$51,0))), 0),"Non requis") -> 0 | Q40: =IF(INTRO!$E$41="Endémique", IF($J40>1, IF($J40=4, "Inconnu", IF($J40=99, "Surveillance", SUM($N40:$P40))), 0),"Non requis") -> 0 | R40: =IF(INTRO!$E$43="Endémique", IF($K40>1, IF($K40=4, "Inconnu", IF($K40=99, "Surveillance", ROUND(E40*0.75,0))), 0),"Non requis") -> 13583 | S40: 36512 | T40: =IF(INTRO!$E$43="Endémique", IF($K40>1, IF($K40=4, "Inconnu", IF($K40=99, "Surveillance", G40)), 0),"Non requis") -> 83286 | U40: =IF(INTRO!$E$43="Endémique", IF($K40>1, IF($K40=4, "Inconnu", IF($K40=99, "Surveillance", SUM($R40:$T40))), 0),"Non requis") -> 133381 | V40: 0 | W40: 1 | X40: 0 | Y40: 1 | AH40: 15356 | AI40: BLOLEQUIN
A41: =IF(INTRO!$E$33<>0,INTRO!$E$33, " ") -> Côte d'Ivoire | B41: CAVALLY | C41: GUIGLO | D41: 204445 | E41: =IF(INTRO!$E$48="","",ROUND($D41*INTRO!$E$48,0)) -> 25944 | F41: =IF(INTRO!$E$49="","",ROUND($D41*INTRO!$E$49,0)) -> 52011 | G41: =IF(INTRO!$E$50="","",ROUND($D41*INTRO!$E$50,0)) -> 119314 | H41: 99 | I41: 1 | J41: 1 | K41: 2 | L41: =IF(INTRO!$E$37="Endémique",IF($H41>0,IF($H41=4,"Inconnu",IF($H41=99,"Interrompu",$D41)),0),"Non requis") -> Interrompu | M41: =IF(INTRO!$E$39="Endémique", IF($I41>0, IF($I41=4,"Inconnu",IF($I41=99,"Interrompu",$D41)), 0),"Non requis") -> 204445 | N41: =IF(INTRO!$E$41="Endémique", IF($J41>1, IF($J41=4, "Inconnu", IF($J41=99, "Surveillance", E41)), 0),"Non requis") -> 0 | O41: =IF(INTRO!$E$41="Endémique", IF($J41>1, IF($J41=4, "Inconnu", IF($J41=99, "Surveillance", F41)), 0),"Non requis") -> 0 | P41: =IF(INTRO!$E$41="Endémique", IF($J41>1, IF($J41=4, "Inconnu", IF($J41=99, "Surveillance", ROUND(D41*INTRO!$E$51,0))), 0),"Non requis") -> 0 | Q41: =IF(INTRO!$E$41="Endémique", IF($J41>1, IF($J41=4, "Inconnu", IF($J41=99, "Surveillance", SUM($N41:$P41))), 0),"Non requis") -> 0 | R41: =IF(INTRO!$E$43="Endémique", IF($K41>1, IF($K41=4, "Inconnu", IF($K41=99, "Surveillance", ROUND(E41*0.75,0))), 0),"Non requis") -> 19458 | S41: 0 | T41: =IF(INTRO!$E$43="Endémique", IF($K41>1, IF($K41=4, "Inconnu", IF($K41=99, "Surveillance", G41)), 0),"Non requis") -> 119314 | U41: =IF(INTRO!$E$43="Endémique", IF($K41>1, IF($K41=4, "Inconnu", IF($K41=99, "Surveillance", SUM($R41:$T41))), 0),"Non requis") -> 138772 | V41: 0 | W41: 1 | X41: 0 | Y41: 0 | AH41: 15429 | AI41: GUIGLO
A42: =IF(INTRO!$E$33<>0,INTRO!$E$33, " ") -> Côte d'Ivoire | B42: CAVALLY | C42: TAI | D42: 119120 | E42: =IF(INTRO!$E$48="","",ROUND($D42*INTRO!$E$48,0)) -> 15116 | F42: =IF(INTRO!$E$49="","",ROUND($D42*INTRO!$E$49,0)) -> 30304 | G42: =IF(INTRO!$E$50="","",ROUND($D42*INTRO!$E$50,0)) -> 69518 | H42: 99 | I42: 1 | J42: 1 | K42: 2 | L42: =IF(INTRO!$E$37="Endémique",IF($H42>0,IF($H42=4,"Inconnu",IF($H42=99,"Interrompu",$D42)),0),"Non requis") -> Interrompu | M42: =IF(INTRO!$E$39="Endémique", IF($I42>0, IF($I42=4,"Inconnu",IF($I42=99,"Interrompu",$D42)), 0),"Non requis") -> 119120 | N42: =IF(INTRO!$E$41="Endémique", IF($J42>1, IF($J42=4, "Inconnu", IF($J42=99, "Surveillance", E42)), 0),"Non requis") -> 0 | O42: =IF(INTRO!$E$41="Endémique", IF($J42>1, IF($J42=4, "Inconnu", IF($J42=99, "Surveillance", F42)), 0),"Non requis") -> 0 | P42: =IF(INTRO!$E$41="Endémique", IF($J42>1, IF($J42=4, "Inconnu", IF($J42=99, "Surveillance", ROUND(D42*INTRO!$E$51,0))), 0),"Non requis") -> 0 | Q42: =IF(INTRO!$E$41="Endémique", IF($J42>1, IF($J42=4, "Inconnu", IF($J42=99, "Surveillance", SUM($N42:$P42))), 0),"Non requis") -> 0 | R42: =IF(INTRO!$E$43="Endémique", IF($K42>1, IF($K42=4, "Inconnu", IF($K42=99, "Surveillance", ROUND(E42*0.75,0))), 0),"Non requis") -> 11337 | S42: 0 | T42: =IF(INTRO!$E$43="Endémique", IF($K42>1, IF($K42=4, "Inconnu", IF($K42=99, "Surveillance", G42)), 0),"Non requis") -> 69518 | U42: =IF(INTRO!$E$43="Endémique", IF($K42>1, IF($K42=4, "Inconnu", IF($K42=99, "Surveillance", SUM($R42:$T42))), 0),"Non requis") -> 80855 | V42: 0 | W42: 1 | X42: 0 | Y42: 0 | AH42: 15430 | AI42: TAI
A43: =IF(INTRO!$E$33<>0,INTRO!$E$33, " ") -> Côte d'Ivoire | B43: CAVALLY | C43: TOULEPLEU | D43: 65947 | E43: =IF(INTRO!$E$48="","",ROUND($D43*INTRO!$E$48,0)) -> 8369 | F43: =IF(INTRO!$E$49="","",ROUND($D43*INTRO!$E$49,0)) -> 16777 | G43: =IF(INTRO!$E$50="","",ROUND($D43*INTRO!$E$50,0)) -> 38487 | H43: 1 | I43: 1 | J43: 1 | K43: 2 | L43: =IF(INTRO!$E$37="Endémique",IF($H43>0,IF($H43=4,"Inconnu",IF($H43=99,"Interrompu",$D43)),0),"Non requis") -> 65947 | M43: =IF(INTRO!$E$39="Endémique", IF($I43>0, IF($I43=4,"Inconnu",IF($I43=99,"Interrompu",$D43)), 0),"Non requis") -> 65947 | N43: =IF(INTRO!$E$41="Endémique", IF($J43>1, IF($J43=4, "Inconnu", IF($J43=99, "Surveillance", E43)), 0),"Non requis") -> 0 | O43: =IF(INTRO!$E$41="Endémique", IF($J43>1, IF($J43=4, "Inconnu", IF($J43=99, "Surveillance", F43)), 0),"Non requis") -> 0 | P43: =IF(INTRO!$E$41="Endémique", IF($J43>1, IF($J43=4, "Inconnu", IF($J43=99, "Surveillance", ROUND(D43*INTRO!$E$51,0))), 0),"Non requis") -> 0 | Q43: =IF(INTRO!$E$41="Endémique", IF($J43>1, IF($J43=4, "Inconnu", IF($J43=99, "Surveillance", SUM($N43:$P43))), 0),"Non requis") -> 0 | R43: =IF(INTRO!$E$43="Endémique", IF($K43>1, IF($K43=4, "Inconnu", IF($K43=99, "Surveillance", ROUND(E43*0.75,0))), 0),"Non requis") -> 6277 | S43: 873 | T43: =IF(INTRO!$E$43="Endémique", IF($K43>1, IF($K43=4, "Inconnu", IF($K43=99, "Surveillance", G43)), 0),"Non requis") -> 38487 | U43: =IF(INTRO!$E$43="Endémique", IF($K43>1, IF($K43=4, "Inconnu", IF($K43=99, "Surveillance", SUM($R43:$T43))), 0),"Non requis") -> 45637 | V43: 1 | W43: 1 | X43: 0 | Y43: 1 | AH43: 15360 | AI43: TOULEPLEU
A44: =IF(INTRO!$E$33<>0,INTRO!$E$33, " ") -> Côte d'Ivoire | B44: FOLON | C44: KANIASSO | D44: 73338 | E44: =IF(INTRO!$E$48="","",ROUND($D44*INTRO!$E$48,0)) -> 9307 | F44: =IF(INTRO!$E$49="","",ROUND($D44*INTRO!$E$49,0)) -> 18657 | G44: =IF(INTRO!$E$50="","",ROUND($D44*INTRO!$E$50,0)) -> 42800 | H44: 0 | I44: 1 | J44: 1 | K44: 0 | L44: =IF(INTRO!$E$37="Endémique",IF($H44>0,IF($H44=4,"Inconnu",IF($H44=99,"Interrompu",$D44)),0),"Non requis") -> 0 | M44: =IF(INTRO!$E$39="Endémique", IF($I44>0, IF($I44=4,"Inconnu",IF($I44=99,"Interrompu",$D44)), 0),"Non requis") -> 73338 | N44: =IF(INTRO!$E$41="Endémique", IF($J44>1, IF($J44=4, "Inconnu", IF($J44=99, "Surveillance", E44)), 0),"Non requis") -> 0 | O44: =IF(INTRO!$E$41="Endémique", IF($J44>1, IF($J44=4, "Inconnu", IF($J44=99, "Surveillance", F44)), 0),"Non requis") -> 0 | P44: =IF(INTRO!$E$41="Endémique", IF($J44>1, IF($J44=4, "Inconnu", IF($J44=99, "Surveillance", ROUND(D44*INTRO!$E$51,0))), 0),"Non requis") -> 0 | Q44: =IF(INTRO!$E$41="Endémique", IF($J44>1, IF($J44=4, "Inconnu", IF($J44=99, "Surveillance", SUM($N44:$P44))), 0),"Non requis") -> 0 | R44: =IF(INTRO!$E$43="Endémique", IF($K44>1, IF($K44=4, "Inconnu", IF($K44=99, "Surveillance", ROUND(E44*0.75,0))), 0),"Non requis") -> 0 | S44: 0 | T44: =IF(INTRO!$E$43="Endémique", IF($K44>1, IF($K44=4, "Inconnu", IF($K44=99, "Surveillance", G44)), 0),"Non requis") -> 0 | U44: =IF(INTRO!$E$43="Endémique", IF($K44>1, IF($K44=4, "Inconnu", IF($K44=99, "Surveillance", SUM($R44:$T44))), 0),"Non requis") -> 0 | V44: 0 | W44: 1 | X44: 0 | Y44: 0 | AH44: 15438 | AI44: KANIASSO
A45: =IF(INTRO!$E$33<>0,INTRO!$E$33, " ") -> Côte d'Ivoire | B45: FOLON | C45: MINIGNAN | D45: 48121 | E45: =IF(INTRO!$E$48="","",ROUND($D45*INTRO!$E$48,0)) -> 6107 | F45: =IF(INTRO!$E$49="","",ROUND($D45*INTRO!$E$49,0)) -> 12242 | G45: =IF(INTRO!$E$50="","",ROUND($D45*INTRO!$E$50,0)) -> 28083 | H45: 0 | I45: 1 | J45: 1 | K45: 2 | L45: =IF(INTRO!$E$37="Endémique",IF($H45>0,IF($H45=4,"Inconnu",IF($H45=99,"Interrompu",$D45)),0),"Non requis") -> 0 | M45: =IF(INTRO!$E$39="Endémique", IF($I45>0, IF($I45=4,"Inconnu",IF($I45=99,"Interrompu",$D45)), 0),"Non requis") -> 48121 | N45: =IF(INTRO!$E$41="Endémique", IF($J45>1, IF($J45=4, "Inconnu", IF($J45=99, "Surveillance", E45)), 0),"Non requis") -> 0 | O45: =IF(INTRO!$E$41="Endémique", IF($J45>1, IF($J45=4, "Inconnu", IF($J45=99, "Surveillance", F45)), 0),"Non requis") -> 0 | P45: =IF(INTRO!$E$41="Endémique", IF($J45>1, IF($J45=4, "Inconnu", IF($J45=99, "Surveillance", ROUND(D45*INTRO!$E$51,0))), 0),"Non requis") -> 0 | Q45: =IF(INTRO!$E$41="Endémique", IF($J45>1, IF($J45=4, "Inconnu", IF($J45=99, "Surveillance", SUM($N45:$P45))), 0),"Non requis") -> 0 | R45: =IF(INTRO!$E$43="Endémique", IF($K45>1, IF($K45=4, "Inconnu", IF($K45=99, "Surveillance", ROUND(E45*0.75,0))), 0),"Non requis") -> 4580 | S45: 10191 | T45: =IF(INTRO!$E$43="Endémique", IF($K45>1, IF($K45=4, "Inconnu", IF($K45=99, "Surveillance", G45)), 0),"Non requis") -> 28083 | U45: =IF(INTRO!$E$43="Endémique", IF($K45>1, IF($K45=4, "Inconnu", IF($K45=99, "Surveillance", SUM($R45:$T45))), 0),"Non requis") -> 42854 | V45: 0 | W45: 1 | X45: 0 | Y45: 1 | AH45: 15437 | AI45: MINIGNAN
A46: =IF(INTRO!$E$33<>0,INTRO!$E$33, " ") -> Côte d'Ivoire | B46: GBEKE | C46: BEOUMI | D46: 184233 | E46: =IF(INTRO!$E$48="","",ROUND($D46*INTRO!$E$48,0)) -> 23379 | F46: =IF(INTRO!$E$49="","",ROUND($D46*INTRO!$E$49,0)) -> 46869 | G46: =IF(INTRO!$E$50="","",ROUND($D46*INTRO!$E$50,0)) -> 107518 | H46: 19 | I46: 1 | J46: 1 | K46: 2 | L46: =IF(INTRO!$E$37="Endémique",IF($H46>0,IF($H46=4,"Inconnu",IF($H46=99,"Interrompu",$D46)),0),"Non requis") -> 184233 | M46: =IF(INTRO!$E$39="Endémique", IF($I46>0, IF($I46=4,"Inconnu",IF($I46=99,"Interrompu",$D46)), 0),"Non requis") -> 184233 | N46: =IF(INTRO!$E$41="Endémique", IF($J46>1, IF($J46=4, "Inconnu", IF($J46=99, "Surveillance", E46)), 0),"Non requis") -> 0 | O46: =IF(INTRO!$E$41="Endémique", IF($J46>1, IF($J46=4, "Inconnu", IF($J46=99, "Surveillance", F46)), 0),"Non requis") -> 0 | P46: =IF(INTRO!$E$41="Endémique", IF($J46>1, IF($J46=4, "Inconnu", IF($J46=99, "Surveillance", ROUND(D46*INTRO!$E$51,0))), 0),"Non requis") -> 0 | Q46: =IF(INTRO!$E$41="Endémique", IF($J46>1, IF($J46=4, "Inconnu", IF($J46=99, "Surveillance", SUM($N46:$P46))), 0),"Non requis") -> 0 | R46: =IF(INTRO!$E$43="Endémique", IF($K46>1, IF($K46=4, "Inconnu", IF($K46=99, "Surveillance", ROUND(E46*0.75,0))), 0),"Non requis") -> 17534 | S46: 0 | T46: =IF(INTRO!$E$43="Endémique", IF($K46>1, IF($K46=4, "Inconnu", IF($K46=99, "Surveillance", G46)), 0),"Non requis") -> 107518 | U46: =IF(INTRO!$E$43="Endémique", IF($K46>1, IF($K46=4, "Inconnu", IF($K46=99, "Surveillance", SUM($R46:$T46))), 0),"Non requis") -> 125052 | V46: 0 | W46: 1 | X46: 0 | Y46: 0 | AH46: 15361 | AI46: BEOUMI
A47: =IF(INTRO!$E$33<>0,INTRO!$E$33, " ") -> Côte d'Ivoire | B47: GBEKE | C47: BOTRO | D47: 97280 | E47: =IF(INTRO!$E$48="","",ROUND($D47*INTRO!$E$48,0)) -> 12345 | F47: =IF(INTRO!$E$49="","",ROUND($D47*INTRO!$E$49,0)) -> 24748 | G47: =IF(INTRO!$E$50="","",ROUND($D47*INTRO!$E$50,0)) -> 56773 | H47: 19 | I47: 1 | J47: 1 | K47: 0 | L47: =IF(INTRO!$E$37="Endémique",IF($H47>0,IF($H47=4,"Inconnu",IF($H47=99,"Interrompu",$D47)),0),"Non requis") -> 97280 | M47: =IF(INTRO!$E$39="Endémique", IF($I47>0, IF($I47=4,"Inconnu",IF($I47=99,"Interrompu",$D47)), 0),"Non requis") -> 97280 | N47: =IF(INTRO!$E$41="Endémique", IF($J47>1, IF($J47=4, "Inconnu", IF($J47=99, "Surveillance", E47)), 0),"Non requis") -> 0 | O47: =IF(INTRO!$E$41="Endémique", IF($J47>1, IF($J47=4, "Inconnu", IF($J47=99, "Surveillance", F47)), 0),"Non requis") -> 0 | P47: =IF(INTRO!$E$41="Endémique", IF($J47>1, IF($J47=4, "Inconnu", IF($J47=99, "Surveillance", ROUND(D47*INTRO!$E$51,0))), 0),"Non requis") -> 0 | Q47: =IF(INTRO!$E$41="Endémique", IF($J47>1, IF($J47=4, "Inconnu", IF($J47=99, "Surveillance", SUM($N47:$P47))), 0),"Non requis") -> 0 | R47: =IF(INTRO!$E$43="Endémique", IF($K47>1, IF($K47=4, "Inconnu", IF($K47=99, "Surveillance", ROUND(E47*0.75,0))), 0),"Non requis") -> 0 | S47: 0 | T47: =IF(INTRO!$E$43="Endémique", IF($K47>1, IF($K47=4, "Inconnu", IF($K47=99, "Surveillance", G47)), 0),"Non requis") -> 0 | U47: =IF(INTRO!$E$43="Endémique", IF($K47>1, IF($K47=4, "Inconnu", IF($K47=99, "Surveillance", SUM($R47:$T47))), 0),"Non requis") -> 0 | V47: 0 | W47: 1 | X47: 0 | Y47: 0 | AH47: 15432 | AI47: BOTRO
A48: =IF(INTRO!$E$33<>0,INTRO!$E$33, " ") -> Côte d'Ivoire | B48: GBEKE | C48: BOUAKE NORD-EST | D48: 231500 | E48: =IF(INTRO!$E$48="","",ROUND($D48*INTRO!$E$48,0)) -> 29377 | F48: =IF(INTRO!$E$49="","",ROUND($D48*INTRO!$E$49,0)) -> 58894 | G48: =IF(INTRO!$E$50="","",ROUND($D48*INTRO!$E$50,0)) -> 135103 | H48: 19 | I48: 1 | J48: 2 | K48: 2 | L48: =IF(INTRO!$E$37="Endémique",IF($H48>0,IF($H48=4,"Inconnu",IF($H48=99,"Interrompu",$D48)),0),"Non requis") -> 231500 | M48: =IF(INTRO!$E$39="Endémique", IF($I48>0, IF($I48=4,"Inconnu",IF($I48=99,"Interrompu",$D48)), 0),"Non requis") -> 231500 | N48: =IF(INTRO!$E$41="Endémique", IF($J48>1, IF($J48=4, "Inconnu", IF($J48=99, "Surveillance", E48)), 0),"Non requis") -> 29377 | O48: =IF(INTRO!$E$41="Endémique", IF($J48>1, IF($J48=4, "Inconnu", IF($J48=99, "Surveillance", F48)), 0),"Non requis") -> 58894 | P48: =IF(INTRO!$E$41="Endémique", IF($J48>1, IF($J48=4, "Inconnu", IF($J48=99, "Surveillance", ROUND(D48*INTRO!$E$51,0))), 0),"Non requis") -> 55861 | Q48: =IF(INTRO!$E$41="Endémique", IF($J48>1, IF($J48=4, "Inconnu", IF($J48=99, "Surveillance", SUM($N48:$P48))), 0),"Non requis") -> 144132 | R48: =IF(INTRO!$E$43="Endémique", IF($K48>1, IF($K48=4, "Inconnu", IF($K48=99, "Surveillance", ROUND(E48*0.75,0))), 0),"Non requis") -> 22033 | S48: 0 | T48: =IF(INTRO!$E$43="Endémique", IF($K48>1, IF($K48=4, "Inconnu", IF($K48=99, "Surveillance", G48)), 0),"Non requis") -> 135103 | U48: =IF(INTRO!$E$43="Endémique", IF($K48>1, IF($K48=4, "Inconnu", IF($K48=99, "Surveillance", SUM($R48:$T48))), 0),"Non requis") -> 157136 | V48: 0 | W48: 1 | X48: 1 | Y48: 0 | AH48: 15362 | AI48: BOUAKE NORD-EST
A49: =IF(INTRO!$E$33<>0,INTRO!$E$33, " ") -> Côte d'Ivoire | B49: GBEKE | C49: BOUAKE NORD-OUEST | D49: 341481 | E49: =IF(INTRO!$E$48="","",ROUND($D49*INTRO!$E$48,0)) -> 43334 | F49: =IF(INTRO!$E$49="","",ROUND($D49*INTRO!$E$49,0)) -> 86873 | G49: =IF(INTRO!$E$50="","",ROUND($D49*INTRO!$E$50,0)) -> 199288 | H49: 19 | I49: 1 | J49: 1 | K49: 3 | L49: =IF(INTRO!$E$37="Endémique",IF($H49>0,IF($H49=4,"Inconnu",IF($H49=99,"Interrompu",$D49)),0),"Non requis") -> 341481 | M49: =IF(INTRO!$E$39="Endémique", IF($I49>0, IF($I49=4,"Inconnu",IF($I49=99,"Interrompu",$D49)), 0),"Non requis") -> 341481 | N49: =IF(INTRO!$E$41="Endémique", IF($J49>1, IF($J49=4, "Inconnu", IF($J49=99, "Surveillance", E49)), 0),"Non requis") -> 0 | O49: =IF(INTRO!$E$41="Endémique", IF($J49>1, IF($J49=4, "Inconnu", IF($J49=99, "Surveillance", F49)), 0),"Non requis") -> 0 | P49: =IF(INTRO!$E$41="Endémique", IF($J49>1, IF($J49=4, "Inconnu", IF($J49=99, "Surveillance", ROUND(D49*INTRO!$E$51,0))), 0),"Non requis") -> 0 | Q49: =IF(INTRO!$E$41="Endémique", IF($J49>1, IF($J49=4, "Inconnu", IF($J49=99, "Surveillance", SUM($N49:$P49))), 0),"Non requis") -> 0 | R49: =IF(INTRO!$E$43="Endémique", IF($K49>1, IF($K49=4, "Inconnu", IF($K49=99, "Surveillance", ROUND(E49*0.75,0))), 0),"Non requis") -> 32501 | S49: 105278 | T49: =IF(INTRO!$E$43="Endémique", IF($K49>1, IF($K49=4, "Inconnu", IF($K49=99, "Surveillance", G49)), 0),"Non requis") -> 199288 | U49: =IF(INTRO!$E$43="Endémique", IF($K49>1, IF($K49=4, "Inconnu", IF($K49=99, "Surveillance", SUM($R49:$T49))), 0),"Non requis") -> 337067 | V49: 0 | W49: 1 | X49: 0 | Y49: 1 | AH49: 15431 | AI49: BOUAKE NORD OUEST
A50: =IF(INTRO!$E$33<>0,INTRO!$E$33, " ") -> Côte d'Ivoire | B50: GBEKE | C50: BOUAKE SUD | D50: 240258 | E50: =IF(INTRO!$E$48="","",ROUND($D50*INTRO!$E$48,0)) -> 30489 | F50: =IF(INTRO!$E$49="","",ROUND($D50*INTRO!$E$49,0)) -> 61122 | G50: =IF(INTRO!$E$50="","",ROUND($D50*INTRO!$E$50,0)) -> 140215 | H50: 19 | I50: 0 | J50: 1 | K50: 2 | L50: =IF(INTRO!$E$37="Endémique",IF($H50>0,IF($H50=4,"Inconnu",IF($H50=99,"Interrompu",$D50)),0),"Non requis") -> 240258 | M50: =IF(INTRO!$E$39="Endémique", IF($I50>0, IF($I50=4,"Inconnu",IF($I50=99,"Interrompu",$D50)), 0),"Non requis") -> 0 | N50: =IF(INTRO!$E$41="Endémique", IF($J50>1, IF($J50=4, "Inconnu", IF($J50=99, "Surveillance", E50)), 0),"Non requis") -> 0 | O50: =IF(INTRO!$E$41="Endémique", IF($J50>1, IF($J50=4, "Inconnu", IF($J50=99, "Surveillance", F50)), 0),"Non requis") -> 0 | P50: =IF(INTRO!$E$41="Endémique", IF($J50>1, IF($J50=4, "Inconnu", IF($J50=99, "Surveillance", ROUND(D50*INTRO!$E$51,0))), 0),"Non requis") -> 0 | Q50: =IF(INTRO!$E$41="Endémique", IF($J50>1, IF($J50=4, "Inconnu", IF($J50=99, "Surveillance", SUM($N50:$P50))), 0),"Non requis") -> 0 | R50: =IF(INTRO!$E$43="Endémique", IF($K50>1, IF($K50=4, "Inconnu", IF($K50=99, "Surveillance", ROUND(E50*0.75,0))), 0),"Non requis") -> 22867 | S50: 0 | T50: =IF(INTRO!$E$43="Endémique", IF($K50>1, IF($K50=4, "Inconnu", IF($K50=99, "Surveillance", G50)), 0),"Non requis") -> 140215 | U50: =IF(INTRO!$E$43="Endémique", IF($K50>1, IF($K50=4, "Inconnu", IF($K50=99, "Surveillance", SUM($R50:$T50))), 0),"Non requis") -> 163082 | V50: 0 | W50: 0 | X50: 0 | Y50: 0 | AA50: TAS | AH50: 15364 | AI50: BOUAKE SUD
A51: =IF(INTRO!$E$33<>0,INTRO!$E$33, " ") -> Côte d'Ivoire | B51: GBEKE | C51: SAKASSOU | D51: 112932 | E51: =IF(INTRO!$E$48="","",ROUND($D51*INTRO!$E$48,0)) -> 14331 | F51: =IF(INTRO!$E$49="","",ROUND($D51*INTRO!$E$49,0)) -> 28730 | G51: =IF(INTRO!$E$50="","",ROUND($D51*INTRO!$E$50,0)) -> 65907 | H51: 19 | I51: 1 | J51: 2 | K51: 3 | L51: =IF(INTRO!$E$37="Endémique",IF($H51>0,IF($H51=4,"Inconnu",IF($H51=99,"Interrompu",$D51)),0),"Non requis") -> 112932 | M51: =IF(INTRO!$E$39="Endémique", IF($I51>0, IF($I51=4,"Inconnu",IF($I51=99,"Interrompu",$D51)), 0),"Non requis") -> 112932 | N51: =IF(INTRO!$E$41="Endémique", IF($J51>1, IF($J51=4, "Inconnu", IF($J51=99, "Surveillance", E51)), 0),"Non requis") -> 14331 | O51: =IF(INTRO!$E$41="Endémique", IF($J51>1, IF($J51=4, "Inconnu", IF($J51=99, "Surveillance", F51)), 0),"Non requis") -> 28730 | P51: =IF(INTRO!$E$41="Endémique", IF($J51>1, IF($J51=4, "Inconnu", IF($J51=99, "Surveillance", ROUND(D51*INTRO!$E$51,0))), 0),"Non requis") -> 27250 | Q51: =IF(INTRO!$E$41="Endémique", IF($J51>1, IF($J51=4, "Inconnu", IF($J51=99, "Surveillance", SUM($N51:$P51))), 0),"Non requis") -> 70311 | R51: =IF(INTRO!$E$43="Endémique", IF($K51>1, IF($K51=4, "Inconnu", IF($K51=99, "Surveillance", ROUND(E51*0.75,0))), 0),"Non requis") -> 10748 | S51: 23025 | T51: =IF(INTRO!$E$43="Endémique", IF($K51>1, IF($K51=4, "Inconnu", IF($K51=99, "Surveillance", G51)), 0),"Non requis") -> 65907 | U51: =IF(INTRO!$E$43="Endémique", IF($K51>1, IF($K51=4, "Inconnu", IF($K51=99, "Surveillance", SUM($R51:$T51))), 0),"Non requis") -> 99680 | V51: 0 | W51: 1 | X51: 1 | Y51: 1 | AH51: 15365 | AI51: SAKASSOU
A52: =IF(INTRO!$E$33<>0,INTRO!$E$33, " ") -> Côte d'Ivoire | B52: GBOKLE | C52: FRESCO | D52: 117211 | E52: =IF(INTRO!$E$48="","",ROUND($D52*INTRO!$E$48,0)) -> 14874 | F52: =IF(INTRO!$E$49="","",ROUND($D52*INTRO!$E$49,0)) -> 29818 | G52: =IF(INTRO!$E$50="","",ROUND($D52*INTRO!$E$50,0)) -> 68404 | H52: 19 | I52: 1 | J52: 2 | K52: 2 | L52: =IF(INTRO!$E$37="Endémique",IF($H52>0,IF($H52=4,"Inconnu",IF($H52=99,"Interrompu",$D52)),0),"Non requis") -> 117211 | M52: =IF(INTRO!$E$39="Endémique", IF($I52>0, IF($I52=4,"Inconnu",IF($I52=99,"Interrompu",$D52)), 0),"Non requis") -> 117211 | N52: =IF(INTRO!$E$41="Endémique", IF($J52>1, IF($J52=4, "Inconnu", IF($J52=99, "Surveillance", E52)), 0),"Non requis") -> 14874 | O52: =IF(INTRO!$E$41="Endémique", IF($J52>1, IF($J52=4, "Inconnu", IF($J52=99, "Surveillance", F52)), 0),"Non requis") -> 29818 | P52: =IF(INTRO!$E$41="Endémique", IF($J52>1, IF($J52=4, "Inconnu", IF($J52=99, "Surveillance", ROUND(D52*INTRO!$E$51,0))), 0),"Non requis") -> 28283 | Q52: =IF(INTRO!$E$41="Endémique", IF($J52>1, IF($J52=4, "Inconnu", IF($J52=99, "Surveillance", SUM($N52:$P52))), 0),"Non requis") -> 72975 | R52: =IF(INTRO!$E$43="Endémique", IF($K52>1, IF($K52=4, "Inconnu", IF($K52=99, "Surveillance", ROUND(E52*0.75,0))), 0),"Non requis") -> 11156 | S52: 0 | T52: =IF(INTRO!$E$43="Endémique", IF($K52>1, IF($K52=4, "Inconnu", IF($K52=99, "Surveillance", G52)), 0),"Non requis") -> 68404 | U52: =IF(INTRO!$E$43="Endémique", IF($K52>1, IF($K52=4, "Inconnu", IF($K52=99, "Surveillance", SUM($R52:$T52))), 0),"Non requis") -> 79560 | V52: 0 | W52: 1 | X52: 1 | Y52: 0 | AH52: 15386 | AI52: FRESCO
A53: =IF(INTRO!$E$33<>0,INTRO!$E$33, " ") -> Côte d'Ivoire | B53: GBOKLE | C53: SASSANDRA | D53: 346550 | E53: =IF(INTRO!$E$48="","",ROUND($D53*INTRO!$E$48,0)) -> 43977 | F53: =IF(INTRO!$E$49="","",ROUND($D53*INTRO!$E$49,0)) -> 88162 | G53: =IF(INTRO!$E$50="","",ROUND($D53*INTRO!$E$50,0)) -> 202247 | H53: 99 | I53: 1 | J53: 1 | K53: 3 | L53: =IF(INTRO!$E$37="Endémique",IF($H53>0,IF($H53=4,"Inconnu",IF($H53=99,"Interrompu",$D53)),0),"Non requis") -> Interrompu | M53: =IF(INTRO!$E$39="Endémique", IF($I53>0, IF($I53=4,"Inconnu",IF($I53=99,"Interrompu",$D53)), 0),"Non requis") -> 346550 | N53: =IF(INTRO!$E$41="Endémique", IF($J53>1, IF($J53=4, "Inconnu", IF($J53=99, "Surveillance", E53)), 0),"Non requis") -> 0 | O53: =IF(INTRO!$E$41="Endémique", IF($J53>1, IF($J53=4, "Inconnu", IF($J53=99, "Surveillance", F53)), 0),"Non requis") -> 0 | P53: =IF(INTRO!$E$41="Endémique", IF($J53>1, IF($J53=4, "Inconnu", IF($J53=99, "Surveillance", ROUND(D53*INTRO!$E$51,0))), 0),"Non requis") -> 0 | Q53: =IF(INTRO!$E$41="Endémique", IF($J53>1, IF($J53=4, "Inconnu", IF($J53=99, "Surveillance", SUM($N53:$P53))), 0),"Non requis") -> 0 | R53: =IF(INTRO!$E$43="Endémique", IF($K53>1, IF($K53=4, "Inconnu", IF($K53=99, "Surveillance", ROUND(E53*0.75,0))), 0),"Non requis") -> 32983 | S53: 1647 | T53: =IF(INTRO!$E$43="Endémique", IF($K53>1, IF($K53=4, "Inconnu", IF($K53=99, "Surveillance", G53)), 0),"Non requis") -> 202247 | U53: =IF(INTRO!$E$43="Endémique", IF($K53>1, IF($K53=4, "Inconnu", IF($K53=99, "Surveillance", SUM($R53:$T53))), 0),"Non requis") -> 236877 | V53: 0 | W53: 1 | X53: 0 | Y53: 1 | AH53: 15368 | AI53: SASSANDRA
A54: =IF(INTRO!$E$33<>0,INTRO!$E$33, " ") -> Côte d'Ivoire | B54: GOH | C54: GAGNOA 1 | D54: 443284 | E54: =IF(INTRO!$E$48="","",ROUND($D54*INTRO!$E$48,0)) -> 56253 | F54: =IF(INTRO!$E$49="","",ROUND($D54*INTRO!$E$49,0)) -> 112771 | G54: =IF(INTRO!$E$50="","",ROUND($D54*INTRO!$E$50,0)) -> 258701 | H54: 1 | I54: 1 | J54: 1 | K54: 2 | L54: =IF(INTRO!$E$37="Endémique",IF($H54>0,IF($H54=4,"Inconnu",IF($H54=99,"Interrompu",$D54)),0),"Non requis") -> 443284 | M54: =IF(INTRO!$E$39="Endémique", IF($I54>0, IF($I54=4,"Inconnu",IF($I54=99,"Interrompu",$D54)), 0),"Non requis") -> 443284 | N54: =IF(INTRO!$E$41="Endémique", IF($J54>1, IF($J54=4, "Inconnu", IF($J54=99, "Surveillance", E54)), 0),"Non requis") -> 0 | O54: =IF(INTRO!$E$41="Endémique", IF($J54>1, IF($J54=4, "Inconnu", IF($J54=99, "Surveillance", F54)), 0),"Non requis") -> 0 | P54: =IF(INTRO!$E$41="Endémique", IF($J54>1, IF($J54=4, "Inconnu", IF($J54=99, "Surveillance", ROUND(D54*INTRO!$E$51,0))), 0),"Non requis") -> 0 | Q54: =IF(INTRO!$E$41="Endémique", IF($J54>1, IF($J54=4, "Inconnu", IF($J54=99, "Surveillance", SUM($N54:$P54))), 0),"Non requis") -> 0 | R54: =IF(INTRO!$E$43="Endémique", IF($K54>1, IF($K54=4, "Inconnu", IF($K54=99, "Surveillance", ROUND(E54*0.75,0))), 0),"Non requis") -> 42190 | S54: 0 | T54: =IF(INTRO!$E$43="Endémique", IF($K54>1, IF($K54=4, "Inconnu", IF($K54=99, "Surveillance", G54)), 0),"Non requis") -> 258701 | U54: =IF(INTRO!$E$43="Endémique", IF($K54>1, IF($K54=4, "Inconnu", IF($K54=99, "Surveillance", SUM($R54:$T54))), 0),"Non requis") -> 300891 | V54: 1 | W54: 1 | X54: 0 | Y54: 0 | AH54: 15433 | AI54: GAGNOA 1
A55: =IF(INTRO!$E$33<>0,INTRO!$E$33, " ") -> Côte d'Ivoire | B55: GOH | C55: GAGNOA 2 | D55: 309661 | E55: =IF(INTRO!$E$48="","",ROUND($D55*INTRO!$E$48,0)) -> 39296 | F55: =IF(INTRO!$E$49="","",ROUND($D55*INTRO!$E$49,0)) -> 78778 | G55: =IF(INTRO!$E$50="","",ROUND($D55*INTRO!$E$50,0)) -> 180718 | H55: 19 | I55: 1 | J55: 1 | K55: 2 | L55: =IF(INTRO!$E$37="Endémique",IF($H55>0,IF($H55=4,"Inconnu",IF($H55=99,"Interrompu",$D55)),0),"Non requis") -> 309661 | M55: =IF(INTRO!$E$39="Endémique", IF($I55>0, IF($I55=4,"Inconnu",IF($I55=99,"Interrompu",$D55)), 0),"Non requis") -> 309661 | N55: =IF(INTRO!$E$41="Endémique", IF($J55>1, IF($J55=4, "Inconnu", IF($J55=99, "Surveillance", E55)), 0),"Non requis") -> 0 | O55: =IF(INTRO!$E$41="Endémique", IF($J55>1, IF($J55=4, "Inconnu", IF($J55=99, "Surveillance", F55)), 0),"Non requis") -> 0 | P55: =IF(INTRO!$E$41="Endémique", IF($J55>1, IF($J55=4, "Inconnu", IF($J55=99, "Surveillance", ROUND(D55*INTRO!$E$51,0))), 0),"Non requis") -> 0 | Q55: =IF(INTRO!$E$41="Endémique", IF($J55>1, IF($J55=4, "Inconnu", IF($J55=99, "Surveillance", SUM($N55:$P55))), 0),"Non requis") -> 0 | R55: =IF(INTRO!$E$43="Endémique", IF($K55>1, IF($K55=4, "Inconnu", IF($K55=99, "Surveillance", ROUND(E55*0.75,0))), 0),"Non requis") -> 29472 | S55: 0 | T55: =IF(INTRO!$E$43="Endémique", IF($K55>1, IF($K55=4, "Inconnu", IF($K55=99, "Surveillance", G55)), 0),"Non requis") -> 180718 | U55: =IF(INTRO!$E$43="Endémique", IF($K55>1, IF($K55=4, "Inconnu", IF($K55=99, "Surveillance", SUM($R55:$T55))), 0),"Non requis") -> 210190 | V55: 0 | W55: 1 | X55: 0 | Y55: 0 | AH55: 15434 | AI55: GAGNOA 2
A56: =IF(INTRO!$E$33<>0,INTRO!$E$33, " ") -> Côte d'Ivoire | B56: GOH | C56: OUME | D56: 362713 | E56: =IF(INTRO!$E$48="","",ROUND($D56*INTRO!$E$48,0)) -> 46028 | F56: =IF(INTRO!$E$49="","",ROUND($D56*INTRO!$E$49,0)) -> 92274 | G56: =IF(INTRO!$E$50="","",ROUND($D56*INTRO!$E$50,0)) -> 211679 | H56: 19 | I56: 1 | J56: 1 | K56: 2 | L56: =IF(INTRO!$E$37="Endémique",IF($H56>0,IF($H56=4,"Inconnu",IF($H56=99,"Interrompu",$D56)),0),"Non requis") -> 362713 | M56: =IF(INTRO!$E$39="Endémique", IF($I56>0, IF($I56=4,"Inconnu",IF($I56=99,"Interrompu",$D56)), 0),"Non requis") -> 362713 | N56: =IF(INTRO!$E$41="Endémique", IF($J56>1, IF($J56=4, "Inconnu", IF($J56=99, "Surveillance", E56)), 0),"Non requis") -> 0 | O56: =IF(INTRO!$E$41="Endémique", IF($J56>1, IF($J56=4, "Inconnu", IF($J56=99, "Surveillance", F56)), 0),"Non requis") -> 0 | P56: =IF(INTRO!$E$41="Endémique", IF($J56>1, IF($J56=4, "Inconnu", IF($J56=99, "Surveillance", ROUND(D56*INTRO!$E$51,0))), 0),"Non requis") -> 0 | Q56: =IF(INTRO!$E$41="Endémique", IF($J56>1, IF($J56=4, "Inconnu", IF($J56=99, "Surveillance", SUM($N56:$P56))), 0),"Non requis") -> 0 | R56: =IF(INTRO!$E$43="Endémique", IF($K56>1, IF($K56=4, "Inconnu", IF($K56=99, "Surveillance", ROUND(E56*0.75,0))), 0),"Non requis") -> 34521 | S56: 0 | T56: =IF(INTRO!$E$43="Endémique", IF($K56>1, IF($K56=4, "Inconnu", IF($K56=99, "Surveillance", G56)), 0),"Non requis") -> 211679 | U56: =IF(INTRO!$E$43="Endémique", IF($K56>1, IF($K56=4, "Inconnu", IF($K56=99, "Surveillance", SUM($R56:$T56))), 0),"Non requis") -> 246200 | V56: 0 | W56: 1 | X56: 0 | Y56: 0 | AH56: 15372 | AI56: OUME
A57: =IF(INTRO!$E$33<>0,INTRO!$E$33, " ") -> Côte d'Ivoire | B57: GONTOUGO | C57: BONDOUKOU | D57: 393539 | E57: =IF(INTRO!$E$48="","",ROUND($D57*INTRO!$E$48,0)) -> 49940 | F57: =IF(INTRO!$E$49="","",ROUND($D57*INTRO!$E$49,0)) -> 100116 | G57: =IF(INTRO!$E$50="","",ROUND($D57*INTRO!$E$50,0)) -> 229669 | H57: 99 | I57: 1 | J57: 1 | K57: 1 | L57: =IF(INTRO!$E$37="Endémique",IF($H57>0,IF($H57=4,"Inconnu",IF($H57=99,"Interrompu",$D57)),0),"Non requis") -> Interrompu | M57: =IF(INTRO!$E$39="Endémique", IF($I57>0, IF($I57=4,"Inconnu",IF($I57=99,"Interrompu",$D57)), 0),"Non requis") -> 393539 | N57: =IF(INTRO!$E$41="Endémique", IF($J57>1, IF($J57=4, "Inconnu", IF($J57=99, "Surveillance", E57)), 0),"Non requis") -> 0 | O57: =IF(INTRO!$E$41="Endémique", IF($J57>1, IF($J57=4, "Inconnu", IF($J57=99, "Surveillance", F57)), 0),"Non requis") -> 0 | P57: =IF(INTRO!$E$41="Endémique", IF($J57>1, IF($J57=4, "Inconnu", IF($J57=99, "Surveillance", ROUND(D57*INTRO!$E$51,0))), 0),"Non requis") -> 0 | Q57: =IF(INTRO!$E$41="Endémique", IF($J57>1, IF($J57=4, "Inconnu", IF($J57=99, "Surveillance", SUM($N57:$P57))), 0),"Non requis") -> 0 | R57: =IF(INTRO!$E$43="Endémique", IF($K57>1, IF($K57=4, "Inconnu", IF($K57=99, "Surveillance", ROUND(E57*0.75,0))), 0),"Non requis") -> 0 | S57: 0 | T57: =IF(INTRO!$E$43="Endémique", IF($K57>1, IF($K57=4, "Inconnu", IF($K57=99, "Surveillance", G57)), 0),"Non requis") -> 0 | U57: =IF(INTRO!$E$43="Endémique", IF($K57>1, IF($K57=4, "Inconnu", IF($K57=99, "Surveillance", SUM($R57:$T57))), 0),"Non requis") -> 0 | V57: 0 | W57: 1 | X57: 0 | Y57: 0 | AH57: 15421 | AI57: BONDOUKOU
A58: =IF(INTRO!$E$33<>0,INTRO!$E$33, " ") -> Côte d'Ivoire | B58: GONTOUGO | C58: KOUNFAO | D58: 137069 | E58: =IF(INTRO!$E$48="","",ROUND($D58*INTRO!$E$48,0)) -> 17394 | F58: =IF(INTRO!$E$49="","",ROUND($D58*INTRO!$E$49,0)) -> 34870 | G58: =IF(INTRO!$E$50="","",ROUND($D58*INTRO!$E$50,0)) -> 79993 | H58: 99 | I58: 1 | J58: 2 | K58: 0 | L58: =IF(INTRO!$E$37="Endémique",IF($H58>0,IF($H58=4,"Inconnu",IF($H58=99,"Interrompu",$D58)),0),"Non requis") -> Interrompu | M58: =IF(INTRO!$E$39="Endémique", IF($I58>0, IF($I58=4,"Inconnu",IF($I58=99,"Interrompu",$D58)), 0),"Non requis") -> 137069 | N58: =IF(INTRO!$E$41="Endémique", IF($J58>1, IF($J58=4, "Inconnu", IF($J58=99, "Surveillance", E58)), 0),"Non requis") -> 17394 | O58: =IF(INTRO!$E$41="Endémique", IF($J58>1, IF($J58=4, "Inconnu", IF($J58=99, "Surveillance", F58)), 0),"Non requis") -> 34870 | P58: =IF(INTRO!$E$41="Endémique", IF($J58>1, IF($J58=4, "Inconnu", IF($J58=99, "Surveillance", ROUND(D58*INTRO!$E$51,0))), 0),"Non requis") -> 33075 | Q58: =IF(INTRO!$E$41="Endémique", IF($J58>1, IF($J58=4, "Inconnu", IF($J58=99, "Surveillance", SUM($N58:$P58))), 0),"Non requis") -> 85339 | R58: =IF(INTRO!$E$43="Endémique", IF($K58>1, IF($K58=4, "Inconnu", IF($K58=99, "Surveillance", ROUND(E58*0.75,0))), 0),"Non requis") -> 0 | S58: 0 | T58: =IF(INTRO!$E$43="Endémique", IF($K58>1, IF($K58=4, "Inconnu", IF($K58=99, "Surveillance", G58)), 0),"Non requis") -> 0 | U58: =IF(INTRO!$E$43="Endémique", IF($K58>1, IF($K58=4, "Inconnu", IF($K58=99, "Surveillance", SUM($R58:$T58))), 0),"Non requis") -> 0 | V58: 0 | W58: 1 | X58: 1 | Y58: 0 | AH58: 15427 | AI58: KOUN-FAO
A59: =IF(INTRO!$E$33<>0,INTRO!$E$33, " ") -> Côte d'Ivoire | B59: GONTOUGO | C59: SANDEGUE | D59: 66292 | E59: =IF(INTRO!$E$48="","",ROUND($D59*INTRO!$E$48,0)) -> 8412 | F59: =IF(INTRO!$E$49="","",ROUND($D59*INTRO!$E$49,0)) -> 16865 | G59: =IF(INTRO!$E$50="","",ROUND($D59*INTRO!$E$50,0)) -> 38688 | H59: 99 | I59: 1 | J59: 1 | K59: 0 | L59: =IF(INTRO!$E$37="Endémique",IF($H59>0,IF($H59=4,"Inconnu",IF($H59=99,"Interrompu",$D59)),0),"Non requis") -> Interrompu | M59: =IF(INTRO!$E$39="Endémique", IF($I59>0, IF($I59=4,"Inconnu",IF($I59=99,"Interrompu",$D59)), 0),"Non requis") -> 66292 | N59: =IF(INTRO!$E$41="Endémique", IF($J59>1, IF($J59=4, "Inconnu", IF($J59=99, "Surveillance", E59)), 0),"Non requis") -> 0 | O59: =IF(INTRO!$E$41="Endémique", IF($J59>1, IF($J59=4, "Inconnu", IF($J59=99, "Surveillance", F59)), 0),"Non requis") -> 0 | P59: =IF(INTRO!$E$41="Endémique", IF($J59>1, IF($J59=4, "Inconnu", IF($J59=99, "Surveillance", ROUND(D59*INTRO!$E$51,0))), 0),"Non requis") -> 0 | Q59: =IF(INTRO!$E$41="Endémique", IF($J59>1, IF($J59=4, "Inconnu", IF($J59=99, "Surveillance", SUM($N59:$P59))), 0),"Non requis") -> 0 | R59: =IF(INTRO!$E$43="Endémique", IF($K59>1, IF($K59=4, "Inconnu", IF($K59=99, "Surveillance", ROUND(E59*0.75,0))), 0),"Non requis") -> 0 | S59: 0 | T59: =IF(INTRO!$E$43="Endémique", IF($K59>1, IF($K59=4, "Inconnu", IF($K59=99, "Surveillance", G59)), 0),"Non requis") -> 0 | U59: =IF(INTRO!$E$43="Endémique", IF($K59>1, IF($K59=4, "Inconnu", IF($K59=99, "Surveillance", SUM($R59:$T59))), 0),"Non requis") -> 0 | V59: 0 | W59: 1 | X59: 0 | Y59: 0 | AH59: 15422 | AI59: SANDEGUE
A60: =IF(INTRO!$E$33<>0,INTRO!$E$33, " ") -> Côte d'Ivoire | B60: GONTOUGO | C60: TANDA | D60: 91460 | E60: =IF(INTRO!$E$48="","",ROUND($D60*INTRO!$E$48,0)) -> 11606 | F60: =IF(INTRO!$E$49="","",ROUND($D60*INTRO!$E$49,0)) -> 23267 | G60: =IF(INTRO!$E$50="","",ROUND($D60*INTRO!$E$50,0)) -> 53376 | H60: 99 | I60: 1 | J60: 2 | K60: 0 | L60: =IF(INTRO!$E$37="Endémique",IF($H60>0,IF($H60=4,"Inconnu",IF($H60=99,"Interrompu",$D60)),0),"Non requis") -> Interrompu | M60: =IF(INTRO!$E$39="Endémique", IF($I60>0, IF($I60=4,"Inconnu",IF($I60=99,"Interrompu",$D60)), 0),"Non requis") -> 91460 | N60: =IF(INTRO!$E$41="Endémique", IF($J60>1, IF($J60=4, "Inconnu", IF($J60=99, "Surveillance", E60)), 0),"Non requis") -> 11606 | O60: =IF(INTRO!$E$41="Endémique", IF($J60>1, IF($J60=4, "Inconnu", IF($J60=99, "Surveillance", F60)), 0),"Non requis") -> 23267 | P60: =IF(INTRO!$E$41="Endémique", IF($J60>1, IF($J60=4, "Inconnu", IF($J60=99, "Surveillance", ROUND(D60*INTRO!$E$51,0))), 0),"Non requis") -> 22069 | Q60: =IF(INTRO!$E$41="Endémique", IF($J60>1, IF($J60=4, "Inconnu", IF($J60=99, "Surveillance", SUM($N60:$P60))), 0),"Non requis") -> 56942 | R60: =IF(INTRO!$E$43="Endémique", IF($K60>1, IF($K60=4, "Inconnu", IF($K60=99, "Surveillance", ROUND(E60*0.75,0))), 0),"Non requis") -> 0 | S60: 0 | T60: =IF(INTRO!$E$43="Endémique", IF($K60>1, IF($K60=4, "Inconnu", IF($K60=99, "Surveillance", G60)), 0),"Non requis") -> 0 | U60: =IF(INTRO!$E$43="Endémique", IF($K60>1, IF($K60=4, "Inconnu", IF($K60=99, "Surveillance", SUM($R60:$T60))), 0),"Non requis") -> 0 | V60: 0 | W60: 1 | X60: 1 | Y60: 0 | AH60: 15426 | AI60: TANDA
A61: =IF(INTRO!$E$33<>0,INTRO!$E$33, " ") -> Côte d'Ivoire | B61: GONTOUGO | C61: TRANSUA | D61: 98444 | E61: =IF(INTRO!$E$48="","",ROUND($D61*INTRO!$E$48,0)) -> 12493 | F61: =IF(INTRO!$E$49="","",ROUND($D61*INTRO!$E$49,0)) -> 25044 | G61: =IF(INTRO!$E$50="","",ROUND($D61*INTRO!$E$50,0)) -> 57452 | H61: 99 | I61: 1 | J61: 2 | K61: 0 | L61: =IF(INTRO!$E$37="Endémique",IF($H61>0,IF($H61=4,"Inconnu",IF($H61=99,"Interrompu",$D61)),0),"Non requis") -> Interrompu | M61: =IF(INTRO!$E$39="Endémique", IF($I61>0, IF($I61=4,"Inconnu",IF($I61=99,"Interrompu",$D61)), 0),"Non requis") -> 98444 | N61: =IF(INTRO!$E$41="Endémique", IF($J61>1, IF($J61=4, "Inconnu", IF($J61=99, "Surveillance", E61)), 0),"Non requis") -> 12493 | O61: =IF(INTRO!$E$41="Endémique", IF($J61>1, IF($J61=4, "Inconnu", IF($J61=99, "Surveillance", F61)), 0),"Non requis") -> 25044 | P61: =IF(INTRO!$E$41="Endémique", IF($J61>1, IF($J61=4, "Inconnu", IF($J61=99, "Surveillance", ROUND(D61*INTRO!$E$51,0))), 0),"Non requis") -> 23755 | Q61: =IF(INTRO!$E$41="Endémique", IF($J61>1, IF($J61=4, "Inconnu", IF($J61=99, "Surveillance", SUM($N61:$P61))), 0),"Non requis") -> 61292 | R61: =IF(INTRO!$E$43="Endémique", IF($K61>1, IF($K61=4, "Inconnu", IF($K61=99, "Surveillance", ROUND(E61*0.75,0))), 0),"Non requis") -> 0 | S61: 0 | T61: =IF(INTRO!$E$43="Endémique", IF($K61>1, IF($K61=4, "Inconnu", IF($K61=99, "Surveillance", G61)), 0),"Non requis") -> 0 | U61: =IF(INTRO!$E$43="Endémique", IF($K61>1, IF($K61=4, "Inconnu", IF($K61=99, "Surveillance", SUM($R61:$T61))), 0),"Non requis") -> 0 | V61: 0 | W61: 1 | X61: 1 | Y61: 0 | AH61: 15428 | AI61: TRANSUA
A62: =IF(INTRO!$E$33<>0,INTRO!$E$33, " ") -> Côte d'Ivoire | B62: GRANDS PONTS | C62: DABOU | D62: 171401 | E62: =IF(INTRO!$E$48="","",ROUND($D62*INTRO!$E$48,0)) -> 21751 | F62: =IF(INTRO!$E$49="","",ROUND($D62*INTRO!$E$49,0)) -> 43604 | G62: =IF(INTRO!$E$50="","",ROUND($D62*INTRO!$E$50,0)) -> 100030 | H62: 19 | I62: 1 | J62: 2 | K62: 1 | L62: =IF(INTRO!$E$37="Endémique",IF($H62>0,IF($H62=4,"Inconnu",IF($H62=99,"Interrompu",$D62)),0),"Non requis") -> 171401 | M62: =IF(INTRO!$E$39="Endémique", IF($I62>0, IF($I62=4,"Inconnu",IF($I62=99,"Interrompu",$D62)), 0),"Non requis") -> 171401 | N62: =IF(INTRO!$E$41="Endémique", IF($J62>1, IF($J62=4, "Inconnu", IF($J62=99, "Surveillance", E62)), 0),"Non requis") -> 21751 | O62: =IF(INTRO!$E$41="Endémique", IF($J62>1, IF($J62=4, "Inconnu", IF($J62=99, "Surveillance", F62)), 0),"Non requis") -> 43604 | P62: =IF(INTRO!$E$41="Endémique", IF($J62>1, IF($J62=4, "Inconnu", IF($J62=99, "Surveillance", ROUND(D62*INTRO!$E$51,0))), 0),"Non requis") -> 41359 | Q62: =IF(INTRO!$E$41="Endémique", IF($J62>1, IF($J62=4, "Inconnu", IF($J62=99, "Surveillance", SUM($N62:$P62))), 0),"Non requis") -> 106714 | R62: =IF(INTRO!$E$43="Endémique", IF($K62>1, IF($K62=4, "Inconnu", IF($K62=99, "Surveillance", ROUND(E62*0.75,0))), 0),"Non requis") -> 0 | S62: 41445 | T62: =IF(INTRO!$E$43="Endémique", IF($K62>1, IF($K62=4, "Inconnu", IF($K62=99, "Surveillance", G62)), 0),"Non requis") -> 0 | U62: =IF(INTRO!$E$43="Endémique", IF($K62>1, IF($K62=4, "Inconnu", IF($K62=99, "Surveillance", SUM($R62:$T62))), 0),"Non requis") -> 0 | V62: 0 | W62: 1 | X62: 1 | Y62: 1 | AA62: TAS | AH62: 15330 | AI62: DABOU
A63: =IF(INTRO!$E$33<>0,INTRO!$E$33, " ") -> Côte d'Ivoire | B63: GRANDS PONTS | C63: GRAND-LAHOU | D63: 174210 | E63: =IF(INTRO!$E$48="","",ROUND($D63*INTRO!$E$48,0)) -> 22107 | F63: =IF(INTRO!$E$49="","",ROUND($D63*INTRO!$E$49,0)) -> 44319 | G63: =IF(INTRO!$E$50="","",ROUND($D63*INTRO!$E$50,0)) -> 101669 | H63: 19 | I63: 0 | J63: 2 | K63: 1 | L63: =IF(INTRO!$E$37="Endémique",IF($H63>0,IF($H63=4,"Inconnu",IF($H63=99,"Interrompu",$D63)),0),"Non requis") -> 174210 | M63: =IF(INTRO!$E$39="Endémique", IF($I63>0, IF($I63=4,"Inconnu",IF($I63=99,"Interrompu",$D63)), 0),"Non requis") -> 0 | N63: =IF(INTRO!$E$41="Endémique", IF($J63>1, IF($J63=4, "Inconnu", IF($J63=99, "Surveillance", E63)), 0),"Non requis") -> 22107 | O63: =IF(INTRO!$E$41="Endémique", IF($J63>1, IF($J63=4, "Inconnu", IF($J63=99, "Surveillance", F63)), 0),"Non requis") -> 44319 | P63: =IF(INTRO!$E$41="Endémique", IF($J63>1, IF($J63=4, "Inconnu", IF($J63=99, "Surveillance", ROUND(D63*INTRO!$E$51,0))), 0),"Non requis") -> 42037 | Q63: =IF(INTRO!$E$41="Endémique", IF($J63>1, IF($J63=4, "Inconnu", IF($J63=99, "Surveillance", SUM($N63:$P63))), 0),"Non requis") -> 108463 | R63: =IF(INTRO!$E$43="Endémique", IF($K63>1, IF($K63=4, "Inconnu", IF($K63=99, "Surveillance", ROUND(E63*0.75,0))), 0),"Non requis") -> 0 | S63: 37184 | T63: =IF(INTRO!$E$43="Endémique", IF($K63>1, IF($K63=4, "Inconnu", IF($K63=99, "Surveillance", G63)), 0),"Non requis") -> 0 | U63: =IF(INTRO!$E$43="Endémique", IF($K63>1, IF($K63=4, "Inconnu", IF($K63=99, "Surveillance", SUM($R63:$T63))), 0),"Non requis") -> 0 | V63: 0 | W63: 0 | X63: 1 | Y63: 1 | AH63: 15331 | AI63: GRAND-LAHOU
A64: =IF(INTRO!$E$33<>0,INTRO!$E$33, " ") -> Côte d'Ivoire | B64: GRANDS PONTS | C64: JACQUEVILLE | D64: 64829 | E64: =IF(INTRO!$E$48="","",ROUND($D64*INTRO!$E$48,0)) -> 8227 | F64: =IF(INTRO!$E$49="","",ROUND($D64*INTRO!$E$49,0)) -> 16492 | G64: =IF(INTRO!$E$50="","",ROUND($D64*INTRO!$E$50,0)) -> 37834 | H64: 19 | I64: 0 | J64: 2 | K64: 1 | L64: =IF(INTRO!$E$37="Endémique",IF($H64>0,IF($H64=4,"Inconnu",IF($H64=99,"Interrompu",$D64)),0),"Non requis") -> 64829 | M64: =IF(INTRO!$E$39="Endémique", IF($I64>0, IF($I64=4,"Inconnu",IF($I64=99,"Interrompu",$D64)), 0),"Non requis") -> 0 | N64: =IF(INTRO!$E$41="Endémique", IF($J64>1, IF($J64=4, "Inconnu", IF($J64=99, "Surveillance", E64)), 0),"Non requis") -> 8227 | O64: =IF(INTRO!$E$41="Endémique", IF($J64>1, IF($J64=4, "Inconnu", IF($J64=99, "Surveillance", F64)), 0),"Non requis") -> 16492 | P64: =IF(INTRO!$E$41="Endémique", IF($J64>1, IF($J64=4, "Inconnu", IF($J64=99, "Surveillance", ROUND(D64*INTRO!$E$51,0))), 0),"Non requis") -> 15643 | Q64: =IF(INTRO!$E$41="Endémique", IF($J64>1, IF($J64=4, "Inconnu", IF($J64=99, "Surveillance", SUM($N64:$P64))), 0),"Non requis") -> 40362 | R64: =IF(INTRO!$E$43="Endémique", IF($K64>1, IF($K64=4, "Inconnu", IF($K64=99, "Surveillance", ROUND(E64*0.75,0))), 0),"Non requis") -> 0 | S64: 12757 | T64: =IF(INTRO!$E$43="Endémique", IF($K64>1, IF($K64=4, "Inconnu", IF($K64=99, "Surveillance", G64)), 0),"Non requis") -> 0 | U64: =IF(INTRO!$E$43="Endémique", IF($K64>1, IF($K64=4, "Inconnu", IF($K64=99, "Surveillance", SUM($R64:$T64))), 0),"Non requis") -> 0 | V64: 0 | W64: 0 | X64: 1 | Y64: 1 | AH64: 15332 | AI64: JACQUEVILLE
A65: =IF(INTRO!$E$33<>0,INTRO!$E$33, " ") -> Côte d'Ivoire | B65: GUEMON | C65: BANGOLO | D65: 415037 | E65: =IF(INTRO!$E$48="","",ROUND($D65*INTRO!$E$48,0)) -> 52668 | F65: =IF(INTRO!$E$49="","",ROUND($D65*INTRO!$E$49,0)) -> 105585 | G65: =IF(INTRO!$E$50="","",ROUND($D65*INTRO!$E$50,0)) -> 242216 | H65: 19 | I65: 1 | J65: 1 | K65: 3 | L65: =IF(INTRO!$E$37="Endémique",IF($H65>0,IF($H65=4,"Inconnu",IF($H65=99,"Interrompu",$D65)),0),"Non requis") -> 415037 | M65: =IF(INTRO!$E$39="Endémique", IF($I65>0, IF($I65=4,"Inconnu",IF($I65=99,"Interrompu",$D65)), 0),"Non requis") -> 415037 | N65: =IF(INTRO!$E$41="Endémique", IF($J65>1, IF($J65=4, "Inconnu", IF($J65=99, "Surveillance", E65)), 0),"Non requis") -> 0 | O65: =IF(INTRO!$E$41="Endémique", IF($J65>1, IF($J65=4, "Inconnu", IF($J65=99, "Surveillance", F65)), 0),"Non requis") -> 0 | P65: =IF(INTRO!$E$41="Endémique", IF($J65>1, IF($J65=4, "Inconnu", IF($J65=99, "Surveillance", ROUND(D65*INTRO!$E$51,0))), 0),"Non requis") -> 0 | Q65: =IF(INTRO!$E$41="Endémique", IF($J65>1, IF($J65=4, "Inconnu", IF($J65=99, "Surveillance", SUM($N65:$P65))), 0),"Non requis") -> 0 | R65: =IF(INTRO!$E$43="Endémique", IF($K65>1, IF($K65=4, "Inconnu", IF($K65=99, "Surveillance", ROUND(E65*0.75,0))), 0),"Non requis") -> 39501 | S65: 106185 | T65: =IF(INTRO!$E$43="Endémique", IF($K65>1, IF($K65=4, "Inconnu", IF($K65=99, "Surveillance", G65)), 0),"Non requis") -> 242216 | U65: =IF(INTRO!$E$43="Endémique", IF($K65>1, IF($K65=4, "Inconnu", IF($K65=99, "Surveillance", SUM($R65:$T65))), 0),"Non requis") -> 387902 | V65: 0 | W65: 1 | X65: 0 | Y65: 1 | AH65: 15355 | AI65: BANGOLO
A66: =IF(INTRO!$E$33<>0,INTRO!$E$33, " ") -> Côte d'Ivoire | B66: GUEMON | C66: DUEKOUE | D66: 532479 | E66: =IF(INTRO!$E$48="","",ROUND($D66*INTRO!$E$48,0)) -> 67572 | F66: =IF(INTRO!$E$49="","",ROUND($D66*INTRO!$E$49,0)) -> 135463 | G66: =IF(INTRO!$E$50="","",ROUND($D66*INTRO!$E$50,0)) -> 310755 | H66: 19 | I66: 1 | J66: 1 | K66: 2 | L66: =IF(INTRO!$E$37="Endémique",IF($H66>0,IF($H66=4,"Inconnu",IF($H66=99,"Interrompu",$D66)),0),"Non requis") -> 532479 | M66: =IF(INTRO!$E$39="Endémique", IF($I66>0, IF($I66=4,"Inconnu",IF($I66=99,"Interrompu",$D66)), 0),"Non requis") -> 532479 | N66: =IF(INTRO!$E$41="Endémique", IF($J66>1, IF($J66=4, "Inconnu", IF($J66=99, "Surveillance", E66)), 0),"Non requis") -> 0 | O66: =IF(INTRO!$E$41="Endémique", IF($J66>1, IF($J66=4, "Inconnu", IF($J66=99, "Surveillance", F66)), 0),"Non requis") -> 0 | P66: =IF(INTRO!$E$41="Endémique", IF($J66>1, IF($J66=4, "Inconnu", IF($J66=99, "Surveillance", ROUND(D66*INTRO!$E$51,0))), 0),"Non requis") -> 0 | Q66: =IF(INTRO!$E$41="Endémique", IF($J66>1, IF($J66=4, "Inconnu", IF($J66=99, "Surveillance", SUM($N66:$P66))), 0),"Non requis") -> 0 | R66: =IF(INTRO!$E$43="Endémique", IF($K66>1, IF($K66=4, "Inconnu", IF($K66=99, "Surveillance", ROUND(E66*0.75,0))), 0),"Non requis") -> 50679 | S66: 0 | T66: =IF(INTRO!$E$43="Endémique", IF($K66>1, IF($K66=4, "Inconnu", IF($K66=99, "Surveillance", G66)), 0),"Non requis") -> 310755 | U66: =IF(INTRO!$E$43="Endémique", IF($K66>1, IF($K66=4, "Inconnu", IF($K66=99, "Surveillance", SUM($R66:$T66))), 0),"Non requis") -> 361434 | V66: 0 | W66: 1 | X66: 0 | Y66: 0 | AH66: 15357 | AI66: DUEKOUE
A67: =IF(INTRO!$E$33<>0,INTRO!$E$33, " ") -> Côte d'Ivoire | B67: GUEMON | C67: KOUIBLY | D67: 251943 | E67: =IF(INTRO!$E$48="","",ROUND($D67*INTRO!$E$48,0)) -> 31972 | F67: =IF(INTRO!$E$49="","",ROUND($D67*INTRO!$E$49,0)) -> 64094 | G67: =IF(INTRO!$E$50="","",ROUND($D67*INTRO!$E$50,0)) -> 147034 | H67: 19 | I67: 1 | J67: 1 | K67: 2 | L67: =IF(INTRO!$E$37="Endémique",IF($H67>0,IF($H67=4,"Inconnu",IF($H67=99,"Interrompu",$D67)),0),"Non requis") -> 251943 | M67: =IF(INTRO!$E$39="Endémique", IF($I67>0, IF($I67=4,"Inconnu",IF($I67=99,"Interrompu",$D67)), 0),"Non requis") -> 251943 | N67: =IF(INTRO!$E$41="Endémique", IF($J67>1, IF($J67=4, "Inconnu", IF($J67=99, "Surveillance", E67)), 0),"Non requis") -> 0 | O67: =IF(INTRO!$E$41="Endémique", IF($J67>1, IF($J67=4, "Inconnu", IF($J67=99, "Surveillance", F67)), 0),"Non requis") -> 0 | P67: =IF(INTRO!$E$41="Endémique", IF($J67>1, IF($J67=4, "Inconnu", IF($J67=99, "Surveillance", ROUND(D67*INTRO!$E$51,0))), 0),"Non requis") -> 0 | Q67: =IF(INTRO!$E$41="Endémique", IF($J67>1, IF($J67=4, "Inconnu", IF($J67=99, "Surveillance", SUM($N67:$P67))), 0),"Non requis") -> 0 | R67: =IF(INTRO!$E$43="Endémique", IF($K67>1, IF($K67=4, "Inconnu", IF($K67=99, "Surveillance", ROUND(E67*0.75,0))), 0),"Non requis") -> 23979 | S67: 0 | T67: =IF(INTRO!$E$43="Endémique", IF($K67>1, IF($K67=4, "Inconnu", IF($K67=99, "Surveillance", G67)), 0),"Non requis") -> 147034 | U67: =IF(INTRO!$E$43="Endémique", IF($K67>1, IF($K67=4, "Inconnu", IF($K67=99, "Surveillance", SUM($R67:$T67))), 0),"Non requis") -> 171013 | V67: 0 | W67: 1 | X67: 0 | Y67: 0 | AH67: 15359 | AI67: KOUIBLY
A68: =IF(INTRO!$E$33<>0,INTRO!$E$33, " ") -> Côte d'Ivoire | B68: HAMBOL | C68: DABAKALA | D68: 245307 | E68: =IF(INTRO!$E$48="","",ROUND($D68*INTRO!$E$48,0)) -> 31129 | F68: =IF(INTRO!$E$49="","",ROUND($D68*INTRO!$E$49,0)) -> 62406 | G68: =IF(INTRO!$E$50="","",ROUND($D68*INTRO!$E$50,0)) -> 143161 | H68: 99 | I68: 1 | J68: 1 | K68: 1 | L68: =IF(INTRO!$E$37="Endémique",IF($H68>0,IF($H68=4,"Inconnu",IF($H68=99,"Interrompu",$D68)),0),"Non requis") -> Interrompu | M68: =IF(INTRO!$E$39="Endémique", IF($I68>0, IF($I68=4,"Inconnu",IF($I68=99,"Interrompu",$D68)), 0),"Non requis") -> 245307 | N68: =IF(INTRO!$E$41="Endémique", IF($J68>1, IF($J68=4, "Inconnu", IF($J68=99, "Surveillance", E68)), 0),"Non requis") -> 0 | O68: =IF(INTRO!$E$41="Endémique", IF($J68>1, IF($J68=4, "Inconnu", IF($J68=99, "Surveillance", F68)), 0),"Non requis") -> 0 | P68: =IF(INTRO!$E$41="Endémique", IF($J68>1, IF($J68=4, "Inconnu", IF($J68=99, "Surveillance", ROUND(D68*INTRO!$E$51,0))), 0),"Non requis") -> 0 | Q68: =IF(INTRO!$E$41="Endémique", IF($J68>1, IF($J68=4, "Inconnu", IF($J68=99, "Surveillance", SUM($N68:$P68))), 0),"Non requis") -> 0 | R68: =IF(INTRO!$E$43="Endémique", IF($K68>1, IF($K68=4, "Inconnu", IF($K68=99, "Surveillance", ROUND(E68*0.75,0))), 0),"Non requis") -> 0 | S68: 0 | T68: =IF(INTRO!$E$43="Endémique", IF($K68>1, IF($K68=4, "Inconnu", IF($K68=99, "Surveillance", G68)), 0),"Non requis") -> 0 | U68: =IF(INTRO!$E$43="Endémique", IF($K68>1, IF($K68=4, "Inconnu", IF($K68=99, "Surveillance", SUM($R68:$T68))), 0),"Non requis") -> 0 | V68: 0 | W68: 1 | X68: 0 | Y68: 0 | AH68: 15373 | AI68: DABAKALA
A69: =IF(INTRO!$E$33<>0,INTRO!$E$33, " ") -> Côte d'Ivoire | B69: HAMBOL | C69: KATIOLA | D69: 138565 | E69: =IF(INTRO!$E$48="","",ROUND($D69*INTRO!$E$48,0)) -> 17584 | F69: =IF(INTRO!$E$49="","",ROUND($D69*INTRO!$E$49,0)) -> 35251 | G69: =IF(INTRO!$E$50="","",ROUND($D69*INTRO!$E$50,0)) -> 80867 | H69: 99 | I69: 1 | J69: 1 | K69: 3 | L69: =IF(INTRO!$E$37="Endémique",IF($H69>0,IF($H69=4,"Inconnu",IF($H69=99,"Interrompu",$D69)),0),"Non requis") -> Interrompu | M69: =IF(INTRO!$E$39="Endémique", IF($I69>0, IF($I69=4,"Inconnu",IF($I69=99,"Interrompu",$D69)), 0),"Non requis") -> 138565 | N69: =IF(INTRO!$E$41="Endémique", IF($J69>1, IF($J69=4, "Inconnu", IF($J69=99, "Surveillance", E69)), 0),"Non requis") -> 0 | O69: =IF(INTRO!$E$41="Endémique", IF($J69>1, IF($J69=4, "Inconnu", IF($J69=99, "Surveillance", F69)), 0),"Non requis") -> 0 | P69: =IF(INTRO!$E$41="Endémique", IF($J69>1, IF($J69=4, "Inconnu", IF($J69=99, "Surveillance", ROUND(D69*INTRO!$E$51,0))), 0),"Non requis") -> 0 | Q69: =IF(INTRO!$E$41="Endémique", IF($J69>1, IF($J69=4, "Inconnu", IF($J69=99, "Surveillance", SUM($N69:$P69))), 0),"Non requis") -> 0 | R69: =IF(INTRO!$E$43="Endémique", IF($K69>1, IF($K69=4, "Inconnu", IF($K69=99, "Surveillance", ROUND(E69*0.75,0))), 0),"Non requis") -> 13188 | S69: 27527 | T69: =IF(INTRO!$E$43="Endémique", IF($K69>1, IF($K69=4, "Inconnu", IF($K69=99, "Surveillance", G69)), 0),"Non requis") -> 80867 | U69: =IF(INTRO!$E$43="Endémique", IF($K69>1, IF($K69=4, "Inconnu", IF($K69=99, "Surveillance", SUM($R69:$T69))), 0),"Non requis") -> 121582 | V69: 0 | W69: 1 | X69: 0 | Y69: 1 | AH69: 15374 | AI69: KATIOLA
A70: =IF(INTRO!$E$33<>0,INTRO!$E$33, " ") -> Côte d'Ivoire | B70: HAMBOL | C70: NIAKARA | D70: 173451 | E70: =IF(INTRO!$E$48="","",ROUND($D70*INTRO!$E$48,0)) -> 22011 | F70: =IF(INTRO!$E$49="","",ROUND($D70*INTRO!$E$49,0)) -> 44126 | G70: =IF(INTRO!$E$50="","",ROUND($D70*INTRO!$E$50,0)) -> 101226 | H70: 99 | I70: 1 | J70: 1 | K70: 1 | L70: =IF(INTRO!$E$37="Endémique",IF($H70>0,IF($H70=4,"Inconnu",IF($H70=99,"Interrompu",$D70)),0),"Non requis") -> Interrompu | M70: =IF(INTRO!$E$39="Endémique", IF($I70>0, IF($I70=4,"Inconnu",IF($I70=99,"Interrompu",$D70)), 0),"Non requis") -> 173451 | N70: =IF(INTRO!$E$41="Endémique", IF($J70>1, IF($J70=4, "Inconnu", IF($J70=99, "Surveillance", E70)), 0),"Non requis") -> 0 | O70: =IF(INTRO!$E$41="Endémique", IF($J70>1, IF($J70=4, "Inconnu", IF($J70=99, "Surveillance", F70)), 0),"Non requis") -> 0 | P70: =IF(INTRO!$E$41="Endémique", IF($J70>1, IF($J70=4, "Inconnu", IF($J70=99, "Surveillance", ROUND(D70*INTRO!$E$51,0))), 0),"Non requis") -> 0 | Q70: =IF(INTRO!$E$41="Endémique", IF($J70>1, IF($J70=4, "Inconnu", IF($J70=99, "Surveillance", SUM($N70:$P70))), 0),"Non requis") -> 0 | R70: =IF(INTRO!$E$43="Endémique", IF($K70>1, IF($K70=4, "Inconnu", IF($K70=99, "Surveillance", ROUND(E70*0.75,0))), 0),"Non requis") -> 0 | S70: 0 | T70: =IF(INTRO!$E$43="Endémique", IF($K70>1, IF($K70=4, "Inconnu", IF($K70=99, "Surveillance", G70)), 0),"Non requis") -> 0 | U70: =IF(INTRO!$E$43="Endémique", IF($K70>1, IF($K70=4, "Inconnu", IF($K70=99, "Surveillance", SUM($R70:$T70))), 0),"Non requis") -> 0 | V70: 0 | W70: 1 | X70: 0 | Y70: 0 | AH70: 15375 | AI70: NIAKARA
A71: =IF(INTRO!$E$33<>0,INTRO!$E$33, " ") -> Côte d'Ivoire | B71: HAUT SASSANDRA | C71: DALOA | D71: 684577 | E71: =IF(INTRO!$E$48="","",ROUND($D71*INTRO!$E$48,0)) -> 86873 | F71: =IF(INTRO!$E$49="","",ROUND($D71*INTRO!$E$49,0)) -> 174156 | G71: =IF(INTRO!$E$50="","",ROUND($D71*INTRO!$E$50,0)) -> 399519 | H71: 19 | I71: 1 | J71: 1 | K71: 1 | L71: =IF(INTRO!$E$37="Endémique",IF($H71>0,IF($H71=4,"Inconnu",IF($H71=99,"Interrompu",$D71)),0),"Non requis") -> 684577 | M71: =IF(INTRO!$E$39="Endémique", IF($I71>0, IF($I71=4,"Inconnu",IF($I71=99,"Interrompu",$D71)), 0),"Non requis") -> 684577 | N71: =IF(INTRO!$E$41="Endémique", IF($J71>1, IF($J71=4, "Inconnu", IF($J71=99, "Surveillance", E71)), 0),"Non requis") -> 0 | O71: =IF(INTRO!$E$41="Endémique", IF($J71>1, IF($J71=4, "Inconnu", IF($J71=99, "Surveillance", F71)), 0),"Non requis") -> 0 | P71: =IF(INTRO!$E$41="Endémique", IF($J71>1, IF($J71=4, "Inconnu", IF($J71=99, "Surveillance", ROUND(D71*INTRO!$E$51,0))), 0),"Non requis") -> 0 | Q71: =IF(INTRO!$E$41="Endémique", IF($J71>1, IF($J71=4, "Inconnu", IF($J71=99, "Surveillance", SUM($N71:$P71))), 0),"Non requis") -> 0 | R71: =IF(INTRO!$E$43="Endémique", IF($K71>1, IF($K71=4, "Inconnu", IF($K71=99, "Surveillance", ROUND(E71*0.75,0))), 0),"Non requis") -> 0 | S71: 175144 | T71: =IF(INTRO!$E$43="Endémique", IF($K71>1, IF($K71=4, "Inconnu", IF($K71=99, "Surveillance", G71)), 0),"Non requis") -> 0 | U71: =IF(INTRO!$E$43="Endémique", IF($K71>1, IF($K71=4, "Inconnu", IF($K71=99, "Surveillance", SUM($R71:$T71))), 0),"Non requis") -> 0 | V71: 0 | W71: 1 | X71: 0 | Y71: 1 | AH71: 15435 | AI71: DALOA
A72: =IF(INTRO!$E$33<>0,INTRO!$E$33, " ") -> Côte d'Ivoire | B72: HAUT SASSANDRA | C72: ISSIA | D72: 379412 | E72: =IF(INTRO!$E$48="","",ROUND($D72*INTRO!$E$48,0)) -> 48147 | F72: =IF(INTRO!$E$49="","",ROUND($D72*INTRO!$E$49,0)) -> 96522 | G72: =IF(INTRO!$E$50="","",ROUND($D72*INTRO!$E$50,0)) -> 221425 | H72: 19 | I72: 1 | J72: 2 | K72: 3 | L72: =IF(INTRO!$E$37="Endémique",IF($H72>0,IF($H72=4,"Inconnu",IF($H72=99,"Interrompu",$D72)),0),"Non requis") -> 379412 | M72: =IF(INTRO!$E$39="Endémique", IF($I72>0, IF($I72=4,"Inconnu",IF($I72=99,"Interrompu",$D72)), 0),"Non requis") -> 379412 | N72: =IF(INTRO!$E$41="Endémique", IF($J72>1, IF($J72=4, "Inconnu", IF($J72=99, "Surveillance", E72)), 0),"Non requis") -> 48147 | O72: =IF(INTRO!$E$41="Endémique", IF($J72>1, IF($J72=4, "Inconnu", IF($J72=99, "Surveillance", F72)), 0),"Non requis") -> 96522 | P72: =IF(INTRO!$E$41="Endémique", IF($J72>1, IF($J72=4, "Inconnu", IF($J72=99, "Surveillance", ROUND(D72*INTRO!$E$51,0))), 0),"Non requis") -> 91552 | Q72: =IF(INTRO!$E$41="Endémique", IF($J72>1, IF($J72=4, "Inconnu", IF($J72=99, "Surveillance", SUM($N72:$P72))), 0),"Non requis") -> 236221 | R72: =IF(INTRO!$E$43="Endémique", IF($K72>1, IF($K72=4, "Inconnu", IF($K72=99, "Surveillance", ROUND(E72*0.75,0))), 0),"Non requis") -> 36110 | S72: 89905 | T72: =IF(INTRO!$E$43="Endémique", IF($K72>1, IF($K72=4, "Inconnu", IF($K72=99, "Surveillance", G72)), 0),"Non requis") -> 221425 | U72: =IF(INTRO!$E$43="Endémique", IF($K72>1, IF($K72=4, "Inconnu", IF($K72=99, "Surveillance", SUM($R72:$T72))), 0),"Non requis") -> 347440 | V72: 0 | W72: 1 | X72: 1 | Y72: 1 | AH72: 15377 | AI72: ISSIA
A73: =IF(INTRO!$E$33<>0,INTRO!$E$33, " ") -> Côte d'Ivoire | B73: HAUT SASSANDRA | C73: VAVOUA | D73: 463894 | E73: =IF(INTRO!$E$48="","",ROUND($D73*INTRO!$E$48,0)) -> 58868 | F73: =IF(INTRO!$E$49="","",ROUND($D73*INTRO!$E$49,0)) -> 118015 | G73: =IF(INTRO!$E$50="","",ROUND($D73*INTRO!$E$50,0)) -> 270729 | H73: 19 | I73: 1 | J73: 2 | K73: 2 | L73: =IF(INTRO!$E$37="Endémique",IF($H73>0,IF($H73=4,"Inconnu",IF($H73=99,"Interrompu",$D73)),0),"Non requis") -> 463894 | M73: =IF(INTRO!$E$39="Endémique", IF($I73>0, IF($I73=4,"Inconnu",IF($I73=99,"Interrompu",$D73)), 0),"Non requis") -> 463894 | N73: =IF(INTRO!$E$41="Endémique", IF($J73>1, IF($J73=4, "Inconnu", IF($J73=99, "Surveillance", E73)), 0),"Non requis") -> 58868 | O73: =IF(INTRO!$E$41="Endémique", IF($J73>1, IF($J73=4, "Inconnu", IF($J73=99, "Surveillance", F73)), 0),"Non requis") -> 118015 | P73: =IF(INTRO!$E$41="Endémique", IF($J73>1, IF($J73=4, "Inconnu", IF($J73=99, "Surveillance", ROUND(D73*INTRO!$E$51,0))), 0),"Non requis") -> 111938 | Q73: =IF(INTRO!$E$41="Endémique", IF($J73>1, IF($J73=4, "Inconnu", IF($J73=99, "Surveillance", SUM($N73:$P73))), 0),"Non requis") -> 288821 | R73: =IF(INTRO!$E$43="Endémique", IF($K73>1, IF($K73=4, "Inconnu", IF($K73=99, "Surveillance", ROUND(E73*0.75,0))), 0),"Non requis") -> 44151 | S73: 0 | T73: =IF(INTRO!$E$43="Endémique", IF($K73>1, IF($K73=4, "Inconnu", IF($K73=99, "Surveillance", G73)), 0),"Non requis") -> 270729 | U73: =IF(INTRO!$E$43="Endémique", IF($K73>1, IF($K73=4, "Inconnu", IF($K73=99, "Surveillance", SUM($R73:$T73))), 0),"Non requis") -> 314880 | V73: 0 | W73: 1 | X73: 1 | Y73: 0 | AH73: 15378 | AI73: VAVOUA
A74: =IF(INTRO!$E$33<>0,INTRO!$E$33, " ") -> Côte d'Ivoire | B74: HAUT SASSANDRA | C74: ZOUKOUGBEU | D74: 127876 | E74: =IF(INTRO!$E$48="","",ROUND($D74*INTRO!$E$48,0)) -> 16227 | F74: =IF(INTRO!$E$49="","",ROUND($D74*INTRO!$E$49,0)) -> 32532 | G74: =IF(INTRO!$E$50="","",ROUND($D74*INTRO!$E$50,0)) -> 74628 | H74: 19 | I74: 1 | J74: 1 | K74: 1 | L74: =IF(INTRO!$E$37="Endémique",IF($H74>0,IF($H74=4,"Inconnu",IF($H74=99,"Interrompu",$D74)),0),"Non requis") -> 127876 | M74: =IF(INTRO!$E$39="Endémique", IF($I74>0, IF($I74=4,"Inconnu",IF($I74=99,"Interrompu",$D74)), 0),"Non requis") -> 127876 | N74: =IF(INTRO!$E$41="Endémique", IF($J74>1, IF($J74=4, "Inconnu", IF($J74=99, "Surveillance", E74)), 0),"Non requis") -> 0 | O74: =IF(INTRO!$E$41="Endémique", IF($J74>1, IF($J74=4, "Inconnu", IF($J74=99, "Surveillance", F74)), 0),"Non requis") -> 0 | P74: =IF(INTRO!$E$41="Endémique", IF($J74>1, IF($J74=4, "Inconnu", IF($J74=99, "Surveillance", ROUND(D74*INTRO!$E$51,0))), 0),"Non requis") -> 0 | Q74: =IF(INTRO!$E$41="Endémique", IF($J74>1, IF($J74=4, "Inconnu", IF($J74=99, "Surveillance", SUM($N74:$P74))), 0),"Non requis") -> 0 | R74: =IF(INTRO!$E$43="Endémique", IF($K74>1, IF($K74=4, "Inconnu", IF($K74=99, "Surveillance", ROUND(E74*0.75,0))), 0),"Non requis") -> 0 | S74: 32716 | T74: =IF(INTRO!$E$43="Endémique", IF($K74>1, IF($K74=4, "Inconnu", IF($K74=99, "Surveillance", G74)), 0),"Non requis") -> 0 | U74: =IF(INTRO!$E$43="Endémique", IF($K74>1, IF($K74=4, "Inconnu", IF($K74=99, "Surveillance", SUM($R74:$T74))), 0),"Non requis") -> 0 | V74: 0 | W74: 1 | X74: 0 | Y74: 1 | AH74: 15436 | AI74: ZOUKOUGBEU
A75: =IF(INTRO!$E$33<>0,INTRO!$E$33, " ") -> Côte d'Ivoire | B75: IFFOU | C75: DAOUKRO | D75: 215152 | E75: =IF(INTRO!$E$48="","",ROUND($D75*INTRO!$E$48,0)) -> 27303 | F75: =IF(INTRO!$E$49="","",ROUND($D75*INTRO!$E$49,0)) -> 54735 | G75: =IF(INTRO!$E$50="","",ROUND($D75*INTRO!$E$50,0)) -> 125563 | H75: 99 | I75: 1 | J75: 2 | K75: 2 | L75: =IF(INTRO!$E$37="Endémique",IF($H75>0,IF($H75=4,"Inconnu",IF($H75=99,"Interrompu",$D75)),0),"Non requis") -> Interrompu | M75: =IF(INTRO!$E$39="Endémique", IF($I75>0, IF($I75=4,"Inconnu",IF($I75=99,"Interrompu",$D75)), 0),"Non requis") -> 215152 | N75: =IF(INTRO!$E$41="Endémique", IF($J75>1, IF($J75=4, "Inconnu", IF($J75=99, "Surveillance", E75)), 0),"Non requis") -> 27303 | O75: =IF(INTRO!$E$41="Endémique", IF($J75>1, IF($J75=4, "Inconnu", IF($J75=99, "Surveillance", F75)), 0),"Non requis") -> 54735 | P75: =IF(INTRO!$E$41="Endémique", IF($J75>1, IF($J75=4, "Inconnu", IF($J75=99, "Surveillance", ROUND(D75*INTRO!$E$51,0))), 0),"Non requis") -> 51916 | Q75: =IF(INTRO!$E$41="Endémique", IF($J75>1, IF($J75=4, "Inconnu", IF($J75=99, "Surveillance", SUM($N75:$P75))), 0),"Non requis") -> 133954 | R75: =IF(INTRO!$E$43="Endémique", IF($K75>1, IF($K75=4, "Inconnu", IF($K75=99, "Surveillance", ROUND(E75*0.75,0))), 0),"Non requis") -> 20477 | S75: 26629 | T75: =IF(INTRO!$E$43="Endémique", IF($K75>1, IF($K75=4, "Inconnu", IF($K75=99, "Surveillance", G75)), 0),"Non requis") -> 125563 | U75: =IF(INTRO!$E$43="Endémique", IF($K75>1, IF($K75=4, "Inconnu", IF($K75=99, "Surveillance", SUM($R75:$T75))), 0),"Non requis") -> 172669 | V75: 0 | W75: 1 | X75: 1 | Y75: 1 | AH75: 15393 | AI75: DAOUKRO
A76: =IF(INTRO!$E$33<>0,INTRO!$E$33, " ") -> Côte d'Ivoire | B76: IFFOU | C76: M'BAHIAKRO | D76: 107882 | E76: =IF(INTRO!$E$48="","",ROUND($D76*INTRO!$E$48,0)) -> 13690 | F76: =IF(INTRO!$E$49="","",ROUND($D76*INTRO!$E$49,0)) -> 27445 | G76: =IF(INTRO!$E$50="","",ROUND($D76*INTRO!$E$50,0)) -> 62960 | H76: 19 | I76: 1 | J76: 1 | K76: 2 | L76: =IF(INTRO!$E$37="Endémique",IF($H76>0,IF($H76=4,"Inconnu",IF($H76=99,"Interrompu",$D76)),0),"Non requis") -> 107882 | M76: =IF(INTRO!$E$39="Endémique", IF($I76>0, IF($I76=4,"Inconnu",IF($I76=99,"Interrompu",$D76)), 0),"Non requis") -> 107882 | N76: =IF(INTRO!$E$41="Endémique", IF($J76>1, IF($J76=4, "Inconnu", IF($J76=99, "Surveillance", E76)), 0),"Non requis") -> 0 | O76: =IF(INTRO!$E$41="Endémique", IF($J76>1, IF($J76=4, "Inconnu", IF($J76=99, "Surveillance", F76)), 0),"Non requis") -> 0 | P76: =IF(INTRO!$E$41="Endémique", IF($J76>1, IF($J76=4, "Inconnu", IF($J76=99, "Surveillance", ROUND(D76*INTRO!$E$51,0))), 0),"Non requis") -> 0 | Q76: =IF(INTRO!$E$41="Endémique", IF($J76>1, IF($J76=4, "Inconnu", IF($J76=99, "Surveillance", SUM($N76:$P76))), 0),"Non requis") -> 0 | R76: =IF(INTRO!$E$43="Endémique", IF($K76>1, IF($K76=4, "Inconnu", IF($K76=99, "Surveillance", ROUND(E76*0.75,0))), 0),"Non requis") -> 10268 | S76: 23966 | T76: =IF(INTRO!$E$43="Endémique", IF($K76>1, IF($K76=4, "Inconnu", IF($K76=99, "Surveillance", G76)), 0),"Non requis") -> 62960 | U76: =IF(INTRO!$E$43="Endémique", IF($K76>1, IF($K76=4, "Inconnu", IF($K76=99, "Surveillance", SUM($R76:$T76))), 0),"Non requis") -> 97194 | V76: 0 | W76: 1 | X76: 0 | Y76: 1 | AA76: TAS | AH76: 15395 | AI76: M'BAHIAKRO
A77: =IF(INTRO!$E$33<>0,INTRO!$E$33, " ") -> Côte d'Ivoire | B77: IFFOU | C77: PRIKRO | D77: 98443 | E77: =IF(INTRO!$E$48="","",ROUND($D77*INTRO!$E$48,0)) -> 12492 | F77: =IF(INTRO!$E$49="","",ROUND($D77*INTRO!$E$49,0)) -> 25044 | G77: =IF(INTRO!$E$50="","",ROUND($D77*INTRO!$E$50,0)) -> 57451 | H77: 19 | I77: 1 | J77: 2 | K77: 2 | L77: =IF(INTRO!$E$37="Endémique",IF($H77>0,IF($H77=4,"Inconnu",IF($H77=99,"Interrompu",$D77)),0),"Non requis") -> 98443 | M77: =IF(INTRO!$E$39="Endémique", IF($I77>0, IF($I77=4,"Inconnu",IF($I77=99,"Interrompu",$D77)), 0),"Non requis") -> 98443 | N77: =IF(INTRO!$E$41="Endémique", IF($J77>1, IF($J77=4, "Inconnu", IF($J77=99, "Surveillance", E77)), 0),"Non requis") -> 12492 | O77: =IF(INTRO!$E$41="Endémique", IF($J77>1, IF($J77=4, "Inconnu", IF($J77=99, "Surveillance", F77)), 0),"Non requis") -> 25044 | P77: =IF(INTRO!$E$41="Endémique", IF($J77>1, IF($J77=4, "Inconnu", IF($J77=99, "Surveillance", ROUND(D77*INTRO!$E$51,0))), 0),"Non requis") -> 23754 | Q77: =IF(INTRO!$E$41="Endémique", IF($J77>1, IF($J77=4, "Inconnu", IF($J77=99, "Surveillance", SUM($N77:$P77))), 0),"Non requis") -> 61290 | R77: =IF(INTRO!$E$43="Endémique", IF($K77>1, IF($K77=4, "Inconnu", IF($K77=99, "Surveillance", ROUND(E77*0.75,0))), 0),"Non requis") -> 9369 | S77: 15310 | T77: =IF(INTRO!$E$43="Endémique", IF($K77>1, IF($K77=4, "Inconnu", IF($K77=99, "Surveillance", G77)), 0),"Non requis") -> 57451 | U77: =IF(INTRO!$E$43="Endémique", IF($K77>1, IF($K77=4, "Inconnu", IF($K77=99, "Surveillance", SUM($R77:$T77))), 0),"Non requis") -> 82130 | V77: 0 | W77: 1 | X77: 1 | Y77: 1 | AH77: 15396 | AI77: PRIKRO
A78: =IF(INTRO!$E$33<>0,INTRO!$E$33, " ") -> Côte d'Ivoire | B78: INDENIE-DJUABLIN | C78: ABENGOUROU | D78: 421562 | E78: =IF(INTRO!$E$48="","",ROUND($D78*INTRO!$E$48,0)) -> 53496 | F78: =IF(INTRO!$E$49="","",ROUND($D78*INTRO!$E$49,0)) -> 107245 | G78: =IF(INTRO!$E$50="","",ROUND($D78*INTRO!$E$50,0)) -> 246024 | H78: 99 | I78: 1 | J78: 1 | K78: 2 | L78: =IF(INTRO!$E$37="Endémique",IF($H78>0,IF($H78=4,"Inconnu",IF($H78=99,"Interrompu",$D78)),0),"Non requis") -> Interrompu | M78: =IF(INTRO!$E$39="Endémique", IF($I78>0, IF($I78=4,"Inconnu",IF($I78=99,"Interrompu",$D78)), 0),"Non requis") -> 421562 | N78: =IF(INTRO!$E$41="Endémique", IF($J78>1, IF($J78=4, "Inconnu", IF($J78=99, "Surveillance", E78)), 0),"Non requis") -> 0 | O78: =IF(INTRO!$E$41="Endémique", IF($J78>1, IF($J78=4, "Inconnu", IF($J78=99, "Surveillance", F78)), 0),"Non requis") -> 0 | P78: =IF(INTRO!$E$41="Endémique", IF($J78>1, IF($J78=4, "Inconnu", IF($J78=99, "Surveillance", ROUND(D78*INTRO!$E$51,0))), 0),"Non requis") -> 0 | Q78: =IF(INTRO!$E$41="Endémique", IF($J78>1, IF($J78=4, "Inconnu", IF($J78=99, "Surveillance", SUM($N78:$P78))), 0),"Non requis") -> 0 | R78: =IF(INTRO!$E$43="Endémique", IF($K78>1, IF($K78=4, "Inconnu", IF($K78=99, "Surveillance", ROUND(E78*0.75,0))), 0),"Non requis") -> 40122 | S78: 88728 | T78: =IF(INTRO!$E$43="Endémique", IF($K78>1, IF($K78=4, "Inconnu", IF($K78=99, "Surveillance", G78)), 0),"Non requis") -> 246024 | U78: =IF(INTRO!$E$43="Endémique", IF($K78>1, IF($K78=4, "Inconnu", IF($K78=99, "Surveillance", SUM($R78:$T78))), 0),"Non requis") -> 374874 | V78: 0 | W78: 1 | X78: 0 | Y78: 1 | AH78: 15379 | AI78: ABENGOUROU
A79: =IF(INTRO!$E$33<>0,INTRO!$E$33, " ") -> Côte d'Ivoire | B79: INDENIE-DJUABLIN | C79: AGNIBILEKRO | D79: 210924 | E79: =IF(INTRO!$E$48="","",ROUND($D79*INTRO!$E$48,0)) -> 26766 | F79: =IF(INTRO!$E$49="","",ROUND($D79*INTRO!$E$49,0)) -> 53659 | G79: =IF(INTRO!$E$50="","",ROUND($D79*INTRO!$E$50,0)) -> 123095 | H79: 99 | I79: 1 | J79: 1 | K79: 1 | L79: =IF(INTRO!$E$37="Endémique",IF($H79>0,IF($H79=4,"Inconnu",IF($H79=99,"Interrompu",$D79)),0),"Non requis") -> Interrompu | M79: =IF(INTRO!$E$39="Endémique", IF($I79>0, IF($I79=4,"Inconnu",IF($I79=99,"Interrompu",$D79)), 0),"Non requis") -> 210924 | N79: =IF(INTRO!$E$41="Endémique", IF($J79>1, IF($J79=4, "Inconnu", IF($J79=99, "Surveillance", E79)), 0),"Non requis") -> 0 | O79: =IF(INTRO!$E$41="Endémique", IF($J79>1, IF($J79=4, "Inconnu", IF($J79=99, "Surveillance", F79)), 0),"Non requis") -> 0 | P79: =IF(INTRO!$E$41="Endémique", IF($J79>1, IF($J79=4, "Inconnu", IF($J79=99, "Surveillance", ROUND(D79*INTRO!$E$51,0))), 0),"Non requis") -> 0 | Q79: =IF(INTRO!$E$41="Endémique", IF($J79>1, IF($J79=4, "Inconnu", IF($J79=99, "Surveillance", SUM($N79:$P79))), 0),"Non requis") -> 0 | R79: =IF(INTRO!$E$43="Endémique", IF($K79>1, IF($K79=4, "Inconnu", IF($K79=99, "Surveillance", ROUND(E79*0.75,0))), 0),"Non requis") -> 0 | S79: 43118 | T79: =IF(INTRO!$E$43="Endémique", IF($K79>1, IF($K79=4, "Inconnu", IF($K79=99, "Surveillance", G79)), 0),"Non requis") -> 0 | U79: =IF(INTRO!$E$43="Endémique", IF($K79>1, IF($K79=4, "Inconnu", IF($K79=99, "Surveillance", SUM($R79:$T79))), 0),"Non requis") -> 0 | V79: 0 | W79: 1 | X79: 0 | Y79: 1 | AH79: 15380 | AI79: AGNIBILEKRO
A80: =IF(INTRO!$E$33<>0,INTRO!$E$33, " ") -> Côte d'Ivoire | B80: INDENIE-DJUABLIN | C80: BETTIE | D80: 70349 | E80: =IF(INTRO!$E$48="","",ROUND($D80*INTRO!$E$48,0)) -> 8927 | F80: =IF(INTRO!$E$49="","",ROUND($D80*INTRO!$E$49,0)) -> 17897 | G80: =IF(INTRO!$E$50="","",ROUND($D80*INTRO!$E$50,0)) -> 41056 | H80: 19 | I80: 1 | J80: 1 | K80: 2 | L80: =IF(INTRO!$E$37="Endémique",IF($H80>0,IF($H80=4,"Inconnu",IF($H80=99,"Interrompu",$D80)),0),"Non requis") -> 70349 | M80: =IF(INTRO!$E$39="Endémique", IF($I80>0, IF($I80=4,"Inconnu",IF($I80=99,"Interrompu",$D80)), 0),"Non requis") -> 70349 | N80: =IF(INTRO!$E$41="Endémique", IF($J80>1, IF($J80=4, "Inconnu", IF($J80=99, "Surveillance", E80)), 0),"Non requis") -> 0 | O80: =IF(INTRO!$E$41="Endémique", IF($J80>1, IF($J80=4, "Inconnu", IF($J80=99, "Surveillance", F80)), 0),"Non requis") -> 0 | P80: =IF(INTRO!$E$41="Endémique", IF($J80>1, IF($J80=4, "Inconnu", IF($J80=99, "Surveillance", ROUND(D80*INTRO!$E$51,0))), 0),"Non requis") -> 0 | Q80: =IF(INTRO!$E$41="Endémique", IF($J80>1, IF($J80=4, "Inconnu", IF($J80=99, "Surveillance", SUM($N80:$P80))), 0),"Non requis") -> 0 | R80: =IF(INTRO!$E$43="Endémique", IF($K80>1, IF($K80=4, "Inconnu", IF($K80=99, "Surveillance", ROUND(E80*0.75,0))), 0),"Non requis") -> 6695 | S80: 11380 | T80: =IF(INTRO!$E$43="Endémique", IF($K80>1, IF($K80=4, "Inconnu", IF($K80=99, "Surveillance", G80)), 0),"Non requis") -> 41056 | U80: =IF(INTRO!$E$43="Endémique", IF($K80>1, IF($K80=4, "Inconnu", IF($K80=99, "Surveillance", SUM($R80:$T80))), 0),"Non requis") -> 59131 | V80: 0 | W80: 1 | X80: 0 | Y80: 1 | AH80: 15381 | AI80: BETTIE
A81: =IF(INTRO!$E$33<>0,INTRO!$E$33, " ") -> Côte d'Ivoire | B81: KABADOUGOU | C81: MADINANI | D81: 79417 | E81: =IF(INTRO!$E$48="","",ROUND($D81*INTRO!$E$48,0)) -> 10078 | F81: =IF(INTRO!$E$49="","",ROUND($D81*INTRO!$E$49,0)) -> 20204 | G81: =IF(INTRO!$E$50="","",ROUND($D81*INTRO!$E$50,0)) -> 46348 | H81: 99 | I81: 1 | J81: 1 | K81: 2 | L81: =IF(INTRO!$E$37="Endémique",IF($H81>0,IF($H81=4,"Inconnu",IF($H81=99,"Interrompu",$D81)),0),"Non requis") -> Interrompu | M81: =IF(INTRO!$E$39="Endémique", IF($I81>0, IF($I81=4,"Inconnu",IF($I81=99,"Interrompu",$D81)), 0),"Non requis") -> 79417 | N81: =IF(INTRO!$E$41="Endémique", IF($J81>1, IF($J81=4, "Inconnu", IF($J81=99, "Surveillance", E81)), 0),"Non requis") -> 0 | O81: =IF(INTRO!$E$41="Endémique", IF($J81>1, IF($J81=4, "Inconnu", IF($J81=99, "Surveillance", F81)), 0),"Non requis") -> 0 | P81: =IF(INTRO!$E$41="Endémique", IF($J81>1, IF($J81=4, "Inconnu", IF($J81=99, "Surveillance", ROUND(D81*INTRO!$E$51,0))), 0),"Non requis") -> 0 | Q81: =IF(INTRO!$E$41="Endémique", IF($J81>1, IF($J81=4, "Inconnu", IF($J81=99, "Surveillance", SUM($N81:$P81))), 0),"Non requis") -> 0 | R81: =IF(INTRO!$E$43="Endémique", IF($K81>1, IF($K81=4, "Inconnu", IF($K81=99, "Surveillance", ROUND(E81*0.75,0))), 0),"Non requis") -> 7559 | S81: 0 | T81: =IF(INTRO!$E$43="Endémique", IF($K81>1, IF($K81=4, "Inconnu", IF($K81=99, "Surveillance", G81)), 0),"Non requis") -> 46348 | U81: =IF(INTRO!$E$43="Endémique", IF($K81>1, IF($K81=4, "Inconnu", IF($K81=99, "Surveillance", SUM($R81:$T81))), 0),"Non requis") -> 53907 | V81: 0 | W81: 1 | X81: 0 | Y81: 0 | AH81: 15440 | AI81: MADINANI
A82: =IF(INTRO!$E$33<>0,INTRO!$E$33, " ") -> Côte d'Ivoire | B82: KABADOUGOU | C82: ODIENNE | D82: 153222 | E82: =IF(INTRO!$E$48="","",ROUND($D82*INTRO!$E$48,0)) -> 19444 | F82: =IF(INTRO!$E$49="","",ROUND($D82*INTRO!$E$49,0)) -> 38980 | G82: =IF(INTRO!$E$50="","",ROUND($D82*INTRO!$E$50,0)) -> 89420 | H82: 99 | I82: 1 | J82: 1 | K82: 2 | L82: =IF(INTRO!$E$37="Endémique",IF($H82>0,IF($H82=4,"Inconnu",IF($H82=99,"Interrompu",$D82)),0),"Non requis") -> Interrompu | M82: =IF(INTRO!$E$39="Endémique", IF($I82>0, IF($I82=4,"Inconnu",IF($I82=99,"Interrompu",$D82)), 0),"Non requis") -> 153222 | N82: =IF(INTRO!$E$41="Endémique", IF($J82>1, IF($J82=4, "Inconnu", IF($J82=99, "Surveillance", E82)), 0),"Non requis") -> 0 | O82: =IF(INTRO!$E$41="Endémique", IF($J82>1, IF($J82=4, "Inconnu", IF($J82=99, "Surveillance", F82)), 0),"Non requis") -> 0 | P82: =IF(INTRO!$E$41="Endémique", IF($J82>1, IF($J82=4, "Inconnu", IF($J82=99, "Surveillance", ROUND(D82*INTRO!$E$51,0))), 0),"Non requis") -> 0 | Q82: =IF(INTRO!$E$41="Endémique", IF($J82>1, IF($J82=4, "Inconnu", IF($J82=99, "Surveillance", SUM($N82:$P82))), 0),"Non requis") -> 0 | R82: =IF(INTRO!$E$43="Endémique", IF($K82>1, IF($K82=4, "Inconnu", IF($K82=99, "Surveillance", ROUND(E82*0.75,0))), 0),"Non requis") -> 14583 | S82: 36020 | T82: =IF(INTRO!$E$43="Endémique", IF($K82>1, IF($K82=4, "Inconnu", IF($K82=99, "Surveillance", G82)), 0),"Non requis") -> 89420 | U82: =IF(INTRO!$E$43="Endémique", IF($K82>1, IF($K82=4, "Inconnu", IF($K82=99, "Surveillance", SUM($R82:$T82))), 0),"Non requis") -> 140023 | V82: 0 | W82: 1 | X82: 0 | Y82: 1 | AH82: 15439 | AI82: ODIENNE
A83: =IF(INTRO!$E$33<>0,INTRO!$E$33, " ") -> Côte d'Ivoire | B83: LOH-DJIBOUA | C83: DIVO | D83: 470909 | E83: =IF(INTRO!$E$48="","",ROUND($D83*INTRO!$E$48,0)) -> 59758 | F83: =IF(INTRO!$E$49="","",ROUND($D83*INTRO!$E$49,0)) -> 119799 | G83: =IF(INTRO!$E$50="","",ROUND($D83*INTRO!$E$50,0)) -> 274822 | H83: 19 | I83: 1 | J83: 1 | K83: 3 | L83: =IF(INTRO!$E$37="Endémique",IF($H83>0,IF($H83=4,"Inconnu",IF($H83=99,"Interrompu",$D83)),0),"Non requis") -> 470909 | M83: =IF(INTRO!$E$39="Endémique", IF($I83>0, IF($I83=4,"Inconnu",IF($I83=99,"Interrompu",$D83)), 0),"Non requis") -> 470909 | N83: =IF(INTRO!$E$41="Endémique", IF($J83>1, IF($J83=4, "Inconnu", IF($J83=99, "Surveillance", E83)), 0),"Non requis") -> 0 | O83: =IF(INTRO!$E$41="Endémique", IF($J83>1, IF($J83=4, "Inconnu", IF($J83=99, "Surveillance", F83)), 0),"Non requis") -> 0 | P83: =IF(INTRO!$E$41="Endémique", IF($J83>1, IF($J83=4, "Inconnu", IF($J83=99, "Surveillance", ROUND(D83*INTRO!$E$51,0))), 0),"Non requis") -> 0 | Q83: =IF(INTRO!$E$41="Endémique", IF($J83>1, IF($J83=4, "Inconnu", IF($J83=99, "Surveillance", SUM($N83:$P83))), 0),"Non requis") -> 0 | R83: =IF(INTRO!$E$43="Endémique", IF($K83>1, IF($K83=4, "Inconnu", IF($K83=99, "Surveillance", ROUND(E83*0.75,0))), 0),"Non requis") -> 44819 | S83: 6859 | T83: =IF(INTRO!$E$43="Endémique", IF($K83>1, IF($K83=4, "Inconnu", IF($K83=99, "Surveillance", G83)), 0),"Non requis") -> 274822 | U83: =IF(INTRO!$E$43="Endémique", IF($K83>1, IF($K83=4, "Inconnu", IF($K83=99, "Surveillance", SUM($R83:$T83))), 0),"Non requis") -> 326500 | V83: 0 | W83: 1 | X83: 0 | Y83: 1 | AH83: 15385 | AI83: DIVO
A84: =IF(INTRO!$E$33<>0,INTRO!$E$33, " ") -> Côte d'Ivoire | B84: LOH-DJIBOUA | C84: GUITRY | D84: 181751 | E84: =IF(INTRO!$E$48="","",ROUND($D84*INTRO!$E$48,0)) -> 23064 | F84: =IF(INTRO!$E$49="","",ROUND($D84*INTRO!$E$49,0)) -> 46237 | G84: =IF(INTRO!$E$50="","",ROUND($D84*INTRO!$E$50,0)) -> 106070 | H84: 19 | I84: 1 | J84: 1 | K84: 2 | L84: =IF(INTRO!$E$37="Endémique",IF($H84>0,IF($H84=4,"Inconnu",IF($H84=99,"Interrompu",$D84)),0),"Non requis") -> 181751 | M84: =IF(INTRO!$E$39="Endémique", IF($I84>0, IF($I84=4,"Inconnu",IF($I84=99,"Interrompu",$D84)), 0),"Non requis") -> 181751 | N84: =IF(INTRO!$E$41="Endémique", IF($J84>1, IF($J84=4, "Inconnu", IF($J84=99, "Surveillance", E84)), 0),"Non requis") -> 0 | O84: =IF(INTRO!$E$41="Endémique", IF($J84>1, IF($J84=4, "Inconnu", IF($J84=99, "Surveillance", F84)), 0),"Non requis") -> 0 | P84: =IF(INTRO!$E$41="Endémique", IF($J84>1, IF($J84=4, "Inconnu", IF($J84=99, "Surveillance", ROUND(D84*INTRO!$E$51,0))), 0),"Non requis") -> 0 | Q84: =IF(INTRO!$E$41="Endémique", IF($J84>1, IF($J84=4, "Inconnu", IF($J84=99, "Surveillance", SUM($N84:$P84))), 0),"Non requis") -> 0 | R84: =IF(INTRO!$E$43="Endémique", IF($K84>1, IF($K84=4, "Inconnu", IF($K84=99, "Surveillance", ROUND(E84*0.75,0))), 0),"Non requis") -> 17298 | S84: 0 | T84: =IF(INTRO!$E$43="Endémique", IF($K84>1, IF($K84=4, "Inconnu", IF($K84=99, "Surveillance", G84)), 0),"Non requis") -> 106070 | U84: =IF(INTRO!$E$43="Endémique", IF($K84>1, IF($K84=4, "Inconnu", IF($K84=99, "Surveillance", SUM($R84:$T84))), 0),"Non requis") -> 123368 | V84: 0 | W84: 1 | X84: 0 | Y84: 0 | AH84: 15411 | AI84: GUITRY
A85: =IF(INTRO!$E$33<>0,INTRO!$E$33, " ") -> Côte d'Ivoire | B85: LOH-DJIBOUA | C85: LAKOTA | D85: 250429 | E85: =IF(INTRO!$E$48="","",ROUND($D85*INTRO!$E$48,0)) -> 31779 | F85: =IF(INTRO!$E$49="","",ROUND($D85*INTRO!$E$49,0)) -> 63709 | G85: =IF(INTRO!$E$50="","",ROUND($D85*INTRO!$E$50,0)) -> 146150 | H85: 19 | I85: 1 | J85: 1 | K85: 3 | L85: =IF(INTRO!$E$37="Endémique",IF($H85>0,IF($H85=4,"Inconnu",IF($H85=99,"Interrompu",$D85)),0),"Non requis") -> 250429 | M85: =IF(INTRO!$E$39="Endémique", IF($I85>0, IF($I85=4,"Inconnu",IF($I85=99,"Interrompu",$D85)), 0),"Non requis") -> 250429 | N85: =IF(INTRO!$E$41="Endémique", IF($J85>1, IF($J85=4, "Inconnu", IF($J85=99, "Surveillance", E85)), 0),"Non requis") -> 0 | O85: =IF(INTRO!$E$41="Endémique", IF($J85>1, IF($J85=4, "Inconnu", IF($J85=99, "Surveillance", F85)), 0),"Non requis") -> 0 | P85: =IF(INTRO!$E$41="Endémique", IF($J85>1, IF($J85=4, "Inconnu", IF($J85=99, "Surveillance", ROUND(D85*INTRO!$E$51,0))), 0),"Non requis") -> 0 | Q85: =IF(INTRO!$E$41="Endémique", IF($J85>1, IF($J85=4, "Inconnu", IF($J85=99, "Surveillance", SUM($N85:$P85))), 0),"Non requis") -> 0 | R85: =IF(INTRO!$E$43="Endémique", IF($K85>1, IF($K85=4, "Inconnu", IF($K85=99, "Surveillance", ROUND(E85*0.75,0))), 0),"Non requis") -> 23834 | S85: 4796 | T85: =IF(INTRO!$E$43="Endémique", IF($K85>1, IF($K85=4, "Inconnu", IF($K85=99, "Surveillance", G85)), 0),"Non requis") -> 146150 | U85: =IF(INTRO!$E$43="Endémique", IF($K85>1, IF($K85=4, "Inconnu", IF($K85=99, "Surveillance", SUM($R85:$T85))), 0),"Non requis") -> 174780 | V85: 0 | W85: 1 | X85: 0 | Y85: 1 | AH85: 15387 | AI85: LAKOTA
A86: =IF(INTRO!$E$33<>0,INTRO!$E$33, " ") -> Côte d'Ivoire | B86: MARAHOUE | C86: BOUAFLE | D86: 512756 | E86: =IF(INTRO!$E$48="","",ROUND($D86*INTRO!$E$48,0)) -> 65069 | F86: =IF(INTRO!$E$49="","",ROUND($D86*INTRO!$E$49,0)) -> 130445 | G86: =IF(INTRO!$E$50="","",ROUND($D86*INTRO!$E$50,0)) -> 299244 | H86: 99 | I86: 1 | J86: 1 | K86: 2 | L86: =IF(INTRO!$E$37="Endémique",IF($H86>0,IF($H86=4,"Inconnu",IF($H86=99,"Interrompu",$D86)),0),"Non requis") -> Interrompu | M86: =IF(INTRO!$E$39="Endémique", IF($I86>0, IF($I86=4,"Inconnu",IF($I86=99,"Interrompu",$D86)), 0),"Non requis") -> 512756 | N86: =IF(INTRO!$E$41="Endémique", IF($J86>1, IF($J86=4, "Inconnu", IF($J86=99, "Surveillance", E86)), 0),"Non requis") -> 0 | O86: =IF(INTRO!$E$41="Endémique", IF($J86>1, IF($J86=4, "Inconnu", IF($J86=99, "Surveillance", F86)), 0),"Non requis") -> 0 | P86: =IF(INTRO!$E$41="Endémique", IF($J86>1, IF($J86=4, "Inconnu", IF($J86=99, "Surveillance", ROUND(D86*INTRO!$E$51,0))), 0),"Non requis") -> 0 | Q86: =IF(INTRO!$E$41="Endémique", IF($J86>1, IF($J86=4, "Inconnu", IF($J86=99, "Surveillance", SUM($N86:$P86))), 0),"Non requis") -> 0 | R86: =IF(INTRO!$E$43="Endémique", IF($K86>1, IF($K86=4, "Inconnu", IF($K86=99, "Surveillance", ROUND(E86*0.75,0))), 0),"Non requis") -> 48802 | S86: 0 | T86: =IF(INTRO!$E$43="Endémique", IF($K86>1, IF($K86=4, "Inconnu", IF($K86=99, "Surveillance", G86)), 0),"Non requis") -> 299244 | U86: =IF(INTRO!$E$43="Endémique", IF($K86>1, IF($K86=4, "Inconnu", IF($K86=99, "Surveillance", SUM($R86:$T86))), 0),"Non requis") -> 348046 | V86: 0 | W86: 1 | X86: 0 | Y86: 0 | AH86: 15388 | AI86: BOUAFLE
A87: =IF(INTRO!$E$33<>0,INTRO!$E$33, " ") -> Côte d'Ivoire | B87: MARAHOUE | C87: SINFRA | D87: 297896 | E87: =IF(INTRO!$E$48="","",ROUND($D87*INTRO!$E$48,0)) -> 37803 | F87: =IF(INTRO!$E$49="","",ROUND($D87*INTRO!$E$49,0)) -> 75785 | G87: =IF(INTRO!$E$50="","",ROUND($D87*INTRO!$E$50,0)) -> 173852 | H87: 19 | I87: 0 | J87: 2 | K87: 2 | L87: =IF(INTRO!$E$37="Endémique",IF($H87>0,IF($H87=4,"Inconnu",IF($H87=99,"Interrompu",$D87)),0),"Non requis") -> 297896 | M87: =IF(INTRO!$E$39="Endémique", IF($I87>0, IF($I87=4,"Inconnu",IF($I87=99,"Interrompu",$D87)), 0),"Non requis") -> 0 | N87: =IF(INTRO!$E$41="Endémique", IF($J87>1, IF($J87=4, "Inconnu", IF($J87=99, "Surveillance", E87)), 0),"Non requis") -> 37803 | O87: =IF(INTRO!$E$41="Endémique", IF($J87>1, IF($J87=4, "Inconnu", IF($J87=99, "Surveillance", F87)), 0),"Non requis") -> 75785 | P87: =IF(INTRO!$E$41="Endémique", IF($J87>1, IF($J87=4, "Inconnu", IF($J87=99, "Surveillance", ROUND(D87*INTRO!$E$51,0))), 0),"Non requis") -> 71882 | Q87: =IF(INTRO!$E$41="Endémique", IF($J87>1, IF($J87=4, "Inconnu", IF($J87=99, "Surveillance", SUM($N87:$P87))), 0),"Non requis") -> 185470 | R87: =IF(INTRO!$E$43="Endémique", IF($K87>1, IF($K87=4, "Inconnu", IF($K87=99, "Surveillance", ROUND(E87*0.75,0))), 0),"Non requis") -> 28352 | S87: 0 | T87: =IF(INTRO!$E$43="Endémique", IF($K87>1, IF($K87=4, "Inconnu", IF($K87=99, "Surveillance", G87)), 0),"Non requis") -> 173852 | U87: =IF(INTRO!$E$43="Endémique", IF($K87>1, IF($K87=4, "Inconnu", IF($K87=99, "Surveillance", SUM($R87:$T87))), 0),"Non requis") -> 202204 | V87: 0 | W87: 0 | X87: 1 | Y87: 0 | AH87: 15389 | AI87: SINFRA
A88: =IF(INTRO!$E$33<>0,INTRO!$E$33, " ") -> Côte d'Ivoire | B88: MARAHOUE | C88: ZUENOULA | D88: 268647 | E88: =IF(INTRO!$E$48="","",ROUND($D88*INTRO!$E$48,0)) -> 34091 | F88: =IF(INTRO!$E$49="","",ROUND($D88*INTRO!$E$49,0)) -> 68344 | G88: =IF(INTRO!$E$50="","",ROUND($D88*INTRO!$E$50,0)) -> 156782 | H88: 19 | I88: 1 | J88: 1 | K88: 2 | L88: =IF(INTRO!$E$37="Endémique",IF($H88>0,IF($H88=4,"Inconnu",IF($H88=99,"Interrompu",$D88)),0),"Non requis") -> 268647 | M88: =IF(INTRO!$E$39="Endémique", IF($I88>0, IF($I88=4,"Inconnu",IF($I88=99,"Interrompu",$D88)), 0),"Non requis") -> 268647 | N88: =IF(INTRO!$E$41="Endémique", IF($J88>1, IF($J88=4, "Inconnu", IF($J88=99, "Surveillance", E88)), 0),"Non requis") -> 0 | O88: =IF(INTRO!$E$41="Endémique", IF($J88>1, IF($J88=4, "Inconnu", IF($J88=99, "Surveillance", F88)), 0),"Non requis") -> 0 | P88: =IF(INTRO!$E$41="Endémique", IF($J88>1, IF($J88=4, "Inconnu", IF($J88=99, "Surveillance", ROUND(D88*INTRO!$E$51,0))), 0),"Non requis") -> 0 | Q88: =IF(INTRO!$E$41="Endémique", IF($J88>1, IF($J88=4, "Inconnu", IF($J88=99, "Surveillance", SUM($N88:$P88))), 0),"Non requis") -> 0 | R88: =IF(INTRO!$E$43="Endémique", IF($K88>1, IF($K88=4, "Inconnu", IF($K88=99, "Surveillance", ROUND(E88*0.75,0))), 0),"Non requis") -> 25568 | S88: 0 | T88: =IF(INTRO!$E$43="Endémique", IF($K88>1, IF($K88=4, "Inconnu", IF($K88=99, "Surveillance", G88)), 0),"Non requis") -> 156782 | U88: =IF(INTRO!$E$43="Endémique", IF($K88>1, IF($K88=4, "Inconnu", IF($K88=99, "Surveillance", SUM($R88:$T88))), 0),"Non requis") -> 182350 | V88: 0 | W88: 1 | X88: 0 | Y88: 0 | AH88: 15390 | AI88: ZUENOULA
A89: =IF(INTRO!$E$33<>0,INTRO!$E$33, " ") -> Côte d'Ivoire | B89: ME | C89: ADZOPE | D89: 228671 | E89: =IF(INTRO!$E$48="","",ROUND($D89*INTRO!$E$48,0)) -> 29018 | F89: =IF(INTRO!$E$49="","",ROUND($D89*INTRO!$E$49,0)) -> 58174 | G89: =IF(INTRO!$E$50="","",ROUND($D89*INTRO!$E$50,0)) -> 133452 | H89: 1 | I89: 1 | J89: 1 | K89: 2 | L89: =IF(INTRO!$E$37="Endémique",IF($H89>0,IF($H89=4,"Inconnu",IF($H89=99,"Interrompu",$D89)),0),"Non requis") -> 228671 | M89: =IF(INTRO!$E$39="Endémique", IF($I89>0, IF($I89=4,"Inconnu",IF($I89=99,"Interrompu",$D89)), 0),"Non requis") -> 228671 | N89: =IF(INTRO!$E$41="Endémique", IF($J89>1, IF($J89=4, "Inconnu", IF($J89=99, "Surveillance", E89)), 0),"Non requis") -> 0 | O89: =IF(INTRO!$E$41="Endémique", IF($J89>1, IF($J89=4, "Inconnu", IF($J89=99, "Surveillance", F89)), 0),"Non requis") -> 0 | P89: =IF(INTRO!$E$41="Endémique", IF($J89>1, IF($J89=4, "Inconnu", IF($J89=99, "Surveillance", ROUND(D89*INTRO!$E$51,0))), 0),"Non requis") -> 0 | Q89: =IF(INTRO!$E$41="Endémique", IF($J89>1, IF($J89=4, "Inconnu", IF($J89=99, "Surveillance", SUM($N89:$P89))), 0),"Non requis") -> 0 | R89: =IF(INTRO!$E$43="Endémique", IF($K89>1, IF($K89=4, "Inconnu", IF($K89=99, "Surveillance", ROUND(E89*0.75,0))), 0),"Non requis") -> 21764 | S89: 0 | T89: =IF(INTRO!$E$43="Endémique", IF($K89>1, IF($K89=4, "Inconnu", IF($K89=99, "Surveillance", G89)), 0),"Non requis") -> 133452 | U89: =IF(INTRO!$E$43="Endémique", IF($K89>1, IF($K89=4, "Inconnu", IF($K89=99, "Surveillance", SUM($R89:$T89))), 0),"Non requis") -> 155216 | V89: 1 | W89: 1 | X89: 0 | Y89: 0 | AH89: 15419 | AI89: ADZOPE
A90: =IF(INTRO!$E$33<>0,INTRO!$E$33, " ") -> Côte d'Ivoire | B90: ME | C90: AKOUPE | D90: 140649 | E90: =IF(INTRO!$E$48="","",ROUND($D90*INTRO!$E$48,0)) -> 17848 | F90: =IF(INTRO!$E$49="","",ROUND($D90*INTRO!$E$49,0)) -> 35781 | G90: =IF(INTRO!$E$50="","",ROUND($D90*INTRO!$E$50,0)) -> 82083 | H90: 1 | I90: 1 | J90: 1 | K90: 2 | L90: =IF(INTRO!$E$37="Endémique",IF($H90>0,IF($H90=4,"Inconnu",IF($H90=99,"Interrompu",$D90)),0),"Non requis") -> 140649 | M90: =IF(INTRO!$E$39="Endémique", IF($I90>0, IF($I90=4,"Inconnu",IF($I90=99,"Interrompu",$D90)), 0),"Non requis") -> 140649 | N90: =IF(INTRO!$E$41="Endémique", IF($J90>1, IF($J90=4, "Inconnu", IF($J90=99, "Surveillance", E90)), 0),"Non requis") -> 0 | O90: =IF(INTRO!$E$41="Endémique", IF($J90>1, IF($J90=4, "Inconnu", IF($J90=99, "Surveillance", F90)), 0),"Non requis") -> 0 | P90: =IF(INTRO!$E$41="Endémique", IF($J90>1, IF($J90=4, "Inconnu", IF($J90=99, "Surveillance", ROUND(D90*INTRO!$E$51,0))), 0),"Non requis") -> 0 | Q90: =IF(INTRO!$E$41="Endémique", IF($J90>1, IF($J90=4, "Inconnu", IF($J90=99, "Surveillance", SUM($N90:$P90))), 0),"Non requis") -> 0 | R90: =IF(INTRO!$E$43="Endémique", IF($K90>1, IF($K90=4, "Inconnu", IF($K90=99, "Surveillance", ROUND(E90*0.75,0))), 0),"Non requis") -> 13386 | S90: 0 | T90: =IF(INTRO!$E$43="Endémique", IF($K90>1, IF($K90=4, "Inconnu", IF($K90=99, "Surveillance", G90)), 0),"Non requis") -> 82083 | U90: =IF(INTRO!$E$43="Endémique", IF($K90>1, IF($K90=4, "Inconnu", IF($K90=99, "Surveillance", SUM($R90:$T90))), 0),"Non requis") -> 95469 | V90: 1 | W90: 1 | X90: 0 | Y90: 0 | AH90: 15343 | AI90: AKOUPE
A91: =IF(INTRO!$E$33<>0,INTRO!$E$33, " ") -> Côte d'Ivoire | B91: ME | C91: ALEPE | D91: 148743 | E91: =IF(INTRO!$E$48="","",ROUND($D91*INTRO!$E$48,0)) -> 18875 | F91: =IF(INTRO!$E$49="","",ROUND($D91*INTRO!$E$49,0)) -> 37840 | G91: =IF(INTRO!$E$50="","",ROUND($D91*INTRO!$E$50,0)) -> 86806 | H91: 1 | I91: 1 | J91: 1 | K91: 1 | L91: =IF(INTRO!$E$37="Endémique",IF($H91>0,IF($H91=4,"Inconnu",IF($H91=99,"Interrompu",$D91)),0),"Non requis") -> 148743 | M91: =IF(INTRO!$E$39="Endémique", IF($I91>0, IF($I91=4,"Inconnu",IF($I91=99,"Interrompu",$D91)), 0),"Non requis") -> 148743 | N91: =IF(INTRO!$E$41="Endémique", IF($J91>1, IF($J91=4, "Inconnu", IF($J91=99, "Surveillance", E91)), 0),"Non requis") -> 0 | O91: =IF(INTRO!$E$41="Endémique", IF($J91>1, IF($J91=4, "Inconnu", IF($J91=99, "Surveillance", F91)), 0),"Non requis") -> 0 | P91: =IF(INTRO!$E$41="Endémique", IF($J91>1, IF($J91=4, "Inconnu", IF($J91=99, "Surveillance", ROUND(D91*INTRO!$E$51,0))), 0),"Non requis") -> 0 | Q91: =IF(INTRO!$E$41="Endémique", IF($J91>1, IF($J91=4, "Inconnu", IF($J91=99, "Surveillance", SUM($N91:$P91))), 0),"Non requis") -> 0 | R91: =IF(INTRO!$E$43="Endémique", IF($K91>1, IF($K91=4, "Inconnu", IF($K91=99, "Surveillance", ROUND(E91*0.75,0))), 0),"Non requis") -> 0 | S91: 0 | T91: =IF(INTRO!$E$43="Endémique", IF($K91>1, IF($K91=4, "Inconnu", IF($K91=99, "Surveillance", G91)), 0),"Non requis") -> 0 | U91: =IF(INTRO!$E$43="Endémique", IF($K91>1, IF($K91=4, "Inconnu", IF($K91=99, "Surveillance", SUM($R91:$T91))), 0),"Non requis") -> 0 | V91: 1 | W91: 1 | X91: 0 | Y91: 0 | AH91: 15344 | AI91: ALEPE
A92: =IF(INTRO!$E$33<>0,INTRO!$E$33, " ") -> Côte d'Ivoire | B92: ME | C92: YAKASSE ATTOBROU | D92: 90133 | E92: =IF(INTRO!$E$48="","",ROUND($D92*INTRO!$E$48,0)) -> 11438 | F92: =IF(INTRO!$E$49="","",ROUND($D92*INTRO!$E$49,0)) -> 22930 | G92: =IF(INTRO!$E$50="","",ROUND($D92*INTRO!$E$50,0)) -> 52602 | H92: 1 | I92: 1 | J92: 1 | K92: 2 | L92: =IF(INTRO!$E$37="Endémique",IF($H92>0,IF($H92=4,"Inconnu",IF($H92=99,"Interrompu",$D92)),0),"Non requis") -> 90133 | M92: =IF(INTRO!$E$39="Endémique", IF($I92>0, IF($I92=4,"Inconnu",IF($I92=99,"Interrompu",$D92)), 0),"Non requis") -> 90133 | N92: =IF(INTRO!$E$41="Endémique", IF($J92>1, IF($J92=4, "Inconnu", IF($J92=99, "Surveillance", E92)), 0),"Non requis") -> 0 | O92: =IF(INTRO!$E$41="Endémique", IF($J92>1, IF($J92=4, "Inconnu", IF($J92=99, "Surveillance", F92)), 0),"Non requis") -> 0 | P92: =IF(INTRO!$E$41="Endémique", IF($J92>1, IF($J92=4, "Inconnu", IF($J92=99, "Surveillance", ROUND(D92*INTRO!$E$51,0))), 0),"Non requis") -> 0 | Q92: =IF(INTRO!$E$41="Endémique", IF($J92>1, IF($J92=4, "Inconnu", IF($J92=99, "Surveillance", SUM($N92:$P92))), 0),"Non requis") -> 0 | R92: =IF(INTRO!$E$43="Endémique", IF($K92>1, IF($K92=4, "Inconnu", IF($K92=99, "Surveillance", ROUND(E92*0.75,0))), 0),"Non requis") -> 8579 | S92: 0 | T92: =IF(INTRO!$E$43="Endémique", IF($K92>1, IF($K92=4, "Inconnu", IF($K92=99, "Surveillance", G92)), 0),"Non requis") -> 52602 | U92: =IF(INTRO!$E$43="Endémique", IF($K92>1, IF($K92=4, "Inconnu", IF($K92=99, "Surveillance", SUM($R92:$T92))), 0),"Non requis") -> 61181 | V92: 1 | W92: 1 | X92: 0 | Y92: 0 | AH92: 15420 | AI92: YAKASSE-ATTOBROU
A93: =IF(INTRO!$E$33<>0,INTRO!$E$33, " ") -> Côte d'Ivoire | B93: MORONOU | C93: ARRAH | D93: 105820 | E93: =IF(INTRO!$E$48="","",ROUND($D93*INTRO!$E$48,0)) -> 13429 | F93: =IF(INTRO!$E$49="","",ROUND($D93*INTRO!$E$49,0)) -> 26921 | G93: =IF(INTRO!$E$50="","",ROUND($D93*INTRO!$E$50,0)) -> 61757 | H93: 99 | I93: 1 | J93: 2 | K93: 1 | L93: =IF(INTRO!$E$37="Endémique",IF($H93>0,IF($H93=4,"Inconnu",IF($H93=99,"Interrompu",$D93)),0),"Non requis") -> Interrompu | M93: =IF(INTRO!$E$39="Endémique", IF($I93>0, IF($I93=4,"Inconnu",IF($I93=99,"Interrompu",$D93)), 0),"Non requis") -> 105820 | N93: =IF(INTRO!$E$41="Endémique", IF($J93>1, IF($J93=4, "Inconnu", IF($J93=99, "Surveillance", E93)), 0),"Non requis") -> 13429 | O93: =IF(INTRO!$E$41="Endémique", IF($J93>1, IF($J93=4, "Inconnu", IF($J93=99, "Surveillance", F93)), 0),"Non requis") -> 26921 | P93: =IF(INTRO!$E$41="Endémique", IF($J93>1, IF($J93=4, "Inconnu", IF($J93=99, "Surveillance", ROUND(D93*INTRO!$E$51,0))), 0),"Non requis") -> 25534 | Q93: =IF(INTRO!$E$41="Endémique", IF($J93>1, IF($J93=4, "Inconnu", IF($J93=99, "Surveillance", SUM($N93:$P93))), 0),"Non requis") -> 65884 | R93: =IF(INTRO!$E$43="Endémique", IF($K93>1, IF($K93=4, "Inconnu", IF($K93=99, "Surveillance", ROUND(E93*0.75,0))), 0),"Non requis") -> 0 | S93: 7980 | T93: =IF(INTRO!$E$43="Endémique", IF($K93>1, IF($K93=4, "Inconnu", IF($K93=99, "Surveillance", G93)), 0),"Non requis") -> 0 | U93: =IF(INTRO!$E$43="Endémique", IF($K93>1, IF($K93=4, "Inconnu", IF($K93=99, "Surveillance", SUM($R93:$T93))), 0),"Non requis") -> 0 | V93: 0 | W93: 1 | X93: 1 | Y93: 1 | AH93: 15447 | AI93: ARRAH
A94: =IF(INTRO!$E$33<>0,INTRO!$E$33, " ") -> Côte d'Ivoire | B94: MORONOU | C94: BONGOUANOU | D94: 217724 | E94: =IF(INTRO!$E$48="","",ROUND($D94*INTRO!$E$48,0)) -> 27629 | F94: =IF(INTRO!$E$49="","",ROUND($D94*INTRO!$E$49,0)) -> 55389 | G94: =IF(INTRO!$E$50="","",ROUND($D94*INTRO!$E$50,0)) -> 127064 | H94: 99 | I94: 1 | J94: 2 | K94: 1 | L94: =IF(INTRO!$E$37="Endémique",IF($H94>0,IF($H94=4,"Inconnu",IF($H94=99,"Interrompu",$D94)),0),"Non requis") -> Interrompu | M94: =IF(INTRO!$E$39="Endémique", IF($I94>0, IF($I94=4,"Inconnu",IF($I94=99,"Interrompu",$D94)), 0),"Non requis") -> 217724 | N94: =IF(INTRO!$E$41="Endémique", IF($J94>1, IF($J94=4, "Inconnu", IF($J94=99, "Surveillance", E94)), 0),"Non requis") -> 27629 | O94: =IF(INTRO!$E$41="Endémique", IF($J94>1, IF($J94=4, "Inconnu", IF($J94=99, "Surveillance", F94)), 0),"Non requis") -> 55389 | P94: =IF(INTRO!$E$41="Endémique", IF($J94>1, IF($J94=4, "Inconnu", IF($J94=99, "Surveillance", ROUND(D94*INTRO!$E$51,0))), 0),"Non requis") -> 52537 | Q94: =IF(INTRO!$E$41="Endémique", IF($J94>1, IF($J94=4, "Inconnu", IF($J94=99, "Surveillance", SUM($N94:$P94))), 0),"Non requis") -> 135555 | R94: =IF(INTRO!$E$43="Endémique", IF($K94>1, IF($K94=4, "Inconnu", IF($K94=99, "Surveillance", ROUND(E94*0.75,0))), 0),"Non requis") -> 0 | S94: 54890 | T94: =IF(INTRO!$E$43="Endémique", IF($K94>1, IF($K94=4, "Inconnu", IF($K94=99, "Surveillance", G94)), 0),"Non requis") -> 0 | U94: =IF(INTRO!$E$43="Endémique", IF($K94>1, IF($K94=4, "Inconnu", IF($K94=99, "Surveillance", SUM($R94:$T94))), 0),"Non requis") -> 0 | V94: 0 | W94: 1 | X94: 1 | Y94: 1 | AH94: 15446 | AI94: BONGOUANOU
A95: =IF(INTRO!$E$33<>0,INTRO!$E$33, " ") -> Côte d'Ivoire | B95: MORONOU | C95: M'BATTO | D95: 140878 | E95: =IF(INTRO!$E$48="","",ROUND($D95*INTRO!$E$48,0)) -> 17877 | F95: =IF(INTRO!$E$49="","",ROUND($D95*INTRO!$E$49,0)) -> 35839 | G95: =IF(INTRO!$E$50="","",ROUND($D95*INTRO!$E$50,0)) -> 82216 | H95: 99 | I95: 1 | J95: 2 | K95: 2 | L95: =IF(INTRO!$E$37="Endémique",IF($H95>0,IF($H95=4,"Inconnu",IF($H95=99,"Interrompu",$D95)),0),"Non requis") -> Interrompu | M95: =IF(INTRO!$E$39="Endémique", IF($I95>0, IF($I95=4,"Inconnu",IF($I95=99,"Interrompu",$D95)), 0),"Non requis") -> 140878 | N95: =IF(INTRO!$E$41="Endémique", IF($J95>1, IF($J95=4, "Inconnu", IF($J95=99, "Surveillance", E95)), 0),"Non requis") -> 17877 | O95: =IF(INTRO!$E$41="Endémique", IF($J95>1, IF($J95=4, "Inconnu", IF($J95=99, "Surveillance", F95)), 0),"Non requis") -> 35839 | P95: =IF(INTRO!$E$41="Endémique", IF($J95>1, IF($J95=4, "Inconnu", IF($J95=99, "Surveillance", ROUND(D95*INTRO!$E$51,0))), 0),"Non requis") -> 33994 | Q95: =IF(INTRO!$E$41="Endémique", IF($J95>1, IF($J95=4, "Inconnu", IF($J95=99, "Surveillance", SUM($N95:$P95))), 0),"Non requis") -> 87710 | R95: =IF(INTRO!$E$43="Endémique", IF($K95>1, IF($K95=4, "Inconnu", IF($K95=99, "Surveillance", ROUND(E95*0.75,0))), 0),"Non requis") -> 13408 | S95: 36042 | T95: =IF(INTRO!$E$43="Endémique", IF($K95>1, IF($K95=4, "Inconnu", IF($K95=99, "Surveillance", G95)), 0),"Non requis") -> 82216 | U95: =IF(INTRO!$E$43="Endémique", IF($K95>1, IF($K95=4, "Inconnu", IF($K95=99, "Surveillance", SUM($R95:$T95))), 0),"Non requis") -> 131666 | V95: 0 | W95: 1 | X95: 1 | Y95: 1 | AH95: 15448 | AI95: M'BATTO
A96: =IF(INTRO!$E$33<>0,INTRO!$E$33, " ") -> Côte d'Ivoire | B96: NAWA | C96: BUYO | D96: 212760 | E96: =IF(INTRO!$E$48="","",ROUND($D96*INTRO!$E$48,0)) -> 26999 | F96: =IF(INTRO!$E$49="","",ROUND($D96*INTRO!$E$49,0)) -> 54126 | G96: =IF(INTRO!$E$50="","",ROUND($D96*INTRO!$E$50,0)) -> 124167 | H96: 99 | I96: 1 | J96: 1 | K96: 2 | L96: =IF(INTRO!$E$37="Endémique",IF($H96>0,IF($H96=4,"Inconnu",IF($H96=99,"Interrompu",$D96)),0),"Non requis") -> Interrompu | M96: =IF(INTRO!$E$39="Endémique", IF($I96>0, IF($I96=4,"Inconnu",IF($I96=99,"Interrompu",$D96)), 0),"Non requis") -> 212760 | N96: =IF(INTRO!$E$41="Endémique", IF($J96>1, IF($J96=4, "Inconnu", IF($J96=99, "Surveillance", E96)), 0),"Non requis") -> 0 | O96: =IF(INTRO!$E$41="Endémique", IF($J96>1, IF($J96=4, "Inconnu", IF($J96=99, "Surveillance", F96)), 0),"Non requis") -> 0 | P96: =IF(INTRO!$E$41="Endémique", IF($J96>1, IF($J96=4, "Inconnu", IF($J96=99, "Surveillance", ROUND(D96*INTRO!$E$51,0))), 0),"Non requis") -> 0 | Q96: =IF(INTRO!$E$41="Endémique", IF($J96>1, IF($J96=4, "Inconnu", IF($J96=99, "Surveillance", SUM($N96:$P96))), 0),"Non requis") -> 0 | R96: =IF(INTRO!$E$43="Endémique", IF($K96>1, IF($K96=4, "Inconnu", IF($K96=99, "Surveillance", ROUND(E96*0.75,0))), 0),"Non requis") -> 20249 | S96: 0 | T96: =IF(INTRO!$E$43="Endémique", IF($K96>1, IF($K96=4, "Inconnu", IF($K96=99, "Surveillance", G96)), 0),"Non requis") -> 124167 | U96: =IF(INTRO!$E$43="Endémique", IF($K96>1, IF($K96=4, "Inconnu", IF($K96=99, "Surveillance", SUM($R96:$T96))), 0),"Non requis") -> 144416 | V96: 0 | W96: 1 | X96: 0 | Y96: 0 | AH96: 15414 | AI96: BUYO
A97: =IF(INTRO!$E$33<>0,INTRO!$E$33, " ") -> Côte d'Ivoire | B97: NAWA | C97: GUEYO | D97: 96826 | E97: =IF(INTRO!$E$48="","",ROUND($D97*INTRO!$E$48,0)) -> 12287 | F97: =IF(INTRO!$E$49="","",ROUND($D97*INTRO!$E$49,0)) -> 24633 | G97: =IF(INTRO!$E$50="","",ROUND($D97*INTRO!$E$50,0)) -> 56508 | H97: 1 | I97: 1 | J97: 1 | K97: 3 | L97: =IF(INTRO!$E$37="Endémique",IF($H97>0,IF($H97=4,"Inconnu",IF($H97=99,"Interrompu",$D97)),0),"Non requis") -> 96826 | M97: =IF(INTRO!$E$39="Endémique", IF($I97>0, IF($I97=4,"Inconnu",IF($I97=99,"Interrompu",$D97)), 0),"Non requis") -> 96826 | N97: =IF(INTRO!$E$41="Endémique", IF($J97>1, IF($J97=4, "Inconnu", IF($J97=99, "Surveillance", E97)), 0),"Non requis") -> 0 | O97: =IF(INTRO!$E$41="Endémique", IF($J97>1, IF($J97=4, "Inconnu", IF($J97=99, "Surveillance", F97)), 0),"Non requis") -> 0 | P97: =IF(INTRO!$E$41="Endémique", IF($J97>1, IF($J97=4, "Inconnu", IF($J97=99, "Surveillance", ROUND(D97*INTRO!$E$51,0))), 0),"Non requis") -> 0 | Q97: =IF(INTRO!$E$41="Endémique", IF($J97>1, IF($J97=4, "Inconnu", IF($J97=99, "Surveillance", SUM($N97:$P97))), 0),"Non requis") -> 0 | R97: =IF(INTRO!$E$43="Endémique", IF($K97>1, IF($K97=4, "Inconnu", IF($K97=99, "Surveillance", ROUND(E97*0.75,0))), 0),"Non requis") -> 9215 | S97: 5428 | T97: =IF(INTRO!$E$43="Endémique", IF($K97>1, IF($K97=4, "Inconnu", IF($K97=99, "Surveillance", G97)), 0),"Non requis") -> 56508 | U97: =IF(INTRO!$E$43="Endémique", IF($K97>1, IF($K97=4, "Inconnu", IF($K97=99, "Surveillance", SUM($R97:$T97))), 0),"Non requis") -> 71151 | V97: 1 | W97: 1 | X97: 0 | Y97: 1 | AH97: 15366 | AI97: GUEYO
A98: =IF(INTRO!$E$33<>0,INTRO!$E$33, " ") -> Côte d'Ivoire | B98: NAWA | C98: MEAGUI | D98: 371400 | E98: =IF(INTRO!$E$48="","",ROUND($D98*INTRO!$E$48,0)) -> 47131 | F98: =IF(INTRO!$E$49="","",ROUND($D98*INTRO!$E$49,0)) -> 94484 | G98: =IF(INTRO!$E$50="","",ROUND($D98*INTRO!$E$50,0)) -> 216749 | H98: 99 | I98: 1 | J98: 1 | K98: 2 | L98: =IF(INTRO!$E$37="Endémique",IF($H98>0,IF($H98=4,"Inconnu",IF($H98=99,"Interrompu",$D98)),0),"Non requis") -> Interrompu | M98: =IF(INTRO!$E$39="Endémique", IF($I98>0, IF($I98=4,"Inconnu",IF($I98=99,"Interrompu",$D98)), 0),"Non requis") -> 371400 | N98: =IF(INTRO!$E$41="Endémique", IF($J98>1, IF($J98=4, "Inconnu", IF($J98=99, "Surveillance", E98)), 0),"Non requis") -> 0 | O98: =IF(INTRO!$E$41="Endémique", IF($J98>1, IF($J98=4, "Inconnu", IF($J98=99, "Surveillance", F98)), 0),"Non requis") -> 0 | P98: =IF(INTRO!$E$41="Endémique", IF($J98>1, IF($J98=4, "Inconnu", IF($J98=99, "Surveillance", ROUND(D98*INTRO!$E$51,0))), 0),"Non requis") -> 0 | Q98: =IF(INTRO!$E$41="Endémique", IF($J98>1, IF($J98=4, "Inconnu", IF($J98=99, "Surveillance", SUM($N98:$P98))), 0),"Non requis") -> 0 | R98: =IF(INTRO!$E$43="Endémique", IF($K98>1, IF($K98=4, "Inconnu", IF($K98=99, "Surveillance", ROUND(E98*0.75,0))), 0),"Non requis") -> 35348 | S98: 0 | T98: =IF(INTRO!$E$43="Endémique", IF($K98>1, IF($K98=4, "Inconnu", IF($K98=99, "Surveillance", G98)), 0),"Non requis") -> 216749 | U98: =IF(INTRO!$E$43="Endémique", IF($K98>1, IF($K98=4, "Inconnu", IF($K98=99, "Surveillance", SUM($R98:$T98))), 0),"Non requis") -> 252097 | V98: 0 | W98: 1 | X98: 0 | Y98: 0 | AH98: 15413 | AI98: MEAGUY
A99: =IF(INTRO!$E$33<>0,INTRO!$E$33, " ") -> Côte d'Ivoire | B99: NAWA | C99: SOUBRE | D99: 581573 | E99: =IF(INTRO!$E$48="","",ROUND($D99*INTRO!$E$48,0)) -> 73802 | F99: =IF(INTRO!$E$49="","",ROUND($D99*INTRO!$E$49,0)) -> 147952 | G99: =IF(INTRO!$E$50="","",ROUND($D99*INTRO!$E$50,0)) -> 339406 | H99: 99 | I99: 1 | J99: 1 | K99: 3 | L99: =IF(INTRO!$E$37="Endémique",IF($H99>0,IF($H99=4,"Inconnu",IF($H99=99,"Interrompu",$D99)),0),"Non requis") -> Interrompu | M99: =IF(INTRO!$E$39="Endémique", IF($I99>0, IF($I99=4,"Inconnu",IF($I99=99,"Interrompu",$D99)), 0),"Non requis") -> 581573 | N99: =IF(INTRO!$E$41="Endémique", IF($J99>1, IF($J99=4, "Inconnu", IF($J99=99, "Surveillance", E99)), 0),"Non requis") -> 0 | O99: =IF(INTRO!$E$41="Endémique", IF($J99>1, IF($J99=4, "Inconnu", IF($J99=99, "Surveillance", F99)), 0),"Non requis") -> 0 | P99: =IF(INTRO!$E$41="Endémique", IF($J99>1, IF($J99=4, "Inconnu", IF($J99=99, "Surveillance", ROUND(D99*INTRO!$E$51,0))), 0),"Non requis") -> 0 | Q99: =IF(INTRO!$E$41="Endémique", IF($J99>1, IF($J99=4, "Inconnu", IF($J99=99, "Surveillance", SUM($N99:$P99))), 0),"Non requis") -> 0 | R99: =IF(INTRO!$E$43="Endémique", IF($K99>1, IF($K99=4, "Inconnu", IF($K99=99, "Surveillance", ROUND(E99*0.75,0))), 0),"Non requis") -> 55352 | S99: 2670 | T99: =IF(INTRO!$E$43="Endémique", IF($K99>1, IF($K99=4, "Inconnu", IF($K99=99, "Surveillance", G99)), 0),"Non requis") -> 339406 | U99: =IF(INTRO!$E$43="Endémique", IF($K99>1, IF($K99=4, "Inconnu", IF($K99=99, "Surveillance", SUM($R99:$T99))), 0),"Non requis") -> 397428 | V99: 0 | W99: 1 | X99: 0 | Y99: 1 | AH99: 15412 | AI99: SOUBRE
A100: =IF(INTRO!$E$33<>0,INTRO!$E$33, " ") -> Côte d'Ivoire | B100: N'ZI | C100: BOCANDA | D100: 168999 | E100: =IF(INTRO!$E$48="","",ROUND($D100*INTRO!$E$48,0)) -> 21446 | F100: =IF(INTRO!$E$49="","",ROUND($D100*INTRO!$E$49,0)) -> 42993 | G100: =IF(INTRO!$E$50="","",ROUND($D100*INTRO!$E$50,0)) -> 98628 | H100: 0 | I100: 1 | J100: 2 | K100: 2 | L100: =IF(INTRO!$E$37="Endémique",IF($H100>0,IF($H100=4,"Inconnu",IF($H100=99,"Interrompu",$D100)),0),"Non requis") -> 0 | M100: =IF(INTRO!$E$39="Endémique", IF($I100>0, IF($I100=4,"Inconnu",IF($I100=99,"Interrompu",$D100)), 0),"Non requis") -> 168999 | N100: =IF(INTRO!$E$41="Endémique", IF($J100>1, IF($J100=4, "Inconnu", IF($J100=99, "Surveillance", E100)), 0),"Non requis") -> 21446 | O100: =IF(INTRO!$E$41="Endémique", IF($J100>1, IF($J100=4, "Inconnu", IF($J100=99, "Surveillance", F100)), 0),"Non requis") -> 42993 | P100: =IF(INTRO!$E$41="Endémique", IF($J100>1, IF($J100=4, "Inconnu", IF($J100=99, "Surveillance", ROUND(D100*INTRO!$E$51,0))), 0),"Non requis") -> 40779 | Q100: =IF(INTRO!$E$41="Endémique", IF($J100>1, IF($J100=4, "Inconnu", IF($J100=99, "Surveillance", SUM($N100:$P100))), 0),"Non requis") -> 105218 | R100: =IF(INTRO!$E$43="Endémique", IF($K100>1, IF($K100=4, "Inconnu", IF($K100=99, "Surveillance", ROUND(E100*0.75,0))), 0),"Non requis") -> 16085 | S100: 32113 | T100: =IF(INTRO!$E$43="Endémique", IF($K100>1, IF($K100=4, "Inconnu", IF($K100=99, "Surveillance", G100)), 0),"Non requis") -> 98628 | U100: =IF(INTRO!$E$43="Endémique", IF($K100>1, IF($K100=4, "Inconnu", IF($K100=99, "Surveillance", SUM($R100:$T100))), 0),"Non requis") -> 146826 | V100: 0 | W100: 1 | X100: 1 | Y100: 1 | AH100: 15444 | AI100: BOCANDA
A101: =IF(INTRO!$E$33<>0,INTRO!$E$33, " ") -> Côte d'Ivoire | B101: N'ZI | C101: DIMBOKRO | D101: 121254 | E101: =IF(INTRO!$E$48="","",ROUND($D101*INTRO!$E$48,0)) -> 15387 | F101: =IF(INTRO!$E$49="","",ROUND($D101*INTRO!$E$49,0)) -> 30847 | G101: =IF(INTRO!$E$50="","",ROUND($D101*INTRO!$E$50,0)) -> 70764 | H101: 99 | I101: 1 | J101: 2 | K101: 2 | L101: =IF(INTRO!$E$37="Endémique",IF($H101>0,IF($H101=4,"Inconnu",IF($H101=99,"Interrompu",$D101)),0),"Non requis") -> Interrompu | M101: =IF(INTRO!$E$39="Endémique", IF($I101>0, IF($I101=4,"Inconnu",IF($I101=99,"Interrompu",$D101)), 0),"Non requis") -> 121254 | N101: =IF(INTRO!$E$41="Endémique", IF($J101>1, IF($J101=4, "Inconnu", IF($J101=99, "Surveillance", E101)), 0),"Non requis") -> 15387 | O101: =IF(INTRO!$E$41="Endémique", IF($J101>1, IF($J101=4, "Inconnu", IF($J101=99, "Surveillance", F101)), 0),"Non requis") -> 30847 | P101: =IF(INTRO!$E$41="Endémique", IF($J101>1, IF($J101=4, "Inconnu", IF($J101=99, "Surveillance", ROUND(D101*INTRO!$E$51,0))), 0),"Non requis") -> 29259 | Q101: =IF(INTRO!$E$41="Endémique", IF($J101>1, IF($J101=4, "Inconnu", IF($J101=99, "Surveillance", SUM($N101:$P101))), 0),"Non requis") -> 75493 | R101: =IF(INTRO!$E$43="Endémique", IF($K101>1, IF($K101=4, "Inconnu", IF($K101=99, "Surveillance", ROUND(E101*0.75,0))), 0),"Non requis") -> 11540 | S101: 26247 | T101: =IF(INTRO!$E$43="Endémique", IF($K101>1, IF($K101=4, "Inconnu", IF($K101=99, "Surveillance", G101)), 0),"Non requis") -> 70764 | U101: =IF(INTRO!$E$43="Endémique", IF($K101>1, IF($K101=4, "Inconnu", IF($K101=99, "Surveillance", SUM($R101:$T101))), 0),"Non requis") -> 108551 | V101: 0 | W101: 1 | X101: 1 | Y101: 1 | AH101: 15394 | AI101: DIMBOKRO
A102: =IF(INTRO!$E$33<>0,INTRO!$E$33, " ") -> Côte d'Ivoire | B102: N'ZI | C102: KOUASSI-KOUASSIKRO | D102: 39433 | E102: =IF(INTRO!$E$48="","",ROUND($D102*INTRO!$E$48,0)) -> 5004 | F102: =IF(INTRO!$E$49="","",ROUND($D102*INTRO!$E$49,0)) -> 10032 | G102: =IF(INTRO!$E$50="","",ROUND($D102*INTRO!$E$50,0)) -> 23013 | H102: 0 | I102: 1 | J102: 2 | K102: 1 | L102: =IF(INTRO!$E$37="Endémique",IF($H102>0,IF($H102=4,"Inconnu",IF($H102=99,"Interrompu",$D102)),0),"Non requis") -> 0 | M102: =IF(INTRO!$E$39="Endémique", IF($I102>0, IF($I102=4,"Inconnu",IF($I102=99,"Interrompu",$D102)), 0),"Non requis") -> 39433 | N102: =IF(INTRO!$E$41="Endémique", IF($J102>1, IF($J102=4, "Inconnu", IF($J102=99, "Surveillance", E102)), 0),"Non requis") -> 5004 | O102: =IF(INTRO!$E$41="Endémique", IF($J102>1, IF($J102=4, "Inconnu", IF($J102=99, "Surveillance", F102)), 0),"Non requis") -> 10032 | P102: =IF(INTRO!$E$41="Endémique", IF($J102>1, IF($J102=4, "Inconnu", IF($J102=99, "Surveillance", ROUND(D102*INTRO!$E$51,0))), 0),"Non requis") -> 9515 | Q102: =IF(INTRO!$E$41="Endémique", IF($J102>1, IF($J102=4, "Inconnu", IF($J102=99, "Surveillance", SUM($N102:$P102))), 0),"Non requis") -> 24551 | R102: =IF(INTRO!$E$43="Endémique", IF($K102>1, IF($K102=4, "Inconnu", IF($K102=99, "Surveillance", ROUND(E102*0.75,0))), 0),"Non requis") -> 0 | S102: 1783 | T102: =IF(INTRO!$E$43="Endémique", IF($K102>1, IF($K102=4, "Inconnu", IF($K102=99, "Surveillance", G102)), 0),"Non requis") -> 0 | U102: =IF(INTRO!$E$43="Endémique", IF($K102>1, IF($K102=4, "Inconnu", IF($K102=99, "Surveillance", SUM($R102:$T102))), 0),"Non requis") -> 0 | V102: 0 | W102: 1 | X102: 1 | Y102: 1 | AH102: 15445 | AI102: KOUASSI-KOUASSIKRO
A103: =IF(INTRO!$E$33<>0,INTRO!$E$33, " ") -> Côte d'Ivoire | B103: PORO | C103: DIKODOUGOU | D103: 109632 | E103: =IF(INTRO!$E$48="","",ROUND($D103*INTRO!$E$48,0)) -> 13912 | F103: =IF(INTRO!$E$49="","",ROUND($D103*INTRO!$E$49,0)) -> 27890 | G103: =IF(INTRO!$E$50="","",ROUND($D103*INTRO!$E$50,0)) -> 63981 | H103: 19 | I103: 1 | J103: 1 | K103: 1 | L103: =IF(INTRO!$E$37="Endémique",IF($H103>0,IF($H103=4,"Inconnu",IF($H103=99,"Interrompu",$D103)),0),"Non requis") -> 109632 | M103: =IF(INTRO!$E$39="Endémique", IF($I103>0, IF($I103=4,"Inconnu",IF($I103=99,"Interrompu",$D103)), 0),"Non requis") -> 109632 | N103: =IF(INTRO!$E$41="Endémique", IF($J103>1, IF($J103=4, "Inconnu", IF($J103=99, "Surveillance", E103)), 0),"Non requis") -> 0 | O103: =IF(INTRO!$E$41="Endémique", IF($J103>1, IF($J103=4, "Inconnu", IF($J103=99, "Surveillance", F103)), 0),"Non requis") -> 0 | P103: =IF(INTRO!$E$41="Endémique", IF($J103>1, IF($J103=4, "Inconnu", IF($J103=99, "Surveillance", ROUND(D103*INTRO!$E$51,0))), 0),"Non requis") -> 0 | Q103: =IF(INTRO!$E$41="Endémique", IF($J103>1, IF($J103=4, "Inconnu", IF($J103=99, "Surveillance", SUM($N103:$P103))), 0),"Non requis") -> 0 | R103: =IF(INTRO!$E$43="Endémique", IF($K103>1, IF($K103=4, "Inconnu", IF($K103=99, "Surveillance", ROUND(E103*0.75,0))), 0),"Non requis") -> 0 | S103: 27858 | T103: =IF(INTRO!$E$43="Endémique", IF($K103>1, IF($K103=4, "Inconnu", IF($K103=99, "Surveillance", G103)), 0),"Non requis") -> 0 | U103: =IF(INTRO!$E$43="Endémique", IF($K103>1, IF($K103=4, "Inconnu", IF($K103=99, "Surveillance", SUM($R103:$T103))), 0),"Non requis") -> 0 | V103: 0 | W103: 1 | X103: 0 | Y103: 1 | AA103: TAS | AH103: 15455 | AI103: DIKODOUGOU
A104: =IF(INTRO!$E$33<>0,INTRO!$E$33, " ") -> Côte d'Ivoire | B104: PORO | C104: KORHOGO 1 | D104: 604002 | E104: =IF(INTRO!$E$48="","",ROUND($D104*INTRO!$E$48,0)) -> 76648 | F104: =IF(INTRO!$E$49="","",ROUND($D104*INTRO!$E$49,0)) -> 153658 | G104: =IF(INTRO!$E$50="","",ROUND($D104*INTRO!$E$50,0)) -> 352496 | H104: 19 | I104: 1 | J104: 1 | K104: 2 | L104: =IF(INTRO!$E$37="Endémique",IF($H104>0,IF($H104=4,"Inconnu",IF($H104=99,"Interrompu",$D104)),0),"Non requis") -> 604002 | M104: =IF(INTRO!$E$39="Endémique", IF($I104>0, IF($I104=4,"Inconnu",IF($I104=99,"Interrompu",$D104)), 0),"Non requis") -> 604002 | N104: =IF(INTRO!$E$41="Endémique", IF($J104>1, IF($J104=4, "Inconnu", IF($J104=99, "Surveillance", E104)), 0),"Non requis") -> 0 | O104: =IF(INTRO!$E$41="Endémique", IF($J104>1, IF($J104=4, "Inconnu", IF($J104=99, "Surveillance", F104)), 0),"Non requis") -> 0 | P104: =IF(INTRO!$E$41="Endémique", IF($J104>1, IF($J104=4, "Inconnu", IF($J104=99, "Surveillance", ROUND(D104*INTRO!$E$51,0))), 0),"Non requis") -> 0 | Q104: =IF(INTRO!$E$41="Endémique", IF($J104>1, IF($J104=4, "Inconnu", IF($J104=99, "Surveillance", SUM($N104:$P104))), 0),"Non requis") -> 0 | R104: =IF(INTRO!$E$43="Endémique", IF($K104>1, IF($K104=4, "Inconnu", IF($K104=99, "Surveillance", ROUND(E104*0.75,0))), 0),"Non requis") -> 57486 | S104: 146013 | T104: =IF(INTRO!$E$43="Endémique", IF($K104>1, IF($K104=4, "Inconnu", IF($K104=99, "Surveillance", G104)), 0),"Non requis") -> 352496 | U104: =IF(INTRO!$E$43="Endémique", IF($K104>1, IF($K104=4, "Inconnu", IF($K104=99, "Surveillance", SUM($R104:$T104))), 0),"Non requis") -> 555995 | V104: 0 | W104: 1 | X104: 0 | Y104: 1 | AA104: TAS | AH104: 15453 | AI104: KORHOGO 1
A105: =IF(INTRO!$E$33<>0,INTRO!$E$33, " ") -> Côte d'Ivoire | B105: PORO | C105: KORHOGO 2 | D105: 126433 | E105: =IF(INTRO!$E$48="","",ROUND($D105*INTRO!$E$48,0)) -> 16044 | F105: =IF(INTRO!$E$49="","",ROUND($D105*INTRO!$E$49,0)) -> 32165 | G105: =IF(INTRO!$E$50="","",ROUND($D105*INTRO!$E$50,0)) -> 73786 | H105: 19 | I105: 1 | J105: 1 | K105: 1 | L105: =IF(INTRO!$E$37="Endémique",IF($H105>0,IF($H105=4,"Inconnu",IF($H105=99,"Interrompu",$D105)),0),"Non requis") -> 126433 | M105: =IF(INTRO!$E$39="Endémique", IF($I105>0, IF($I105=4,"Inconnu",IF($I105=99,"Interrompu",$D105)), 0),"Non requis") -> 126433 | N105: =IF(INTRO!$E$41="Endémique", IF($J105>1, IF($J105=4, "Inconnu", IF($J105=99, "Surveillance", E105)), 0),"Non requis") -> 0 | O105: =IF(INTRO!$E$41="Endémique", IF($J105>1, IF($J105=4, "Inconnu", IF($J105=99, "Surveillance", F105)), 0),"Non requis") -> 0 | P105: =IF(INTRO!$E$41="Endémique", IF($J105>1, IF($J105=4, "Inconnu", IF($J105=99, "Surveillance", ROUND(D105*INTRO!$E$51,0))), 0),"Non requis") -> 0 | Q105: =IF(INTRO!$E$41="Endémique", IF($J105>1, IF($J105=4, "Inconnu", IF($J105=99, "Surveillance", SUM($N105:$P105))), 0),"Non requis") -> 0 | R105: =IF(INTRO!$E$43="Endémique", IF($K105>1, IF($K105=4, "Inconnu", IF($K105=99, "Surveillance", ROUND(E105*0.75,0))), 0),"Non requis") -> 0 | S105: 37690 | T105: =IF(INTRO!$E$43="Endémique", IF($K105>1, IF($K105=4, "Inconnu", IF($K105=99, "Surveillance", G105)), 0),"Non requis") -> 0 | U105: =IF(INTRO!$E$43="Endémique", IF($K105>1, IF($K105=4, "Inconnu", IF($K105=99, "Surveillance", SUM($R105:$T105))), 0),"Non requis") -> 0 | V105: 0 | W105: 1 | X105: 0 | Y105: 1 | AA105: TAS | AH105: 15454 | AI105: KORHOGO 2
A106: =IF(INTRO!$E$33<>0,INTRO!$E$33, " ") -> Côte d'Ivoire | B106: PORO | C106: M'BENGUE | D106: 119474 | E106: =IF(INTRO!$E$48="","",ROUND($D106*INTRO!$E$48,0)) -> 15161 | F106: =IF(INTRO!$E$49="","",ROUND($D106*INTRO!$E$49,0)) -> 30394 | G106: =IF(INTRO!$E$50="","",ROUND($D106*INTRO!$E$50,0)) -> 69725 | H106: 19 | I106: 1 | J106: 1 | K106: 1 | L106: =IF(INTRO!$E$37="Endémique",IF($H106>0,IF($H106=4,"Inconnu",IF($H106=99,"Interrompu",$D106)),0),"Non requis") -> 119474 | M106: =IF(INTRO!$E$39="Endémique", IF($I106>0, IF($I106=4,"Inconnu",IF($I106=99,"Interrompu",$D106)), 0),"Non requis") -> 119474 | N106: =IF(INTRO!$E$41="Endémique", IF($J106>1, IF($J106=4, "Inconnu", IF($J106=99, "Surveillance", E106)), 0),"Non requis") -> 0 | O106: =IF(INTRO!$E$41="Endémique", IF($J106>1, IF($J106=4, "Inconnu", IF($J106=99, "Surveillance", F106)), 0),"Non requis") -> 0 | P106: =IF(INTRO!$E$41="Endémique", IF($J106>1, IF($J106=4, "Inconnu", IF($J106=99, "Surveillance", ROUND(D106*INTRO!$E$51,0))), 0),"Non requis") -> 0 | Q106: =IF(INTRO!$E$41="Endémique", IF($J106>1, IF($J106=4, "Inconnu", IF($J106=99, "Surveillance", SUM($N106:$P106))), 0),"Non requis") -> 0 | R106: =IF(INTRO!$E$43="Endémique", IF($K106>1, IF($K106=4, "Inconnu", IF($K106=99, "Surveillance", ROUND(E106*0.75,0))), 0),"Non requis") -> 0 | S106: 27217 | T106: =IF(INTRO!$E$43="Endémique", IF($K106>1, IF($K106=4, "Inconnu", IF($K106=99, "Surveillance", G106)), 0),"Non requis") -> 0 | U106: =IF(INTRO!$E$43="Endémique", IF($K106>1, IF($K106=4, "Inconnu", IF($K106=99, "Surveillance", SUM($R106:$T106))), 0),"Non requis") -> 0 | V106: 0 | W106: 1 | X106: 0 | Y106: 1 | AA106: TAS | AH106: 15463 | AI106: M'BENGUE
A107: =IF(INTRO!$E$33<>0,INTRO!$E$33, " ") -> Côte d'Ivoire | B107: PORO | C107: SINEMENTILAI | D107: 79746 | E107: =IF(INTRO!$E$48="","",ROUND($D107*INTRO!$E$48,0)) -> 10120 | F107: =IF(INTRO!$E$49="","",ROUND($D107*INTRO!$E$49,0)) -> 20287 | G107: =IF(INTRO!$E$50="","",ROUND($D107*INTRO!$E$50,0)) -> 46540 | H107: 19 | I107: 1 | J107: 1 | K107: 1 | L107: =IF(INTRO!$E$37="Endémique",IF($H107>0,IF($H107=4,"Inconnu",IF($H107=99,"Interrompu",$D107)),0),"Non requis") -> 79746 | M107: =IF(INTRO!$E$39="Endémique", IF($I107>0, IF($I107=4,"Inconnu",IF($I107=99,"Interrompu",$D107)), 0),"Non requis") -> 79746 | N107: =IF(INTRO!$E$41="Endémique", IF($J107>1, IF($J107=4, "Inconnu", IF($J107=99, "Surveillance", E107)), 0),"Non requis") -> 0 | O107: =IF(INTRO!$E$41="Endémique", IF($J107>1, IF($J107=4, "Inconnu", IF($J107=99, "Surveillance", F107)), 0),"Non requis") -> 0 | P107: =IF(INTRO!$E$41="Endémique", IF($J107>1, IF($J107=4, "Inconnu", IF($J107=99, "Surveillance", ROUND(D107*INTRO!$E$51,0))), 0),"Non requis") -> 0 | Q107: =IF(INTRO!$E$41="Endémique", IF($J107>1, IF($J107=4, "Inconnu", IF($J107=99, "Surveillance", SUM($N107:$P107))), 0),"Non requis") -> 0 | R107: =IF(INTRO!$E$43="Endémique", IF($K107>1, IF($K107=4, "Inconnu", IF($K107=99, "Surveillance", ROUND(E107*0.75,0))), 0),"Non requis") -> 0 | S107: 24239 | T107: =IF(INTRO!$E$43="Endémique", IF($K107>1, IF($K107=4, "Inconnu", IF($K107=99, "Surveillance", G107)), 0),"Non requis") -> 0 | U107: =IF(INTRO!$E$43="Endémique", IF($K107>1, IF($K107=4, "Inconnu", IF($K107=99, "Surveillance", SUM($R107:$T107))), 0),"Non requis") -> 0 | V107: 0 | W107: 1 | X107: 0 | Y107: 1 | AA107: TAS | AH107: 15464 | AI107: SINEMENTILAI
A108: =IF(INTRO!$E$33<>0,INTRO!$E$33, " ") -> Côte d'Ivoire | B108: SAN-PEDRO | C108: SAN PEDRO | D108: 730307 | E108: =IF(INTRO!$E$48="","",ROUND($D108*INTRO!$E$48,0)) -> 92676 | F108: =IF(INTRO!$E$49="","",ROUND($D108*INTRO!$E$49,0)) -> 185790 | G108: =IF(INTRO!$E$50="","",ROUND($D108*INTRO!$E$50,0)) -> 426207 | H108: 99 | I108: 0 | J108: 1 | K108: 2 | L108: =IF(INTRO!$E$37="Endémique",IF($H108>0,IF($H108=4,"Inconnu",IF($H108=99,"Interrompu",$D108)),0),"Non requis") -> Interrompu | M108: =IF(INTRO!$E$39="Endémique", IF($I108>0, IF($I108=4,"Inconnu",IF($I108=99,"Interrompu",$D108)), 0),"Non requis") -> 0 | N108: =IF(INTRO!$E$41="Endémique", IF($J108>1, IF($J108=4, "Inconnu", IF($J108=99, "Surveillance", E108)), 0),"Non requis") -> 0 | O108: =IF(INTRO!$E$41="Endémique", IF($J108>1, IF($J108=4, "Inconnu", IF($J108=99, "Surveillance", F108)), 0),"Non requis") -> 0 | P108: =IF(INTRO!$E$41="Endémique", IF($J108>1, IF($J108=4, "Inconnu", IF($J108=99, "Surveillance", ROUND(D108*INTRO!$E$51,0))), 0),"Non requis") -> 0 | Q108: =IF(INTRO!$E$41="Endémique", IF($J108>1, IF($J108=4, "Inconnu", IF($J108=99, "Surveillance", SUM($N108:$P108))), 0),"Non requis") -> 0 | R108: =IF(INTRO!$E$43="Endémique", IF($K108>1, IF($K108=4, "Inconnu", IF($K108=99, "Surveillance", ROUND(E108*0.75,0))), 0),"Non requis") -> 69507 | S108: 0 | T108: =IF(INTRO!$E$43="Endémique", IF($K108>1, IF($K108=4, "Inconnu", IF($K108=99, "Surveillance", G108)), 0),"Non requis") -> 426207 | U108: =IF(INTRO!$E$43="Endémique", IF($K108>1, IF($K108=4, "Inconnu", IF($K108=99, "Surveillance", SUM($R108:$T108))), 0),"Non requis") -> 495714 | V108: 0 | W108: 0 | X108: 0 | Y108: 0 | AH108: 15367 | AI108: SAN PEDRO
A109: =IF(INTRO!$E$33<>0,INTRO!$E$33, " ") -> Côte d'Ivoire | B109: SAN-PEDRO | C109: TABOU | D109: 226225 | E109: =IF(INTRO!$E$48="","",ROUND($D109*INTRO!$E$48,0)) -> 28708 | F109: =IF(INTRO!$E$49="","",ROUND($D109*INTRO!$E$49,0)) -> 57552 | G109: =IF(INTRO!$E$50="","",ROUND($D109*INTRO!$E$50,0)) -> 132025 | H109: 99 | I109: 1 | J109: 2 | K109: 2 | L109: =IF(INTRO!$E$37="Endémique",IF($H109>0,IF($H109=4,"Inconnu",IF($H109=99,"Interrompu",$D109)),0),"Non requis") -> Interrompu | M109: =IF(INTRO!$E$39="Endémique", IF($I109>0, IF($I109=4,"Inconnu",IF($I109=99,"Interrompu",$D109)), 0),"Non requis") -> 226225 | N109: =IF(INTRO!$E$41="Endémique", IF($J109>1, IF($J109=4, "Inconnu", IF($J109=99, "Surveillance", E109)), 0),"Non requis") -> 28708 | O109: =IF(INTRO!$E$41="Endémique", IF($J109>1, IF($J109=4, "Inconnu", IF($J109=99, "Surveillance", F109)), 0),"Non requis") -> 57552 | P109: =IF(INTRO!$E$41="Endémique", IF($J109>1, IF($J109=4, "Inconnu", IF($J109=99, "Surveillance", ROUND(D109*INTRO!$E$51,0))), 0),"Non requis") -> 54588 | Q109: =IF(INTRO!$E$41="Endémique", IF($J109>1, IF($J109=4, "Inconnu", IF($J109=99, "Surveillance", SUM($N109:$P109))), 0),"Non requis") -> 140848 | R109: =IF(INTRO!$E$43="Endémique", IF($K109>1, IF($K109=4, "Inconnu", IF($K109=99, "Surveillance", ROUND(E109*0.75,0))), 0),"Non requis") -> 21531 | S109: 0 | T109: =IF(INTRO!$E$43="Endémique", IF($K109>1, IF($K109=4, "Inconnu", IF($K109=99, "Surveillance", G109)), 0),"Non requis") -> 132025 | U109: =IF(INTRO!$E$43="Endémique", IF($K109>1, IF($K109=4, "Inconnu", IF($K109=99, "Surveillance", SUM($R109:$T109))), 0),"Non requis") -> 153556 | V109: 0 | W109: 1 | X109: 1 | Y109: 0 | AH109: 15370 | AI109: TABOU
A110: =IF(INTRO!$E$33<>0,INTRO!$E$33, " ") -> Côte d'Ivoire | B110: SUD-COMOE | C110: ABOISSO | D110: 358179 | E110: =IF(INTRO!$E$48="","",ROUND($D110*INTRO!$E$48,0)) -> 45453 | F110: =IF(INTRO!$E$49="","",ROUND($D110*INTRO!$E$49,0)) -> 91121 | G110: =IF(INTRO!$E$50="","",ROUND($D110*INTRO!$E$50,0)) -> 209033 | H110: 99 | I110: 1 | J110: 1 | K110: 3 | L110: =IF(INTRO!$E$37="Endémique",IF($H110>0,IF($H110=4,"Inconnu",IF($H110=99,"Interrompu",$D110)),0),"Non requis") -> Interrompu | M110: =IF(INTRO!$E$39="Endémique", IF($I110>0, IF($I110=4,"Inconnu",IF($I110=99,"Interrompu",$D110)), 0),"Non requis") -> 358179 | N110: =IF(INTRO!$E$41="Endémique", IF($J110>1, IF($J110=4, "Inconnu", IF($J110=99, "Surveillance", E110)), 0),"Non requis") -> 0 | O110: =IF(INTRO!$E$41="Endémique", IF($J110>1, IF($J110=4, "Inconnu", IF($J110=99, "Surveillance", F110)), 0),"Non requis") -> 0 | P110: =IF(INTRO!$E$41="Endémique", IF($J110>1, IF($J110=4, "Inconnu", IF($J110=99, "Surveillance", ROUND(D110*INTRO!$E$51,0))), 0),"Non requis") -> 0 | Q110: =IF(INTRO!$E$41="Endémique", IF($J110>1, IF($J110=4, "Inconnu", IF($J110=99, "Surveillance", SUM($N110:$P110))), 0),"Non requis") -> 0 | R110: =IF(INTRO!$E$43="Endémique", IF($K110>1, IF($K110=4, "Inconnu", IF($K110=99, "Surveillance", ROUND(E110*0.75,0))), 0),"Non requis") -> 34090 | S110: 82584 | T110: =IF(INTRO!$E$43="Endémique", IF($K110>1, IF($K110=4, "Inconnu", IF($K110=99, "Surveillance", G110)), 0),"Non requis") -> 209033 | U110: =IF(INTRO!$E$43="Endémique", IF($K110>1, IF($K110=4, "Inconnu", IF($K110=99, "Surveillance", SUM($R110:$T110))), 0),"Non requis") -> 325707 | V110: 0 | W110: 1 | X110: 0 | Y110: 1 | AH110: 15402 | AI110: ABOISSO
A111: =IF(INTRO!$E$33<>0,INTRO!$E$33, " ") -> Côte d'Ivoire | B111: SUD-COMOE | C111: ADIAKE | D111: 97204 | E111: =IF(INTRO!$E$48="","",ROUND($D111*INTRO!$E$48,0)) -> 12335 | F111: =IF(INTRO!$E$49="","",ROUND($D111*INTRO!$E$49,0)) -> 24729 | G111: =IF(INTRO!$E$50="","",ROUND($D111*INTRO!$E$50,0)) -> 56728 | H111: 99 | I111: 1 | J111: 1 | K111: 1 | L111: =IF(INTRO!$E$37="Endémique",IF($H111>0,IF($H111=4,"Inconnu",IF($H111=99,"Interrompu",$D111)),0),"Non requis") -> Interrompu | M111: =IF(INTRO!$E$39="Endémique", IF($I111>0, IF($I111=4,"Inconnu",IF($I111=99,"Interrompu",$D111)), 0),"Non requis") -> 97204 | N111: =IF(INTRO!$E$41="Endémique", IF($J111>1, IF($J111=4, "Inconnu", IF($J111=99, "Surveillance", E111)), 0),"Non requis") -> 0 | O111: =IF(INTRO!$E$41="Endémique", IF($J111>1, IF($J111=4, "Inconnu", IF($J111=99, "Surveillance", F111)), 0),"Non requis") -> 0 | P111: =IF(INTRO!$E$41="Endémique", IF($J111>1, IF($J111=4, "Inconnu", IF($J111=99, "Surveillance", ROUND(D111*INTRO!$E$51,0))), 0),"Non requis") -> 0 | Q111: =IF(INTRO!$E$41="Endémique", IF($J111>1, IF($J111=4, "Inconnu", IF($J111=99, "Surveillance", SUM($N111:$P111))), 0),"Non requis") -> 0 | R111: =IF(INTRO!$E$43="Endémique", IF($K111>1, IF($K111=4, "Inconnu", IF($K111=99, "Surveillance", ROUND(E111*0.75,0))), 0),"Non requis") -> 0 | S111: 0 | T111: =IF(INTRO!$E$43="Endémique", IF($K111>1, IF($K111=4, "Inconnu", IF($K111=99, "Surveillance", G111)), 0),"Non requis") -> 0 | U111: =IF(INTRO!$E$43="Endémique", IF($K111>1, IF($K111=4, "Inconnu", IF($K111=99, "Surveillance", SUM($R111:$T111))), 0),"Non requis") -> 0 | V111: 0 | W111: 1 | X111: 0 | Y111: 0 | AH111: 15456 | AI111: ADIAKE
A112: =IF(INTRO!$E$33<>0,INTRO!$E$33, " ") -> Côte d'Ivoire | B112: SUD-COMOE | C112: GRAND-BASSAM | D112: 208338 | E112: =IF(INTRO!$E$48="","",ROUND($D112*INTRO!$E$48,0)) -> 26438 | F112: =IF(INTRO!$E$49="","",ROUND($D112*INTRO!$E$49,0)) -> 53001 | G112: =IF(INTRO!$E$50="","",ROUND($D112*INTRO!$E$50,0)) -> 121586 | H112: 99 | I112: 1 | J112: 2 | K112: 2 | L112: =IF(INTRO!$E$37="Endémique",IF($H112>0,IF($H112=4,"Inconnu",IF($H112=99,"Interrompu",$D112)),0),"Non requis") -> Interrompu | M112: =IF(INTRO!$E$39="Endémique", IF($I112>0, IF($I112=4,"Inconnu",IF($I112=99,"Interrompu",$D112)), 0),"Non requis") -> 208338 | N112: =IF(INTRO!$E$41="Endémique", IF($J112>1, IF($J112=4, "Inconnu", IF($J112=99, "Surveillance", E112)), 0),"Non requis") -> 26438 | O112: =IF(INTRO!$E$41="Endémique", IF($J112>1, IF($J112=4, "Inconnu", IF($J112=99, "Surveillance", F112)), 0),"Non requis") -> 53001 | P112: =IF(INTRO!$E$41="Endémique", IF($J112>1, IF($J112=4, "Inconnu", IF($J112=99, "Surveillance", ROUND(D112*INTRO!$E$51,0))), 0),"Non requis") -> 50272 | Q112: =IF(INTRO!$E$41="Endémique", IF($J112>1, IF($J112=4, "Inconnu", IF($J112=99, "Surveillance", SUM($N112:$P112))), 0),"Non requis") -> 129711 | R112: =IF(INTRO!$E$43="Endémique", IF($K112>1, IF($K112=4, "Inconnu", IF($K112=99, "Surveillance", ROUND(E112*0.75,0))), 0),"Non requis") -> 19829 | S112: 0 | T112: =IF(INTRO!$E$43="Endémique", IF($K112>1, IF($K112=4, "Inconnu", IF($K112=99, "Surveillance", G112)), 0),"Non requis") -> 121586 | U112: =IF(INTRO!$E$43="Endémique", IF($K112>1, IF($K112=4, "Inconnu", IF($K112=99, "Surveillance", SUM($R112:$T112))), 0),"Non requis") -> 141415 | V112: 0 | W112: 1 | X112: 1 | Y112: 0 | AH112: 15404 | AI112: GRAND-BASSAM
A113: =IF(INTRO!$E$33<>0,INTRO!$E$33, " ") -> Côte d'Ivoire | B113: SUD-COMOE | C113: TIAPOUM | D113: 83955 | E113: =IF(INTRO!$E$48="","",ROUND($D113*INTRO!$E$48,0)) -> 10654 | F113: =IF(INTRO!$E$49="","",ROUND($D113*INTRO!$E$49,0)) -> 21358 | G113: =IF(INTRO!$E$50="","",ROUND($D113*INTRO!$E$50,0)) -> 48996 | H113: 19 | I113: 1 | J113: 1 | K113: 1 | L113: =IF(INTRO!$E$37="Endémique",IF($H113>0,IF($H113=4,"Inconnu",IF($H113=99,"Interrompu",$D113)),0),"Non requis") -> 83955 | M113: =IF(INTRO!$E$39="Endémique", IF($I113>0, IF($I113=4,"Inconnu",IF($I113=99,"Interrompu",$D113)), 0),"Non requis") -> 83955 | N113: =IF(INTRO!$E$41="Endémique", IF($J113>1, IF($J113=4, "Inconnu", IF($J113=99, "Surveillance", E113)), 0),"Non requis") -> 0 | O113: =IF(INTRO!$E$41="Endémique", IF($J113>1, IF($J113=4, "Inconnu", IF($J113=99, "Surveillance", F113)), 0),"Non requis") -> 0 | P113: =IF(INTRO!$E$41="Endémique", IF($J113>1, IF($J113=4, "Inconnu", IF($J113=99, "Surveillance", ROUND(D113*INTRO!$E$51,0))), 0),"Non requis") -> 0 | Q113: =IF(INTRO!$E$41="Endémique", IF($J113>1, IF($J113=4, "Inconnu", IF($J113=99, "Surveillance", SUM($N113:$P113))), 0),"Non requis") -> 0 | R113: =IF(INTRO!$E$43="Endémique", IF($K113>1, IF($K113=4, "Inconnu", IF($K113=99, "Surveillance", ROUND(E113*0.75,0))), 0),"Non requis") -> 0 | S113: 0 | T113: =IF(INTRO!$E$43="Endémique", IF($K113>1, IF($K113=4, "Inconnu", IF($K113=99, "Surveillance", G113)), 0),"Non requis") -> 0 | U113: =IF(INTRO!$E$43="Endémique", IF($K113>1, IF($K113=4, "Inconnu", IF($K113=99, "Surveillance", SUM($R113:$T113))), 0),"Non requis") -> 0 | V113: 0 | W113: 1 | X113: 0 | Y113: 0 | AA113: TAS | AH113: 15457 | AI113: TIAPOUM
A114: =IF(INTRO!$E$33<>0,INTRO!$E$33, " ") -> Côte d'Ivoire | B114: TCHOLOGO | C114: FERKESSEDOUGOU | D114: 200957 | E114: =IF(INTRO!$E$48="","",ROUND($D114*INTRO!$E$48,0)) -> 25501 | F114: =IF(INTRO!$E$49="","",ROUND($D114*INTRO!$E$49,0)) -> 51123 | G114: =IF(INTRO!$E$50="","",ROUND($D114*INTRO!$E$50,0)) -> 117279 | H114: 19 | I114: 1 | J114: 2 | K114: 1 | L114: =IF(INTRO!$E$37="Endémique",IF($H114>0,IF($H114=4,"Inconnu",IF($H114=99,"Interrompu",$D114)),0),"Non requis") -> 200957 | M114: =IF(INTRO!$E$39="Endémique", IF($I114>0, IF($I114=4,"Inconnu",IF($I114=99,"Interrompu",$D114)), 0),"Non requis") -> 200957 | N114: =IF(INTRO!$E$41="Endémique", IF($J114>1, IF($J114=4, "Inconnu", IF($J114=99, "Surveillance", E114)), 0),"Non requis") -> 25501 | O114: =IF(INTRO!$E$41="Endémique", IF($J114>1, IF($J114=4, "Inconnu", IF($J114=99, "Surveillance", F114)), 0),"Non requis") -> 51123 | P114: =IF(INTRO!$E$41="Endémique", IF($J114>1, IF($J114=4, "Inconnu", IF($J114=99, "Surveillance", ROUND(D114*INTRO!$E$51,0))), 0),"Non requis") -> 48491 | Q114: =IF(INTRO!$E$41="Endémique", IF($J114>1, IF($J114=4, "Inconnu", IF($J114=99, "Surveillance", SUM($N114:$P114))), 0),"Non requis") -> 125115 | R114: =IF(INTRO!$E$43="Endémique", IF($K114>1, IF($K114=4, "Inconnu", IF($K114=99, "Surveillance", ROUND(E114*0.75,0))), 0),"Non requis") -> 0 | S114: 0 | T114: =IF(INTRO!$E$43="Endémique", IF($K114>1, IF($K114=4, "Inconnu", IF($K114=99, "Surveillance", G114)), 0),"Non requis") -> 0 | U114: =IF(INTRO!$E$43="Endémique", IF($K114>1, IF($K114=4, "Inconnu", IF($K114=99, "Surveillance", SUM($R114:$T114))), 0),"Non requis") -> 0 | V114: 0 | W114: 1 | X114: 1 | Y114: 0 | AA114: TAS | AH114: 15451 | AI114: FERKESSEDOUGOU
A115: =IF(INTRO!$E$33<>0,INTRO!$E$33, " ") -> Côte d'Ivoire | B115: TCHOLOGO | C115: KONG | D115: 123341 | E115: =IF(INTRO!$E$48="","",ROUND($D115*INTRO!$E$48,0)) -> 15652 | F115: =IF(INTRO!$E$49="","",ROUND($D115*INTRO!$E$49,0)) -> 31378 | G115: =IF(INTRO!$E$50="","",ROUND($D115*INTRO!$E$50,0)) -> 71982 | H115: 19 | I115: 1 | J115: 2 | K115: 1 | L115: =IF(INTRO!$E$37="Endémique",IF($H115>0,IF($H115=4,"Inconnu",IF($H115=99,"Interrompu",$D115)),0),"Non requis") -> 123341 | M115: =IF(INTRO!$E$39="Endémique", IF($I115>0, IF($I115=4,"Inconnu",IF($I115=99,"Interrompu",$D115)), 0),"Non requis") -> 123341 | N115: =IF(INTRO!$E$41="Endémique", IF($J115>1, IF($J115=4, "Inconnu", IF($J115=99, "Surveillance", E115)), 0),"Non requis") -> 15652 | O115: =IF(INTRO!$E$41="Endémique", IF($J115>1, IF($J115=4, "Inconnu", IF($J115=99, "Surveillance", F115)), 0),"Non requis") -> 31378 | P115: =IF(INTRO!$E$41="Endémique", IF($J115>1, IF($J115=4, "Inconnu", IF($J115=99, "Surveillance", ROUND(D115*INTRO!$E$51,0))), 0),"Non requis") -> 29762 | Q115: =IF(INTRO!$E$41="Endémique", IF($J115>1, IF($J115=4, "Inconnu", IF($J115=99, "Surveillance", SUM($N115:$P115))), 0),"Non requis") -> 76792 | R115: =IF(INTRO!$E$43="Endémique", IF($K115>1, IF($K115=4, "Inconnu", IF($K115=99, "Surveillance", ROUND(E115*0.75,0))), 0),"Non requis") -> 0 | S115: 0 | T115: =IF(INTRO!$E$43="Endémique", IF($K115>1, IF($K115=4, "Inconnu", IF($K115=99, "Surveillance", G115)), 0),"Non requis") -> 0 | U115: =IF(INTRO!$E$43="Endémique", IF($K115>1, IF($K115=4, "Inconnu", IF($K115=99, "Surveillance", SUM($R115:$T115))), 0),"Non requis") -> 0 | V115: 0 | W115: 1 | X115: 1 | Y115: 0 | AA115: TAS | AH115: 15452 | AI115: KONG
A116: =IF(INTRO!$E$33<>0,INTRO!$E$33, " ") -> Côte d'Ivoire | B116: TCHOLOGO | C116: OUANGOLODOUGOU | D116: 332116 | E116: =IF(INTRO!$E$48="","",ROUND($D116*INTRO!$E$48,0)) -> 42146 | F116: =IF(INTRO!$E$49="","",ROUND($D116*INTRO!$E$49,0)) -> 84490 | G116: =IF(INTRO!$E$50="","",ROUND($D116*INTRO!$E$50,0)) -> 193823 | H116: 19 | I116: 1 | J116: 1 | K116: 2 | L116: =IF(INTRO!$E$37="Endémique",IF($H116>0,IF($H116=4,"Inconnu",IF($H116=99,"Interrompu",$D116)),0),"Non requis") -> 332116 | M116: =IF(INTRO!$E$39="Endémique", IF($I116>0, IF($I116=4,"Inconnu",IF($I116=99,"Interrompu",$D116)), 0),"Non requis") -> 332116 | N116: =IF(INTRO!$E$41="Endémique", IF($J116>1, IF($J116=4, "Inconnu", IF($J116=99, "Surveillance", E116)), 0),"Non requis") -> 0 | O116: =IF(INTRO!$E$41="Endémique", IF($J116>1, IF($J116=4, "Inconnu", IF($J116=99, "Surveillance", F116)), 0),"Non requis") -> 0 | P116: =IF(INTRO!$E$41="Endémique", IF($J116>1, IF($J116=4, "Inconnu", IF($J116=99, "Surveillance", ROUND(D116*INTRO!$E$51,0))), 0),"Non requis") -> 0 | Q116: =IF(INTRO!$E$41="Endémique", IF($J116>1, IF($J116=4, "Inconnu", IF($J116=99, "Surveillance", SUM($N116:$P116))), 0),"Non requis") -> 0 | R116: =IF(INTRO!$E$43="Endémique", IF($K116>1, IF($K116=4, "Inconnu", IF($K116=99, "Surveillance", ROUND(E116*0.75,0))), 0),"Non requis") -> 31610 | S116: 0 | T116: =IF(INTRO!$E$43="Endémique", IF($K116>1, IF($K116=4, "Inconnu", IF($K116=99, "Surveillance", G116)), 0),"Non requis") -> 193823 | U116: =IF(INTRO!$E$43="Endémique", IF($K116>1, IF($K116=4, "Inconnu", IF($K116=99, "Surveillance", SUM($R116:$T116))), 0),"Non requis") -> 225433 | V116: 0 | W116: 1 | X116: 0 | Y116: 0 | AA116: TAS | AH116: 15400 | AI116: OUANGOLODOUGOU
A117: =IF(INTRO!$E$33<>0,INTRO!$E$33, " ") -> Côte d'Ivoire | B117: TONKPI | C117: BIANKOUMA | D117: 244785 | E117: =IF(INTRO!$E$48="","",ROUND($D117*INTRO!$E$48,0)) -> 31063 | F117: =IF(INTRO!$E$49="","",ROUND($D117*INTRO!$E$49,0)) -> 62273 | G117: =IF(INTRO!$E$50="","",ROUND($D117*INTRO!$E$50,0)) -> 142857 | H117: 19 | I117: 1 | J117: 2 | K117: 2 | L117: =IF(INTRO!$E$37="Endémique",IF($H117>0,IF($H117=4,"Inconnu",IF($H117=99,"Interrompu",$D117)),0),"Non requis") -> 244785 | M117: =IF(INTRO!$E$39="Endémique", IF($I117>0, IF($I117=4,"Inconnu",IF($I117=99,"Interrompu",$D117)), 0),"Non requis") -> 244785 | N117: =IF(INTRO!$E$41="Endémique", IF($J117>1, IF($J117=4, "Inconnu", IF($J117=99, "Surveillance", E117)), 0),"Non requis") -> 31063 | O117: =IF(INTRO!$E$41="Endémique", IF($J117>1, IF($J117=4, "Inconnu", IF($J117=99, "Surveillance", F117)), 0),"Non requis") -> 62273 | P117: =IF(INTRO!$E$41="Endémique", IF($J117>1, IF($J117=4, "Inconnu", IF($J117=99, "Surveillance", ROUND(D117*INTRO!$E$51,0))), 0),"Non requis") -> 59067 | Q117: =IF(INTRO!$E$41="Endémique", IF($J117>1, IF($J117=4, "Inconnu", IF($J117=99, "Surveillance", SUM($N117:$P117))), 0),"Non requis") -> 152403 | R117: =IF(INTRO!$E$43="Endémique", IF($K117>1, IF($K117=4, "Inconnu", IF($K117=99, "Surveillance", ROUND(E117*0.75,0))), 0),"Non requis") -> 23297 | S117: 0 | T117: =IF(INTRO!$E$43="Endémique", IF($K117>1, IF($K117=4, "Inconnu", IF($K117=99, "Surveillance", G117)), 0),"Non requis") -> 142857 | U117: =IF(INTRO!$E$43="Endémique", IF($K117>1, IF($K117=4, "Inconnu", IF($K117=99, "Surveillance", SUM($R117:$T117))), 0),"Non requis") -> 166154 | V117: 0 | W117: 1 | X117: 1 | Y117: 0 | AA117: TAS | AH117: 15405 | AI117: BIANKOUMA
A118: =IF(INTRO!$E$33<>0,INTRO!$E$33, " ") -> Côte d'Ivoire | B118: TONKPI | C118: DANANE | D118: 333357 | E118: =IF(INTRO!$E$48="","",ROUND($D118*INTRO!$E$48,0)) -> 42303 | F118: =IF(INTRO!$E$49="","",ROUND($D118*INTRO!$E$49,0)) -> 84806 | G118: =IF(INTRO!$E$50="","",ROUND($D118*INTRO!$E$50,0)) -> 194547 | H118: 19 | I118: 1 | J118: 1 | K118: 2 | L118: =IF(INTRO!$E$37="Endémique",IF($H118>0,IF($H118=4,"Inconnu",IF($H118=99,"Interrompu",$D118)),0),"Non requis") -> 333357 | M118: =IF(INTRO!$E$39="Endémique", IF($I118>0, IF($I118=4,"Inconnu",IF($I118=99,"Interrompu",$D118)), 0),"Non requis") -> 333357 | N118: =IF(INTRO!$E$41="Endémique", IF($J118>1, IF($J118=4, "Inconnu", IF($J118=99, "Surveillance", E118)), 0),"Non requis") -> 0 | O118: =IF(INTRO!$E$41="Endémique", IF($J118>1, IF($J118=4, "Inconnu", IF($J118=99, "Surveillance", F118)), 0),"Non requis") -> 0 | P118: =IF(INTRO!$E$41="Endémique", IF($J118>1, IF($J118=4, "Inconnu", IF($J118=99, "Surveillance", ROUND(D118*INTRO!$E$51,0))), 0),"Non requis") -> 0 | Q118: =IF(INTRO!$E$41="Endémique", IF($J118>1, IF($J118=4, "Inconnu", IF($J118=99, "Surveillance", SUM($N118:$P118))), 0),"Non requis") -> 0 | R118: =IF(INTRO!$E$43="Endémique", IF($K118>1, IF($K118=4, "Inconnu", IF($K118=99, "Surveillance", ROUND(E118*0.75,0))), 0),"Non requis") -> 31727 | S118: 0 | T118: =IF(INTRO!$E$43="Endémique", IF($K118>1, IF($K118=4, "Inconnu", IF($K118=99, "Surveillance", G118)), 0),"Non requis") -> 194547 | U118: =IF(INTRO!$E$43="Endémique", IF($K118>1, IF($K118=4, "Inconnu", IF($K118=99, "Surveillance", SUM($R118:$T118))), 0),"Non requis") -> 226274 | V118: 0 | W118: 1 | X118: 0 | Y118: 0 | AA118: TAS | AH118: 15406 | AI118: DANANE
A119: =IF(INTRO!$E$33<>0,INTRO!$E$33, " ") -> Côte d'Ivoire | B119: TONKPI | C119: MAN | D119: 416988 | E119: =IF(INTRO!$E$48="","",ROUND($D119*INTRO!$E$48,0)) -> 52916 | F119: =IF(INTRO!$E$49="","",ROUND($D119*INTRO!$E$49,0)) -> 106082 | G119: =IF(INTRO!$E$50="","",ROUND($D119*INTRO!$E$50,0)) -> 243354 | H119: 19 | I119: 1 | J119: 1 | K119: 2 | L119: =IF(INTRO!$E$37="Endémique",IF($H119>0,IF($H119=4,"Inconnu",IF($H119=99,"Interrompu",$D119)),0),"Non requis") -> 416988 | M119: =IF(INTRO!$E$39="Endémique", IF($I119>0, IF($I119=4,"Inconnu",IF($I119=99,"Interrompu",$D119)), 0),"Non requis") -> 416988 | N119: =IF(INTRO!$E$41="Endémique", IF($J119>1, IF($J119=4, "Inconnu", IF($J119=99, "Surveillance", E119)), 0),"Non requis") -> 0 | O119: =IF(INTRO!$E$41="Endémique", IF($J119>1, IF($J119=4, "Inconnu", IF($J119=99, "Surveillance", F119)), 0),"Non requis") -> 0 | P119: =IF(INTRO!$E$41="Endémique", IF($J119>1, IF($J119=4, "Inconnu", IF($J119=99, "Surveillance", ROUND(D119*INTRO!$E$51,0))), 0),"Non requis") -> 0 | Q119: =IF(INTRO!$E$41="Endémique", IF($J119>1, IF($J119=4, "Inconnu", IF($J119=99, "Surveillance", SUM($N119:$P119))), 0),"Non requis") -> 0 | R119: =IF(INTRO!$E$43="Endémique", IF($K119>1, IF($K119=4, "Inconnu", IF($K119=99, "Surveillance", ROUND(E119*0.75,0))), 0),"Non requis") -> 39687 | S119: 0 | T119: =IF(INTRO!$E$43="Endémique", IF($K119>1, IF($K119=4, "Inconnu", IF($K119=99, "Surveillance", G119)), 0),"Non requis") -> 243354 | U119: =IF(INTRO!$E$43="Endémique", IF($K119>1, IF($K119=4, "Inconnu", IF($K119=99, "Surveillance", SUM($R119:$T119))), 0),"Non requis") -> 283041 | V119: 0 | W119: 1 | X119: 0 | Y119: 0 | AA119: TAS | AH119: 15407 | AI119: MAN
A120: =IF(INTRO!$E$33<>0,INTRO!$E$33, " ") -> Côte d'Ivoire | B120: TONKPI | C120: ZOUAN-HOUNIEN | D120: 243431 | E120: =IF(INTRO!$E$48="","",ROUND($D120*INTRO!$E$48,0)) -> 30891 | F120: =IF(INTRO!$E$49="","",ROUND($D120*INTRO!$E$49,0)) -> 61929 | G120: =IF(INTRO!$E$50="","",ROUND($D120*INTRO!$E$50,0)) -> 142066 | H120: 1 | I120: 1 | J120: 1 | K120: 3 | L120: =IF(INTRO!$E$37="Endémique",IF($H120>0,IF($H120=4,"Inconnu",IF($H120=99,"Interrompu",$D120)),0),"Non requis") -> 243431 | M120: =IF(INTRO!$E$39="Endémique", IF($I120>0, IF($I120=4,"Inconnu",IF($I120=99,"Interrompu",$D120)), 0),"Non requis") -> 243431 | N120: =IF(INTRO!$E$41="Endémique", IF($J120>1, IF($J120=4, "Inconnu", IF($J120=99, "Surveillance", E120)), 0),"Non requis") -> 0 | O120: =IF(INTRO!$E$41="Endémique", IF($J120>1, IF($J120=4, "Inconnu", IF($J120=99, "Surveillance", F120)), 0),"Non requis") -> 0 | P120: =IF(INTRO!$E$41="Endémique", IF($J120>1, IF($J120=4, "Inconnu", IF($J120=99, "Surveillance", ROUND(D120*INTRO!$E$51,0))), 0),"Non requis") -> 0 | Q120: =IF(INTRO!$E$41="Endémique", IF($J120>1, IF($J120=4, "Inconnu", IF($J120=99, "Surveillance", SUM($N120:$P120))), 0),"Non requis") -> 0 | R120: =IF(INTRO!$E$43="Endémique", IF($K120>1, IF($K120=4, "Inconnu", IF($K120=99, "Surveillance", ROUND(E120*0.75,0))), 0),"Non requis") -> 23168 | S120: 62282 | T120: =IF(INTRO!$E$43="Endémique", IF($K120>1, IF($K120=4, "Inconnu", IF($K120=99, "Surveillance", G120)), 0),"Non requis") -> 142066 | U120: =IF(INTRO!$E$43="Endémique", IF($K120>1, IF($K120=4, "Inconnu", IF($K120=99, "Surveillance", SUM($R120:$T120))), 0),"Non requis") -> 227516 | V120: 1 | W120: 1 | X120: 0 | Y120: 1 | AH120: 15408 | AI120: ZOUAN-HOUNIEN
A121: =IF(INTRO!$E$33<>0,INTRO!$E$33, " ") -> Côte d'Ivoire | B121: WORODOUGOU | C121: KANI | D121: 87398 | E121: =IF(INTRO!$E$48="","",ROUND($D121*INTRO!$E$48,0)) -> 11091 | F121: =IF(INTRO!$E$49="","",ROUND($D121*INTRO!$E$49,0)) -> 22234 | G121: =IF(INTRO!$E$50="","",ROUND($D121*INTRO!$E$50,0)) -> 51005 | H121: 19 | I121: 1 | J121: 2 | K121: 1 | L121: =IF(INTRO!$E$37="Endémique",IF($H121>0,IF($H121=4,"Inconnu",IF($H121=99,"Interrompu",$D121)),0),"Non requis") -> 87398 | M121: =IF(INTRO!$E$39="Endémique", IF($I121>0, IF($I121=4,"Inconnu",IF($I121=99,"Interrompu",$D121)), 0),"Non requis") -> 87398 | N121: =IF(INTRO!$E$41="Endémique", IF($J121>1, IF($J121=4, "Inconnu", IF($J121=99, "Surveillance", E121)), 0),"Non requis") -> 11091 | O121: =IF(INTRO!$E$41="Endémique", IF($J121>1, IF($J121=4, "Inconnu", IF($J121=99, "Surveillance", F121)), 0),"Non requis") -> 22234 | P121: =IF(INTRO!$E$41="Endémique", IF($J121>1, IF($J121=4, "Inconnu", IF($J121=99, "Surveillance", ROUND(D121*INTRO!$E$51,0))), 0),"Non requis") -> 21089 | Q121: =IF(INTRO!$E$41="Endémique", IF($J121>1, IF($J121=4, "Inconnu", IF($J121=99, "Surveillance", SUM($N121:$P121))), 0),"Non requis") -> 54414 | R121: =IF(INTRO!$E$43="Endémique", IF($K121>1, IF($K121=4, "Inconnu", IF($K121=99, "Surveillance", ROUND(E121*0.75,0))), 0),"Non requis") -> 0 | S121: 22359 | T121: =IF(INTRO!$E$43="Endémique", IF($K121>1, IF($K121=4, "Inconnu", IF($K121=99, "Surveillance", G121)), 0),"Non requis") -> 0 | U121: =IF(INTRO!$E$43="Endémique", IF($K121>1, IF($K121=4, "Inconnu", IF($K121=99, "Surveillance", SUM($R121:$T121))), 0),"Non requis") -> 0 | V121: 0 | W121: 1 | X121: 1 | Y121: 1 | AH121: 15461 | AI121: KANI
A122: =IF(INTRO!$E$33<>0,INTRO!$E$33, " ") -> Côte d'Ivoire | B122: WORODOUGOU | C122: SEGUELA | D122: 234729 | E122: =IF(INTRO!$E$48="","",ROUND($D122*INTRO!$E$48,0)) -> 29787 | F122: =IF(INTRO!$E$49="","",ROUND($D122*INTRO!$E$49,0)) -> 59715 | G122: =IF(INTRO!$E$50="","",ROUND($D122*INTRO!$E$50,0)) -> 136988 | H122: 19 | I122: 1 | J122: 2 | K122: 1 | L122: =IF(INTRO!$E$37="Endémique",IF($H122>0,IF($H122=4,"Inconnu",IF($H122=99,"Interrompu",$D122)),0),"Non requis") -> 234729 | M122: =IF(INTRO!$E$39="Endémique", IF($I122>0, IF($I122=4,"Inconnu",IF($I122=99,"Interrompu",$D122)), 0),"Non requis") -> 234729 | N122: =IF(INTRO!$E$41="Endémique", IF($J122>1, IF($J122=4, "Inconnu", IF($J122=99, "Surveillance", E122)), 0),"Non requis") -> 29787 | O122: =IF(INTRO!$E$41="Endémique", IF($J122>1, IF($J122=4, "Inconnu", IF($J122=99, "Surveillance", F122)), 0),"Non requis") -> 59715 | P122: =IF(INTRO!$E$41="Endémique", IF($J122>1, IF($J122=4, "Inconnu", IF($J122=99, "Surveillance", ROUND(D122*INTRO!$E$51,0))), 0),"Non requis") -> 56640 | Q122: =IF(INTRO!$E$41="Endémique", IF($J122>1, IF($J122=4, "Inconnu", IF($J122=99, "Surveillance", SUM($N122:$P122))), 0),"Non requis") -> 146142 | R122: =IF(INTRO!$E$43="Endémique", IF($K122>1, IF($K122=4, "Inconnu", IF($K122=99, "Surveillance", ROUND(E122*0.75,0))), 0),"Non requis") -> 0 | S122: 52952 | T122: =IF(INTRO!$E$43="Endémique", IF($K122>1, IF($K122=4, "Inconnu", IF($K122=99, "Surveillance", G122)), 0),"Non requis") -> 0 | U122: =IF(INTRO!$E$43="Endémique", IF($K122>1, IF($K122=4, "Inconnu", IF($K122=99, "Surveillance", SUM($R122:$T122))), 0),"Non requis") -> 0 | V122: 0 | W122: 1 | X122: 1 | Y122: 1 | AH122: 15462 | AI122: SEGUELA

Sheet DEC (hidden)
A1: Diethylcarbamazine (DEC)
A2: Structure administrative, population ciblée par groupe d'âge, plan de traitement et information sur les comprimés
A4: TOTAL | D4: =SUBTOTAL(9,D$10:D$1010) -> 0 | E4: 0 | F4: 0 | G4: 0 | I4: =SUBTOTAL(9,I$10:I$1010) -> 0 | J4: 0 | K4: 0 | L4: 0
A6: Structure administrative du pays | D6: Population nécessitant un traitement avec DEC | H6: Plan de traitement | I6: Population cible | J6: Diethylcarbamazine (DEC)
A7: Pays | B7: Région/Département | C7: District | D7: EAPréS | E7: EAS | F7: Adultes | G7: Total | H7: FL | I7: FL | J7: Total requis | K7: Reste en stock | L7: Comprimés devant être fournis
A10: =IF(INTRO!$E$39<>"Non endémique", " ", IF(INTRO!$E$37="Non endémique"," ", IF(COUNTRY_INFO!A10=0," ",COUNTRY_INFO!A10))) ->  | B10: =IF(INTRO!$E$39<>"Non endémique", " ", IF(INTRO!$E$37="Non endémique"," ", IF(COUNTRY_INFO!B10=0," ",COUNTRY_INFO!B10))) ->  | C10: =IF(INTRO!$E$39<>"Non endémique", " ", IF(INTRO!$E$37="Non endémique"," ", IF(COUNTRY_INFO!C10=0," ",COUNTRY_INFO!C10))) ->  | D10: =IF(INTRO!$E$39<>"Non endémique", 0, IF(INTRO!$E$37="Non endémique",0,IF(COUNTRY_INFO!$H10=1,COUNTRY_INFO!E10,0))) -> 0 | E10: =IF(INTRO!$E$39<>"Non endémique", 0, IF(INTRO!$E$37="Non endémique",0,IF(COUNTRY_INFO!$H10=1,COUNTRY_INFO!F10,0))) -> 0 | F10: =IF(INTRO!$E$39<>"Non endémique", 0, IF(INTRO!$E$37="Non endémique",0,IF(COUNTRY_INFO!$H10=1,COUNTRY_INFO!G10,0))) -> 0 | G10: =SUM(D10:F10) -> 0 | H10: =IF(INTRO!$E$39="Non endémique",IF(INTRO!$E$37="Non endémique","Non requis",COUNTRY_INFO!V10),"Traiter avec IVM") -> Traiter avec IVM | I10: =IF(H10=1,G10,0) -> 0 | J10: =IF(I10>0,I10*2.5,0) -> 0 | L10: =IF($J10>$K10,$J10-$K10,0) -> 0
A11: =IF(INTRO!$E$39<>"Non endémique", " ", IF(INTRO!$E$37="Non endémique"," ", IF(COUNTRY_INFO!A11=0," ",COUNTRY_INFO!A11))) ->  | B11: =IF(INTRO!$E$39<>"Non endémique", " ", IF(INTRO!$E$37="Non endémique"," ", IF(COUNTRY_INFO!B11=0," ",COUNTRY_INFO!B11))) ->  | C11: =IF(INTRO!$E$39<>"Non endémique", " ", IF(INTRO!$E$37="Non endémique"," ", IF(COUNTRY_INFO!C11=0," ",COUNTRY_INFO!C11))) ->  | D11: =IF(INTRO!$E$39<>"Non endémique", 0, IF(INTRO!$E$37="Non endémique",0,IF(COUNTRY_INFO!$H11=1,COUNTRY_INFO!E11,0))) -> 0 | E11: =IF(INTRO!$E$39<>"Non endémique", 0, IF(INTRO!$E$37="Non endémique",0,IF(COUNTRY_INFO!$H11=1,COUNTRY_INFO!F11,0))) -> 0 | F11: =IF(INTRO!$E$39<>"Non endémique", 0, IF(INTRO!$E$37="Non endémique",0,IF(COUNTRY_INFO!$H11=1,COUNTRY_INFO!G11,0))) -> 0 | G11: =SUM(D11:F11) -> 0 | H11: =IF(INTRO!$E$39="Non endémique",IF(INTRO!$E$37="Non endémique","Non requis",COUNTRY_INFO!V11),"Traiter avec IVM") -> Traiter avec IVM | I11: =IF(H11=1,G11,0) -> 0 | J11: =IF(I11>0,I11*2.5,0) -> 0 | L11: 0
A12: =IF(INTRO!$E$39<>"Non endémique", " ", IF(INTRO!$E$37="Non endémique"," ", IF(COUNTRY_INFO!A12=0," ",COUNTRY_INFO!A12))) ->  | B12: =IF(INTRO!$E$39<>"Non endémique", " ", IF(INTRO!$E$37="Non endémique"," ", IF(COUNTRY_INFO!B12=0," ",COUNTRY_INFO!B12))) ->  | C12: =IF(INTRO!$E$39<>"Non endémique", " ", IF(INTRO!$E$37="Non endémique"," ", IF(COUNTRY_INFO!C12=0," ",COUNTRY_INFO!C12))) ->  | D12: =IF(INTRO!$E$39<>"Non endémique", 0, IF(INTRO!$E$37="Non endémique",0,IF(COUNTRY_INFO!$H12=1,COUNTRY_INFO!E12,0))) -> 0 | E12: =IF(INTRO!$E$39<>"Non endémique", 0, IF(INTRO!$E$37="Non endémique",0,IF(COUNTRY_INFO!$H12=1,COUNTRY_INFO!F12,0))) -> 0 | F12: =IF(INTRO!$E$39<>"Non endémique", 0, IF(INTRO!$E$37="Non endémique",0,IF(COUNTRY_INFO!$H12=1,COUNTRY_INFO!G12,0))) -> 0 | G12: 0 | H12: =IF(INTRO!$E$39="Non endémique",IF(INTRO!$E$37="Non endémique","Non requis",COUNTRY_INFO!V12),"Traiter avec IVM") -> Traiter avec IVM | I12: 0 | J12: 0 | L12: 0
A13: =IF(INTRO!$E$39<>"Non endémique", " ", IF(INTRO!$E$37="Non endémique"," ", IF(COUNTRY_INFO!A13=0," ",COUNTRY_INFO!A13))) ->  | B13: =IF(INTRO!$E$39<>"Non endémique", " ", IF(INTRO!$E$37="Non endémique"," ", IF(COUNTRY_INFO!B13=0," ",COUNTRY_INFO!B13))) ->  | C13: =IF(INTRO!$E$39<>"Non endémique", " ", IF(INTRO!$E$37="Non endémique"," ", IF(COUNTRY_INFO!C13=0," ",COUNTRY_INFO!C13))) ->  | D13: =IF(INTRO!$E$39<>"Non endémique", 0, IF(INTRO!$E$37="Non endémique",0,IF(COUNTRY_INFO!$H13=1,COUNTRY_INFO!E13,0))) -> 0 | E13: =IF(INTRO!$E$39<>"Non endémique", 0, IF(INTRO!$E$37="Non endémique",0,IF(COUNTRY_INFO!$H13=1,COUNTRY_INFO!F13,0))) -> 0 | F13: =IF(INTRO!$E$39<>"Non endémique", 0, IF(INTRO!$E$37="Non endémique",0,IF(COUNTRY_INFO!$H13=1,COUNTRY_INFO!G13,0))) -> 0 | G13: 0 | H13: =IF(INTRO!$E$39="Non endémique",IF(INTRO!$E$37="Non endémique","Non requis",COUNTRY_INFO!V13),"Traiter avec IVM") -> Traiter avec IVM | I13: 0 | J13: 0 | L13: 0
A14: =IF(INTRO!$E$39<>"Non endémique", " ", IF(INTRO!$E$37="Non endémique"," ", IF(COUNTRY_INFO!A14=0," ",COUNTRY_INFO!A14))) ->  | B14: =IF(INTRO!$E$39<>"Non endémique", " ", IF(INTRO!$E$37="Non endémique"," ", IF(COUNTRY_INFO!B14=0," ",COUNTRY_INFO!B14))) ->  | C14: =IF(INTRO!$E$39<>"Non endémique", " ", IF(INTRO!$E$37="Non endémique"," ", IF(COUNTRY_INFO!C14=0," ",COUNTRY_INFO!C14))) ->  | D14: =IF(INTRO!$E$39<>"Non endémique", 0, IF(INTRO!$E$37="Non endémique",0,IF(COUNTRY_INFO!$H14=1,COUNTRY_INFO!E14,0))) -> 0 | E14: =IF(INTRO!$E$39<>"Non endémique", 0, IF(INTRO!$E$37="Non endémique",0,IF(COUNTRY_INFO!$H14=1,COUNTRY_INFO!F14,0))) -> 0 | F14: =IF(INTRO!$E$39<>"Non endémique", 0, IF(INTRO!$E$37="Non endémique",0,IF(COUNTRY_INFO!$H14=1,COUNTRY_INFO!G14,0))) -> 0 | G14: 0 | H14: =IF(INTRO!$E$39="Non endémique",IF(INTRO!$E$37="Non endémique","Non requis",COUNTRY_INFO!V14),"Traiter avec IVM") -> Traiter avec IVM | I14: 0 | J14: 0 | L14: 0
A15: =IF(INTRO!$E$39<>"Non endémique", " ", IF(INTRO!$E$37="Non endémique"," ", IF(COUNTRY_INFO!A15=0," ",COUNTRY_INFO!A15))) ->  | B15: =IF(INTRO!$E$39<>"Non endémique", " ", IF(INTRO!$E$37="Non endémique"," ", IF(COUNTRY_INFO!B15=0," ",COUNTRY_INFO!B15))) ->  | C15: =IF(INTRO!$E$39<>"Non endémique", " ", IF(INTRO!$E$37="Non endémique"," ", IF(COUNTRY_INFO!C15=0," ",COUNTRY_INFO!C15))) ->  | D15: =IF(INTRO!$E$39<>"Non endémique", 0, IF(INTRO!$E$37="Non endémique",0,IF(COUNTRY_INFO!$H15=1,COUNTRY_INFO!E15,0))) -> 0 | E15: =IF(INTRO!$E$39<>"Non endémique", 0, IF(INTRO!$E$37="Non endémique",0,IF(COUNTRY_INFO!$H15=1,COUNTRY_INFO!F15,0))) -> 0 | F15: =IF(INTRO!$E$39<>"Non endémique", 0, IF(INTRO!$E$37="Non endémique",0,IF(COUNTRY_INFO!$H15=1,COUNTRY_INFO!G15,0))) -> 0 | G15: 0 | H15: =IF(INTRO!$E$39="Non endémique",IF(INTRO!$E$37="Non endémique","Non requis",COUNTRY_INFO!V15),"Traiter avec IVM") -> Traiter avec IVM | I15: 0 | J15: 0 | L15: 0
A16: =IF(INTRO!$E$39<>"Non endémique", " ", IF(INTRO!$E$37="Non endémique"," ", IF(COUNTRY_INFO!A16=0," ",COUNTRY_INFO!A16))) ->  | B16: =IF(INTRO!$E$39<>"Non endémique", " ", IF(INTRO!$E$37="Non endémique"," ", IF(COUNTRY_INFO!B16=0," ",COUNTRY_INFO!B16))) ->  | C16: =IF(INTRO!$E$39<>"Non endémique", " ", IF(INTRO!$E$37="Non endémique"," ", IF(COUNTRY_INFO!C16=0," ",COUNTRY_INFO!C16))) ->  | D16: =IF(INTRO!$E$39<>"Non endémique", 0, IF(INTRO!$E$37="Non endémique",0,IF(COUNTRY_INFO!$H16=1,COUNTRY_INFO!E16,0))) -> 0 | E16: =IF(INTRO!$E$39<>"Non endémique", 0, IF(INTRO!$E$37="Non endémique",0,IF(COUNTRY_INFO!$H16=1,COUNTRY_INFO!F16,0))) -> 0 | F16: =IF(INTRO!$E$39<>"Non endémique", 0, IF(INTRO!$E$37="Non endémique",0,IF(COUNTRY_INFO!$H16=1,COUNTRY_INFO!G16,0))) -> 0 | G16: 0 | H16: =IF(INTRO!$E$39="Non endémique",IF(INTRO!$E$37="Non endémique","Non requis",COUNTRY_INFO!V16),"Traiter avec IVM") -> Traiter avec IVM | I16: 0 | J16: 0 | L16: 0
A17: =IF(INTRO!$E$39<>"Non endémique", " ", IF(INTRO!$E$37="Non endémique"," ", IF(COUNTRY_INFO!A17=0," ",COUNTRY_INFO!A17))) ->  | B17: =IF(INTRO!$E$39<>"Non endémique", " ", IF(INTRO!$E$37="Non endémique"," ", IF(COUNTRY_INFO!B17=0," ",COUNTRY_INFO!B17))) ->  | C17: =IF(INTRO!$E$39<>"Non endémique", " ", IF(INTRO!$E$37="Non endémique"," ", IF(COUNTRY_INFO!C17=0," ",COUNTRY_INFO!C17))) ->  | D17: =IF(INTRO!$E$39<>"Non endémique", 0, IF(INTRO!$E$37="Non endémique",0,IF(COUNTRY_INFO!$H17=1,COUNTRY_INFO!E17,0))) -> 0 | E17: =IF(INTRO!$E$39<>"Non endémique", 0, IF(INTRO!$E$37="Non endémique",0,IF(COUNTRY_INFO!$H17=1,COUNTRY_INFO!F17,0))) -> 0 | F17: =IF(INTRO!$E$39<>"Non endémique", 0, IF(INTRO!$E$37="Non endémique",0,IF(COUNTRY_INFO!$H17=1,COUNTRY_INFO!G17,0))) -> 0 | G17: 0 | H17: =IF(INTRO!$E$39="Non endémique",IF(INTRO!$E$37="Non endémique","Non requis",COUNTRY_INFO!V17),"Traiter avec IVM") -> Traiter avec IVM | I17: 0 | J17: 0 | L17: 0
A18: =IF(INTRO!$E$39<>"Non endémique", " ", IF(INTRO!$E$37="Non endémique"," ", IF(COUNTRY_INFO!A18=0," ",COUNTRY_INFO!A18))) ->  | B18: =IF(INTRO!$E$39<>"Non endémique", " ", IF(INTRO!$E$37="Non endémique"," ", IF(COUNTRY_INFO!B18=0," ",COUNTRY_INFO!B18))) ->  | C18: =IF(INTRO!$E$39<>"Non endémique", " ", IF(INTRO!$E$37="Non endémique"," ", IF(COUNTRY_INFO!C18=0," ",COUNTRY_INFO!C18))) ->  | D18: =IF(INTRO!$E$39<>"Non endémique", 0, IF(INTRO!$E$37="Non endémique",0,IF(COUNTRY_INFO!$H18=1,COUNTRY_INFO!E18,0))) -> 0 | E18: =IF(INTRO!$E$39<>"Non endémique", 0, IF(INTRO!$E$37="Non endémique",0,IF(COUNTRY_INFO!$H18=1,COUNTRY_INFO!F18,0))) -> 0 | F18: =IF(INTRO!$E$39<>"Non endémique", 0, IF(INTRO!$E$37="Non endémique",0,IF(COUNTRY_INFO!$H18=1,COUNTRY_INFO!G18,0))) -> 0 | G18: 0 | H18: =IF(INTRO!$E$39="Non endémique",IF(INTRO!$E$37="Non endémique","Non requis",COUNTRY_INFO!V18),"Traiter avec IVM") -> Traiter avec IVM | I18: 0 | J18: 0 | L18: 0
A19: =IF(INTRO!$E$39<>"Non endémique", " ", IF(INTRO!$E$37="Non endémique"," ", IF(COUNTRY_INFO!A19=0," ",COUNTRY_INFO!A19))) ->  | B19: =IF(INTRO!$E$39<>"Non endémique", " ", IF(INTRO!$E$37="Non endémique"," ", IF(COUNTRY_INFO!B19=0," ",COUNTRY_INFO!B19))) ->  | C19: =IF(INTRO!$E$39<>"Non endémique", " ", IF(INTRO!$E$37="Non endémique"," ", IF(COUNTRY_INFO!C19=0," ",COUNTRY_INFO!C19))) ->  | D19: =IF(INTRO!$E$39<>"Non endémique", 0, IF(INTRO!$E$37="Non endémique",0,IF(COUNTRY_INFO!$H19=1,COUNTRY_INFO!E19,0))) -> 0 | E19: =IF(INTRO!$E$39<>"Non endémique", 0, IF(INTRO!$E$37="Non endémique",0,IF(COUNTRY_INFO!$H19=1,COUNTRY_INFO!F19,0))) -> 0 | F19: =IF(INTRO!$E$39<>"Non endémique", 0, IF(INTRO!$E$37="Non endémique",0,IF(COUNTRY_INFO!$H19=1,COUNTRY_INFO!G19,0))) -> 0 | G19: 0 | H19: =IF(INTRO!$E$39="Non endémique",IF(INTRO!$E$37="Non endémique","Non requis",COUNTRY_INFO!V19),"Traiter avec IVM") -> Traiter avec IVM | I19: 0 | J19: 0 | L19: 0
A20: =IF(INTRO!$E$39<>"Non endémique", " ", IF(INTRO!$E$37="Non endémique"," ", IF(COUNTRY_INFO!A20=0," ",COUNTRY_INFO!A20))) ->  | B20: =IF(INTRO!$E$39<>"Non endémique", " ", IF(INTRO!$E$37="Non endémique"," ", IF(COUNTRY_INFO!B20=0," ",COUNTRY_INFO!B20))) ->  | C20: =IF(INTRO!$E$39<>"Non endémique", " ", IF(INTRO!$E$37="Non endémique"," ", IF(COUNTRY_INFO!C20=0," ",COUNTRY_INFO!C20))) ->  | D20: =IF(INTRO!$E$39<>"Non endémique", 0, IF(INTRO!$E$37="Non endémique",0,IF(COUNTRY_INFO!$H20=1,COUNTRY_INFO!E20,0))) -> 0 | E20: =IF(INTRO!$E$39<>"Non endémique", 0, IF(INTRO!$E$37="Non endémique",0,IF(COUNTRY_INFO!$H20=1,COUNTRY_INFO!F20,0))) -> 0 | F20: =IF(INTRO!$E$39<>"Non endémique", 0, IF(INTRO!$E$37="Non endémique",0,IF(COUNTRY_INFO!$H20=1,COUNTRY_INFO!G20,0))) -> 0 | G20: 0 | H20: =IF(INTRO!$E$39="Non endémique",IF(INTRO!$E$37="Non endémique","Non requis",COUNTRY_INFO!V20),"Traiter avec IVM") -> Traiter avec IVM | I20: 0 | J20: 0 | L20: 0
A21: =IF(INTRO!$E$39<>"Non endémique", " ", IF(INTRO!$E$37="Non endémique"," ", IF(COUNTRY_INFO!A21=0," ",COUNTRY_INFO!A21))) ->  | B21: =IF(INTRO!$E$39<>"Non endémique", " ", IF(INTRO!$E$37="Non endémique"," ", IF(COUNTRY_INFO!B21=0," ",COUNTRY_INFO!B21))) ->  | C21: =IF(INTRO!$E$39<>"Non endémique", " ", IF(INTRO!$E$37="Non endémique"," ", IF(COUNTRY_INFO!C21=0," ",COUNTRY_INFO!C21))) ->  | D21: =IF(INTRO!$E$39<>"Non endémique", 0, IF(INTRO!$E$37="Non endémique",0,IF(COUNTRY_INFO!$H21=1,COUNTRY_INFO!E21,0))) -> 0 | E21: =IF(INTRO!$E$39<>"Non endémique", 0, IF(INTRO!$E$37="Non endémique",0,IF(COUNTRY_INFO!$H21=1,COUNTRY_INFO!F21,0))) -> 0 | F21: =IF(INTRO!$E$39<>"Non endémique", 0, IF(INTRO!$E$37="Non endémique",0,IF(COUNTRY_INFO!$H21=1,COUNTRY_INFO!G21,0))) -> 0 | G21: 0 | H21: =IF(INTRO!$E$39="Non endémique",IF(INTRO!$E$37="Non endémique","Non requis",COUNTRY_INFO!V21),"Traiter avec IVM") -> Traiter avec IVM | I21: 0 | J21: 0 | L21: 0
A22: =IF(INTRO!$E$39<>"Non endémique", " ", IF(INTRO!$E$37="Non endémique"," ", IF(COUNTRY_INFO!A22=0," ",COUNTRY_INFO!A22))) ->  | B22: =IF(INTRO!$E$39<>"Non endémique", " ", IF(INTRO!$E$37="Non endémique"," ", IF(COUNTRY_INFO!B22=0," ",COUNTRY_INFO!B22))) ->  | C22: =IF(INTRO!$E$39<>"Non endémique", " ", IF(INTRO!$E$37="Non endémique"," ", IF(COUNTRY_INFO!C22=0," ",COUNTRY_INFO!C22))) ->  | D22: =IF(INTRO!$E$39<>"Non endémique", 0, IF(INTRO!$E$37="Non endémique",0,IF(COUNTRY_INFO!$H22=1,COUNTRY_INFO!E22,0))) -> 0 | E22: =IF(INTRO!$E$39<>"Non endémique", 0, IF(INTRO!$E$37="Non endémique",0,IF(COUNTRY_INFO!$H22=1,COUNTRY_INFO!F22,0))) -> 0 | F22: =IF(INTRO!$E$39<>"Non endémique", 0, IF(INTRO!$E$37="Non endémique",0,IF(COUNTRY_INFO!$H22=1,COUNTRY_INFO!G22,0))) -> 0 | G22: 0 | H22: =IF(INTRO!$E$39="Non endémique",IF(INTRO!$E$37="Non endémique","Non requis",COUNTRY_INFO!V22),"Traiter avec IVM") -> Traiter avec IVM | I22: 0 | J22: 0 | L22: 0
A23: =IF(INTRO!$E$39<>"Non endémique", " ", IF(INTRO!$E$37="Non endémique"," ", IF(COUNTRY_INFO!A23=0," ",COUNTRY_INFO!A23))) ->  | B23: =IF(INTRO!$E$39<>"Non endémique", " ", IF(INTRO!$E$37="Non endémique"," ", IF(COUNTRY_INFO!B23=0," ",COUNTRY_INFO!B23))) ->  | C23: =IF(INTRO!$E$39<>"Non endémique", " ", IF(INTRO!$E$37="Non endémique"," ", IF(COUNTRY_INFO!C23=0," ",COUNTRY_INFO!C23))) ->  | D23: =IF(INTRO!$E$39<>"Non endémique", 0, IF(INTRO!$E$37="Non endémique",0,IF(COUNTRY_INFO!$H23=1,COUNTRY_INFO!E23,0))) -> 0 | E23: =IF(INTRO!$E$39<>"Non endémique", 0, IF(INTRO!$E$37="Non endémique",0,IF(COUNTRY_INFO!$H23=1,COUNTRY_INFO!F23,0))) -> 0 | F23: =IF(INTRO!$E$39<>"Non endémique", 0, IF(INTRO!$E$37="Non endémique",0,IF(COUNTRY_INFO!$H23=1,COUNTRY_INFO!G23,0))) -> 0 | G23: 0 | H23: =IF(INTRO!$E$39="Non endémique",IF(INTRO!$E$37="Non endémique","Non requis",COUNTRY_INFO!V23),"Traiter avec IVM") -> Traiter avec IVM | I23: 0 | J23: 0 | L23: 0
A24: =IF(INTRO!$E$39<>"Non endémique", " ", IF(INTRO!$E$37="Non endémique"," ", IF(COUNTRY_INFO!A24=0," ",COUNTRY_INFO!A24))) ->  | B24: =IF(INTRO!$E$39<>"Non endémique", " ", IF(INTRO!$E$37="Non endémique"," ", IF(COUNTRY_INFO!B24=0," ",COUNTRY_INFO!B24))) ->  | C24: =IF(INTRO!$E$39<>"Non endémique", " ", IF(INTRO!$E$37="Non endémique"," ", IF(COUNTRY_INFO!C24=0," ",COUNTRY_INFO!C24))) ->  | D24: =IF(INTRO!$E$39<>"Non endémique", 0, IF(INTRO!$E$37="Non endémique",0,IF(COUNTRY_INFO!$H24=1,COUNTRY_INFO!E24,0))) -> 0 | E24: =IF(INTRO!$E$39<>"Non endémique", 0, IF(INTRO!$E$37="Non endémique",0,IF(COUNTRY_INFO!$H24=1,COUNTRY_INFO!F24,0))) -> 0 | F24: =IF(INTRO!$E$39<>"Non endémique", 0, IF(INTRO!$E$37="Non endémique",0,IF(COUNTRY_INFO!$H24=1,COUNTRY_INFO!G24,0))) -> 0 | G24: 0 | H24: =IF(INTRO!$E$39="Non endémique",IF(INTRO!$E$37="Non endémique","Non requis",COUNTRY_INFO!V24),"Traiter avec IVM") -> Traiter avec IVM | I24: 0 | J24: 0 | L24: 0
A25: =IF(INTRO!$E$39<>"Non endémique", " ", IF(INTRO!$E$37="Non endémique"," ", IF(COUNTRY_INFO!A25=0," ",COUNTRY_INFO!A25))) ->  | B25: =IF(INTRO!$E$39<>"Non endémique", " ", IF(INTRO!$E$37="Non endémique"," ", IF(COUNTRY_INFO!B25=0," ",COUNTRY_INFO!B25))) ->  | C25: =IF(INTRO!$E$39<>"Non endémique", " ", IF(INTRO!$E$37="Non endémique"," ", IF(COUNTRY_INFO!C25=0," ",COUNTRY_INFO!C25))) ->  | D25: =IF(INTRO!$E$39<>"Non endémique", 0, IF(INTRO!$E$37="Non endémique",0,IF(COUNTRY_INFO!$H25=1,COUNTRY_INFO!E25,0))) -> 0 | E25: =IF(INTRO!$E$39<>"Non endémique", 0, IF(INTRO!$E$37="Non endémique",0,IF(COUNTRY_INFO!$H25=1,COUNTRY_INFO!F25,0))) -> 0 | F25: =IF(INTRO!$E$39<>"Non endémique", 0, IF(INTRO!$E$37="Non endémique",0,IF(COUNTRY_INFO!$H25=1,COUNTRY_INFO!G25,0))) -> 0 | G25: 0 | H25: =IF(INTRO!$E$39="Non endémique",IF(INTRO!$E$37="Non endémique","Non requis",COUNTRY_INFO!V25),"Traiter avec IVM") -> Traiter avec IVM | I25: 0 | J25: 0 | L25: 0
A26: =IF(INTRO!$E$39<>"Non endémique", " ", IF(INTRO!$E$37="Non endémique"," ", IF(COUNTRY_INFO!A26=0," ",COUNTRY_INFO!A26))) ->  | B26: =IF(INTRO!$E$39<>"Non endémique", " ", IF(INTRO!$E$37="Non endémique"," ", IF(COUNTRY_INFO!B26=0," ",COUNTRY_INFO!B26))) ->  | C26: =IF(INTRO!$E$39<>"Non endémique", " ", IF(INTRO!$E$37="Non endémique"," ", IF(COUNTRY_INFO!C26=0," ",COUNTRY_INFO!C26))) ->  | D26: =IF(INTRO!$E$39<>"Non endémique", 0, IF(INTRO!$E$37="Non endémique",0,IF(COUNTRY_INFO!$H26=1,COUNTRY_INFO!E26,0))) -> 0 | E26: =IF(INTRO!$E$39<>"Non endémique", 0, IF(INTRO!$E$37="Non endémique",0,IF(COUNTRY_INFO!$H26=1,COUNTRY_INFO!F26,0))) -> 0 | F26: =IF(INTRO!$E$39<>"Non endémique", 0, IF(INTRO!$E$37="Non endémique",0,IF(COUNTRY_INFO!$H26=1,COUNTRY_INFO!G26,0))) -> 0 | G26: 0 | H26: =IF(INTRO!$E$39="Non endémique",IF(INTRO!$E$37="Non endémique","Non requis",COUNTRY_INFO!V26),"Traiter avec IVM") -> Traiter avec IVM | I26: 0 | J26: 0 | L26: 0
A27: =IF(INTRO!$E$39<>"Non endémique", " ", IF(INTRO!$E$37="Non endémique"," ", IF(COUNTRY_INFO!A27=0," ",COUNTRY_INFO!A27))) ->  | B27: =IF(INTRO!$E$39<>"Non endémique", " ", IF(INTRO!$E$37="Non endémique"," ", IF(COUNTRY_INFO!B27=0," ",COUNTRY_INFO!B27))) ->  | C27: =IF(INTRO!$E$39<>"Non endémique", " ", IF(INTRO!$E$37="Non endémique"," ", IF(COUNTRY_INFO!C27=0," ",COUNTRY_INFO!C27))) ->  | D27: =IF(INTRO!$E$39<>"Non endémique", 0, IF(INTRO!$E$37="Non endémique",0,IF(COUNTRY_INFO!$H27=1,COUNTRY_INFO!E27,0))) -> 0 | E27: =IF(INTRO!$E$39<>"Non endémique", 0, IF(INTRO!$E$37="Non endémique",0,IF(COUNTRY_INFO!$H27=1,COUNTRY_INFO!F27,0))) -> 0 | F27: =IF(INTRO!$E$39<>"Non endémique", 0, IF(INTRO!$E$37="Non endémique",0,IF(COUNTRY_INFO!$H27=1,COUNTRY_INFO!G27,0))) -> 0 | G27: 0 | H27: =IF(INTRO!$E$39="Non endémique",IF(INTRO!$E$37="Non endémique","Non requis",COUNTRY_INFO!V27),"Traiter avec IVM") -> Traiter avec IVM | I27: 0 | J27: 0 | L27: 0
A28: =IF(INTRO!$E$39<>"Non endémique", " ", IF(INTRO!$E$37="Non endémique"," ", IF(COUNTRY_INFO!A28=0," ",COUNTRY_INFO!A28))) ->  | B28: =IF(INTRO!$E$39<>"Non endémique", " ", IF(INTRO!$E$37="Non endémique"," ", IF(COUNTRY_INFO!B28=0," ",COUNTRY_INFO!B28))) ->  | C28: =IF(INTRO!$E$39<>"Non endémique", " ", IF(INTRO!$E$37="Non endémique"," ", IF(COUNTRY_INFO!C28=0," ",COUNTRY_INFO!C28))) ->  | D28: =IF(INTRO!$E$39<>"Non endémique", 0, IF(INTRO!$E$37="Non endémique",0,IF(COUNTRY_INFO!$H28=1,COUNTRY_INFO!E28,0))) -> 0 | E28: =IF(INTRO!$E$39<>"Non endémique", 0, IF(INTRO!$E$37="Non endémique",0,IF(COUNTRY_INFO!$H28=1,COUNTRY_INFO!F28,0))) -> 0 | F28: =IF(INTRO!$E$39<>"Non endémique", 0, IF(INTRO!$E$37="Non endémique",0,IF(COUNTRY_INFO!$H28=1,COUNTRY_INFO!G28,0))) -> 0 | G28: 0 | H28: =IF(INTRO!$E$39="Non endémique",IF(INTRO!$E$37="Non endémique","Non requis",COUNTRY_INFO!V28),"Traiter avec IVM") -> Traiter avec IVM | I28: 0 | J28: 0 | L28: 0
A29: =IF(INTRO!$E$39<>"Non endémique", " ", IF(INTRO!$E$37="Non endémique"," ", IF(COUNTRY_INFO!A29=0," ",COUNTRY_INFO!A29))) ->  | B29: =IF(INTRO!$E$39<>"Non endémique", " ", IF(INTRO!$E$37="Non endémique"," ", IF(COUNTRY_INFO!B29=0," ",COUNTRY_INFO!B29))) ->  | C29: =IF(INTRO!$E$39<>"Non endémique", " ", IF(INTRO!$E$37="Non endémique"," ", IF(COUNTRY_INFO!C29=0," ",COUNTRY_INFO!C29))) ->  | D29: =IF(INTRO!$E$39<>"Non endémique", 0, IF(INTRO!$E$37="Non endémique",0,IF(COUNTRY_INFO!$H29=1,COUNTRY_INFO!E29,0))) -> 0 | E29: =IF(INTRO!$E$39<>"Non endémique", 0, IF(INTRO!$E$37="Non endémique",0,IF(COUNTRY_INFO!$H29=1,COUNTRY_INFO!F29,0))) -> 0 | F29: =IF(INTRO!$E$39<>"Non endémique", 0, IF(INTRO!$E$37="Non endémique",0,IF(COUNTRY_INFO!$H29=1,COUNTRY_INFO!G29,0))) -> 0 | G29: 0 | H29: =IF(INTRO!$E$39="Non endémique",IF(INTRO!$E$37="Non endémique","Non requis",COUNTRY_INFO!V29),"Traiter avec IVM") -> Traiter avec IVM | I29: 0 | J29: 0 | L29: 0
A30: =IF(INTRO!$E$39<>"Non endémique", " ", IF(INTRO!$E$37="Non endémique"," ", IF(COUNTRY_INFO!A30=0," ",COUNTRY_INFO!A30))) ->  | B30: =IF(INTRO!$E$39<>"Non endémique", " ", IF(INTRO!$E$37="Non endémique"," ", IF(COUNTRY_INFO!B30=0," ",COUNTRY_INFO!B30))) ->  | C30: =IF(INTRO!$E$39<>"Non endémique", " ", IF(INTRO!$E$37="Non endémique"," ", IF(COUNTRY_INFO!C30=0," ",COUNTRY_INFO!C30))) ->  | D30: =IF(INTRO!$E$39<>"Non endémique", 0, IF(INTRO!$E$37="Non endémique",0,IF(COUNTRY_INFO!$H30=1,COUNTRY_INFO!E30,0))) -> 0 | E30: =IF(INTRO!$E$39<>"Non endémique", 0, IF(INTRO!$E$37="Non endémique",0,IF(COUNTRY_INFO!$H30=1,COUNTRY_INFO!F30,0))) -> 0 | F30: =IF(INTRO!$E$39<>"Non endémique", 0, IF(INTRO!$E$37="Non endémique",0,IF(COUNTRY_INFO!$H30=1,COUNTRY_INFO!G30,0))) -> 0 | G30: 0 | H30: =IF(INTRO!$E$39="Non endémique",IF(INTRO!$E$37="Non endémique","Non requis",COUNTRY_INFO!V30),"Traiter avec IVM") -> Traiter avec IVM | I30: 0 | J30: 0 | L30: 0
A31: =IF(INTRO!$E$39<>"Non endémique", " ", IF(INTRO!$E$37="Non endémique"," ", IF(COUNTRY_INFO!A31=0," ",COUNTRY_INFO!A31))) ->  | B31: =IF(INTRO!$E$39<>"Non endémique", " ", IF(INTRO!$E$37="Non endémique"," ", IF(COUNTRY_INFO!B31=0," ",COUNTRY_INFO!B31))) ->  | C31: =IF(INTRO!$E$39<>"Non endémique", " ", IF(INTRO!$E$37="Non endémique"," ", IF(COUNTRY_INFO!C31=0," ",COUNTRY_INFO!C31))) ->  | D31: =IF(INTRO!$E$39<>"Non endémique", 0, IF(INTRO!$E$37="Non endémique",0,IF(COUNTRY_INFO!$H31=1,COUNTRY_INFO!E31,0))) -> 0 | E31: =IF(INTRO!$E$39<>"Non endémique", 0, IF(INTRO!$E$37="Non endémique",0,IF(COUNTRY_INFO!$H31=1,COUNTRY_INFO!F31,0))) -> 0 | F31: =IF(INTRO!$E$39<>"Non endémique", 0, IF(INTRO!$E$37="Non endémique",0,IF(COUNTRY_INFO!$H31=1,COUNTRY_INFO!G31,0))) -> 0 | G31: 0 | H31: =IF(INTRO!$E$39="Non endémique",IF(INTRO!$E$37="Non endémique","Non requis",COUNTRY_INFO!V31),"Traiter avec IVM") -> Traiter avec IVM | I31: 0 | J31: 0 | L31: 0
A32: =IF(INTRO!$E$39<>"Non endémique", " ", IF(INTRO!$E$37="Non endémique"," ", IF(COUNTRY_INFO!A32=0," ",COUNTRY_INFO!A32))) ->  | B32: =IF(INTRO!$E$39<>"Non endémique", " ", IF(INTRO!$E$37="Non endémique"," ", IF(COUNTRY_INFO!B32=0," ",COUNTRY_INFO!B32))) ->  | C32: =IF(INTRO!$E$39<>"Non endémique", " ", IF(INTRO!$E$37="Non endémique"," ", IF(COUNTRY_INFO!C32=0," ",COUNTRY_INFO!C32))) ->  | D32: =IF(INTRO!$E$39<>"Non endémique", 0, IF(INTRO!$E$37="Non endémique",0,IF(COUNTRY_INFO!$H32=1,COUNTRY_INFO!E32,0))) -> 0 | E32: =IF(INTRO!$E$39<>"Non endémique", 0, IF(INTRO!$E$37="Non endémique",0,IF(COUNTRY_INFO!$H32=1,COUNTRY_INFO!F32,0))) -> 0 | F32: =IF(INTRO!$E$39<>"Non endémique", 0, IF(INTRO!$E$37="Non endémique",0,IF(COUNTRY_INFO!$H32=1,COUNTRY_INFO!G32,0))) -> 0 | G32: 0 | H32: =IF(INTRO!$E$39="Non endémique",IF(INTRO!$E$37="Non endémique","Non requis",COUNTRY_INFO!V32),"Traiter avec IVM") -> Traiter avec IVM | I32: 0 | J32: 0 | L32: 0
A33: =IF(INTRO!$E$39<>"Non endémique", " ", IF(INTRO!$E$37="Non endémique"," ", IF(COUNTRY_INFO!A33=0," ",COUNTRY_INFO!A33))) ->  | B33: =IF(INTRO!$E$39<>"Non endémique", " ", IF(INTRO!$E$37="Non endémique"," ", IF(COUNTRY_INFO!B33=0," ",COUNTRY_INFO!B33))) ->  | C33: =IF(INTRO!$E$39<>"Non endémique", " ", IF(INTRO!$E$37="Non endémique"," ", IF(COUNTRY_INFO!C33=0," ",COUNTRY_INFO!C33))) ->  | D33: =IF(INTRO!$E$39<>"Non endémique", 0, IF(INTRO!$E$37="Non endémique",0,IF(COUNTRY_INFO!$H33=1,COUNTRY_INFO!E33,0))) -> 0 | E33: =IF(INTRO!$E$39<>"Non endémique", 0, IF(INTRO!$E$37="Non endémique",0,IF(COUNTRY_INFO!$H33=1,COUNTRY_INFO!F33,0))) -> 0 | F33: =IF(INTRO!$E$39<>"Non endémique", 0, IF(INTRO!$E$37="Non endémique",0,IF(COUNTRY_INFO!$H33=1,COUNTRY_INFO!G33,0))) -> 0 | G33: 0 | H33: =IF(INTRO!$E$39="Non endémique",IF(INTRO!$E$37="Non endémique","Non requis",COUNTRY_INFO!V33),"Traiter avec IVM") -> Traiter avec IVM | I33: 0 | J33: 0 | L33: 0
A34: =IF(INTRO!$E$39<>"Non endémique", " ", IF(INTRO!$E$37="Non endémique"," ", IF(COUNTRY_INFO!A34=0," ",COUNTRY_INFO!A34))) ->  | B34: =IF(INTRO!$E$39<>"Non endémique", " ", IF(INTRO!$E$37="Non endémique"," ", IF(COUNTRY_INFO!B34=0," ",COUNTRY_INFO!B34))) ->  | C34: =IF(INTRO!$E$39<>"Non endémique", " ", IF(INTRO!$E$37="Non endémique"," ", IF(COUNTRY_INFO!C34=0," ",COUNTRY_INFO!C34))) ->  | D34: =IF(INTRO!$E$39<>"Non endémique", 0, IF(INTRO!$E$37="Non endémique",0,IF(COUNTRY_INFO!$H34=1,COUNTRY_INFO!E34,0))) -> 0 | E34: =IF(INTRO!$E$39<>"Non endémique", 0, IF(INTRO!$E$37="Non endémique",0,IF(COUNTRY_INFO!$H34=1,COUNTRY_INFO!F34,0))) -> 0 | F34: =IF(INTRO!$E$39<>"Non endémique", 0, IF(INTRO!$E$37="Non endémique",0,IF(COUNTRY_INFO!$H34=1,COUNTRY_INFO!G34,0))) -> 0 | G34: 0 | H34: =IF(INTRO!$E$39="Non endémique",IF(INTRO!$E$37="Non endémique","Non requis",COUNTRY_INFO!V34),"Traiter avec IVM") -> Traiter avec IVM | I34: 0 | J34: 0 | L34: 0
A35: =IF(INTRO!$E$39<>"Non endémique", " ", IF(INTRO!$E$37="Non endémique"," ", IF(COUNTRY_INFO!A35=0," ",COUNTRY_INFO!A35))) ->  | B35: =IF(INTRO!$E$39<>"Non endémique", " ", IF(INTRO!$E$37="Non endémique"," ", IF(COUNTRY_INFO!B35=0," ",COUNTRY_INFO!B35))) ->  | C35: =IF(INTRO!$E$39<>"Non endémique", " ", IF(INTRO!$E$37="Non endémique"," ", IF(COUNTRY_INFO!C35=0," ",COUNTRY_INFO!C35))) ->  | D35: =IF(INTRO!$E$39<>"Non endémique", 0, IF(INTRO!$E$37="Non endémique",0,IF(COUNTRY_INFO!$H35=1,COUNTRY_INFO!E35,0))) -> 0 | E35: =IF(INTRO!$E$39<>"Non endémique", 0, IF(INTRO!$E$37="Non endémique",0,IF(COUNTRY_INFO!$H35=1,COUNTRY_INFO!F35,0))) -> 0 | F35: =IF(INTRO!$E$39<>"Non endémique", 0, IF(INTRO!$E$37="Non endémique",0,IF(COUNTRY_INFO!$H35=1,COUNTRY_INFO!G35,0))) -> 0 | G35: 0 | H35: =IF(INTRO!$E$39="Non endémique",IF(INTRO!$E$37="Non endémique","Non requis",COUNTRY_INFO!V35),"Traiter avec IVM") -> Traiter avec IVM | I35: 0 | J35: 0 | L35: 0
A36: =IF(INTRO!$E$39<>"Non endémique", " ", IF(INTRO!$E$37="Non endémique"," ", IF(COUNTRY_INFO!A36=0," ",COUNTRY_INFO!A36))) ->  | B36: =IF(INTRO!$E$39<>"Non endémique", " ", IF(INTRO!$E$37="Non endémique"," ", IF(COUNTRY_INFO!B36=0," ",COUNTRY_INFO!B36))) ->  | C36: =IF(INTRO!$E$39<>"Non endémique", " ", IF(INTRO!$E$37="Non endémique"," ", IF(COUNTRY_INFO!C36=0," ",COUNTRY_INFO!C36))) ->  | D36: =IF(INTRO!$E$39<>"Non endémique", 0, IF(INTRO!$E$37="Non endémique",0,IF(COUNTRY_INFO!$H36=1,COUNTRY_INFO!E36,0))) -> 0 | E36: =IF(INTRO!$E$39<>"Non endémique", 0, IF(INTRO!$E$37="Non endémique",0,IF(COUNTRY_INFO!$H36=1,COUNTRY_INFO!F36,0))) -> 0 | F36: =IF(INTRO!$E$39<>"Non endémique", 0, IF(INTRO!$E$37="Non endémique",0,IF(COUNTRY_INFO!$H36=1,COUNTRY_INFO!G36,0))) -> 0 | G36: 0 | H36: =IF(INTRO!$E$39="Non endémique",IF(INTRO!$E$37="Non endémique","Non requis",COUNTRY_INFO!V36),"Traiter avec IVM") -> Traiter avec IVM | I36: 0 | J36: 0 | L36: 0
A37: =IF(INTRO!$E$39<>"Non endémique", " ", IF(INTRO!$E$37="Non endémique"," ", IF(COUNTRY_INFO!A37=0," ",COUNTRY_INFO!A37))) ->  | B37: =IF(INTRO!$E$39<>"Non endémique", " ", IF(INTRO!$E$37="Non endémique"," ", IF(COUNTRY_INFO!B37=0," ",COUNTRY_INFO!B37))) ->  | C37: =IF(INTRO!$E$39<>"Non endémique", " ", IF(INTRO!$E$37="Non endémique"," ", IF(COUNTRY_INFO!C37=0," ",COUNTRY_INFO!C37))) ->  | D37: =IF(INTRO!$E$39<>"Non endémique", 0, IF(INTRO!$E$37="Non endémique",0,IF(COUNTRY_INFO!$H37=1,COUNTRY_INFO!E37,0))) -> 0 | E37: =IF(INTRO!$E$39<>"Non endémique", 0, IF(INTRO!$E$37="Non endémique",0,IF(COUNTRY_INFO!$H37=1,COUNTRY_INFO!F37,0))) -> 0 | F37: =IF(INTRO!$E$39<>"Non endémique", 0, IF(INTRO!$E$37="Non endémique",0,IF(COUNTRY_INFO!$H37=1,COUNTRY_INFO!G37,0))) -> 0 | G37: 0 | H37: =IF(INTRO!$E$39="Non endémique",IF(INTRO!$E$37="Non endémique","Non requis",COUNTRY_INFO!V37),"Traiter avec IVM") -> Traiter avec IVM | I37: 0 | J37: 0 | L37: 0
A38: =IF(INTRO!$E$39<>"Non endémique", " ", IF(INTRO!$E$37="Non endémique"," ", IF(COUNTRY_INFO!A38=0," ",COUNTRY_INFO!A38))) ->  | B38: =IF(INTRO!$E$39<>"Non endémique", " ", IF(INTRO!$E$37="Non endémique"," ", IF(COUNTRY_INFO!B38=0," ",COUNTRY_INFO!B38))) ->  | C38: =IF(INTRO!$E$39<>"Non endémique", " ", IF(INTRO!$E$37="Non endémique"," ", IF(COUNTRY_INFO!C38=0," ",COUNTRY_INFO!C38))) ->  | D38: =IF(INTRO!$E$39<>"Non endémique", 0, IF(INTRO!$E$37="Non endémique",0,IF(COUNTRY_INFO!$H38=1,COUNTRY_INFO!E38,0))) -> 0 | E38: =IF(INTRO!$E$39<>"Non endémique", 0, IF(INTRO!$E$37="Non endémique",0,IF(COUNTRY_INFO!$H38=1,COUNTRY_INFO!F38,0))) -> 0 | F38: =IF(INTRO!$E$39<>"Non endémique", 0, IF(INTRO!$E$37="Non endémique",0,IF(COUNTRY_INFO!$H38=1,COUNTRY_INFO!G38,0))) -> 0 | G38: 0 | H38: =IF(INTRO!$E$39="Non endémique",IF(INTRO!$E$37="Non endémique","Non requis",COUNTRY_INFO!V38),"Traiter avec IVM") -> Traiter avec IVM | I38: 0 | J38: 0 | L38: 0
A39: =IF(INTRO!$E$39<>"Non endémique", " ", IF(INTRO!$E$37="Non endémique"," ", IF(COUNTRY_INFO!A39=0," ",COUNTRY_INFO!A39))) ->  | B39: =IF(INTRO!$E$39<>"Non endémique", " ", IF(INTRO!$E$37="Non endémique"," ", IF(COUNTRY_INFO!B39=0," ",COUNTRY_INFO!B39))) ->  | C39: =IF(INTRO!$E$39<>"Non endémique", " ", IF(INTRO!$E$37="Non endémique"," ", IF(COUNTRY_INFO!C39=0," ",COUNTRY_INFO!C39))) ->  | D39: =IF(INTRO!$E$39<>"Non endémique", 0, IF(INTRO!$E$37="Non endémique",0,IF(COUNTRY_INFO!$H39=1,COUNTRY_INFO!E39,0))) -> 0 | E39: =IF(INTRO!$E$39<>"Non endémique", 0, IF(INTRO!$E$37="Non endémique",0,IF(COUNTRY_INFO!$H39=1,COUNTRY_INFO!F39,0))) -> 0 | F39: =IF(INTRO!$E$39<>"Non endémique", 0, IF(INTRO!$E$37="Non endémique",0,IF(COUNTRY_INFO!$H39=1,COUNTRY_INFO!G39,0))) -> 0 | G39: 0 | H39: =IF(INTRO!$E$39="Non endémique",IF(INTRO!$E$37="Non endémique","Non requis",COUNTRY_INFO!V39),"Traiter avec IVM") -> Traiter avec IVM | I39: 0 | J39: 0 | L39: 0
A40: =IF(INTRO!$E$39<>"Non endémique", " ", IF(INTRO!$E$37="Non endémique"," ", IF(COUNTRY_INFO!A40=0," ",COUNTRY_INFO!A40))) ->  | B40: =IF(INTRO!$E$39<>"Non endémique", " ", IF(INTRO!$E$37="Non endémique"," ", IF(COUNTRY_INFO!B40=0," ",COUNTRY_INFO!B40))) ->  | C40: =IF(INTRO!$E$39<>"Non endémique", " ", IF(INTRO!$E$37="Non endémique"," ", IF(COUNTRY_INFO!C40=0," ",COUNTRY_INFO!C40))) ->  | D40: =IF(INTRO!$E$39<>"Non endémique", 0, IF(INTRO!$E$37="Non endémique",0,IF(COUNTRY_INFO!$H40=1,COUNTRY_INFO!E40,0))) -> 0 | E40: =IF(INTRO!$E$39<>"Non endémique", 0, IF(INTRO!$E$37="Non endémique",0,IF(COUNTRY_INFO!$H40=1,COUNTRY_INFO!F40,0))) -> 0 | F40: =IF(INTRO!$E$39<>"Non endémique", 0, IF(INTRO!$E$37="Non endémique",0,IF(COUNTRY_INFO!$H40=1,COUNTRY_INFO!G40,0))) -> 0 | G40: 0 | H40: =IF(INTRO!$E$39="Non endémique",IF(INTRO!$E$37="Non endémique","Non requis",COUNTRY_INFO!V40),"Traiter avec IVM") -> Traiter avec IVM | I40: 0 | J40: 0 | L40: 0
A41: =IF(INTRO!$E$39<>"Non endémique", " ", IF(INTRO!$E$37="Non endémique"," ", IF(COUNTRY_INFO!A41=0," ",COUNTRY_INFO!A41))) ->  | B41: =IF(INTRO!$E$39<>"Non endémique", " ", IF(INTRO!$E$37="Non endémique"," ", IF(COUNTRY_INFO!B41=0," ",COUNTRY_INFO!B41))) ->  | C41: =IF(INTRO!$E$39<>"Non endémique", " ", IF(INTRO!$E$37="Non endémique"," ", IF(COUNTRY_INFO!C41=0," ",COUNTRY_INFO!C41))) ->  | D41: =IF(INTRO!$E$39<>"Non endémique", 0, IF(INTRO!$E$37="Non endémique",0,IF(COUNTRY_INFO!$H41=1,COUNTRY_INFO!E41,0))) -> 0 | E41: =IF(INTRO!$E$39<>"Non endémique", 0, IF(INTRO!$E$37="Non endémique",0,IF(COUNTRY_INFO!$H41=1,COUNTRY_INFO!F41,0))) -> 0 | F41: =IF(INTRO!$E$39<>"Non endémique", 0, IF(INTRO!$E$37="Non endémique",0,IF(COUNTRY_INFO!$H41=1,COUNTRY_INFO!G41,0))) -> 0 | G41: 0 | H41: =IF(INTRO!$E$39="Non endémique",IF(INTRO!$E$37="Non endémique","Non requis",COUNTRY_INFO!V41),"Traiter avec IVM") -> Traiter avec IVM | I41: 0 | J41: 0 | L41: 0
A42: =IF(INTRO!$E$39<>"Non endémique", " ", IF(INTRO!$E$37="Non endémique"," ", IF(COUNTRY_INFO!A42=0," ",COUNTRY_INFO!A42))) ->  | B42: =IF(INTRO!$E$39<>"Non endémique", " ", IF(INTRO!$E$37="Non endémique"," ", IF(COUNTRY_INFO!B42=0," ",COUNTRY_INFO!B42))) ->  | C42: =IF(INTRO!$E$39<>"Non endémique", " ", IF(INTRO!$E$37="Non endémique"," ", IF(COUNTRY_INFO!C42=0," ",COUNTRY_INFO!C42))) ->  | D42: =IF(INTRO!$E$39<>"Non endémique", 0, IF(INTRO!$E$37="Non endémique",0,IF(COUNTRY_INFO!$H42=1,COUNTRY_INFO!E42,0))) -> 0 | E42: =IF(INTRO!$E$39<>"Non endémique", 0, IF(INTRO!$E$37="Non endémique",0,IF(COUNTRY_INFO!$H42=1,COUNTRY_INFO!F42,0))) -> 0 | F42: =IF(INTRO!$E$39<>"Non endémique", 0, IF(INTRO!$E$37="Non endémique",0,IF(COUNTRY_INFO!$H42=1,COUNTRY_INFO!G42,0))) -> 0 | G42: 0 | H42: =IF(INTRO!$E$39="Non endémique",IF(INTRO!$E$37="Non endémique","Non requis",COUNTRY_INFO!V42),"Traiter avec IVM") -> Traiter avec IVM | I42: 0 | J42: 0 | L42: 0
A43: =IF(INTRO!$E$39<>"Non endémique", " ", IF(INTRO!$E$37="Non endémique"," ", IF(COUNTRY_INFO!A43=0," ",COUNTRY_INFO!A43))) ->  | B43: =IF(INTRO!$E$39<>"Non endémique", " ", IF(INTRO!$E$37="Non endémique"," ", IF(COUNTRY_INFO!B43=0," ",COUNTRY_INFO!B43))) ->  | C43: =IF(INTRO!$E$39<>"Non endémique", " ", IF(INTRO!$E$37="Non endémique"," ", IF(COUNTRY_INFO!C43=0," ",COUNTRY_INFO!C43))) ->  | D43: =IF(INTRO!$E$39<>"Non endémique", 0, IF(INTRO!$E$37="Non endémique",0,IF(COUNTRY_INFO!$H43=1,COUNTRY_INFO!E43,0))) -> 0 | E43: =IF(INTRO!$E$39<>"Non endémique", 0, IF(INTRO!$E$37="Non endémique",0,IF(COUNTRY_INFO!$H43=1,COUNTRY_INFO!F43,0))) -> 0 | F43: =IF(INTRO!$E$39<>"Non endémique", 0, IF(INTRO!$E$37="Non endémique",0,IF(COUNTRY_INFO!$H43=1,COUNTRY_INFO!G43,0))) -> 0 | G43: 0 | H43: =IF(INTRO!$E$39="Non endémique",IF(INTRO!$E$37="Non endémique","Non requis",COUNTRY_INFO!V43),"Traiter avec IVM") -> Traiter avec IVM | I43: 0 | J43: 0 | L43: 0
A44: =IF(INTRO!$E$39<>"Non endémique", " ", IF(INTRO!$E$37="Non endémique"," ", IF(COUNTRY_INFO!A44=0," ",COUNTRY_INFO!A44))) ->  | B44: =IF(INTRO!$E$39<>"Non endémique", " ", IF(INTRO!$E$37="Non endémique"," ", IF(COUNTRY_INFO!B44=0," ",COUNTRY_INFO!B44))) ->  | C44: =IF(INTRO!$E$39<>"Non endémique", " ", IF(INTRO!$E$37="Non endémique"," ", IF(COUNTRY_INFO!C44=0," ",COUNTRY_INFO!C44))) ->  | D44: =IF(INTRO!$E$39<>"Non endémique", 0, IF(INTRO!$E$37="Non endémique",0,IF(COUNTRY_INFO!$H44=1,COUNTRY_INFO!E44,0))) -> 0 | E44: =IF(INTRO!$E$39<>"Non endémique", 0, IF(INTRO!$E$37="Non endémique",0,IF(COUNTRY_INFO!$H44=1,COUNTRY_INFO!F44,0))) -> 0 | F44: =IF(INTRO!$E$39<>"Non endémique", 0, IF(INTRO!$E$37="Non endémique",0,IF(COUNTRY_INFO!$H44=1,COUNTRY_INFO!G44,0))) -> 0 | G44: 0 | H44: =IF(INTRO!$E$39="Non endémique",IF(INTRO!$E$37="Non endémique","Non requis",COUNTRY_INFO!V44),"Traiter avec IVM") -> Traiter avec IVM | I44: 0 | J44: 0 | L44: 0
A45: =IF(INTRO!$E$39<>"Non endémique", " ", IF(INTRO!$E$37="Non endémique"," ", IF(COUNTRY_INFO!A45=0," ",COUNTRY_INFO!A45))) ->  | B45: =IF(INTRO!$E$39<>"Non endémique", " ", IF(INTRO!$E$37="Non endémique"," ", IF(COUNTRY_INFO!B45=0," ",COUNTRY_INFO!B45))) ->  | C45: =IF(INTRO!$E$39<>"Non endémique", " ", IF(INTRO!$E$37="Non endémique"," ", IF(COUNTRY_INFO!C45=0," ",COUNTRY_INFO!C45))) ->  | D45: =IF(INTRO!$E$39<>"Non endémique", 0, IF(INTRO!$E$37="Non endémique",0,IF(COUNTRY_INFO!$H45=1,COUNTRY_INFO!E45,0))) -> 0 | E45: =IF(INTRO!$E$39<>"Non endémique", 0, IF(INTRO!$E$37="Non endémique",0,IF(COUNTRY_INFO!$H45=1,COUNTRY_INFO!F45,0))) -> 0 | F45: =IF(INTRO!$E$39<>"Non endémique", 0, IF(INTRO!$E$37="Non endémique",0,IF(COUNTRY_INFO!$H45=1,COUNTRY_INFO!G45,0))) -> 0 | G45: 0 | H45: =IF(INTRO!$E$39="Non endémique",IF(INTRO!$E$37="Non endémique","Non requis",COUNTRY_INFO!V45),"Traiter avec IVM") -> Traiter avec IVM | I45: 0 | J45: 0 | L45: 0
A46: =IF(INTRO!$E$39<>"Non endémique", " ", IF(INTRO!$E$37="Non endémique"," ", IF(COUNTRY_INFO!A46=0," ",COUNTRY_INFO!A46))) ->  | B46: =IF(INTRO!$E$39<>"Non endémique", " ", IF(INTRO!$E$37="Non endémique"," ", IF(COUNTRY_INFO!B46=0," ",COUNTRY_INFO!B46))) ->  | C46: =IF(INTRO!$E$39<>"Non endémique", " ", IF(INTRO!$E$37="Non endémique"," ", IF(COUNTRY_INFO!C46=0," ",COUNTRY_INFO!C46))) ->  | D46: =IF(INTRO!$E$39<>"Non endémique", 0, IF(INTRO!$E$37="Non endémique",0,IF(COUNTRY_INFO!$H46=1,COUNTRY_INFO!E46,0))) -> 0 | E46: =IF(INTRO!$E$39<>"Non endémique", 0, IF(INTRO!$E$37="Non endémique",0,IF(COUNTRY_INFO!$H46=1,COUNTRY_INFO!F46,0))) -> 0 | F46: =IF(INTRO!$E$39<>"Non endémique", 0, IF(INTRO!$E$37="Non endémique",0,IF(COUNTRY_INFO!$H46=1,COUNTRY_INFO!G46,0))) -> 0 | G46: 0 | H46: =IF(INTRO!$E$39="Non endémique",IF(INTRO!$E$37="Non endémique","Non requis",COUNTRY_INFO!V46),"Traiter avec IVM") -> Traiter avec IVM | I46: 0 | J46: 0 | L46: 0
A47: =IF(INTRO!$E$39<>"Non endémique", " ", IF(INTRO!$E$37="Non endémique"," ", IF(COUNTRY_INFO!A47=0," ",COUNTRY_INFO!A47))) ->  | B47: =IF(INTRO!$E$39<>"Non endémique", " ", IF(INTRO!$E$37="Non endémique"," ", IF(COUNTRY_INFO!B47=0," ",COUNTRY_INFO!B47))) ->  | C47: =IF(INTRO!$E$39<>"Non endémique", " ", IF(INTRO!$E$37="Non endémique"," ", IF(COUNTRY_INFO!C47=0," ",COUNTRY_INFO!C47))) ->  | D47: =IF(INTRO!$E$39<>"Non endémique", 0, IF(INTRO!$E$37="Non endémique",0,IF(COUNTRY_INFO!$H47=1,COUNTRY_INFO!E47,0))) -> 0 | E47: =IF(INTRO!$E$39<>"Non endémique", 0, IF(INTRO!$E$37="Non endémique",0,IF(COUNTRY_INFO!$H47=1,COUNTRY_INFO!F47,0))) -> 0 | F47: =IF(INTRO!$E$39<>"Non endémique", 0, IF(INTRO!$E$37="Non endémique",0,IF(COUNTRY_INFO!$H47=1,COUNTRY_INFO!G47,0))) -> 0 | G47: 0 | H47: =IF(INTRO!$E$39="Non endémique",IF(INTRO!$E$37="Non endémique","Non requis",COUNTRY_INFO!V47),"Traiter avec IVM") -> Traiter avec IVM | I47: 0 | J47: 0 | L47: 0
A48: =IF(INTRO!$E$39<>"Non endémique", " ", IF(INTRO!$E$37="Non endémique"," ", IF(COUNTRY_INFO!A48=0," ",COUNTRY_INFO!A48))) ->  | B48: =IF(INTRO!$E$39<>"Non endémique", " ", IF(INTRO!$E$37="Non endémique"," ", IF(COUNTRY_INFO!B48=0," ",COUNTRY_INFO!B48))) ->  | C48: =IF(INTRO!$E$39<>"Non endémique", " ", IF(INTRO!$E$37="Non endémique"," ", IF(COUNTRY_INFO!C48=0," ",COUNTRY_INFO!C48))) ->  | D48: =IF(INTRO!$E$39<>"Non endémique", 0, IF(INTRO!$E$37="Non endémique",0,IF(COUNTRY_INFO!$H48=1,COUNTRY_INFO!E48,0))) -> 0 | E48: =IF(INTRO!$E$39<>"Non endémique", 0, IF(INTRO!$E$37="Non endémique",0,IF(COUNTRY_INFO!$H48=1,COUNTRY_INFO!F48,0))) -> 0 | F48: =IF(INTRO!$E$39<>"Non endémique", 0, IF(INTRO!$E$37="Non endémique",0,IF(COUNTRY_INFO!$H48=1,COUNTRY_INFO!G48,0))) -> 0 | G48: 0 | H48: =IF(INTRO!$E$39="Non endémique",IF(INTRO!$E$37="Non endémique","Non requis",COUNTRY_INFO!V48),"Traiter avec IVM") -> Traiter avec IVM | I48: 0 | J48: 0 | L48: 0
A49: =IF(INTRO!$E$39<>"Non endémique", " ", IF(INTRO!$E$37="Non endémique"," ", IF(COUNTRY_INFO!A49=0," ",COUNTRY_INFO!A49))) ->  | B49: =IF(INTRO!$E$39<>"Non endémique", " ", IF(INTRO!$E$37="Non endémique"," ", IF(COUNTRY_INFO!B49=0," ",COUNTRY_INFO!B49))) ->  | C49: =IF(INTRO!$E$39<>"Non endémique", " ", IF(INTRO!$E$37="Non endémique"," ", IF(COUNTRY_INFO!C49=0," ",COUNTRY_INFO!C49))) ->  | D49: =IF(INTRO!$E$39<>"Non endémique", 0, IF(INTRO!$E$37="Non endémique",0,IF(COUNTRY_INFO!$H49=1,COUNTRY_INFO!E49,0))) -> 0 | E49: =IF(INTRO!$E$39<>"Non endémique", 0, IF(INTRO!$E$37="Non endémique",0,IF(COUNTRY_INFO!$H49=1,COUNTRY_INFO!F49,0))) -> 0 | F49: =IF(INTRO!$E$39<>"Non endémique", 0, IF(INTRO!$E$37="Non endémique",0,IF(COUNTRY_INFO!$H49=1,COUNTRY_INFO!G49,0))) -> 0 | G49: 0 | H49: =IF(INTRO!$E$39="Non endémique",IF(INTRO!$E$37="Non endémique","Non requis",COUNTRY_INFO!V49),"Traiter avec IVM") -> Traiter avec IVM | I49: 0 | J49: 0 | L49: 0
A50: =IF(INTRO!$E$39<>"Non endémique", " ", IF(INTRO!$E$37="Non endémique"," ", IF(COUNTRY_INFO!A50=0," ",COUNTRY_INFO!A50))) ->  | B50: =IF(INTRO!$E$39<>"Non endémique", " ", IF(INTRO!$E$37="Non endémique"," ", IF(COUNTRY_INFO!B50=0," ",COUNTRY_INFO!B50))) ->  | C50: =IF(INTRO!$E$39<>"Non endémique", " ", IF(INTRO!$E$37="Non endémique"," ", IF(COUNTRY_INFO!C50=0," ",COUNTRY_INFO!C50))) ->  | D50: =IF(INTRO!$E$39<>"Non endémique", 0, IF(INTRO!$E$37="Non endémique",0,IF(COUNTRY_INFO!$H50=1,COUNTRY_INFO!E50,0))) -> 0 | E50: =IF(INTRO!$E$39<>"Non endémique", 0, IF(INTRO!$E$37="Non endémique",0,IF(COUNTRY_INFO!$H50=1,COUNTRY_INFO!F50,0))) -> 0 | F50: =IF(INTRO!$E$39<>"Non endémique", 0, IF(INTRO!$E$37="Non endémique",0,IF(COUNTRY_INFO!$H50=1,COUNTRY_INFO!G50,0))) -> 0 | G50: 0 | H50: =IF(INTRO!$E$39="Non endémique",IF(INTRO!$E$37="Non endémique","Non requis",COUNTRY_INFO!V50),"Traiter avec IVM") -> Traiter avec IVM | I50: 0 | J50: 0 | L50: 0
A51: =IF(INTRO!$E$39<>"Non endémique", " ", IF(INTRO!$E$37="Non endémique"," ", IF(COUNTRY_INFO!A51=0," ",COUNTRY_INFO!A51))) ->  | B51: =IF(INTRO!$E$39<>"Non endémique", " ", IF(INTRO!$E$37="Non endémique"," ", IF(COUNTRY_INFO!B51=0," ",COUNTRY_INFO!B51))) ->  | C51: =IF(INTRO!$E$39<>"Non endémique", " ", IF(INTRO!$E$37="Non endémique"," ", IF(COUNTRY_INFO!C51=0," ",COUNTRY_INFO!C51))) ->  | D51: =IF(INTRO!$E$39<>"Non endémique", 0, IF(INTRO!$E$37="Non endémique",0,IF(COUNTRY_INFO!$H51=1,COUNTRY_INFO!E51,0))) -> 0 | E51: =IF(INTRO!$E$39<>"Non endémique", 0, IF(INTRO!$E$37="Non endémique",0,IF(COUNTRY_INFO!$H51=1,COUNTRY_INFO!F51,0))) -> 0 | F51: =IF(INTRO!$E$39<>"Non endémique", 0, IF(INTRO!$E$37="Non endémique",0,IF(COUNTRY_INFO!$H51=1,COUNTRY_INFO!G51,0))) -> 0 | G51: 0 | H51: =IF(INTRO!$E$39="Non endémique",IF(INTRO!$E$37="Non endémique","Non requis",COUNTRY_INFO!V51),"Traiter avec IVM") -> Traiter avec IVM | I51: 0 | J51: 0 | L51: 0
A52: =IF(INTRO!$E$39<>"Non endémique", " ", IF(INTRO!$E$37="Non endémique"," ", IF(COUNTRY_INFO!A52=0," ",COUNTRY_INFO!A52))) ->  | B52: =IF(INTRO!$E$39<>"Non endémique", " ", IF(INTRO!$E$37="Non endémique"," ", IF(COUNTRY_INFO!B52=0," ",COUNTRY_INFO!B52))) ->  | C52: =IF(INTRO!$E$39<>"Non endémique", " ", IF(INTRO!$E$37="Non endémique"," ", IF(COUNTRY_INFO!C52=0," ",COUNTRY_INFO!C52))) ->  | D52: =IF(INTRO!$E$39<>"Non endémique", 0, IF(INTRO!$E$37="Non endémique",0,IF(COUNTRY_INFO!$H52=1,COUNTRY_INFO!E52,0))) -> 0 | E52: =IF(INTRO!$E$39<>"Non endémique", 0, IF(INTRO!$E$37="Non endémique",0,IF(COUNTRY_INFO!$H52=1,COUNTRY_INFO!F52,0))) -> 0 | F52: =IF(INTRO!$E$39<>"Non endémique", 0, IF(INTRO!$E$37="Non endémique",0,IF(COUNTRY_INFO!$H52=1,COUNTRY_INFO!G52,0))) -> 0 | G52: 0 | H52: =IF(INTRO!$E$39="Non endémique",IF(INTRO!$E$37="Non endémique","Non requis",COUNTRY_INFO!V52),"Traiter avec IVM") -> Traiter avec IVM | I52: 0 | J52: 0 | L52: 0
A53: =IF(INTRO!$E$39<>"Non endémique", " ", IF(INTRO!$E$37="Non endémique"," ", IF(COUNTRY_INFO!A53=0," ",COUNTRY_INFO!A53))) ->  | B53: =IF(INTRO!$E$39<>"Non endémique", " ", IF(INTRO!$E$37="Non endémique"," ", IF(COUNTRY_INFO!B53=0," ",COUNTRY_INFO!B53))) ->  | C53: =IF(INTRO!$E$39<>"Non endémique", " ", IF(INTRO!$E$37="Non endémique"," ", IF(COUNTRY_INFO!C53=0," ",COUNTRY_INFO!C53))) ->  | D53: =IF(INTRO!$E$39<>"Non endémique", 0, IF(INTRO!$E$37="Non endémique",0,IF(COUNTRY_INFO!$H53=1,COUNTRY_INFO!E53,0))) -> 0 | E53: =IF(INTRO!$E$39<>"Non endémique", 0, IF(INTRO!$E$37="Non endémique",0,IF(COUNTRY_INFO!$H53=1,COUNTRY_INFO!F53,0))) -> 0 | F53: =IF(INTRO!$E$39<>"Non endémique", 0, IF(INTRO!$E$37="Non endémique",0,IF(COUNTRY_INFO!$H53=1,COUNTRY_INFO!G53,0))) -> 0 | G53: 0 | H53: =IF(INTRO!$E$39="Non endémique",IF(INTRO!$E$37="Non endémique","Non requis",COUNTRY_INFO!V53),"Traiter avec IVM") -> Traiter avec IVM | I53: 0 | J53: 0 | L53: 0
A54: =IF(INTRO!$E$39<>"Non endémique", " ", IF(INTRO!$E$37="Non endémique"," ", IF(COUNTRY_INFO!A54=0," ",COUNTRY_INFO!A54))) ->  | B54: =IF(INTRO!$E$39<>"Non endémique", " ", IF(INTRO!$E$37="Non endémique"," ", IF(COUNTRY_INFO!B54=0," ",COUNTRY_INFO!B54))) ->  | C54: =IF(INTRO!$E$39<>"Non endémique", " ", IF(INTRO!$E$37="Non endémique"," ", IF(COUNTRY_INFO!C54=0," ",COUNTRY_INFO!C54))) ->  | D54: =IF(INTRO!$E$39<>"Non endémique", 0, IF(INTRO!$E$37="Non endémique",0,IF(COUNTRY_INFO!$H54=1,COUNTRY_INFO!E54,0))) -> 0 | E54: =IF(INTRO!$E$39<>"Non endémique", 0, IF(INTRO!$E$37="Non endémique",0,IF(COUNTRY_INFO!$H54=1,COUNTRY_INFO!F54,0))) -> 0 | F54: =IF(INTRO!$E$39<>"Non endémique", 0, IF(INTRO!$E$37="Non endémique",0,IF(COUNTRY_INFO!$H54=1,COUNTRY_INFO!G54,0))) -> 0 | G54: 0 | H54: =IF(INTRO!$E$39="Non endémique",IF(INTRO!$E$37="Non endémique","Non requis",COUNTRY_INFO!V54),"Traiter avec IVM") -> Traiter avec IVM | I54: 0 | J54: 0 | L54: 0
A55: =IF(INTRO!$E$39<>"Non endémique", " ", IF(INTRO!$E$37="Non endémique"," ", IF(COUNTRY_INFO!A55=0," ",COUNTRY_INFO!A55))) ->  | B55: =IF(INTRO!$E$39<>"Non endémique", " ", IF(INTRO!$E$37="Non endémique"," ", IF(COUNTRY_INFO!B55=0," ",COUNTRY_INFO!B55))) ->  | C55: =IF(INTRO!$E$39<>"Non endémique", " ", IF(INTRO!$E$37="Non endémique"," ", IF(COUNTRY_INFO!C55=0," ",COUNTRY_INFO!C55))) ->  | D55: =IF(INTRO!$E$39<>"Non endémique", 0, IF(INTRO!$E$37="Non endémique",0,IF(COUNTRY_INFO!$H55=1,COUNTRY_INFO!E55,0))) -> 0 | E55: =IF(INTRO!$E$39<>"Non endémique", 0, IF(INTRO!$E$37="Non endémique",0,IF(COUNTRY_INFO!$H55=1,COUNTRY_INFO!F55,0))) -> 0 | F55: =IF(INTRO!$E$39<>"Non endémique", 0, IF(INTRO!$E$37="Non endémique",0,IF(COUNTRY_INFO!$H55=1,COUNTRY_INFO!G55,0))) -> 0 | G55: 0 | H55: =IF(INTRO!$E$39="Non endémique",IF(INTRO!$E$37="Non endémique","Non requis",COUNTRY_INFO!V55),"Traiter avec IVM") -> Traiter avec IVM | I55: 0 | J55: 0 | L55: 0
A56: =IF(INTRO!$E$39<>"Non endémique", " ", IF(INTRO!$E$37="Non endémique"," ", IF(COUNTRY_INFO!A56=0," ",COUNTRY_INFO!A56))) ->  | B56: =IF(INTRO!$E$39<>"Non endémique", " ", IF(INTRO!$E$37="Non endémique"," ", IF(COUNTRY_INFO!B56=0," ",COUNTRY_INFO!B56))) ->  | C56: =IF(INTRO!$E$39<>"Non endémique", " ", IF(INTRO!$E$37="Non endémique"," ", IF(COUNTRY_INFO!C56=0," ",COUNTRY_INFO!C56))) ->  | D56: =IF(INTRO!$E$39<>"Non endémique", 0, IF(INTRO!$E$37="Non endémique",0,IF(COUNTRY_INFO!$H56=1,COUNTRY_INFO!E56,0))) -> 0 | E56: =IF(INTRO!$E$39<>"Non endémique", 0, IF(INTRO!$E$37="Non endémique",0,IF(COUNTRY_INFO!$H56=1,COUNTRY_INFO!F56,0))) -> 0 | F56: =IF(INTRO!$E$39<>"Non endémique", 0, IF(INTRO!$E$37="Non endémique",0,IF(COUNTRY_INFO!$H56=1,COUNTRY_INFO!G56,0))) -> 0 | G56: 0 | H56: =IF(INTRO!$E$39="Non endémique",IF(INTRO!$E$37="Non endémique","Non requis",COUNTRY_INFO!V56),"Traiter avec IVM") -> Traiter avec IVM | I56: 0 | J56: 0 | L56: 0
A57: =IF(INTRO!$E$39<>"Non endémique", " ", IF(INTRO!$E$37="Non endémique"," ", IF(COUNTRY_INFO!A57=0," ",COUNTRY_INFO!A57))) ->  | B57: =IF(INTRO!$E$39<>"Non endémique", " ", IF(INTRO!$E$37="Non endémique"," ", IF(COUNTRY_INFO!B57=0," ",COUNTRY_INFO!B57))) ->  | C57: =IF(INTRO!$E$39<>"Non endémique", " ", IF(INTRO!$E$37="Non endémique"," ", IF(COUNTRY_INFO!C57=0," ",COUNTRY_INFO!C57))) ->  | D57: =IF(INTRO!$E$39<>"Non endémique", 0, IF(INTRO!$E$37="Non endémique",0,IF(COUNTRY_INFO!$H57=1,COUNTRY_INFO!E57,0))) -> 0 | E57: =IF(INTRO!$E$39<>"Non endémique", 0, IF(INTRO!$E$37="Non endémique",0,IF(COUNTRY_INFO!$H57=1,COUNTRY_INFO!F57,0))) -> 0 | F57: =IF(INTRO!$E$39<>"Non endémique", 0, IF(INTRO!$E$37="Non endémique",0,IF(COUNTRY_INFO!$H57=1,COUNTRY_INFO!G57,0))) -> 0 | G57: 0 | H57: =IF(INTRO!$E$39="Non endémique",IF(INTRO!$E$37="Non endémique","Non requis",COUNTRY_INFO!V57),"Traiter avec IVM") -> Traiter avec IVM | I57: 0 | J57: 0 | L57: 0
A58: =IF(INTRO!$E$39<>"Non endémique", " ", IF(INTRO!$E$37="Non endémique"," ", IF(COUNTRY_INFO!A58=0," ",COUNTRY_INFO!A58))) ->  | B58: =IF(INTRO!$E$39<>"Non endémique", " ", IF(INTRO!$E$37="Non endémique"," ", IF(COUNTRY_INFO!B58=0," ",COUNTRY_INFO!B58))) ->  | C58: =IF(INTRO!$E$39<>"Non endémique", " ", IF(INTRO!$E$37="Non endémique"," ", IF(COUNTRY_INFO!C58=0," ",COUNTRY_INFO!C58))) ->  | D58: =IF(INTRO!$E$39<>"Non endémique", 0, IF(INTRO!$E$37="Non endémique",0,IF(COUNTRY_INFO!$H58=1,COUNTRY_INFO!E58,0))) -> 0 | E58: =IF(INTRO!$E$39<>"Non endémique", 0, IF(INTRO!$E$37="Non endémique",0,IF(COUNTRY_INFO!$H58=1,COUNTRY_INFO!F58,0))) -> 0 | F58: =IF(INTRO!$E$39<>"Non endémique", 0, IF(INTRO!$E$37="Non endémique",0,IF(COUNTRY_INFO!$H58=1,COUNTRY_INFO!G58,0))) -> 0 | G58: 0 | H58: =IF(INTRO!$E$39="Non endémique",IF(INTRO!$E$37="Non endémique","Non requis",COUNTRY_INFO!V58),"Traiter avec IVM") -> Traiter avec IVM | I58: 0 | J58: 0 | L58: 0
A59: =IF(INTRO!$E$39<>"Non endémique", " ", IF(INTRO!$E$37="Non endémique"," ", IF(COUNTRY_INFO!A59=0," ",COUNTRY_INFO!A59))) ->  | B59: =IF(INTRO!$E$39<>"Non endémique", " ", IF(INTRO!$E$37="Non endémique"," ", IF(COUNTRY_INFO!B59=0," ",COUNTRY_INFO!B59))) ->  | C59: =IF(INTRO!$E$39<>"Non endémique", " ", IF(INTRO!$E$37="Non endémique"," ", IF(COUNTRY_INFO!C59=0," ",COUNTRY_INFO!C59))) ->  | D59: =IF(INTRO!$E$39<>"Non endémique", 0, IF(INTRO!$E$37="Non endémique",0,IF(COUNTRY_INFO!$H59=1,COUNTRY_INFO!E59,0))) -> 0 | E59: =IF(INTRO!$E$39<>"Non endémique", 0, IF(INTRO!$E$37="Non endémique",0,IF(COUNTRY_INFO!$H59=1,COUNTRY_INFO!F59,0))) -> 0 | F59: =IF(INTRO!$E$39<>"Non endémique", 0, IF(INTRO!$E$37="Non endémique",0,IF(COUNTRY_INFO!$H59=1,COUNTRY_INFO!G59,0))) -> 0 | G59: 0 | H59: =IF(INTRO!$E$39="Non endémique",IF(INTRO!$E$37="Non endémique","Non requis",COUNTRY_INFO!V59),"Traiter avec IVM") -> Traiter avec IVM | I59: 0 | J59: 0 | L59: 0
A60: =IF(INTRO!$E$39<>"Non endémique", " ", IF(INTRO!$E$37="Non endémique"," ", IF(COUNTRY_INFO!A60=0," ",COUNTRY_INFO!A60))) ->  | B60: =IF(INTRO!$E$39<>"Non endémique", " ", IF(INTRO!$E$37="Non endémique"," ", IF(COUNTRY_INFO!B60=0," ",COUNTRY_INFO!B60))) ->  | C60: =IF(INTRO!$E$39<>"Non endémique", " ", IF(INTRO!$E$37="Non endémique"," ", IF(COUNTRY_INFO!C60=0," ",COUNTRY_INFO!C60))) ->  | D60: =IF(INTRO!$E$39<>"Non endémique", 0, IF(INTRO!$E$37="Non endémique",0,IF(COUNTRY_INFO!$H60=1,COUNTRY_INFO!E60,0))) -> 0 | E60: =IF(INTRO!$E$39<>"Non endémique", 0, IF(INTRO!$E$37="Non endémique",0,IF(COUNTRY_INFO!$H60=1,COUNTRY_INFO!F60,0))) -> 0 | F60: =IF(INTRO!$E$39<>"Non endémique", 0, IF(INTRO!$E$37="Non endémique",0,IF(COUNTRY_INFO!$H60=1,COUNTRY_INFO!G60,0))) -> 0 | G60: 0 | H60: =IF(INTRO!$E$39="Non endémique",IF(INTRO!$E$37="Non endémique","Non requis",COUNTRY_INFO!V60),"Traiter avec IVM") -> Traiter avec IVM | I60: 0 | J60: 0 | L60: 0
A61: =IF(INTRO!$E$39<>"Non endémique", " ", IF(INTRO!$E$37="Non endémique"," ", IF(COUNTRY_INFO!A61=0," ",COUNTRY_INFO!A61))) ->  | B61: =IF(INTRO!$E$39<>"Non endémique", " ", IF(INTRO!$E$37="Non endémique"," ", IF(COUNTRY_INFO!B61=0," ",COUNTRY_INFO!B61))) ->  | C61: =IF(INTRO!$E$39<>"Non endémique", " ", IF(INTRO!$E$37="Non endémique"," ", IF(COUNTRY_INFO!C61=0," ",COUNTRY_INFO!C61))) ->  | D61: =IF(INTRO!$E$39<>"Non endémique", 0, IF(INTRO!$E$37="Non endémique",0,IF(COUNTRY_INFO!$H61=1,COUNTRY_INFO!E61,0))) -> 0 | E61: =IF(INTRO!$E$39<>"Non endémique", 0, IF(INTRO!$E$37="Non endémique",0,IF(COUNTRY_INFO!$H61=1,COUNTRY_INFO!F61,0))) -> 0 | F61: =IF(INTRO!$E$39<>"Non endémique", 0, IF(INTRO!$E$37="Non endémique",0,IF(COUNTRY_INFO!$H61=1,COUNTRY_INFO!G61,0))) -> 0 | G61: 0 | H61: =IF(INTRO!$E$39="Non endémique",IF(INTRO!$E$37="Non endémique","Non requis",COUNTRY_INFO!V61),"Traiter avec IVM") -> Traiter avec IVM | I61: 0 | J61: 0 | L61: 0
A62: =IF(INTRO!$E$39<>"Non endémique", " ", IF(INTRO!$E$37="Non endémique"," ", IF(COUNTRY_INFO!A62=0," ",COUNTRY_INFO!A62))) ->  | B62: =IF(INTRO!$E$39<>"Non endémique", " ", IF(INTRO!$E$37="Non endémique"," ", IF(COUNTRY_INFO!B62=0," ",COUNTRY_INFO!B62))) ->  | C62: =IF(INTRO!$E$39<>"Non endémique", " ", IF(INTRO!$E$37="Non endémique"," ", IF(COUNTRY_INFO!C62=0," ",COUNTRY_INFO!C62))) ->  | D62: =IF(INTRO!$E$39<>"Non endémique", 0, IF(INTRO!$E$37="Non endémique",0,IF(COUNTRY_INFO!$H62=1,COUNTRY_INFO!E62,0))) -> 0 | E62: =IF(INTRO!$E$39<>"Non endémique", 0, IF(INTRO!$E$37="Non endémique",0,IF(COUNTRY_INFO!$H62=1,COUNTRY_INFO!F62,0))) -> 0 | F62: =IF(INTRO!$E$39<>"Non endémique", 0, IF(INTRO!$E$37="Non endémique",0,IF(COUNTRY_INFO!$H62=1,COUNTRY_INFO!G62,0))) -> 0 | G62: 0 | H62: =IF(INTRO!$E$39="Non endémique",IF(INTRO!$E$37="Non endémique","Non requis",COUNTRY_INFO!V62),"Traiter avec IVM") -> Traiter avec IVM | I62: 0 | J62: 0 | L62: 0
A63: =IF(INTRO!$E$39<>"Non endémique", " ", IF(INTRO!$E$37="Non endémique"," ", IF(COUNTRY_INFO!A63=0," ",COUNTRY_INFO!A63))) ->  | B63: =IF(INTRO!$E$39<>"Non endémique", " ", IF(INTRO!$E$37="Non endémique"," ", IF(COUNTRY_INFO!B63=0," ",COUNTRY_INFO!B63))) ->  | C63: =IF(INTRO!$E$39<>"Non endémique", " ", IF(INTRO!$E$37="Non endémique"," ", IF(COUNTRY_INFO!C63=0," ",COUNTRY_INFO!C63))) ->  | D63: =IF(INTRO!$E$39<>"Non endémique", 0, IF(INTRO!$E$37="Non endémique",0,IF(COUNTRY_INFO!$H63=1,COUNTRY_INFO!E63,0))) -> 0 | E63: =IF(INTRO!$E$39<>"Non endémique", 0, IF(INTRO!$E$37="Non endémique",0,IF(COUNTRY_INFO!$H63=1,COUNTRY_INFO!F63,0))) -> 0 | F63: =IF(INTRO!$E$39<>"Non endémique", 0, IF(INTRO!$E$37="Non endémique",0,IF(COUNTRY_INFO!$H63=1,COUNTRY_INFO!G63,0))) -> 0 | G63: 0 | H63: =IF(INTRO!$E$39="Non endémique",IF(INTRO!$E$37="Non endémique","Non requis",COUNTRY_INFO!V63),"Traiter avec IVM") -> Traiter avec IVM | I63: 0 | J63: 0 | L63: 0
A64: =IF(INTRO!$E$39<>"Non endémique", " ", IF(INTRO!$E$37="Non endémique"," ", IF(COUNTRY_INFO!A64=0," ",COUNTRY_INFO!A64))) ->  | B64: =IF(INTRO!$E$39<>"Non endémique", " ", IF(INTRO!$E$37="Non endémique"," ", IF(COUNTRY_INFO!B64=0," ",COUNTRY_INFO!B64))) ->  | C64: =IF(INTRO!$E$39<>"Non endémique", " ", IF(INTRO!$E$37="Non endémique"," ", IF(COUNTRY_INFO!C64=0," ",COUNTRY_INFO!C64))) ->  | D64: =IF(INTRO!$E$39<>"Non endémique", 0, IF(INTRO!$E$37="Non endémique",0,IF(COUNTRY_INFO!$H64=1,COUNTRY_INFO!E64,0))) -> 0 | E64: =IF(INTRO!$E$39<>"Non endémique", 0, IF(INTRO!$E$37="Non endémique",0,IF(COUNTRY_INFO!$H64=1,COUNTRY_INFO!F64,0))) -> 0 | F64: =IF(INTRO!$E$39<>"Non endémique", 0, IF(INTRO!$E$37="Non endémique",0,IF(COUNTRY_INFO!$H64=1,COUNTRY_INFO!G64,0))) -> 0 | G64: 0 | H64: =IF(INTRO!$E$39="Non endémique",IF(INTRO!$E$37="Non endémique","Non requis",COUNTRY_INFO!V64),"Traiter avec IVM") -> Traiter avec IVM | I64: 0 | J64: 0 | L64: 0
A65: =IF(INTRO!$E$39<>"Non endémique", " ", IF(INTRO!$E$37="Non endémique"," ", IF(COUNTRY_INFO!A65=0," ",COUNTRY_INFO!A65))) ->  | B65: =IF(INTRO!$E$39<>"Non endémique", " ", IF(INTRO!$E$37="Non endémique"," ", IF(COUNTRY_INFO!B65=0," ",COUNTRY_INFO!B65))) ->  | C65: =IF(INTRO!$E$39<>"Non endémique", " ", IF(INTRO!$E$37="Non endémique"," ", IF(COUNTRY_INFO!C65=0," ",COUNTRY_INFO!C65))) ->  | D65: =IF(INTRO!$E$39<>"Non endémique", 0, IF(INTRO!$E$37="Non endémique",0,IF(COUNTRY_INFO!$H65=1,COUNTRY_INFO!E65,0))) -> 0 | E65: =IF(INTRO!$E$39<>"Non endémique", 0, IF(INTRO!$E$37="Non endémique",0,IF(COUNTRY_INFO!$H65=1,COUNTRY_INFO!F65,0))) -> 0 | F65: =IF(INTRO!$E$39<>"Non endémique", 0, IF(INTRO!$E$37="Non endémique",0,IF(COUNTRY_INFO!$H65=1,COUNTRY_INFO!G65,0))) -> 0 | G65: 0 | H65: =IF(INTRO!$E$39="Non endémique",IF(INTRO!$E$37="Non endémique","Non requis",COUNTRY_INFO!V65),"Traiter avec IVM") -> Traiter avec IVM | I65: 0 | J65: 0 | L65: 0
A66: =IF(INTRO!$E$39<>"Non endémique", " ", IF(INTRO!$E$37="Non endémique"," ", IF(COUNTRY_INFO!A66=0," ",COUNTRY_INFO!A66))) ->  | B66: =IF(INTRO!$E$39<>"Non endémique", " ", IF(INTRO!$E$37="Non endémique"," ", IF(COUNTRY_INFO!B66=0," ",COUNTRY_INFO!B66))) ->  | C66: =IF(INTRO!$E$39<>"Non endémique", " ", IF(INTRO!$E$37="Non endémique"," ", IF(COUNTRY_INFO!C66=0," ",COUNTRY_INFO!C66))) ->  | D66: =IF(INTRO!$E$39<>"Non endémique", 0, IF(INTRO!$E$37="Non endémique",0,IF(COUNTRY_INFO!$H66=1,COUNTRY_INFO!E66,0))) -> 0 | E66: =IF(INTRO!$E$39<>"Non endémique", 0, IF(INTRO!$E$37="Non endémique",0,IF(COUNTRY_INFO!$H66=1,COUNTRY_INFO!F66,0))) -> 0 | F66: =IF(INTRO!$E$39<>"Non endémique", 0, IF(INTRO!$E$37="Non endémique",0,IF(COUNTRY_INFO!$H66=1,COUNTRY_INFO!G66,0))) -> 0 | G66: 0 | H66: =IF(INTRO!$E$39="Non endémique",IF(INTRO!$E$37="Non endémique","Non requis",COUNTRY_INFO!V66),"Traiter avec IVM") -> Traiter avec IVM | I66: 0 | J66: 0 | L66: 0
A67: =IF(INTRO!$E$39<>"Non endémique", " ", IF(INTRO!$E$37="Non endémique"," ", IF(COUNTRY_INFO!A67=0," ",COUNTRY_INFO!A67))) ->  | B67: =IF(INTRO!$E$39<>"Non endémique", " ", IF(INTRO!$E$37="Non endémique"," ", IF(COUNTRY_INFO!B67=0," ",COUNTRY_INFO!B67))) ->  | C67: =IF(INTRO!$E$39<>"Non endémique", " ", IF(INTRO!$E$37="Non endémique"," ", IF(COUNTRY_INFO!C67=0," ",COUNTRY_INFO!C67))) ->  | D67: =IF(INTRO!$E$39<>"Non endémique", 0, IF(INTRO!$E$37="Non endémique",0,IF(COUNTRY_INFO!$H67=1,COUNTRY_INFO!E67,0))) -> 0 | E67: =IF(INTRO!$E$39<>"Non endémique", 0, IF(INTRO!$E$37="Non endémique",0,IF(COUNTRY_INFO!$H67=1,COUNTRY_INFO!F67,0))) -> 0 | F67: =IF(INTRO!$E$39<>"Non endémique", 0, IF(INTRO!$E$37="Non endémique",0,IF(COUNTRY_INFO!$H67=1,COUNTRY_INFO!G67,0))) -> 0 | G67: 0 | H67: =IF(INTRO!$E$39="Non endémique",IF(INTRO!$E$37="Non endémique","Non requis",COUNTRY_INFO!V67),"Traiter avec IVM") -> Traiter avec IVM | I67: 0 | J67: 0 | L67: 0
A68: =IF(INTRO!$E$39<>"Non endémique", " ", IF(INTRO!$E$37="Non endémique"," ", IF(COUNTRY_INFO!A68=0," ",COUNTRY_INFO!A68))) ->  | B68: =IF(INTRO!$E$39<>"Non endémique", " ", IF(INTRO!$E$37="Non endémique"," ", IF(COUNTRY_INFO!B68=0," ",COUNTRY_INFO!B68))) ->  | C68: =IF(INTRO!$E$39<>"Non endémique", " ", IF(INTRO!$E$37="Non endémique"," ", IF(COUNTRY_INFO!C68=0," ",COUNTRY_INFO!C68))) ->  | D68: =IF(INTRO!$E$39<>"Non endémique", 0, IF(INTRO!$E$37="Non endémique",0,IF(COUNTRY_INFO!$H68=1,COUNTRY_INFO!E68,0))) -> 0 | E68: =IF(INTRO!$E$39<>"Non endémique", 0, IF(INTRO!$E$37="Non endémique",0,IF(COUNTRY_INFO!$H68=1,COUNTRY_INFO!F68,0))) -> 0 | F68: =IF(INTRO!$E$39<>"Non endémique", 0, IF(INTRO!$E$37="Non endémique",0,IF(COUNTRY_INFO!$H68=1,COUNTRY_INFO!G68,0))) -> 0 | G68: 0 | H68: =IF(INTRO!$E$39="Non endémique",IF(INTRO!$E$37="Non endémique","Non requis",COUNTRY_INFO!V68),"Traiter avec IVM") -> Traiter avec IVM | I68: 0 | J68: 0 | L68: 0
A69: =IF(INTRO!$E$39<>"Non endémique", " ", IF(INTRO!$E$37="Non endémique"," ", IF(COUNTRY_INFO!A69=0," ",COUNTRY_INFO!A69))) ->  | B69: =IF(INTRO!$E$39<>"Non endémique", " ", IF(INTRO!$E$37="Non endémique"," ", IF(COUNTRY_INFO!B69=0," ",COUNTRY_INFO!B69))) ->  | C69: =IF(INTRO!$E$39<>"Non endémique", " ", IF(INTRO!$E$37="Non endémique"," ", IF(COUNTRY_INFO!C69=0," ",COUNTRY_INFO!C69))) ->  | D69: =IF(INTRO!$E$39<>"Non endémique", 0, IF(INTRO!$E$37="Non endémique",0,IF(COUNTRY_INFO!$H69=1,COUNTRY_INFO!E69,0))) -> 0 | E69: =IF(INTRO!$E$39<>"Non endémique", 0, IF(INTRO!$E$37="Non endémique",0,IF(COUNTRY_INFO!$H69=1,COUNTRY_INFO!F69,0))) -> 0 | F69: =IF(INTRO!$E$39<>"Non endémique", 0, IF(INTRO!$E$37="Non endémique",0,IF(COUNTRY_INFO!$H69=1,COUNTRY_INFO!G69,0))) -> 0 | G69: 0 | H69: =IF(INTRO!$E$39="Non endémique",IF(INTRO!$E$37="Non endémique","Non requis",COUNTRY_INFO!V69),"Traiter avec IVM") -> Traiter avec IVM | I69: 0 | J69: 0 | L69: 0
A70: =IF(INTRO!$E$39<>"Non endémique", " ", IF(INTRO!$E$37="Non endémique"," ", IF(COUNTRY_INFO!A70=0," ",COUNTRY_INFO!A70))) ->  | B70: =IF(INTRO!$E$39<>"Non endémique", " ", IF(INTRO!$E$37="Non endémique"," ", IF(COUNTRY_INFO!B70=0," ",COUNTRY_INFO!B70))) ->  | C70: =IF(INTRO!$E$39<>"Non endémique", " ", IF(INTRO!$E$37="Non endémique"," ", IF(COUNTRY_INFO!C70=0," ",COUNTRY_INFO!C70))) ->  | D70: =IF(INTRO!$E$39<>"Non endémique", 0, IF(INTRO!$E$37="Non endémique",0,IF(COUNTRY_INFO!$H70=1,COUNTRY_INFO!E70,0))) -> 0 | E70: =IF(INTRO!$E$39<>"Non endémique", 0, IF(INTRO!$E$37="Non endémique",0,IF(COUNTRY_INFO!$H70=1,COUNTRY_INFO!F70,0))) -> 0 | F70: =IF(INTRO!$E$39<>"Non endémique", 0, IF(INTRO!$E$37="Non endémique",0,IF(COUNTRY_INFO!$H70=1,COUNTRY_INFO!G70,0))) -> 0 | G70: 0 | H70: =IF(INTRO!$E$39="Non endémique",IF(INTRO!$E$37="Non endémique","Non requis",COUNTRY_INFO!V70),"Traiter avec IVM") -> Traiter avec IVM | I70: 0 | J70: 0 | L70: 0
A71: =IF(INTRO!$E$39<>"Non endémique", " ", IF(INTRO!$E$37="Non endémique"," ", IF(COUNTRY_INFO!A71=0," ",COUNTRY_INFO!A71))) ->  | B71: =IF(INTRO!$E$39<>"Non endémique", " ", IF(INTRO!$E$37="Non endémique"," ", IF(COUNTRY_INFO!B71=0," ",COUNTRY_INFO!B71))) ->  | C71: =IF(INTRO!$E$39<>"Non endémique", " ", IF(INTRO!$E$37="Non endémique"," ", IF(COUNTRY_INFO!C71=0," ",COUNTRY_INFO!C71))) ->  | D71: =IF(INTRO!$E$39<>"Non endémique", 0, IF(INTRO!$E$37="Non endémique",0,IF(COUNTRY_INFO!$H71=1,COUNTRY_INFO!E71,0))) -> 0 | E71: =IF(INTRO!$E$39<>"Non endémique", 0, IF(INTRO!$E$37="Non endémique",0,IF(COUNTRY_INFO!$H71=1,COUNTRY_INFO!F71,0))) -> 0 | F71: =IF(INTRO!$E$39<>"Non endémique", 0, IF(INTRO!$E$37="Non endémique",0,IF(COUNTRY_INFO!$H71=1,COUNTRY_INFO!G71,0))) -> 0 | G71: 0 | H71: =IF(INTRO!$E$39="Non endémique",IF(INTRO!$E$37="Non endémique","Non requis",COUNTRY_INFO!V71),"Traiter avec IVM") -> Traiter avec IVM | I71: 0 | J71: 0 | L71: 0
A72: =IF(INTRO!$E$39<>"Non endémique", " ", IF(INTRO!$E$37="Non endémique"," ", IF(COUNTRY_INFO!A72=0," ",COUNTRY_INFO!A72))) ->  | B72: =IF(INTRO!$E$39<>"Non endémique", " ", IF(INTRO!$E$37="Non endémique"," ", IF(COUNTRY_INFO!B72=0," ",COUNTRY_INFO!B72))) ->  | C72: =IF(INTRO!$E$39<>"Non endémique", " ", IF(INTRO!$E$37="Non endémique"," ", IF(COUNTRY_INFO!C72=0," ",COUNTRY_INFO!C72))) ->  | D72: =IF(INTRO!$E$39<>"Non endémique", 0, IF(INTRO!$E$37="Non endémique",0,IF(COUNTRY_INFO!$H72=1,COUNTRY_INFO!E72,0))) -> 0 | E72: =IF(INTRO!$E$39<>"Non endémique", 0, IF(INTRO!$E$37="Non endémique",0,IF(COUNTRY_INFO!$H72=1,COUNTRY_INFO!F72,0))) -> 0 | F72: =IF(INTRO!$E$39<>"Non endémique", 0, IF(INTRO!$E$37="Non endémique",0,IF(COUNTRY_INFO!$H72=1,COUNTRY_INFO!G72,0))) -> 0 | G72: 0 | H72: =IF(INTRO!$E$39="Non endémique",IF(INTRO!$E$37="Non endémique","Non requis",COUNTRY_INFO!V72),"Traiter avec IVM") -> Traiter avec IVM | I72: 0 | J72: 0 | L72: 0
A73: =IF(INTRO!$E$39<>"Non endémique", " ", IF(INTRO!$E$37="Non endémique"," ", IF(COUNTRY_INFO!A73=0," ",COUNTRY_INFO!A73))) ->  | B73: =IF(INTRO!$E$39<>"Non endémique", " ", IF(INTRO!$E$37="Non endémique"," ", IF(COUNTRY_INFO!B73=0," ",COUNTRY_INFO!B73))) ->  | C73: =IF(INTRO!$E$39<>"Non endémique", " ", IF(INTRO!$E$37="Non endémique"," ", IF(COUNTRY_INFO!C73=0," ",COUNTRY_INFO!C73))) ->  | D73: =IF(INTRO!$E$39<>"Non endémique", 0, IF(INTRO!$E$37="Non endémique",0,IF(COUNTRY_INFO!$H73=1,COUNTRY_INFO!E73,0))) -> 0 | E73: =IF(INTRO!$E$39<>"Non endémique", 0, IF(INTRO!$E$37="Non endémique",0,IF(COUNTRY_INFO!$H73=1,COUNTRY_INFO!F73,0))) -> 0 | F73: =IF(INTRO!$E$39<>"Non endémique", 0, IF(INTRO!$E$37="Non endémique",0,IF(COUNTRY_INFO!$H73=1,COUNTRY_INFO!G73,0))) -> 0 | G73: 0 | H73: =IF(INTRO!$E$39="Non endémique",IF(INTRO!$E$37="Non endémique","Non requis",COUNTRY_INFO!V73),"Traiter avec IVM") -> Traiter avec IVM | I73: 0 | J73: 0 | L73: 0
A74: =IF(INTRO!$E$39<>"Non endémique", " ", IF(INTRO!$E$37="Non endémique"," ", IF(COUNTRY_INFO!A74=0," ",COUNTRY_INFO!A74))) ->  | B74: =IF(INTRO!$E$39<>"Non endémique", " ", IF(INTRO!$E$37="Non endémique"," ", IF(COUNTRY_INFO!B74=0," ",COUNTRY_INFO!B74))) ->  | C74: =IF(INTRO!$E$39<>"Non endémique", " ", IF(INTRO!$E$37="Non endémique"," ", IF(COUNTRY_INFO!C74=0," ",COUNTRY_INFO!C74))) ->  | D74: =IF(INTRO!$E$39<>"Non endémique", 0, IF(INTRO!$E$37="Non endémique",0,IF(COUNTRY_INFO!$H74=1,COUNTRY_INFO!E74,0))) -> 0 | E74: =IF(INTRO!$E$39<>"Non endémique", 0, IF(INTRO!$E$37="Non endémique",0,IF(COUNTRY_INFO!$H74=1,COUNTRY_INFO!F74,0))) -> 0 | F74: =IF(INTRO!$E$39<>"Non endémique", 0, IF(INTRO!$E$37="Non endémique",0,IF(COUNTRY_INFO!$H74=1,COUNTRY_INFO!G74,0))) -> 0 | G74: 0 | H74: =IF(INTRO!$E$39="Non endémique",IF(INTRO!$E$37="Non endémique","Non requis",COUNTRY_INFO!V74),"Traiter avec IVM") -> Traiter avec IVM | I74: 0 | J74: 0 | L74: 0
A75: =IF(INTRO!$E$39<>"Non endémique", " ", IF(INTRO!$E$37="Non endémique"," ", IF(COUNTRY_INFO!A75=0," ",COUNTRY_INFO!A75))) ->  | B75: =IF(INTRO!$E$39<>"Non endémique", " ", IF(INTRO!$E$37="Non endémique"," ", IF(COUNTRY_INFO!B75=0," ",COUNTRY_INFO!B75))) ->  | C75: =IF(INTRO!$E$39<>"Non endémique", " ", IF(INTRO!$E$37="Non endémique"," ", IF(COUNTRY_INFO!C75=0," ",COUNTRY_INFO!C75))) ->  | D75: =IF(INTRO!$E$39<>"Non endémique", 0, IF(INTRO!$E$37="Non endémique",0,IF(COUNTRY_INFO!$H75=1,COUNTRY_INFO!E75,0))) -> 0 | E75: =IF(INTRO!$E$39<>"Non endémique", 0, IF(INTRO!$E$37="Non endémique",0,IF(COUNTRY_INFO!$H75=1,COUNTRY_INFO!F75,0))) -> 0 | F75: =IF(INTRO!$E$39<>"Non endémique", 0, IF(INTRO!$E$37="Non endémique",0,IF(COUNTRY_INFO!$H75=1,COUNTRY_INFO!G75,0))) -> 0 | G75: =SUM(D75:F75) -> 0 | H75: =IF(INTRO!$E$39="Non endémique",IF(INTRO!$E$37="Non endémique","Non requis",COUNTRY_INFO!V75),"Traiter avec IVM") -> Traiter avec IVM | I75: =IF(H75=1,G75,0) -> 0 | J75: =IF(I75>0,I75*2.5,0) -> 0 | L75: 0
A76: =IF(INTRO!$E$39<>"Non endémique", " ", IF(INTRO!$E$37="Non endémique"," ", IF(COUNTRY_INFO!A76=0," ",COUNTRY_INFO!A76))) ->  | B76: =IF(INTRO!$E$39<>"Non endémique", " ", IF(INTRO!$E$37="Non endémique"," ", IF(COUNTRY_INFO!B76=0," ",COUNTRY_INFO!B76))) ->  | C76: =IF(INTRO!$E$39<>"Non endémique", " ", IF(INTRO!$E$37="Non endémique"," ", IF(COUNTRY_INFO!C76=0," ",COUNTRY_INFO!C76))) ->  | D76: =IF(INTRO!$E$39<>"Non endémique", 0, IF(INTRO!$E$37="Non endémique",0,IF(COUNTRY_INFO!$H76=1,COUNTRY_INFO!E76,0))) -> 0 | E76: =IF(INTRO!$E$39<>"Non endémique", 0, IF(INTRO!$E$37="Non endémique",0,IF(COUNTRY_INFO!$H76=1,COUNTRY_INFO!F76,0))) -> 0 | F76: =IF(INTRO!$E$39<>"Non endémique", 0, IF(INTRO!$E$37="Non endémique",0,IF(COUNTRY_INFO!$H76=1,COUNTRY_INFO!G76,0))) -> 0 | G76: 0 | H76: =IF(INTRO!$E$39="Non endémique",IF(INTRO!$E$37="Non endémique","Non requis",COUNTRY_INFO!V76),"Traiter avec IVM") -> Traiter avec IVM | I76: 0 | J76: 0 | L76: 0
A77: =IF(INTRO!$E$39<>"Non endémique", " ", IF(INTRO!$E$37="Non endémique"," ", IF(COUNTRY_INFO!A77=0," ",COUNTRY_INFO!A77))) ->  | B77: =IF(INTRO!$E$39<>"Non endémique", " ", IF(INTRO!$E$37="Non endémique"," ", IF(COUNTRY_INFO!B77=0," ",COUNTRY_INFO!B77))) ->  | C77: =IF(INTRO!$E$39<>"Non endémique", " ", IF(INTRO!$E$37="Non endémique"," ", IF(COUNTRY_INFO!C77=0," ",COUNTRY_INFO!C77))) ->  | D77: =IF(INTRO!$E$39<>"Non endémique", 0, IF(INTRO!$E$37="Non endémique",0,IF(COUNTRY_INFO!$H77=1,COUNTRY_INFO!E77,0))) -> 0 | E77: =IF(INTRO!$E$39<>"Non endémique", 0, IF(INTRO!$E$37="Non endémique",0,IF(COUNTRY_INFO!$H77=1,COUNTRY_INFO!F77,0))) -> 0 | F77: =IF(INTRO!$E$39<>"Non endémique", 0, IF(INTRO!$E$37="Non endémique",0,IF(COUNTRY_INFO!$H77=1,COUNTRY_INFO!G77,0))) -> 0 | G77: 0 | H77: =IF(INTRO!$E$39="Non endémique",IF(INTRO!$E$37="Non endémique","Non requis",COUNTRY_INFO!V77),"Traiter avec IVM") -> Traiter avec IVM | I77: 0 | J77: 0 | L77: 0
A78: =IF(INTRO!$E$39<>"Non endémique", " ", IF(INTRO!$E$37="Non endémique"," ", IF(COUNTRY_INFO!A78=0," ",COUNTRY_INFO!A78))) ->  | B78: =IF(INTRO!$E$39<>"Non endémique", " ", IF(INTRO!$E$37="Non endémique"," ", IF(COUNTRY_INFO!B78=0," ",COUNTRY_INFO!B78))) ->  | C78: =IF(INTRO!$E$39<>"Non endémique", " ", IF(INTRO!$E$37="Non endémique"," ", IF(COUNTRY_INFO!C78=0," ",COUNTRY_INFO!C78))) ->  | D78: =IF(INTRO!$E$39<>"Non endémique", 0, IF(INTRO!$E$37="Non endémique",0,IF(COUNTRY_INFO!$H78=1,COUNTRY_INFO!E78,0))) -> 0 | E78: =IF(INTRO!$E$39<>"Non endémique", 0, IF(INTRO!$E$37="Non endémique",0,IF(COUNTRY_INFO!$H78=1,COUNTRY_INFO!F78,0))) -> 0 | F78: =IF(INTRO!$E$39<>"Non endémique", 0, IF(INTRO!$E$37="Non endémique",0,IF(COUNTRY_INFO!$H78=1,COUNTRY_INFO!G78,0))) -> 0 | G78: 0 | H78: =IF(INTRO!$E$39="Non endémique",IF(INTRO!$E$37="Non endémique","Non requis",COUNTRY_INFO!V78),"Traiter avec IVM") -> Traiter avec IVM | I78: 0 | J78: 0 | L78: 0
A79: =IF(INTRO!$E$39<>"Non endémique", " ", IF(INTRO!$E$37="Non endémique"," ", IF(COUNTRY_INFO!A79=0," ",COUNTRY_INFO!A79))) ->  | B79: =IF(INTRO!$E$39<>"Non endémique", " ", IF(INTRO!$E$37="Non endémique"," ", IF(COUNTRY_INFO!B79=0," ",COUNTRY_INFO!B79))) ->  | C79: =IF(INTRO!$E$39<>"Non endémique", " ", IF(INTRO!$E$37="Non endémique"," ", IF(COUNTRY_INFO!C79=0," ",COUNTRY_INFO!C79))) ->  | D79: =IF(INTRO!$E$39<>"Non endémique", 0, IF(INTRO!$E$37="Non endémique",0,IF(COUNTRY_INFO!$H79=1,COUNTRY_INFO!E79,0))) -> 0 | E79: =IF(INTRO!$E$39<>"Non endémique", 0, IF(INTRO!$E$37="Non endémique",0,IF(COUNTRY_INFO!$H79=1,COUNTRY_INFO!F79,0))) -> 0 | F79: =IF(INTRO!$E$39<>"Non endémique", 0, IF(INTRO!$E$37="Non endémique",0,IF(COUNTRY_INFO!$H79=1,COUNTRY_INFO!G79,0))) -> 0 | G79: 0 | H79: =IF(INTRO!$E$39="Non endémique",IF(INTRO!$E$37="Non endémique","Non requis",COUNTRY_INFO!V79),"Traiter avec IVM") -> Traiter avec IVM | I79: 0 | J79: 0 | L79: 0
A80: =IF(INTRO!$E$39<>"Non endémique", " ", IF(INTRO!$E$37="Non endémique"," ", IF(COUNTRY_INFO!A80=0," ",COUNTRY_INFO!A80))) ->  | B80: =IF(INTRO!$E$39<>"Non endémique", " ", IF(INTRO!$E$37="Non endémique"," ", IF(COUNTRY_INFO!B80=0," ",COUNTRY_INFO!B80))) ->  | C80: =IF(INTRO!$E$39<>"Non endémique", " ", IF(INTRO!$E$37="Non endémique"," ", IF(COUNTRY_INFO!C80=0," ",COUNTRY_INFO!C80))) ->  | D80: =IF(INTRO!$E$39<>"Non endémique", 0, IF(INTRO!$E$37="Non endémique",0,IF(COUNTRY_INFO!$H80=1,COUNTRY_INFO!E80,0))) -> 0 | E80: =IF(INTRO!$E$39<>"Non endémique", 0, IF(INTRO!$E$37="Non endémique",0,IF(COUNTRY_INFO!$H80=1,COUNTRY_INFO!F80,0))) -> 0 | F80: =IF(INTRO!$E$39<>"Non endémique", 0, IF(INTRO!$E$37="Non endémique",0,IF(COUNTRY_INFO!$H80=1,COUNTRY_INFO!G80,0))) -> 0 | G80: 0 | H80: =IF(INTRO!$E$39="Non endémique",IF(INTRO!$E$37="Non endémique","Non requis",COUNTRY_INFO!V80),"Traiter avec IVM") -> Traiter avec IVM | I80: 0 | J80: 0 | L80: 0
A81: =IF(INTRO!$E$39<>"Non endémique", " ", IF(INTRO!$E$37="Non endémique"," ", IF(COUNTRY_INFO!A81=0," ",COUNTRY_INFO!A81))) ->  | B81: =IF(INTRO!$E$39<>"Non endémique", " ", IF(INTRO!$E$37="Non endémique"," ", IF(COUNTRY_INFO!B81=0," ",COUNTRY_INFO!B81))) ->  | C81: =IF(INTRO!$E$39<>"Non endémique", " ", IF(INTRO!$E$37="Non endémique"," ", IF(COUNTRY_INFO!C81=0," ",COUNTRY_INFO!C81))) ->  | D81: =IF(INTRO!$E$39<>"Non endémique", 0, IF(INTRO!$E$37="Non endémique",0,IF(COUNTRY_INFO!$H81=1,COUNTRY_INFO!E81,0))) -> 0 | E81: =IF(INTRO!$E$39<>"Non endémique", 0, IF(INTRO!$E$37="Non endémique",0,IF(COUNTRY_INFO!$H81=1,COUNTRY_INFO!F81,0))) -> 0 | F81: =IF(INTRO!$E$39<>"Non endémique", 0, IF(INTRO!$E$37="Non endémique",0,IF(COUNTRY_INFO!$H81=1,COUNTRY_INFO!G81,0))) -> 0 | G81: 0 | H81: =IF(INTRO!$E$39="Non endémique",IF(INTRO!$E$37="Non endémique","Non requis",COUNTRY_INFO!V81),"Traiter avec IVM") -> Traiter avec IVM | I81: 0 | J81: 0 | L81: 0
A82: =IF(INTRO!$E$39<>"Non endémique", " ", IF(INTRO!$E$37="Non endémique"," ", IF(COUNTRY_INFO!A82=0," ",COUNTRY_INFO!A82))) ->  | B82: =IF(INTRO!$E$39<>"Non endémique", " ", IF(INTRO!$E$37="Non endémique"," ", IF(COUNTRY_INFO!B82=0," ",COUNTRY_INFO!B82))) ->  | C82: =IF(INTRO!$E$39<>"Non endémique", " ", IF(INTRO!$E$37="Non endémique"," ", IF(COUNTRY_INFO!C82=0," ",COUNTRY_INFO!C82))) ->  | D82: =IF(INTRO!$E$39<>"Non endémique", 0, IF(INTRO!$E$37="Non endémique",0,IF(COUNTRY_INFO!$H82=1,COUNTRY_INFO!E82,0))) -> 0 | E82: =IF(INTRO!$E$39<>"Non endémique", 0, IF(INTRO!$E$37="Non endémique",0,IF(COUNTRY_INFO!$H82=1,COUNTRY_INFO!F82,0))) -> 0 | F82: =IF(INTRO!$E$39<>"Non endémique", 0, IF(INTRO!$E$37="Non endémique",0,IF(COUNTRY_INFO!$H82=1,COUNTRY_INFO!G82,0))) -> 0 | G82: 0 | H82: =IF(INTRO!$E$39="Non endémique",IF(INTRO!$E$37="Non endémique","Non requis",COUNTRY_INFO!V82),"Traiter avec IVM") -> Traiter avec IVM | I82: 0 | J82: 0 | L82: 0
A83: =IF(INTRO!$E$39<>"Non endémique", " ", IF(INTRO!$E$37="Non endémique"," ", IF(COUNTRY_INFO!A83=0," ",COUNTRY_INFO!A83))) ->  | B83: =IF(INTRO!$E$39<>"Non endémique", " ", IF(INTRO!$E$37="Non endémique"," ", IF(COUNTRY_INFO!B83=0," ",COUNTRY_INFO!B83))) ->  | C83: =IF(INTRO!$E$39<>"Non endémique", " ", IF(INTRO!$E$37="Non endémique"," ", IF(COUNTRY_INFO!C83=0," ",COUNTRY_INFO!C83))) ->  | D83: =IF(INTRO!$E$39<>"Non endémique", 0, IF(INTRO!$E$37="Non endémique",0,IF(COUNTRY_INFO!$H83=1,COUNTRY_INFO!E83,0))) -> 0 | E83: =IF(INTRO!$E$39<>"Non endémique", 0, IF(INTRO!$E$37="Non endémique",0,IF(COUNTRY_INFO!$H83=1,COUNTRY_INFO!F83,0))) -> 0 | F83: =IF(INTRO!$E$39<>"Non endémique", 0, IF(INTRO!$E$37="Non endémique",0,IF(COUNTRY_INFO!$H83=1,COUNTRY_INFO!G83,0))) -> 0 | G83: 0 | H83: =IF(INTRO!$E$39="Non endémique",IF(INTRO!$E$37="Non endémique","Non requis",COUNTRY_INFO!V83),"Traiter avec IVM") -> Traiter avec IVM | I83: 0 | J83: 0 | L83: 0
A84: =IF(INTRO!$E$39<>"Non endémique", " ", IF(INTRO!$E$37="Non endémique"," ", IF(COUNTRY_INFO!A84=0," ",COUNTRY_INFO!A84))) ->  | B84: =IF(INTRO!$E$39<>"Non endémique", " ", IF(INTRO!$E$37="Non endémique"," ", IF(COUNTRY_INFO!B84=0," ",COUNTRY_INFO!B84))) ->  | C84: =IF(INTRO!$E$39<>"Non endémique", " ", IF(INTRO!$E$37="Non endémique"," ", IF(COUNTRY_INFO!C84=0," ",COUNTRY_INFO!C84))) ->  | D84: =IF(INTRO!$E$39<>"Non endémique", 0, IF(INTRO!$E$37="Non endémique",0,IF(COUNTRY_INFO!$H84=1,COUNTRY_INFO!E84,0))) -> 0 | E84: =IF(INTRO!$E$39<>"Non endémique", 0, IF(INTRO!$E$37="Non endémique",0,IF(COUNTRY_INFO!$H84=1,COUNTRY_INFO!F84,0))) -> 0 | F84: =IF(INTRO!$E$39<>"Non endémique", 0, IF(INTRO!$E$37="Non endémique",0,IF(COUNTRY_INFO!$H84=1,COUNTRY_INFO!G84,0))) -> 0 | G84: 0 | H84: =IF(INTRO!$E$39="Non endémique",IF(INTRO!$E$37="Non endémique","Non requis",COUNTRY_INFO!V84),"Traiter avec IVM") -> Traiter avec IVM | I84: 0 | J84: 0 | L84: 0
A85: =IF(INTRO!$E$39<>"Non endémique", " ", IF(INTRO!$E$37="Non endémique"," ", IF(COUNTRY_INFO!A85=0," ",COUNTRY_INFO!A85))) ->  | B85: =IF(INTRO!$E$39<>"Non endémique", " ", IF(INTRO!$E$37="Non endémique"," ", IF(COUNTRY_INFO!B85=0," ",COUNTRY_INFO!B85))) ->  | C85: =IF(INTRO!$E$39<>"Non endémique", " ", IF(INTRO!$E$37="Non endémique"," ", IF(COUNTRY_INFO!C85=0," ",COUNTRY_INFO!C85))) ->  | D85: =IF(INTRO!$E$39<>"Non endémique", 0, IF(INTRO!$E$37="Non endémique",0,IF(COUNTRY_INFO!$H85=1,COUNTRY_INFO!E85,0))) -> 0 | E85: =IF(INTRO!$E$39<>"Non endémique", 0, IF(INTRO!$E$37="Non endémique",0,IF(COUNTRY_INFO!$H85=1,COUNTRY_INFO!F85,0))) -> 0 | F85: =IF(INTRO!$E$39<>"Non endémique", 0, IF(INTRO!$E$37="Non endémique",0,IF(COUNTRY_INFO!$H85=1,COUNTRY_INFO!G85,0))) -> 0 | G85: 0 | H85: =IF(INTRO!$E$39="Non endémique",IF(INTRO!$E$37="Non endémique","Non requis",COUNTRY_INFO!V85),"Traiter avec IVM") -> Traiter avec IVM | I85: 0 | J85: 0 | L85: 0
A86: =IF(INTRO!$E$39<>"Non endémique", " ", IF(INTRO!$E$37="Non endémique"," ", IF(COUNTRY_INFO!A86=0," ",COUNTRY_INFO!A86))) ->  | B86: =IF(INTRO!$E$39<>"Non endémique", " ", IF(INTRO!$E$37="Non endémique"," ", IF(COUNTRY_INFO!B86=0," ",COUNTRY_INFO!B86))) ->  | C86: =IF(INTRO!$E$39<>"Non endémique", " ", IF(INTRO!$E$37="Non endémique"," ", IF(COUNTRY_INFO!C86=0," ",COUNTRY_INFO!C86))) ->  | D86: =IF(INTRO!$E$39<>"Non endémique", 0, IF(INTRO!$E$37="Non endémique",0,IF(COUNTRY_INFO!$H86=1,COUNTRY_INFO!E86,0))) -> 0 | E86: =IF(INTRO!$E$39<>"Non endémique", 0, IF(INTRO!$E$37="Non endémique",0,IF(COUNTRY_INFO!$H86=1,COUNTRY_INFO!F86,0))) -> 0 | F86: =IF(INTRO!$E$39<>"Non endémique", 0, IF(INTRO!$E$37="Non endémique",0,IF(COUNTRY_INFO!$H86=1,COUNTRY_INFO!G86,0))) -> 0 | G86: 0 | H86: =IF(INTRO!$E$39="Non endémique",IF(INTRO!$E$37="Non endémique","Non requis",COUNTRY_INFO!V86),"Traiter avec IVM") -> Traiter avec IVM | I86: 0 | J86: 0 | L86: 0
A87: =IF(INTRO!$E$39<>"Non endémique", " ", IF(INTRO!$E$37="Non endémique"," ", IF(COUNTRY_INFO!A87=0," ",COUNTRY_INFO!A87))) ->  | B87: =IF(INTRO!$E$39<>"Non endémique", " ", IF(INTRO!$E$37="Non endémique"," ", IF(COUNTRY_INFO!B87=0," ",COUNTRY_INFO!B87))) ->  | C87: =IF(INTRO!$E$39<>"Non endémique", " ", IF(INTRO!$E$37="Non endémique"," ", IF(COUNTRY_INFO!C87=0," ",COUNTRY_INFO!C87))) ->  | D87: =IF(INTRO!$E$39<>"Non endémique", 0, IF(INTRO!$E$37="Non endémique",0,IF(COUNTRY_INFO!$H87=1,COUNTRY_INFO!E87,0))) -> 0 | E87: =IF(INTRO!$E$39<>"Non endémique", 0, IF(INTRO!$E$37="Non endémique",0,IF(COUNTRY_INFO!$H87=1,COUNTRY_INFO!F87,0))) -> 0 | F87: =IF(INTRO!$E$39<>"Non endémique", 0, IF(INTRO!$E$37="Non endémique",0,IF(COUNTRY_INFO!$H87=1,COUNTRY_INFO!G87,0))) -> 0 | G87: 0 | H87: =IF(INTRO!$E$39="Non endémique",IF(INTRO!$E$37="Non endémique","Non requis",COUNTRY_INFO!V87),"Traiter avec IVM") -> Traiter avec IVM | I87: 0 | J87: 0 | L87: 0
A88: =IF(INTRO!$E$39<>"Non endémique", " ", IF(INTRO!$E$37="Non endémique"," ", IF(COUNTRY_INFO!A88=0," ",COUNTRY_INFO!A88))) ->  | B88: =IF(INTRO!$E$39<>"Non endémique", " ", IF(INTRO!$E$37="Non endémique"," ", IF(COUNTRY_INFO!B88=0," ",COUNTRY_INFO!B88))) ->  | C88: =IF(INTRO!$E$39<>"Non endémique", " ", IF(INTRO!$E$37="Non endémique"," ", IF(COUNTRY_INFO!C88=0," ",COUNTRY_INFO!C88))) ->  | D88: =IF(INTRO!$E$39<>"Non endémique", 0, IF(INTRO!$E$37="Non endémique",0,IF(COUNTRY_INFO!$H88=1,COUNTRY_INFO!E88,0))) -> 0 | E88: =IF(INTRO!$E$39<>"Non endémique", 0, IF(INTRO!$E$37="Non endémique",0,IF(COUNTRY_INFO!$H88=1,COUNTRY_INFO!F88,0))) -> 0 | F88: =IF(INTRO!$E$39<>"Non endémique", 0, IF(INTRO!$E$37="Non endémique",0,IF(COUNTRY_INFO!$H88=1,COUNTRY_INFO!G88,0))) -> 0 | G88: 0 | H88: =IF(INTRO!$E$39="Non endémique",IF(INTRO!$E$37="Non endémique","Non requis",COUNTRY_INFO!V88),"Traiter avec IVM") -> Traiter avec IVM | I88: 0 | J88: 0 | L88: 0
A89: =IF(INTRO!$E$39<>"Non endémique", " ", IF(INTRO!$E$37="Non endémique"," ", IF(COUNTRY_INFO!A89=0," ",COUNTRY_INFO!A89))) ->  | B89: =IF(INTRO!$E$39<>"Non endémique", " ", IF(INTRO!$E$37="Non endémique"," ", IF(COUNTRY_INFO!B89=0," ",COUNTRY_INFO!B89))) ->  | C89: =IF(INTRO!$E$39<>"Non endémique", " ", IF(INTRO!$E$37="Non endémique"," ", IF(COUNTRY_INFO!C89=0," ",COUNTRY_INFO!C89))) ->  | D89: =IF(INTRO!$E$39<>"Non endémique", 0, IF(INTRO!$E$37="Non endémique",0,IF(COUNTRY_INFO!$H89=1,COUNTRY_INFO!E89,0))) -> 0 | E89: =IF(INTRO!$E$39<>"Non endémique", 0, IF(INTRO!$E$37="Non endémique",0,IF(COUNTRY_INFO!$H89=1,COUNTRY_INFO!F89,0))) -> 0 | F89: =IF(INTRO!$E$39<>"Non endémique", 0, IF(INTRO!$E$37="Non endémique",0,IF(COUNTRY_INFO!$H89=1,COUNTRY_INFO!G89,0))) -> 0 | G89: 0 | H89: =IF(INTRO!$E$39="Non endémique",IF(INTRO!$E$37="Non endémique","Non requis",COUNTRY_INFO!V89),"Traiter avec IVM") -> Traiter avec IVM | I89: 0 | J89: 0 | L89: 0
A90: =IF(INTRO!$E$39<>"Non endémique", " ", IF(INTRO!$E$37="Non endémique"," ", IF(COUNTRY_INFO!A90=0," ",COUNTRY_INFO!A90))) ->  | B90: =IF(INTRO!$E$39<>"Non endémique", " ", IF(INTRO!$E$37="Non endémique"," ", IF(COUNTRY_INFO!B90=0," ",COUNTRY_INFO!B90))) ->  | C90: =IF(INTRO!$E$39<>"Non endémique", " ", IF(INTRO!$E$37="Non endémique"," ", IF(COUNTRY_INFO!C90=0," ",COUNTRY_INFO!C90))) ->  | D90: =IF(INTRO!$E$39<>"Non endémique", 0, IF(INTRO!$E$37="Non endémique",0,IF(COUNTRY_INFO!$H90=1,COUNTRY_INFO!E90,0))) -> 0 | E90: =IF(INTRO!$E$39<>"Non endémique", 0, IF(INTRO!$E$37="Non endémique",0,IF(COUNTRY_INFO!$H90=1,COUNTRY_INFO!F90,0))) -> 0 | F90: =IF(INTRO!$E$39<>"Non endémique", 0, IF(INTRO!$E$37="Non endémique",0,IF(COUNTRY_INFO!$H90=1,COUNTRY_INFO!G90,0))) -> 0 | G90: 0 | H90: =IF(INTRO!$E$39="Non endémique",IF(INTRO!$E$37="Non endémique","Non requis",COUNTRY_INFO!V90),"Traiter avec IVM") -> Traiter avec IVM | I90: 0 | J90: 0 | L90: 0
A91: =IF(INTRO!$E$39<>"Non endémique", " ", IF(INTRO!$E$37="Non endémique"," ", IF(COUNTRY_INFO!A91=0," ",COUNTRY_INFO!A91))) ->  | B91: =IF(INTRO!$E$39<>"Non endémique", " ", IF(INTRO!$E$37="Non endémique"," ", IF(COUNTRY_INFO!B91=0," ",COUNTRY_INFO!B91))) ->  | C91: =IF(INTRO!$E$39<>"Non endémique", " ", IF(INTRO!$E$37="Non endémique"," ", IF(COUNTRY_INFO!C91=0," ",COUNTRY_INFO!C91))) ->  | D91: =IF(INTRO!$E$39<>"Non endémique", 0, IF(INTRO!$E$37="Non endémique",0,IF(COUNTRY_INFO!$H91=1,COUNTRY_INFO!E91,0))) -> 0 | E91: =IF(INTRO!$E$39<>"Non endémique", 0, IF(INTRO!$E$37="Non endémique",0,IF(COUNTRY_INFO!$H91=1,COUNTRY_INFO!F91,0))) -> 0 | F91: =IF(INTRO!$E$39<>"Non endémique", 0, IF(INTRO!$E$37="Non endémique",0,IF(COUNTRY_INFO!$H91=1,COUNTRY_INFO!G91,0))) -> 0 | G91: 0 | H91: =IF(INTRO!$E$39="Non endémique",IF(INTRO!$E$37="Non endémique","Non requis",COUNTRY_INFO!V91),"Traiter avec IVM") -> Traiter avec IVM | I91: 0 | J91: 0 | L91: 0
A92: =IF(INTRO!$E$39<>"Non endémique", " ", IF(INTRO!$E$37="Non endémique"," ", IF(COUNTRY_INFO!A92=0," ",COUNTRY_INFO!A92))) ->  | B92: =IF(INTRO!$E$39<>"Non endémique", " ", IF(INTRO!$E$37="Non endémique"," ", IF(COUNTRY_INFO!B92=0," ",COUNTRY_INFO!B92))) ->  | C92: =IF(INTRO!$E$39<>"Non endémique", " ", IF(INTRO!$E$37="Non endémique"," ", IF(COUNTRY_INFO!C92=0," ",COUNTRY_INFO!C92))) ->  | D92: =IF(INTRO!$E$39<>"Non endémique", 0, IF(INTRO!$E$37="Non endémique",0,IF(COUNTRY_INFO!$H92=1,COUNTRY_INFO!E92,0))) -> 0 | E92: =IF(INTRO!$E$39<>"Non endémique", 0, IF(INTRO!$E$37="Non endémique",0,IF(COUNTRY_INFO!$H92=1,COUNTRY_INFO!F92,0))) -> 0 | F92: =IF(INTRO!$E$39<>"Non endémique", 0, IF(INTRO!$E$37="Non endémique",0,IF(COUNTRY_INFO!$H92=1,COUNTRY_INFO!G92,0))) -> 0 | G92: 0 | H92: =IF(INTRO!$E$39="Non endémique",IF(INTRO!$E$37="Non endémique","Non requis",COUNTRY_INFO!V92),"Traiter avec IVM") -> Traiter avec IVM | I92: 0 | J92: 0 | L92: 0
A93: =IF(INTRO!$E$39<>"Non endémique", " ", IF(INTRO!$E$37="Non endémique"," ", IF(COUNTRY_INFO!A93=0," ",COUNTRY_INFO!A93))) ->  | B93: =IF(INTRO!$E$39<>"Non endémique", " ", IF(INTRO!$E$37="Non endémique"," ", IF(COUNTRY_INFO!B93=0," ",COUNTRY_INFO!B93))) ->  | C93: =IF(INTRO!$E$39<>"Non endémique", " ", IF(INTRO!$E$37="Non endémique"," ", IF(COUNTRY_INFO!C93=0," ",COUNTRY_INFO!C93))) ->  | D93: =IF(INTRO!$E$39<>"Non endémique", 0, IF(INTRO!$E$37="Non endémique",0,IF(COUNTRY_INFO!$H93=1,COUNTRY_INFO!E93,0))) -> 0 | E93: =IF(INTRO!$E$39<>"Non endémique", 0, IF(INTRO!$E$37="Non endémique",0,IF(COUNTRY_INFO!$H93=1,COUNTRY_INFO!F93,0))) -> 0 | F93: =IF(INTRO!$E$39<>"Non endémique", 0, IF(INTRO!$E$37="Non endémique",0,IF(COUNTRY_INFO!$H93=1,COUNTRY_INFO!G93,0))) -> 0 | G93: 0 | H93: =IF(INTRO!$E$39="Non endémique",IF(INTRO!$E$37="Non endémique","Non requis",COUNTRY_INFO!V93),"Traiter avec IVM") -> Traiter avec IVM | I93: 0 | J93: 0 | L93: 0
A94: =IF(INTRO!$E$39<>"Non endémique", " ", IF(INTRO!$E$37="Non endémique"," ", IF(COUNTRY_INFO!A94=0," ",COUNTRY_INFO!A94))) ->  | B94: =IF(INTRO!$E$39<>"Non endémique", " ", IF(INTRO!$E$37="Non endémique"," ", IF(COUNTRY_INFO!B94=0," ",COUNTRY_INFO!B94))) ->  | C94: =IF(INTRO!$E$39<>"Non endémique", " ", IF(INTRO!$E$37="Non endémique"," ", IF(COUNTRY_INFO!C94=0," ",COUNTRY_INFO!C94))) ->  | D94: =IF(INTRO!$E$39<>"Non endémique", 0, IF(INTRO!$E$37="Non endémique",0,IF(COUNTRY_INFO!$H94=1,COUNTRY_INFO!E94,0))) -> 0 | E94: =IF(INTRO!$E$39<>"Non endémique", 0, IF(INTRO!$E$37="Non endémique",0,IF(COUNTRY_INFO!$H94=1,COUNTRY_INFO!F94,0))) -> 0 | F94: =IF(INTRO!$E$39<>"Non endémique", 0, IF(INTRO!$E$37="Non endémique",0,IF(COUNTRY_INFO!$H94=1,COUNTRY_INFO!G94,0))) -> 0 | G94: 0 | H94: =IF(INTRO!$E$39="Non endémique",IF(INTRO!$E$37="Non endémique","Non requis",COUNTRY_INFO!V94),"Traiter avec IVM") -> Traiter avec IVM | I94: 0 | J94: 0 | L94: 0
A95: =IF(INTRO!$E$39<>"Non endémique", " ", IF(INTRO!$E$37="Non endémique"," ", IF(COUNTRY_INFO!A95=0," ",COUNTRY_INFO!A95))) ->  | B95: =IF(INTRO!$E$39<>"Non endémique", " ", IF(INTRO!$E$37="Non endémique"," ", IF(COUNTRY_INFO!B95=0," ",COUNTRY_INFO!B95))) ->  | C95: =IF(INTRO!$E$39<>"Non endémique", " ", IF(INTRO!$E$37="Non endémique"," ", IF(COUNTRY_INFO!C95=0," ",COUNTRY_INFO!C95))) ->  | D95: =IF(INTRO!$E$39<>"Non endémique", 0, IF(INTRO!$E$37="Non endémique",0,IF(COUNTRY_INFO!$H95=1,COUNTRY_INFO!E95,0))) -> 0 | E95: =IF(INTRO!$E$39<>"Non endémique", 0, IF(INTRO!$E$37="Non endémique",0,IF(COUNTRY_INFO!$H95=1,COUNTRY_INFO!F95,0))) -> 0 | F95: =IF(INTRO!$E$39<>"Non endémique", 0, IF(INTRO!$E$37="Non endémique",0,IF(COUNTRY_INFO!$H95=1,COUNTRY_INFO!G95,0))) -> 0 | G95: 0 | H95: =IF(INTRO!$E$39="Non endémique",IF(INTRO!$E$37="Non endémique","Non requis",COUNTRY_INFO!V95),"Traiter avec IVM") -> Traiter avec IVM | I95: 0 | J95: 0 | L95: 0
A96: =IF(INTRO!$E$39<>"Non endémique", " ", IF(INTRO!$E$37="Non endémique"," ", IF(COUNTRY_INFO!A96=0," ",COUNTRY_INFO!A96))) ->  | B96: =IF(INTRO!$E$39<>"Non endémique", " ", IF(INTRO!$E$37="Non endémique"," ", IF(COUNTRY_INFO!B96=0," ",COUNTRY_INFO!B96))) ->  | C96: =IF(INTRO!$E$39<>"Non endémique", " ", IF(INTRO!$E$37="Non endémique"," ", IF(COUNTRY_INFO!C96=0," ",COUNTRY_INFO!C96))) ->  | D96: =IF(INTRO!$E$39<>"Non endémique", 0, IF(INTRO!$E$37="Non endémique",0,IF(COUNTRY_INFO!$H96=1,COUNTRY_INFO!E96,0))) -> 0 | E96: =IF(INTRO!$E$39<>"Non endémique", 0, IF(INTRO!$E$37="Non endémique",0,IF(COUNTRY_INFO!$H96=1,COUNTRY_INFO!F96,0))) -> 0 | F96: =IF(INTRO!$E$39<>"Non endémique", 0, IF(INTRO!$E$37="Non endémique",0,IF(COUNTRY_INFO!$H96=1,COUNTRY_INFO!G96,0))) -> 0 | G96: 0 | H96: =IF(INTRO!$E$39="Non endémique",IF(INTRO!$E$37="Non endémique","Non requis",COUNTRY_INFO!V96),"Traiter avec IVM") -> Traiter avec IVM | I96: 0 | J96: 0 | L96: 0
A97: =IF(INTRO!$E$39<>"Non endémique", " ", IF(INTRO!$E$37="Non endémique"," ", IF(COUNTRY_INFO!A97=0," ",COUNTRY_INFO!A97))) ->  | B97: =IF(INTRO!$E$39<>"Non endémique", " ", IF(INTRO!$E$37="Non endémique"," ", IF(COUNTRY_INFO!B97=0," ",COUNTRY_INFO!B97))) ->  | C97: =IF(INTRO!$E$39<>"Non endémique", " ", IF(INTRO!$E$37="Non endémique"," ", IF(COUNTRY_INFO!C97=0," ",COUNTRY_INFO!C97))) ->  | D97: =IF(INTRO!$E$39<>"Non endémique", 0, IF(INTRO!$E$37="Non endémique",0,IF(COUNTRY_INFO!$H97=1,COUNTRY_INFO!E97,0))) -> 0 | E97: =IF(INTRO!$E$39<>"Non endémique", 0, IF(INTRO!$E$37="Non endémique",0,IF(COUNTRY_INFO!$H97=1,COUNTRY_INFO!F97,0))) -> 0 | F97: =IF(INTRO!$E$39<>"Non endémique", 0, IF(INTRO!$E$37="Non endémique",0,IF(COUNTRY_INFO!$H97=1,COUNTRY_INFO!G97,0))) -> 0 | G97: 0 | H97: =IF(INTRO!$E$39="Non endémique",IF(INTRO!$E$37="Non endémique","Non requis",COUNTRY_INFO!V97),"Traiter avec IVM") -> Traiter avec IVM | I97: 0 | J97: 0 | L97: 0
A98: =IF(INTRO!$E$39<>"Non endémique", " ", IF(INTRO!$E$37="Non endémique"," ", IF(COUNTRY_INFO!A98=0," ",COUNTRY_INFO!A98))) ->  | B98: =IF(INTRO!$E$39<>"Non endémique", " ", IF(INTRO!$E$37="Non endémique"," ", IF(COUNTRY_INFO!B98=0," ",COUNTRY_INFO!B98))) ->  | C98: =IF(INTRO!$E$39<>"Non endémique", " ", IF(INTRO!$E$37="Non endémique"," ", IF(COUNTRY_INFO!C98=0," ",COUNTRY_INFO!C98))) ->  | D98: =IF(INTRO!$E$39<>"Non endémique", 0, IF(INTRO!$E$37="Non endémique",0,IF(COUNTRY_INFO!$H98=1,COUNTRY_INFO!E98,0))) -> 0 | E98: =IF(INTRO!$E$39<>"Non endémique", 0, IF(INTRO!$E$37="Non endémique",0,IF(COUNTRY_INFO!$H98=1,COUNTRY_INFO!F98,0))) -> 0 | F98: =IF(INTRO!$E$39<>"Non endémique", 0, IF(INTRO!$E$37="Non endémique",0,IF(COUNTRY_INFO!$H98=1,COUNTRY_INFO!G98,0))) -> 0 | G98: 0 | H98: =IF(INTRO!$E$39="Non endémique",IF(INTRO!$E$37="Non endémique","Non requis",COUNTRY_INFO!V98),"Traiter avec IVM") -> Traiter avec IVM | I98: 0 | J98: 0 | L98: 0
A99: =IF(INTRO!$E$39<>"Non endémique", " ", IF(INTRO!$E$37="Non endémique"," ", IF(COUNTRY_INFO!A99=0," ",COUNTRY_INFO!A99))) ->  | B99: =IF(INTRO!$E$39<>"Non endémique", " ", IF(INTRO!$E$37="Non endémique"," ", IF(COUNTRY_INFO!B99=0," ",COUNTRY_INFO!B99))) ->  | C99: =IF(INTRO!$E$39<>"Non endémique", " ", IF(INTRO!$E$37="Non endémique"," ", IF(COUNTRY_INFO!C99=0," ",COUNTRY_INFO!C99))) ->  | D99: =IF(INTRO!$E$39<>"Non endémique", 0, IF(INTRO!$E$37="Non endémique",0,IF(COUNTRY_INFO!$H99=1,COUNTRY_INFO!E99,0))) -> 0 | E99: =IF(INTRO!$E$39<>"Non endémique", 0, IF(INTRO!$E$37="Non endémique",0,IF(COUNTRY_INFO!$H99=1,COUNTRY_INFO!F99,0))) -> 0 | F99: =IF(INTRO!$E$39<>"Non endémique", 0, IF(INTRO!$E$37="Non endémique",0,IF(COUNTRY_INFO!$H99=1,COUNTRY_INFO!G99,0))) -> 0 | G99: 0 | H99: =IF(INTRO!$E$39="Non endémique",IF(INTRO!$E$37="Non endémique","Non requis",COUNTRY_INFO!V99),"Traiter avec IVM") -> Traiter avec IVM | I99: 0 | J99: 0 | L99: 0
A100: =IF(INTRO!$E$39<>"Non endémique", " ", IF(INTRO!$E$37="Non endémique"," ", IF(COUNTRY_INFO!A100=0," ",COUNTRY_INFO!A100))) ->  | B100: =IF(INTRO!$E$39<>"Non endémique", " ", IF(INTRO!$E$37="Non endémique"," ", IF(COUNTRY_INFO!B100=0," ",COUNTRY_INFO!B100))) ->  | C100: =IF(INTRO!$E$39<>"Non endémique", " ", IF(INTRO!$E$37="Non endémique"," ", IF(COUNTRY_INFO!C100=0," ",COUNTRY_INFO!C100))) ->  | D100: =IF(INTRO!$E$39<>"Non endémique", 0, IF(INTRO!$E$37="Non endémique",0,IF(COUNTRY_INFO!$H100=1,COUNTRY_INFO!E100,0))) -> 0 | E100: =IF(INTRO!$E$39<>"Non endémique", 0, IF(INTRO!$E$37="Non endémique",0,IF(COUNTRY_INFO!$H100=1,COUNTRY_INFO!F100,0))) -> 0 | F100: =IF(INTRO!$E$39<>"Non endémique", 0, IF(INTRO!$E$37="Non endémique",0,IF(COUNTRY_INFO!$H100=1,COUNTRY_INFO!G100,0))) -> 0 | G100: 0 | H100: =IF(INTRO!$E$39="Non endémique",IF(INTRO!$E$37="Non endémique","Non requis",COUNTRY_INFO!V100),"Traiter avec IVM") -> Traiter avec IVM | I100: 0 | J100: 0 | L100: 0
A101: =IF(INTRO!$E$39<>"Non endémique", " ", IF(INTRO!$E$37="Non endémique"," ", IF(COUNTRY_INFO!A101=0," ",COUNTRY_INFO!A101))) ->  | B101: =IF(INTRO!$E$39<>"Non endémique", " ", IF(INTRO!$E$37="Non endémique"," ", IF(COUNTRY_INFO!B101=0," ",COUNTRY_INFO!B101))) ->  | C101: =IF(INTRO!$E$39<>"Non endémique", " ", IF(INTRO!$E$37="Non endémique"," ", IF(COUNTRY_INFO!C101=0," ",COUNTRY_INFO!C101))) ->  | D101: =IF(INTRO!$E$39<>"Non endémique", 0, IF(INTRO!$E$37="Non endémique",0,IF(COUNTRY_INFO!$H101=1,COUNTRY_INFO!E101,0))) -> 0 | E101: =IF(INTRO!$E$39<>"Non endémique", 0, IF(INTRO!$E$37="Non endémique",0,IF(COUNTRY_INFO!$H101=1,COUNTRY_INFO!F101,0))) -> 0 | F101: =IF(INTRO!$E$39<>"Non endémique", 0, IF(INTRO!$E$37="Non endémique",0,IF(COUNTRY_INFO!$H101=1,COUNTRY_INFO!G101,0))) -> 0 | G101: 0 | H101: =IF(INTRO!$E$39="Non endémique",IF(INTRO!$E$37="Non endémique","Non requis",COUNTRY_INFO!V101),"Traiter avec IVM") -> Traiter avec IVM | I101: 0 | J101: 0 | L101: 0
A102: =IF(INTRO!$E$39<>"Non endémique", " ", IF(INTRO!$E$37="Non endémique"," ", IF(COUNTRY_INFO!A102=0," ",COUNTRY_INFO!A102))) ->  | B102: =IF(INTRO!$E$39<>"Non endémique", " ", IF(INTRO!$E$37="Non endémique"," ", IF(COUNTRY_INFO!B102=0," ",COUNTRY_INFO!B102))) ->  | C102: =IF(INTRO!$E$39<>"Non endémique", " ", IF(INTRO!$E$37="Non endémique"," ", IF(COUNTRY_INFO!C102=0," ",COUNTRY_INFO!C102))) ->  | D102: =IF(INTRO!$E$39<>"Non endémique", 0, IF(INTRO!$E$37="Non endémique",0,IF(COUNTRY_INFO!$H102=1,COUNTRY_INFO!E102,0))) -> 0 | E102: =IF(INTRO!$E$39<>"Non endémique", 0, IF(INTRO!$E$37="Non endémique",0,IF(COUNTRY_INFO!$H102=1,COUNTRY_INFO!F102,0))) -> 0 | F102: =IF(INTRO!$E$39<>"Non endémique", 0, IF(INTRO!$E$37="Non endémique",0,IF(COUNTRY_INFO!$H102=1,COUNTRY_INFO!G102,0))) -> 0 | G102: 0 | H102: =IF(INTRO!$E$39="Non endémique",IF(INTRO!$E$37="Non endémique","Non requis",COUNTRY_INFO!V102),"Traiter avec IVM") -> Traiter avec IVM | I102: 0 | J102: 0 | L102: 0
A103: =IF(INTRO!$E$39<>"Non endémique", " ", IF(INTRO!$E$37="Non endémique"," ", IF(COUNTRY_INFO!A103=0," ",COUNTRY_INFO!A103))) ->  | B103: =IF(INTRO!$E$39<>"Non endémique", " ", IF(INTRO!$E$37="Non endémique"," ", IF(COUNTRY_INFO!B103=0," ",COUNTRY_INFO!B103))) ->  | C103: =IF(INTRO!$E$39<>"Non endémique", " ", IF(INTRO!$E$37="Non endémique"," ", IF(COUNTRY_INFO!C103=0," ",COUNTRY_INFO!C103))) ->  | D103: =IF(INTRO!$E$39<>"Non endémique", 0, IF(INTRO!$E$37="Non endémique",0,IF(COUNTRY_INFO!$H103=1,COUNTRY_INFO!E103,0))) -> 0 | E103: =IF(INTRO!$E$39<>"Non endémique", 0, IF(INTRO!$E$37="Non endémique",0,IF(COUNTRY_INFO!$H103=1,COUNTRY_INFO!F103,0))) -> 0 | F103: =IF(INTRO!$E$39<>"Non endémique", 0, IF(INTRO!$E$37="Non endémique",0,IF(COUNTRY_INFO!$H103=1,COUNTRY_INFO!G103,0))) -> 0 | G103: 0 | H103: =IF(INTRO!$E$39="Non endémique",IF(INTRO!$E$37="Non endémique","Non requis",COUNTRY_INFO!V103),"Traiter avec IVM") -> Traiter avec IVM | I103: 0 | J103: 0 | L103: 0
A104: =IF(INTRO!$E$39<>"Non endémique", " ", IF(INTRO!$E$37="Non endémique"," ", IF(COUNTRY_INFO!A104=0," ",COUNTRY_INFO!A104))) ->  | B104: =IF(INTRO!$E$39<>"Non endémique", " ", IF(INTRO!$E$37="Non endémique"," ", IF(COUNTRY_INFO!B104=0," ",COUNTRY_INFO!B104))) ->  | C104: =IF(INTRO!$E$39<>"Non endémique", " ", IF(INTRO!$E$37="Non endémique"," ", IF(COUNTRY_INFO!C104=0," ",COUNTRY_INFO!C104))) ->  | D104: =IF(INTRO!$E$39<>"Non endémique", 0, IF(INTRO!$E$37="Non endémique",0,IF(COUNTRY_INFO!$H104=1,COUNTRY_INFO!E104,0))) -> 0 | E104: =IF(INTRO!$E$39<>"Non endémique", 0, IF(INTRO!$E$37="Non endémique",0,IF(COUNTRY_INFO!$H104=1,COUNTRY_INFO!F104,0))) -> 0 | F104: =IF(INTRO!$E$39<>"Non endémique", 0, IF(INTRO!$E$37="Non endémique",0,IF(COUNTRY_INFO!$H104=1,COUNTRY_INFO!G104,0))) -> 0 | G104: 0 | H104: =IF(INTRO!$E$39="Non endémique",IF(INTRO!$E$37="Non endémique","Non requis",COUNTRY_INFO!V104),"Traiter avec IVM") -> Traiter avec IVM | I104: 0 | J104: 0 | L104: 0
A105: =IF(INTRO!$E$39<>"Non endémique", " ", IF(INTRO!$E$37="Non endémique"," ", IF(COUNTRY_INFO!A105=0," ",COUNTRY_INFO!A105))) ->  | B105: =IF(INTRO!$E$39<>"Non endémique", " ", IF(INTRO!$E$37="Non endémique"," ", IF(COUNTRY_INFO!B105=0," ",COUNTRY_INFO!B105))) ->  | C105: =IF(INTRO!$E$39<>"Non endémique", " ", IF(INTRO!$E$37="Non endémique"," ", IF(COUNTRY_INFO!C105=0," ",COUNTRY_INFO!C105))) ->  | D105: =IF(INTRO!$E$39<>"Non endémique", 0, IF(INTRO!$E$37="Non endémique",0,IF(COUNTRY_INFO!$H105=1,COUNTRY_INFO!E105,0))) -> 0 | E105: =IF(INTRO!$E$39<>"Non endémique", 0, IF(INTRO!$E$37="Non endémique",0,IF(COUNTRY_INFO!$H105=1,COUNTRY_INFO!F105,0))) -> 0 | F105: =IF(INTRO!$E$39<>"Non endémique", 0, IF(INTRO!$E$37="Non endémique",0,IF(COUNTRY_INFO!$H105=1,COUNTRY_INFO!G105,0))) -> 0 | G105: 0 | H105: =IF(INTRO!$E$39="Non endémique",IF(INTRO!$E$37="Non endémique","Non requis",COUNTRY_INFO!V105),"Traiter avec IVM") -> Traiter avec IVM | I105: 0 | J105: 0 | L105: 0
A106: =IF(INTRO!$E$39<>"Non endémique", " ", IF(INTRO!$E$37="Non endémique"," ", IF(COUNTRY_INFO!A106=0," ",COUNTRY_INFO!A106))) ->  | B106: =IF(INTRO!$E$39<>"Non endémique", " ", IF(INTRO!$E$37="Non endémique"," ", IF(COUNTRY_INFO!B106=0," ",COUNTRY_INFO!B106))) ->  | C106: =IF(INTRO!$E$39<>"Non endémique", " ", IF(INTRO!$E$37="Non endémique"," ", IF(COUNTRY_INFO!C106=0," ",COUNTRY_INFO!C106))) ->  | D106: =IF(INTRO!$E$39<>"Non endémique", 0, IF(INTRO!$E$37="Non endémique",0,IF(COUNTRY_INFO!$H106=1,COUNTRY_INFO!E106,0))) -> 0 | E106: =IF(INTRO!$E$39<>"Non endémique", 0, IF(INTRO!$E$37="Non endémique",0,IF(COUNTRY_INFO!$H106=1,COUNTRY_INFO!F106,0))) -> 0 | F106: =IF(INTRO!$E$39<>"Non endémique", 0, IF(INTRO!$E$37="Non endémique",0,IF(COUNTRY_INFO!$H106=1,COUNTRY_INFO!G106,0))) -> 0 | G106: 0 | H106: =IF(INTRO!$E$39="Non endémique",IF(INTRO!$E$37="Non endémique","Non requis",COUNTRY_INFO!V106),"Traiter avec IVM") -> Traiter avec IVM | I106: 0 | J106: 0 | L106: 0
A107: =IF(INTRO!$E$39<>"Non endémique", " ", IF(INTRO!$E$37="Non endémique"," ", IF(COUNTRY_INFO!A107=0," ",COUNTRY_INFO!A107))) ->  | B107: =IF(INTRO!$E$39<>"Non endémique", " ", IF(INTRO!$E$37="Non endémique"," ", IF(COUNTRY_INFO!B107=0," ",COUNTRY_INFO!B107))) ->  | C107: =IF(INTRO!$E$39<>"Non endémique", " ", IF(INTRO!$E$37="Non endémique"," ", IF(COUNTRY_INFO!C107=0," ",COUNTRY_INFO!C107))) ->  | D107: =IF(INTRO!$E$39<>"Non endémique", 0, IF(INTRO!$E$37="Non endémique",0,IF(COUNTRY_INFO!$H107=1,COUNTRY_INFO!E107,0))) -> 0 | E107: =IF(INTRO!$E$39<>"Non endémique", 0, IF(INTRO!$E$37="Non endémique",0,IF(COUNTRY_INFO!$H107=1,COUNTRY_INFO!F107,0))) -> 0 | F107: =IF(INTRO!$E$39<>"Non endémique", 0, IF(INTRO!$E$37="Non endémique",0,IF(COUNTRY_INFO!$H107=1,COUNTRY_INFO!G107,0))) -> 0 | G107: 0 | H107: =IF(INTRO!$E$39="Non endémique",IF(INTRO!$E$37="Non endémique","Non requis",COUNTRY_INFO!V107),"Traiter avec IVM") -> Traiter avec IVM | I107: 0 | J107: 0 | L107: 0
A108: =IF(INTRO!$E$39<>"Non endémique", " ", IF(INTRO!$E$37="Non endémique"," ", IF(COUNTRY_INFO!A108=0," ",COUNTRY_INFO!A108))) ->  | B108: =IF(INTRO!$E$39<>"Non endémique", " ", IF(INTRO!$E$37="Non endémique"," ", IF(COUNTRY_INFO!B108=0," ",COUNTRY_INFO!B108))) ->  | C108: =IF(INTRO!$E$39<>"Non endémique", " ", IF(INTRO!$E$37="Non endémique"," ", IF(COUNTRY_INFO!C108=0," ",COUNTRY_INFO!C108))) ->  | D108: =IF(INTRO!$E$39<>"Non endémique", 0, IF(INTRO!$E$37="Non endémique",0,IF(COUNTRY_INFO!$H108=1,COUNTRY_INFO!E108,0))) -> 0 | E108: =IF(INTRO!$E$39<>"Non endémique", 0, IF(INTRO!$E$37="Non endémique",0,IF(COUNTRY_INFO!$H108=1,COUNTRY_INFO!F108,0))) -> 0 | F108: =IF(INTRO!$E$39<>"Non endémique", 0, IF(INTRO!$E$37="Non endémique",0,IF(COUNTRY_INFO!$H108=1,COUNTRY_INFO!G108,0))) -> 0 | G108: 0 | H108: =IF(INTRO!$E$39="Non endémique",IF(INTRO!$E$37="Non endémique","Non requis",COUNTRY_INFO!V108),"Traiter avec IVM") -> Traiter avec IVM | I108: 0 | J108: 0 | L108: 0
A109: =IF(INTRO!$E$39<>"Non endémique", " ", IF(INTRO!$E$37="Non endémique"," ", IF(COUNTRY_INFO!A109=0," ",COUNTRY_INFO!A109))) ->  | B109: =IF(INTRO!$E$39<>"Non endémique", " ", IF(INTRO!$E$37="Non endémique"," ", IF(COUNTRY_INFO!B109=0," ",COUNTRY_INFO!B109))) ->  | C109: =IF(INTRO!$E$39<>"Non endémique", " ", IF(INTRO!$E$37="Non endémique"," ", IF(COUNTRY_INFO!C109=0," ",COUNTRY_INFO!C109))) ->  | D109: =IF(INTRO!$E$39<>"Non endémique", 0, IF(INTRO!$E$37="Non endémique",0,IF(COUNTRY_INFO!$H109=1,COUNTRY_INFO!E109,0))) -> 0 | E109: =IF(INTRO!$E$39<>"Non endémique", 0, IF(INTRO!$E$37="Non endémique",0,IF(COUNTRY_INFO!$H109=1,COUNTRY_INFO!F109,0))) -> 0 | F109: =IF(INTRO!$E$39<>"Non endémique", 0, IF(INTRO!$E$37="Non endémique",0,IF(COUNTRY_INFO!$H109=1,COUNTRY_INFO!G109,0))) -> 0 | G109: 0 | H109: =IF(INTRO!$E$39="Non endémique",IF(INTRO!$E$37="Non endémique","Non requis",COUNTRY_INFO!V109),"Traiter avec IVM") -> Traiter avec IVM | I109: 0 | J109: 0 | L109: 0
A110: =IF(INTRO!$E$39<>"Non endémique", " ", IF(INTRO!$E$37="Non endémique"," ", IF(COUNTRY_INFO!A110=0," ",COUNTRY_INFO!A110))) ->  | B110: =IF(INTRO!$E$39<>"Non endémique", " ", IF(INTRO!$E$37="Non endémique"," ", IF(COUNTRY_INFO!B110=0," ",COUNTRY_INFO!B110))) ->  | C110: =IF(INTRO!$E$39<>"Non endémique", " ", IF(INTRO!$E$37="Non endémique"," ", IF(COUNTRY_INFO!C110=0," ",COUNTRY_INFO!C110))) ->  | D110: =IF(INTRO!$E$39<>"Non endémique", 0, IF(INTRO!$E$37="Non endémique",0,IF(COUNTRY_INFO!$H110=1,COUNTRY_INFO!E110,0))) -> 0 | E110: =IF(INTRO!$E$39<>"Non endémique", 0, IF(INTRO!$E$37="Non endémique",0,IF(COUNTRY_INFO!$H110=1,COUNTRY_INFO!F110,0))) -> 0 | F110: =IF(INTRO!$E$39<>"Non endémique", 0, IF(INTRO!$E$37="Non endémique",0,IF(COUNTRY_INFO!$H110=1,COUNTRY_INFO!G110,0))) -> 0 | G110: 0 | H110: =IF(INTRO!$E$39="Non endémique",IF(INTRO!$E$37="Non endémique","Non requis",COUNTRY_INFO!V110),"Traiter avec IVM") -> Traiter avec IVM | I110: 0 | J110: 0 | L110: 0
A111: =IF(INTRO!$E$39<>"Non endémique", " ", IF(INTRO!$E$37="Non endémique"," ", IF(COUNTRY_INFO!A111=0," ",COUNTRY_INFO!A111))) ->  | B111: =IF(INTRO!$E$39<>"Non endémique", " ", IF(INTRO!$E$37="Non endémique"," ", IF(COUNTRY_INFO!B111=0," ",COUNTRY_INFO!B111))) ->  | C111: =IF(INTRO!$E$39<>"Non endémique", " ", IF(INTRO!$E$37="Non endémique"," ", IF(COUNTRY_INFO!C111=0," ",COUNTRY_INFO!C111))) ->  | D111: =IF(INTRO!$E$39<>"Non endémique", 0, IF(INTRO!$E$37="Non endémique",0,IF(COUNTRY_INFO!$H111=1,COUNTRY_INFO!E111,0))) -> 0 | E111: =IF(INTRO!$E$39<>"Non endémique", 0, IF(INTRO!$E$37="Non endémique",0,IF(COUNTRY_INFO!$H111=1,COUNTRY_INFO!F111,0))) -> 0 | F111: =IF(INTRO!$E$39<>"Non endémique", 0, IF(INTRO!$E$37="Non endémique",0,IF(COUNTRY_INFO!$H111=1,COUNTRY_INFO!G111,0))) -> 0 | G111: 0 | H111: =IF(INTRO!$E$39="Non endémique",IF(INTRO!$E$37="Non endémique","Non requis",COUNTRY_INFO!V111),"Traiter avec IVM") -> Traiter avec IVM | I111: 0 | J111: 0 | L111: 0
A112: =IF(INTRO!$E$39<>"Non endémique", " ", IF(INTRO!$E$37="Non endémique"," ", IF(COUNTRY_INFO!A112=0," ",COUNTRY_INFO!A112))) ->  | B112: =IF(INTRO!$E$39<>"Non endémique", " ", IF(INTRO!$E$37="Non endémique"," ", IF(COUNTRY_INFO!B112=0," ",COUNTRY_INFO!B112))) ->  | C112: =IF(INTRO!$E$39<>"Non endémique", " ", IF(INTRO!$E$37="Non endémique"," ", IF(COUNTRY_INFO!C112=0," ",COUNTRY_INFO!C112))) ->  | D112: =IF(INTRO!$E$39<>"Non endémique", 0, IF(INTRO!$E$37="Non endémique",0,IF(COUNTRY_INFO!$H112=1,COUNTRY_INFO!E112,0))) -> 0 | E112: =IF(INTRO!$E$39<>"Non endémique", 0, IF(INTRO!$E$37="Non endémique",0,IF(COUNTRY_INFO!$H112=1,COUNTRY_INFO!F112,0))) -> 0 | F112: =IF(INTRO!$E$39<>"Non endémique", 0, IF(INTRO!$E$37="Non endémique",0,IF(COUNTRY_INFO!$H112=1,COUNTRY_INFO!G112,0))) -> 0 | G112: 0 | H112: =IF(INTRO!$E$39="Non endémique",IF(INTRO!$E$37="Non endémique","Non requis",COUNTRY_INFO!V112),"Traiter avec IVM") -> Traiter avec IVM | I112: 0 | J112: 0 | L112: 0
A113: =IF(INTRO!$E$39<>"Non endémique", " ", IF(INTRO!$E$37="Non endémique"," ", IF(COUNTRY_INFO!A113=0," ",COUNTRY_INFO!A113))) ->  | B113: =IF(INTRO!$E$39<>"Non endémique", " ", IF(INTRO!$E$37="Non endémique"," ", IF(COUNTRY_INFO!B113=0," ",COUNTRY_INFO!B113))) ->  | C113: =IF(INTRO!$E$39<>"Non endémique", " ", IF(INTRO!$E$37="Non endémique"," ", IF(COUNTRY_INFO!C113=0," ",COUNTRY_INFO!C113))) ->  | D113: =IF(INTRO!$E$39<>"Non endémique", 0, IF(INTRO!$E$37="Non endémique",0,IF(COUNTRY_INFO!$H113=1,COUNTRY_INFO!E113,0))) -> 0 | E113: =IF(INTRO!$E$39<>"Non endémique", 0, IF(INTRO!$E$37="Non endémique",0,IF(COUNTRY_INFO!$H113=1,COUNTRY_INFO!F113,0))) -> 0 | F113: =IF(INTRO!$E$39<>"Non endémique", 0, IF(INTRO!$E$37="Non endémique",0,IF(COUNTRY_INFO!$H113=1,COUNTRY_INFO!G113,0))) -> 0 | G113: 0 | H113: =IF(INTRO!$E$39="Non endémique",IF(INTRO!$E$37="Non endémique","Non requis",COUNTRY_INFO!V113),"Traiter avec IVM") -> Traiter avec IVM | I113: 0 | J113: 0 | L113: 0
A114: =IF(INTRO!$E$39<>"Non endémique", " ", IF(INTRO!$E$37="Non endémique"," ", IF(COUNTRY_INFO!A114=0," ",COUNTRY_INFO!A114))) ->  | B114: =IF(INTRO!$E$39<>"Non endémique", " ", IF(INTRO!$E$37="Non endémique"," ", IF(COUNTRY_INFO!B114=0," ",COUNTRY_INFO!B114))) ->  | C114: =IF(INTRO!$E$39<>"Non endémique", " ", IF(INTRO!$E$37="Non endémique"," ", IF(COUNTRY_INFO!C114=0," ",COUNTRY_INFO!C114))) ->  | D114: =IF(INTRO!$E$39<>"Non endémique", 0, IF(INTRO!$E$37="Non endémique",0,IF(COUNTRY_INFO!$H114=1,COUNTRY_INFO!E114,0))) -> 0 | E114: =IF(INTRO!$E$39<>"Non endémique", 0, IF(INTRO!$E$37="Non endémique",0,IF(COUNTRY_INFO!$H114=1,COUNTRY_INFO!F114,0))) -> 0 | F114: =IF(INTRO!$E$39<>"Non endémique", 0, IF(INTRO!$E$37="Non endémique",0,IF(COUNTRY_INFO!$H114=1,COUNTRY_INFO!G114,0))) -> 0 | G114: 0 | H114: =IF(INTRO!$E$39="Non endémique",IF(INTRO!$E$37="Non endémique","Non requis",COUNTRY_INFO!V114),"Traiter avec IVM") -> Traiter avec IVM | I114: 0 | J114: 0 | L114: 0
A115: =IF(INTRO!$E$39<>"Non endémique", " ", IF(INTRO!$E$37="Non endémique"," ", IF(COUNTRY_INFO!A115=0," ",COUNTRY_INFO!A115))) ->  | B115: =IF(INTRO!$E$39<>"Non endémique", " ", IF(INTRO!$E$37="Non endémique"," ", IF(COUNTRY_INFO!B115=0," ",COUNTRY_INFO!B115))) ->  | C115: =IF(INTRO!$E$39<>"Non endémique", " ", IF(INTRO!$E$37="Non endémique"," ", IF(COUNTRY_INFO!C115=0," ",COUNTRY_INFO!C115))) ->  | D115: =IF(INTRO!$E$39<>"Non endémique", 0, IF(INTRO!$E$37="Non endémique",0,IF(COUNTRY_INFO!$H115=1,COUNTRY_INFO!E115,0))) -> 0 | E115: =IF(INTRO!$E$39<>"Non endémique", 0, IF(INTRO!$E$37="Non endémique",0,IF(COUNTRY_INFO!$H115=1,COUNTRY_INFO!F115,0))) -> 0 | F115: =IF(INTRO!$E$39<>"Non endémique", 0, IF(INTRO!$E$37="Non endémique",0,IF(COUNTRY_INFO!$H115=1,COUNTRY_INFO!G115,0))) -> 0 | G115: 0 | H115: =IF(INTRO!$E$39="Non endémique",IF(INTRO!$E$37="Non endémique","Non requis",COUNTRY_INFO!V115),"Traiter avec IVM") -> Traiter avec IVM | I115: 0 | J115: 0 | L115: 0
A116: =IF(INTRO!$E$39<>"Non endémique", " ", IF(INTRO!$E$37="Non endémique"," ", IF(COUNTRY_INFO!A116=0," ",COUNTRY_INFO!A116))) ->  | B116: =IF(INTRO!$E$39<>"Non endémique", " ", IF(INTRO!$E$37="Non endémique"," ", IF(COUNTRY_INFO!B116=0," ",COUNTRY_INFO!B116))) ->  | C116: =IF(INTRO!$E$39<>"Non endémique", " ", IF(INTRO!$E$37="Non endémique"," ", IF(COUNTRY_INFO!C116=0," ",COUNTRY_INFO!C116))) ->  | D116: =IF(INTRO!$E$39<>"Non endémique", 0, IF(INTRO!$E$37="Non endémique",0,IF(COUNTRY_INFO!$H116=1,COUNTRY_INFO!E116,0))) -> 0 | E116: =IF(INTRO!$E$39<>"Non endémique", 0, IF(INTRO!$E$37="Non endémique",0,IF(COUNTRY_INFO!$H116=1,COUNTRY_INFO!F116,0))) -> 0 | F116: =IF(INTRO!$E$39<>"Non endémique", 0, IF(INTRO!$E$37="Non endémique",0,IF(COUNTRY_INFO!$H116=1,COUNTRY_INFO!G116,0))) -> 0 | G116: 0 | H116: =IF(INTRO!$E$39="Non endémique",IF(INTRO!$E$37="Non endémique","Non requis",COUNTRY_INFO!V116),"Traiter avec IVM") -> Traiter avec IVM | I116: 0 | J116: 0 | L116: 0
A117: =IF(INTRO!$E$39<>"Non endémique", " ", IF(INTRO!$E$37="Non endémique"," ", IF(COUNTRY_INFO!A117=0," ",COUNTRY_INFO!A117))) ->  | B117: =IF(INTRO!$E$39<>"Non endémique", " ", IF(INTRO!$E$37="Non endémique"," ", IF(COUNTRY_INFO!B117=0," ",COUNTRY_INFO!B117))) ->  | C117: =IF(INTRO!$E$39<>"Non endémique", " ", IF(INTRO!$E$37="Non endémique"," ", IF(COUNTRY_INFO!C117=0," ",COUNTRY_INFO!C117))) ->  | D117: =IF(INTRO!$E$39<>"Non endémique", 0, IF(INTRO!$E$37="Non endémique",0,IF(COUNTRY_INFO!$H117=1,COUNTRY_INFO!E117,0))) -> 0 | E117: =IF(INTRO!$E$39<>"Non endémique", 0, IF(INTRO!$E$37="Non endémique",0,IF(COUNTRY_INFO!$H117=1,COUNTRY_INFO!F117,0))) -> 0 | F117: =IF(INTRO!$E$39<>"Non endémique", 0, IF(INTRO!$E$37="Non endémique",0,IF(COUNTRY_INFO!$H117=1,COUNTRY_INFO!G117,0))) -> 0 | G117: 0 | H117: =IF(INTRO!$E$39="Non endémique",IF(INTRO!$E$37="Non endémique","Non requis",COUNTRY_INFO!V117),"Traiter avec IVM") -> Traiter avec IVM | I117: 0 | J117: 0 | L117: 0
A118: =IF(INTRO!$E$39<>"Non endémique", " ", IF(INTRO!$E$37="Non endémique"," ", IF(COUNTRY_INFO!A118=0," ",COUNTRY_INFO!A118))) ->  | B118: =IF(INTRO!$E$39<>"Non endémique", " ", IF(INTRO!$E$37="Non endémique"," ", IF(COUNTRY_INFO!B118=0," ",COUNTRY_INFO!B118))) ->  | C118: =IF(INTRO!$E$39<>"Non endémique", " ", IF(INTRO!$E$37="Non endémique"," ", IF(COUNTRY_INFO!C118=0," ",COUNTRY_INFO!C118))) ->  | D118: =IF(INTRO!$E$39<>"Non endémique", 0, IF(INTRO!$E$37="Non endémique",0,IF(COUNTRY_INFO!$H118=1,COUNTRY_INFO!E118,0))) -> 0 | E118: =IF(INTRO!$E$39<>"Non endémique", 0, IF(INTRO!$E$37="Non endémique",0,IF(COUNTRY_INFO!$H118=1,COUNTRY_INFO!F118,0))) -> 0 | F118: =IF(INTRO!$E$39<>"Non endémique", 0, IF(INTRO!$E$37="Non endémique",0,IF(COUNTRY_INFO!$H118=1,COUNTRY_INFO!G118,0))) -> 0 | G118: 0 | H118: =IF(INTRO!$E$39="Non endémique",IF(INTRO!$E$37="Non endémique","Non requis",COUNTRY_INFO!V118),"Traiter avec IVM") -> Traiter avec IVM | I118: 0 | J118: 0 | L118: 0
A119: =IF(INTRO!$E$39<>"Non endémique", " ", IF(INTRO!$E$37="Non endémique"," ", IF(COUNTRY_INFO!A119=0," ",COUNTRY_INFO!A119))) ->  | B119: =IF(INTRO!$E$39<>"Non endémique", " ", IF(INTRO!$E$37="Non endémique"," ", IF(COUNTRY_INFO!B119=0," ",COUNTRY_INFO!B119))) ->  | C119: =IF(INTRO!$E$39<>"Non endémique", " ", IF(INTRO!$E$37="Non endémique"," ", IF(COUNTRY_INFO!C119=0," ",COUNTRY_INFO!C119))) ->  | D119: =IF(INTRO!$E$39<>"Non endémique", 0, IF(INTRO!$E$37="Non endémique",0,IF(COUNTRY_INFO!$H119=1,COUNTRY_INFO!E119,0))) -> 0 | E119: =IF(INTRO!$E$39<>"Non endémique", 0, IF(INTRO!$E$37="Non endémique",0,IF(COUNTRY_INFO!$H119=1,COUNTRY_INFO!F119,0))) -> 0 | F119: =IF(INTRO!$E$39<>"Non endémique", 0, IF(INTRO!$E$37="Non endémique",0,IF(COUNTRY_INFO!$H119=1,COUNTRY_INFO!G119,0))) -> 0 | G119: 0 | H119: =IF(INTRO!$E$39="Non endémique",IF(INTRO!$E$37="Non endémique","Non requis",COUNTRY_INFO!V119),"Traiter avec IVM") -> Traiter avec IVM | I119: 0 | J119: 0 | L119: 0
A120: =IF(INTRO!$E$39<>"Non endémique", " ", IF(INTRO!$E$37="Non endémique"," ", IF(COUNTRY_INFO!A120=0," ",COUNTRY_INFO!A120))) ->  | B120: =IF(INTRO!$E$39<>"Non endémique", " ", IF(INTRO!$E$37="Non endémique"," ", IF(COUNTRY_INFO!B120=0," ",COUNTRY_INFO!B120))) ->  | C120: =IF(INTRO!$E$39<>"Non endémique", " ", IF(INTRO!$E$37="Non endémique"," ", IF(COUNTRY_INFO!C120=0," ",COUNTRY_INFO!C120))) ->  | D120: =IF(INTRO!$E$39<>"Non endémique", 0, IF(INTRO!$E$37="Non endémique",0,IF(COUNTRY_INFO!$H120=1,COUNTRY_INFO!E120,0))) -> 0 | E120: =IF(INTRO!$E$39<>"Non endémique", 0, IF(INTRO!$E$37="Non endémique",0,IF(COUNTRY_INFO!$H120=1,COUNTRY_INFO!F120,0))) -> 0 | F120: =IF(INTRO!$E$39<>"Non endémique", 0, IF(INTRO!$E$37="Non endémique",0,IF(COUNTRY_INFO!$H120=1,COUNTRY_INFO!G120,0))) -> 0 | G120: 0 | H120: =IF(INTRO!$E$39="Non endémique",IF(INTRO!$E$37="Non endémique","Non requis",COUNTRY_INFO!V120),"Traiter avec IVM") -> Traiter avec IVM | I120: 0 | J120: 0 | L120: 0
A121: =IF(INTRO!$E$39<>"Non endémique", " ", IF(INTRO!$E$37="Non endémique"," ", IF(COUNTRY_INFO!A121=0," ",COUNTRY_INFO!A121))) ->  | B121: =IF(INTRO!$E$39<>"Non endémique", " ", IF(INTRO!$E$37="Non endémique"," ", IF(COUNTRY_INFO!B121=0," ",COUNTRY_INFO!B121))) ->  | C121: =IF(INTRO!$E$39<>"Non endémique", " ", IF(INTRO!$E$37="Non endémique"," ", IF(COUNTRY_INFO!C121=0," ",COUNTRY_INFO!C121))) ->  | D121: =IF(INTRO!$E$39<>"Non endémique", 0, IF(INTRO!$E$37="Non endémique",0,IF(COUNTRY_INFO!$H121=1,COUNTRY_INFO!E121,0))) -> 0 | E121: =IF(INTRO!$E$39<>"Non endémique", 0, IF(INTRO!$E$37="Non endémique",0,IF(COUNTRY_INFO!$H121=1,COUNTRY_INFO!F121,0))) -> 0 | F121: =IF(INTRO!$E$39<>"Non endémique", 0, IF(INTRO!$E$37="Non endémique",0,IF(COUNTRY_INFO!$H121=1,COUNTRY_INFO!G121,0))) -> 0 | G121: 0 | H121: =IF(INTRO!$E$39="Non endémique",IF(INTRO!$E$37="Non endémique","Non requis",COUNTRY_INFO!V121),"Traiter avec IVM") -> Traiter avec IVM | I121: 0 | J121: 0 | L121: 0
